Workbook

Sheet ГОЛОВНА
B9: ЗМІСТ | K9: Рівеньзнижки
K10: (введітьзначення)
B12: Alpha1,ALPHA2,MAGHA3 | D12: ='ALPHA, MAGNA'!G2 -> Регульовані циркуляційні насоси для систем опалення | F12: ПОШУК | K12: DH | L12: 0.31
B13: Comfort,UP,UPN,Solar | D13: ='Comfort, UP, UP N, Solar'!G2 -> Циркуляційні насоси для систем гарячого водопостачання | F13: 99199591 | K13: DC | L13: 0.33
B14: Scala, JP, Hydrojet, SB, SBA | D14: ='JP, Scala, SB, SBA, UPA'!G2 -> Насоси і насосні установки для систем водопостачання | K14: CB | L14: 0.31
B15: SQ, SQE, SP, SP-NE, SPE | D15: ='SQ, SQE, SP, SP-NE'!G12 -> Глибинні насоси та пакети постійного тиску | K15: CW | L15: 0.31
B16: Unilift AP, KP, Sololift2 | D16: ='Sololift, Unilift AP, KP'!G11 -> Дренажні та каналізаційні насоси та насосні станції | K16: DD | L16: 0.21
B17: SEG, AutoADAPT | D17: ='SEG, AutoADAPT'!G2 -> Каналізаційні насоси з ріжучим механізмом | K17: WW | L17: 0.26
B18: Multilift | D18: =Multilift!G2 -> Компактні каналізаційні станції для встановлення у приміщенні | K18: WS | L18: 0.26
B19: SE, SL | D19: Каналізаційні насоси | K19: GI | L19: 0.28
B20: DP, EF | D20: ='DP, EF'!G2 -> Дренажні насоси
B21: TP (E), TPD (E) | D21: ='TP (E), TPD (E)'!G2 -> Ін-лайн насоси для систем опалення та кондиціонування
B22: NB (E), NK (E) | D22: ='NB (E), NK (E)'!G2 -> Насоси для водопостачання, пожежогасіння та промисловості
B23: LS | D23: =LS!G2 -> Насоси для систем водопостачання
B24: MTR | D24: =MTR!G2 -> Напівзанурені насоси | H24: Ціни зазначено в Євро без ПДВ.
B25: CM (E), CMB (E) | D25: ='CM (E), CMB (E)'!G2 -> Самовсмоктуючі насоси для систем водопостачання | H25: УВАГА! Грундфос залишає за собою право змінювати ціни на продукцію. Актуальна ціна продажу та строки поставки зазначені в Комерційних пропозиціях та Рахунках-Специфікаціях. У випадку, якщо Ви не змогли знайти потрібну Вам модель насоса\аксесуара\т.п. - зверніться до Вашого торгового представника Грундфос.
B26: CR (E), CRI (E),CRN (E) | D26: ='CR (E), CRI (E),CRN (E)'!G2 -> Насоси для водопостачання, пожежогасіння та промисловості
B27: HYDRO Boosters | D27: ='HYDRO Boosters'!G2 -> Станції підвищення тиску
B28: Controls | D28: =Шафи!G2 -> Шафи керування
B29: Dosing | D29: =Dosing!G2 -> Дозатори
B30: GT | D30: Мембранні баки

Sheet ALPHA, MAGNA
A1: АРТИКУЛ | B1: НАЙМЕНУВАННЯ (УКР) | C1: PRICE GROUP | D1: ДОСТАВКА | E1: ДОДАТКОВО | F1: ЦІНА (ЕВРО БЕЗ ПДВ) | G1: ЦІНА ЗІ ЗНИЖКОЮ | H1: НА ГОЛОВНУ
A2: ALPHA1, ALPHA1 L, ALPHA2, | G2: Регульовані циркуляційні насоси для систем опалення
A3: 99160550 | B3: =VLOOKUP(A3,'DATA (2022)'!A:E,2,FALSE) -> Цирк.насос ALPHA1 L 15-40 130 1x230V 50H | C3: DH | D3: S | F3: =VLOOKUP(A3,'DATA (2022)'!A:E,5,FALSE) -> 217 | G3: =IFERROR(F3*(1-VLOOKUP(C3,ГОЛОВНА!K:L,2,0)), "-") -> 149.73
A4: 99160574 | B4: =VLOOKUP(A4,'DATA (2022)'!A:E,2,FALSE) -> Цирк.насос ALPHA1 L 15-60 130 1x230V 50H | C4: DH | D4: S | F4: =VLOOKUP(A4,'DATA (2022)'!A:E,5,FALSE) -> 249 | G4: =IFERROR(F4*(1-VLOOKUP(C4,ГОЛОВНА!K:L,2,0)), "-") -> 171.81
A5: 99160578 | B5: =VLOOKUP(A5,'DATA (2022)'!A:E,2,FALSE) -> Цирк.насос ALPHA1 L 25-40 130 1x230V 50H | C5: DH | D5: S | F5: =VLOOKUP(A5,'DATA (2022)'!A:E,5,FALSE) -> 201 | G5: =IFERROR(F5*(1-VLOOKUP(C5,ГОЛОВНА!K:L,2,0)), "-") -> 138.69
A6: 99160579 | B6: =VLOOKUP(A6,'DATA (2022)'!A:E,2,FALSE) -> Цирк.насос ALPHA1 L 25-40 180 1x230V 50H | C6: DH | D6: S | F6: =VLOOKUP(A6,'DATA (2022)'!A:E,5,FALSE) -> 201 | G6: =IFERROR(F6*(1-VLOOKUP(C6,ГОЛОВНА!K:L,2,0)), "-") -> 138.69
A7: 99160583 | B7: =VLOOKUP(A7,'DATA (2022)'!A:E,2,FALSE) -> Цирк.насос ALPHA1 L 25-60 130 1x230V 50H | C7: DH | D7: S | F7: =VLOOKUP(A7,'DATA (2022)'!A:E,5,FALSE) -> 231 | G7: =IFERROR(F7*(1-VLOOKUP(C7,ГОЛОВНА!K:L,2,0)), "-") -> 159.39
A8: 99160584 | B8: =VLOOKUP(A8,'DATA (2022)'!A:E,2,FALSE) -> Цирк.насос ALPHA1 L 25-60 180 1x230V 50H | C8: DH | D8: S | F8: =VLOOKUP(A8,'DATA (2022)'!A:E,5,FALSE) -> 231 | G8: =IFERROR(F8*(1-VLOOKUP(C8,ГОЛОВНА!K:L,2,0)), "-") -> 159.39
A9: 99160587 | B9: =VLOOKUP(A9,'DATA (2022)'!A:E,2,FALSE) -> Цирк.насос ALPHA1 L 32-40 180 1x230V 50H | C9: DH | D9: S | F9: =VLOOKUP(A9,'DATA (2022)'!A:E,5,FALSE) -> 221 | G9: =IFERROR(F9*(1-VLOOKUP(C9,ГОЛОВНА!K:L,2,0)), "-") -> 152.49
A10: 99160590 | B10: =VLOOKUP(A10,'DATA (2022)'!A:E,2,FALSE) -> Цирк.насос ALPHA1 L 32-60 180 1x230V 50H | C10: DH | D10: S | F10: =VLOOKUP(A10,'DATA (2022)'!A:E,5,FALSE) -> 243 | G10: =IFERROR(F10*(1-VLOOKUP(C10,ГОЛОВНА!K:L,2,0)), "-") -> 167.67
A11: 99199577 | B11: =VLOOKUP(A11,'DATA (2022)'!A:E,2,FALSE) -> Цирк.насос ALPHA1 25-80 180 1x230V 50Hz 6H | C11: DH | F11: =VLOOKUP(A11,'DATA (2022)'!A:E,5,FALSE) -> 337.9 | G11: =IFERROR(F11*(1-VLOOKUP(C11,ГОЛОВНА!K:L,2,0)), "-") -> 233.151
A12: 99199595 | B12: =VLOOKUP(A12,'DATA (2022)'!A:E,2,FALSE) -> Цирк.насос ALPHA1 15-80 130 1x230V 50Hz 6H | C12: DH | F12: =VLOOKUP(A12,'DATA (2022)'!A:E,5,FALSE) -> 346.3 | G12: =IFERROR(F12*(1-VLOOKUP(C12,ГОЛОВНА!K:L,2,0)), "-") -> 238.947
A13: 99199596 | B13: =VLOOKUP(A13,'DATA (2022)'!A:E,2,FALSE) -> Цирк.насос ALPHA1 25-80 130 1x230V 50Hz 6H | C13: DH | F13: =VLOOKUP(A13,'DATA (2022)'!A:E,5,FALSE) -> 337.9 | G13: =IFERROR(F13*(1-VLOOKUP(C13,ГОЛОВНА!K:L,2,0)), "-") -> 233.151
A14: 99199597 | B14: =VLOOKUP(A14,'DATA (2022)'!A:E,2,FALSE) -> Цирк.насос ALPHA1 32-80 180 1x230V 50Hz 6H | C14: DH | F14: =VLOOKUP(A14,'DATA (2022)'!A:E,5,FALSE) -> 342.2 | G14: =IFERROR(F14*(1-VLOOKUP(C14,ГОЛОВНА!K:L,2,0)), "-") -> 236.118
A15: 99199587 | B15: =VLOOKUP(A15,'DATA (2022)'!A:E,2,FALSE) -> Цирк.насос ALPHA1 25-40 N 130 1x230V 50Hz 6H | C15: DH | F15: =VLOOKUP(A15,'DATA (2022)'!A:E,5,FALSE) -> 529.7 | G15: =IFERROR(F15*(1-VLOOKUP(C15,ГОЛОВНА!K:L,2,0)), "-") -> 365.493
A16: 99199589 | B16: =VLOOKUP(A16,'DATA (2022)'!A:E,2,FALSE) -> Цирк.насос ALPHA1 25-60 N 130 1x230V 50Hz 6H | C16: DH | F16: =VLOOKUP(A16,'DATA (2022)'!A:E,5,FALSE) -> 534.4 | G16: =IFERROR(F16*(1-VLOOKUP(C16,ГОЛОВНА!K:L,2,0)), "-") -> 368.736
A17: 99199590 | B17: =VLOOKUP(A17,'DATA (2022)'!A:E,2,FALSE) -> Цирк.насос ALPHA1 25-80 N 130 1x230V 50Hz 6H | C17: DH | F17: =VLOOKUP(A17,'DATA (2022)'!A:E,5,FALSE) -> 621.1 | G17: =IFERROR(F17*(1-VLOOKUP(C17,ГОЛОВНА!K:L,2,0)), "-") -> 428.559
A18: 99199591 | B18: =VLOOKUP(A18,'DATA (2022)'!A:E,2,FALSE) -> Цирк.насос ALPHA1 25-40 N 180 1x230V 50H | C18: DH | F18: =VLOOKUP(A18,'DATA (2022)'!A:E,5,FALSE) -> 529.7 | G18: =IFERROR(F18*(1-VLOOKUP(C18,ГОЛОВНА!K:L,2,0)), "-") -> 365.493
A19: 99199593 | B19: =VLOOKUP(A19,'DATA (2022)'!A:E,2,FALSE) -> Цирк.насос ALPHA1 25-60 N 180 1x230V 50H | C19: DH | F19: =VLOOKUP(A19,'DATA (2022)'!A:E,5,FALSE) -> 534.5 | G19: =IFERROR(F19*(1-VLOOKUP(C19,ГОЛОВНА!K:L,2,0)), "-") -> 368.805
A20: 99199594 | B20: =VLOOKUP(A20,'DATA (2022)'!A:E,2,FALSE) -> Цирк.насос ALPHA1 25-80 N 180 1x230V 50Hz 6H | C20: DH | F20: =VLOOKUP(A20,'DATA (2022)'!A:E,5,FALSE) -> 621.1 | G20: =IFERROR(F20*(1-VLOOKUP(C20,ГОЛОВНА!K:L,2,0)), "-") -> 428.559
A21: 99452178 | B21: =VLOOKUP(A21,'DATA (2022)'!A:E,2,FALSE) -> Цирк.насос ALPHA1 20-40 N 150 1x230V 50Hz 6H | C21: DH | F21: =VLOOKUP(A21,'DATA (2022)'!A:E,5,FALSE) -> 521.8 | G21: =IFERROR(F21*(1-VLOOKUP(C21,ГОЛОВНА!K:L,2,0)), "-") -> 360.042
A22: 99452182 | B22: =VLOOKUP(A22,'DATA (2022)'!A:E,2,FALSE) -> Цирк.насос ALPHA1 20-60 N 150 1x230V 50Hz 6H | C22: DH | F22: =VLOOKUP(A22,'DATA (2022)'!A:E,5,FALSE) -> 522.4 | G22: =IFERROR(F22*(1-VLOOKUP(C22,ГОЛОВНА!K:L,2,0)), "-") -> 360.456
A23: 99411272 | B23: =VLOOKUP(A23,'DATA (2022)'!A:E,2,FALSE) -> Цирк.насос ALPHA2 25-40 N 130 1x230V 50H | C23: DH | F23: =VLOOKUP(A23,'DATA (2022)'!A:E,5,FALSE) -> 501 | G23: =IFERROR(F23*(1-VLOOKUP(C23,ГОЛОВНА!K:L,2,0)), "-") -> 345.69
A24: 99411286 | B24: Циркул.насос ALPHA2 25-50 N 130 1x230V | C24: DH | E24: Знято з в-ва, заміна 99411287 | G24: =IFERROR(F24*(1-VLOOKUP(C24,ГОЛОВНА!K:L,2,0)), "-") -> 0
A25: 99411287 | B25: =VLOOKUP(A25,'DATA (2022)'!A:E,2,FALSE) -> Цирк.насос ALPHA2 25-60 N 130 1x230V 50H | C25: DH | D25: S | F25: =VLOOKUP(A25,'DATA (2022)'!A:E,5,FALSE) -> 576 | G25: =IFERROR(F25*(1-VLOOKUP(C25,ГОЛОВНА!K:L,2,0)), "-") -> 397.44
A26: 99411289 | B26: =VLOOKUP(A26,'DATA (2022)'!A:E,2,FALSE) -> Цирк.насос ALPHA2 25-80 N 130 1x230V 50H | C26: DH | F26: =VLOOKUP(A26,'DATA (2022)'!A:E,5,FALSE) -> 717 | G26: =IFERROR(F26*(1-VLOOKUP(C26,ГОЛОВНА!K:L,2,0)), "-") -> 494.73
A27: 99411365 | B27: =VLOOKUP(A27,'DATA (2022)'!A:E,2,FALSE) -> Цирк.насос ALPHA2 25-40 N 180 1x230V 50H | C27: DH | D27: S | F27: =VLOOKUP(A27,'DATA (2022)'!A:E,5,FALSE) -> 501 | G27: =IFERROR(F27*(1-VLOOKUP(C27,ГОЛОВНА!K:L,2,0)), "-") -> 345.69
A28: 99411371 | B28: Циркул.насос ALPHA2 25-50 N 180 1x230V | C28: DH | E28: Знято з в-ва, заміна 99411424 | G28: =IFERROR(F28*(1-VLOOKUP(C28,ГОЛОВНА!K:L,2,0)), "-") -> 0
A29: 99411424 | B29: =VLOOKUP(A29,'DATA (2022)'!A:E,2,FALSE) -> Цирк.насос ALPHA2 25-60 N 180 1x230V 50H | C29: DH | D29: S | F29: =VLOOKUP(A29,'DATA (2022)'!A:E,5,FALSE) -> 576 | G29: =IFERROR(F29*(1-VLOOKUP(C29,ГОЛОВНА!K:L,2,0)), "-") -> 397.44
A30: 99411428 | B30: =VLOOKUP(A30,'DATA (2022)'!A:E,2,FALSE) -> Цирк.насос ALPHA2 25-80 N 180 1x230V 50H | C30: DH | F30: =VLOOKUP(A30,'DATA (2022)'!A:E,5,FALSE) -> 716 | G30: =IFERROR(F30*(1-VLOOKUP(C30,ГОЛОВНА!K:L,2,0)), "-") -> 494.04
A31: 99411448 | B31: =VLOOKUP(A31,'DATA (2022)'!A:E,2,FALSE) -> Цирк.насос ALPHA2 32-60 N 180 1x230V 50H | C31: DH | F31: =VLOOKUP(A31,'DATA (2022)'!A:E,5,FALSE) -> 660 | G31: =IFERROR(F31*(1-VLOOKUP(C31,ГОЛОВНА!K:L,2,0)), "-") -> 455.4
A32: 98989297 | B32: =VLOOKUP(A32,'DATA (2022)'!A:E,2,FALSE) -> Цирк.насос ALPHA Solar 25-145 180 1x230V | C32: DH | F32: =VLOOKUP(A32,'DATA (2022)'!A:E,5,FALSE) -> 377 | G32: =IFERROR(F32*(1-VLOOKUP(C32,ГОЛОВНА!K:L,2,0)), "-") -> 260.13
A33: 98989298 | B33: =VLOOKUP(A33,'DATA (2022)'!A:E,2,FALSE) -> Цирк.насос ALPHA Solar 15-75 130 1x230V | C33: DH | F33: =VLOOKUP(A33,'DATA (2022)'!A:E,5,FALSE) -> 339 | G33: =IFERROR(F33*(1-VLOOKUP(C33,ГОЛОВНА!K:L,2,0)), "-") -> 233.91
A34: 98989299 | B34: =VLOOKUP(A34,'DATA (2022)'!A:E,2,FALSE) -> Цирк.насос ALPHA Solar 25-75 130 1x230V | C34: DH | F34: =VLOOKUP(A34,'DATA (2022)'!A:E,5,FALSE) -> 352 | G34: =IFERROR(F34*(1-VLOOKUP(C34,ГОЛОВНА!K:L,2,0)), "-") -> 242.88
A35: 98989300 | B35: =VLOOKUP(A35,'DATA (2022)'!A:E,2,FALSE) -> Цирк.насос ALPHA Solar 25-75 180 1x230V | C35: DH | F35: =VLOOKUP(A35,'DATA (2022)'!A:E,5,FALSE) -> 352 | G35: =IFERROR(F35*(1-VLOOKUP(C35,ГОЛОВНА!K:L,2,0)), "-") -> 242.88
A36: 99411107 | B36: =VLOOKUP(A36,'DATA (2022)'!A:E,2,FALSE) -> Цирк.насос ALPHA2 15-40 130 1x230V 50Hz | C36: DH | D36: S | F36: =VLOOKUP(A36,'DATA (2022)'!A:E,5,FALSE) -> 295 | G36: =IFERROR(F36*(1-VLOOKUP(C36,ГОЛОВНА!K:L,2,0)), "-") -> 203.55
A37: 99411113 | B37: Циркул.насос ALPHA2 15-50 130 1x230V 50H | C37: DH | E37: Знято з в-ва, заміна 99411114 | G37: =IFERROR(F37*(1-VLOOKUP(C37,ГОЛОВНА!K:L,2,0)), "-") -> 0
A38: 99411114 | B38: =VLOOKUP(A38,'DATA (2022)'!A:E,2,FALSE) -> Цирк.насос ALPHA2 15-60 130 1x230V 50Hz | C38: DH | D38: S | F38: =VLOOKUP(A38,'DATA (2022)'!A:E,5,FALSE) -> 339 | G38: =IFERROR(F38*(1-VLOOKUP(C38,ГОЛОВНА!K:L,2,0)), "-") -> 233.91
A39: 99411116 | B39: =VLOOKUP(A39,'DATA (2022)'!A:E,2,FALSE) -> Цирк.насос ALPHA2 15-80 130 1x230V 50Hz | C39: DH | D39: S | F39: =VLOOKUP(A39,'DATA (2022)'!A:E,5,FALSE) -> 384 | G39: =IFERROR(F39*(1-VLOOKUP(C39,ГОЛОВНА!K:L,2,0)), "-") -> 264.96
A40: 99411143 | B40: =VLOOKUP(A40,'DATA (2022)'!A:E,2,FALSE) -> Цирк.насос ALPHA2 25-40 130 1x230V 50Hz | C40: DH | D40: S | F40: =VLOOKUP(A40,'DATA (2022)'!A:E,5,FALSE) -> 264 | G40: =IFERROR(F40*(1-VLOOKUP(C40,ГОЛОВНА!K:L,2,0)), "-") -> 182.16
A41: 99411146 | B41: Циркул.насос ALPHA2 25-50 130 1x230V 50H | C41: DH | E41: Знято з в-ва, заміна 99411150 | G41: =IFERROR(F41*(1-VLOOKUP(C41,ГОЛОВНА!K:L,2,0)), "-") -> 0
A42: 99411150 | B42: =VLOOKUP(A42,'DATA (2022)'!A:E,2,FALSE) -> Цирк.насос ALPHA2 25-60 130 1x230V 50Hz | C42: DH | F42: =VLOOKUP(A42,'DATA (2022)'!A:E,5,FALSE) -> 305 | G42: =IFERROR(F42*(1-VLOOKUP(C42,ГОЛОВНА!K:L,2,0)), "-") -> 210.45
A43: 99411163 | B43: =VLOOKUP(A43,'DATA (2022)'!A:E,2,FALSE) -> Цирк.насос ALPHA2 25-80 130 1x230V 50Hz | C43: DH | F43: =VLOOKUP(A43,'DATA (2022)'!A:E,5,FALSE) -> 378 | G43: =IFERROR(F43*(1-VLOOKUP(C43,ГОЛОВНА!K:L,2,0)), "-") -> 260.82
A44: 99411165 | B44: =VLOOKUP(A44,'DATA (2022)'!A:E,2,FALSE) -> Цирк.насос ALPHA2 25-40 180 1x230V 50Hz | C44: DH | D44: S | F44: =VLOOKUP(A44,'DATA (2022)'!A:E,5,FALSE) -> 264 | G44: =IFERROR(F44*(1-VLOOKUP(C44,ГОЛОВНА!K:L,2,0)), "-") -> 182.16
A45: 99411173 | B45: Циркул.насос ALPHA2 25-50 180 1x230V 50H | C45: DH | E45: Знято з в-ва, заміна 99411175 | G45: =IFERROR(F45*(1-VLOOKUP(C45,ГОЛОВНА!K:L,2,0)), "-") -> 0
A46: 99411175 | B46: =VLOOKUP(A46,'DATA (2022)'!A:E,2,FALSE) -> Цирк.насос ALPHA2 25-60 180 1x230V 50Hz | C46: DH | D46: S | F46: =VLOOKUP(A46,'DATA (2022)'!A:E,5,FALSE) -> 302 | G46: =IFERROR(F46*(1-VLOOKUP(C46,ГОЛОВНА!K:L,2,0)), "-") -> 208.38
A47: 99411178 | B47: =VLOOKUP(A47,'DATA (2022)'!A:E,2,FALSE) -> Цирк.насос ALPHA2 25-80 180 1x230V 50Hz | C47: DH | D47: S | F47: =VLOOKUP(A47,'DATA (2022)'!A:E,5,FALSE) -> 378 | G47: =IFERROR(F47*(1-VLOOKUP(C47,ГОЛОВНА!K:L,2,0)), "-") -> 260.82
A48: 99411207 | B48: =VLOOKUP(A48,'DATA (2022)'!A:E,2,FALSE) -> Цирк.насос ALPHA2 32-40 180 1x230V 50Hz | C48: DH | D48: S | F48: =VLOOKUP(A48,'DATA (2022)'!A:E,5,FALSE) -> 295 | G48: =IFERROR(F48*(1-VLOOKUP(C48,ГОЛОВНА!K:L,2,0)), "-") -> 203.55
A49: 99411215 | B49: Циркул.насос ALPHA2 32-50 180 1x230V 50H | C49: DH | E49: Знято з в-ва, заміна 99411221 | G49: =IFERROR(F49*(1-VLOOKUP(C49,ГОЛОВНА!K:L,2,0)), "-") -> 0
A50: 99411221 | B50: =VLOOKUP(A50,'DATA (2022)'!A:E,2,FALSE) -> Цирк.насос ALPHA2 32-60 180 1x230V 50Hz | C50: DH | D50: S | F50: =VLOOKUP(A50,'DATA (2022)'!A:E,5,FALSE) -> 334 | G50: =IFERROR(F50*(1-VLOOKUP(C50,ГОЛОВНА!K:L,2,0)), "-") -> 230.46
A51: 99411263 | B51: =VLOOKUP(A51,'DATA (2022)'!A:E,2,FALSE) -> Цирк.насос ALPHA2 32-80 180 1x230V 50Hz | C51: DH | D51: S | F51: =VLOOKUP(A51,'DATA (2022)'!A:E,5,FALSE) -> 410 | G51: =IFERROR(F51*(1-VLOOKUP(C51,ГОЛОВНА!K:L,2,0)), "-") -> 282.9
A52: 99371948 | B52: =VLOOKUP(A52,'DATA (2022)'!A:E,2,FALSE) -> Цирк.насос ALPHA3 15-40 130 1x230V 50Hz | C52: DH | F52: =VLOOKUP(A52,'DATA (2022)'!A:E,5,FALSE) -> 383 | G52: =IFERROR(F52*(1-VLOOKUP(C52,ГОЛОВНА!K:L,2,0)), "-") -> 264.27
A53: 99371950 | B53: =VLOOKUP(A53,'DATA (2022)'!A:E,2,FALSE) -> Цирк.насос ALPHA3 15-60 130 1x230V 50Hz | C53: DH | F53: =VLOOKUP(A53,'DATA (2022)'!A:E,5,FALSE) -> 441 | G53: =IFERROR(F53*(1-VLOOKUP(C53,ГОЛОВНА!K:L,2,0)), "-") -> 304.29
A54: 99371951 | B54: =VLOOKUP(A54,'DATA (2022)'!A:E,2,FALSE) -> Цирк.насос ALPHA3 15-80 130 1x230V 50Hz | C54: DH | F54: =VLOOKUP(A54,'DATA (2022)'!A:E,5,FALSE) -> 494 | G54: =IFERROR(F54*(1-VLOOKUP(C54,ГОЛОВНА!K:L,2,0)), "-") -> 340.86
A55: 99371952 | B55: =VLOOKUP(A55,'DATA (2022)'!A:E,2,FALSE) -> Цирк.насос ALPHA3 25-40 130 1x230V 50Hz | C55: DH | D55: FT | F55: =VLOOKUP(A55,'DATA (2022)'!A:E,5,FALSE) -> 349 | G55: =IFERROR(F55*(1-VLOOKUP(C55,ГОЛОВНА!K:L,2,0)), "-") -> 240.81
A56: 99371954 | B56: =VLOOKUP(A56,'DATA (2022)'!A:E,2,FALSE) -> Цирк.насос ALPHA3 25-60 130 1x230V 50Hz | C56: DH | D56: FT | F56: =VLOOKUP(A56,'DATA (2022)'!A:E,5,FALSE) -> 401 | G56: =IFERROR(F56*(1-VLOOKUP(C56,ГОЛОВНА!K:L,2,0)), "-") -> 276.69
A57: 99371955 | B57: =VLOOKUP(A57,'DATA (2022)'!A:E,2,FALSE) -> Цирк.насос ALPHA3 25-80 130 1x230V 50Hz | C57: DH | F57: =VLOOKUP(A57,'DATA (2022)'!A:E,5,FALSE) -> 441 | G57: =IFERROR(F57*(1-VLOOKUP(C57,ГОЛОВНА!K:L,2,0)), "-") -> 304.29
A58: 99371956 | B58: =VLOOKUP(A58,'DATA (2022)'!A:E,2,FALSE) -> Цирк.насос ALPHA3 25-40 180 1x230V 50Hz | C58: DH | D58: FT | F58: =VLOOKUP(A58,'DATA (2022)'!A:E,5,FALSE) -> 349 | G58: =IFERROR(F58*(1-VLOOKUP(C58,ГОЛОВНА!K:L,2,0)), "-") -> 240.81
A59: 99371959 | B59: =VLOOKUP(A59,'DATA (2022)'!A:E,2,FALSE) -> Цирк.насос ALPHA3 25-60 180 1x230V 50Hz | C59: DH | D59: FT | F59: =VLOOKUP(A59,'DATA (2022)'!A:E,5,FALSE) -> 401 | G59: =IFERROR(F59*(1-VLOOKUP(C59,ГОЛОВНА!K:L,2,0)), "-") -> 276.69
A60: 99371961 | B60: =VLOOKUP(A60,'DATA (2022)'!A:E,2,FALSE) -> Цирк.насос ALPHA3 25-80 180 1x230V 50Hz | C60: DH | D60: FT | F60: =VLOOKUP(A60,'DATA (2022)'!A:E,5,FALSE) -> 494 | G60: =IFERROR(F60*(1-VLOOKUP(C60,ГОЛОВНА!K:L,2,0)), "-") -> 340.86
A61: 99371962 | B61: =VLOOKUP(A61,'DATA (2022)'!A:E,2,FALSE) -> Цирк.насос ALPHA3 32-40 180 1x230V 50Hz | C61: DH | F61: =VLOOKUP(A61,'DATA (2022)'!A:E,5,FALSE) -> 383 | G61: =IFERROR(F61*(1-VLOOKUP(C61,ГОЛОВНА!K:L,2,0)), "-") -> 264.27
A62: 99371964 | B62: =VLOOKUP(A62,'DATA (2022)'!A:E,2,FALSE) -> Цирк.насос ALPHA3 32-60 180 1x230V 50Hz | C62: DH | F62: =VLOOKUP(A62,'DATA (2022)'!A:E,5,FALSE) -> 441 | G62: =IFERROR(F62*(1-VLOOKUP(C62,ГОЛОВНА!K:L,2,0)), "-") -> 304.29
A63: 99371965 | B63: =VLOOKUP(A63,'DATA (2022)'!A:E,2,FALSE) -> Цирк.насос ALPHA3 32-80 180 1x230V 50Hz | C63: DH | D63: FT | F63: =VLOOKUP(A63,'DATA (2022)'!A:E,5,FALSE) -> 494 | G63: =IFERROR(F63*(1-VLOOKUP(C63,ГОЛОВНА!K:L,2,0)), "-") -> 340.86
A65: MAGNA3, MAGNA1 | G65: Регулюємі циркуляційні насоси для систем опалення
A66: 99221291 | B66: =VLOOKUP(A66,'DATA (2022)'!A:E,2,FALSE) -> Цирк.насос MAGNA1 40-40 F 220 1x230V PN6 | C66: CB | E66: PN6/10 | F66: =VLOOKUP(A66,'DATA (2022)'!A:E,5,FALSE) -> 923 | G66: =IFERROR(F66*(1-VLOOKUP(C66,ГОЛОВНА!K:L,2,0)), "-") -> 636.87
A67: 99221256 | B67: =VLOOKUP(A67,'DATA (2022)'!A:E,2,FALSE) -> Цирк.насос MAGNA1 32-100 N 180 1x230V PN | C67: CB | E67: PN6/10 | F67: =VLOOKUP(A67,'DATA (2022)'!A:E,5,FALSE) -> 1395 | G67: =IFERROR(F67*(1-VLOOKUP(C67,ГОЛОВНА!K:L,2,0)), "-") -> 962.55
A68: 99221253 | B68: =VLOOKUP(A68,'DATA (2022)'!A:E,2,FALSE) -> Цирк.насос MAGNA1 32-40 N 180 1x230V PN1 | C68: CB | E68: PN6/10 | F68: =VLOOKUP(A68,'DATA (2022)'!A:E,5,FALSE) -> 1042 | G68: =IFERROR(F68*(1-VLOOKUP(C68,ГОЛОВНА!K:L,2,0)), "-") -> 718.98
A69: 99221234 | B69: =VLOOKUP(A69,'DATA (2022)'!A:E,2,FALSE) -> Цирк.насос MAGNA1 32-60 180 1x230V PN10 | C69: CB | E69: PN10 | F69: =VLOOKUP(A69,'DATA (2022)'!A:E,5,FALSE) -> 786 | G69: =IFERROR(F69*(1-VLOOKUP(C69,ГОЛОВНА!K:L,2,0)), "-") -> 542.34
A70: 99221265 | B70: =VLOOKUP(A70,'DATA (2022)'!A:E,2,FALSE) -> Цирк.насос MAGNA1 32-40 F N 220 1x230V P | C70: CB | E70: PN6/10 | F70: =VLOOKUP(A70,'DATA (2022)'!A:E,5,FALSE) -> 1148 | G70: =IFERROR(F70*(1-VLOOKUP(C70,ГОЛОВНА!K:L,2,0)), "-") -> 792.12
A71: 99221226 | B71: =VLOOKUP(A71,'DATA (2022)'!A:E,2,FALSE) -> Цирк.насос MAGNA1 25-100 N 180 1x230V PN | C71: CB | E71: PN10 | F71: =VLOOKUP(A71,'DATA (2022)'!A:E,5,FALSE) -> 1271 | G71: =IFERROR(F71*(1-VLOOKUP(C71,ГОЛОВНА!K:L,2,0)), "-") -> 876.99
A72: 99221237 | B72: =VLOOKUP(A72,'DATA (2022)'!A:E,2,FALSE) -> Цирк.насос MAGNA1 32-100 F 220 1x230V PN | C72: CB | D72: FT | E72: PN6/10 | F72: =VLOOKUP(A72,'DATA (2022)'!A:E,5,FALSE) -> 1048 | G72: =IFERROR(F72*(1-VLOOKUP(C72,ГОЛОВНА!K:L,2,0)), "-") -> 723.12
A73: 99221233 | B73: =VLOOKUP(A73,'DATA (2022)'!A:E,2,FALSE) -> Цирк.насос MAGNA1 32-40 180 1x230V PN10 | C73: CB | E73: PN6/10 | F73: =VLOOKUP(A73,'DATA (2022)'!A:E,5,FALSE) -> 672 | G73: =IFERROR(F73*(1-VLOOKUP(C73,ГОЛОВНА!K:L,2,0)), "-") -> 463.68
A74: 99221271 | B74: =VLOOKUP(A74,'DATA (2022)'!A:E,2,FALSE) -> Цирк.насос MAGNA1 32-60 F N 220 1x230V P | C74: CB | E74: PN6/10 | F74: =VLOOKUP(A74,'DATA (2022)'!A:E,5,FALSE) -> 1342 | G74: =IFERROR(F74*(1-VLOOKUP(C74,ГОЛОВНА!K:L,2,0)), "-") -> 925.98
A75: 99221277 | B75: =VLOOKUP(A75,'DATA (2022)'!A:E,2,FALSE) -> Цирк.насос MAGNA1 32-80 F N 220 1x230V P | C75: CB | E75: PN6/10 | F75: =VLOOKUP(A75,'DATA (2022)'!A:E,5,FALSE) -> 1413 | G75: =IFERROR(F75*(1-VLOOKUP(C75,ГОЛОВНА!K:L,2,0)), "-") -> 974.97
A76: 99221223 | B76: =VLOOKUP(A76,'DATA (2022)'!A:E,2,FALSE) -> Цирк.насос MAGNA1 25-40 N 180 1x230V PN1 | C76: CB | E76: PN10 | F76: =VLOOKUP(A76,'DATA (2022)'!A:E,5,FALSE) -> 848 | G76: =IFERROR(F76*(1-VLOOKUP(C76,ГОЛОВНА!K:L,2,0)), "-") -> 585.12
A77: 99221292 | B77: =VLOOKUP(A77,'DATA (2022)'!A:E,2,FALSE) -> Цирк.насос MAGNA1 40-60 F 220 1x230V PN6 | C77: CB | D77: FT | E77: PN6/10 | F77: =VLOOKUP(A77,'DATA (2022)'!A:E,5,FALSE) -> 1014 | G77: =IFERROR(F77*(1-VLOOKUP(C77,ГОЛОВНА!K:L,2,0)), "-") -> 699.66
A78: 99221254 | B78: =VLOOKUP(A78,'DATA (2022)'!A:E,2,FALSE) -> Цирк.насос MAGNA1 32-60 N 180 1x230V PN1 | C78: CB | E78: PN10 | F78: =VLOOKUP(A78,'DATA (2022)'!A:E,5,FALSE) -> 1218 | G78: =IFERROR(F78*(1-VLOOKUP(C78,ГОЛОВНА!K:L,2,0)), "-") -> 840.42
A79: 99221224 | B79: =VLOOKUP(A79,'DATA (2022)'!A:E,2,FALSE) -> Цирк.насос MAGNA1 25-60 N 180 1x230V PN1 | C79: CB | E79: PN10 | F79: =VLOOKUP(A79,'DATA (2022)'!A:E,5,FALSE) -> 1007 | G79: =IFERROR(F79*(1-VLOOKUP(C79,ГОЛОВНА!K:L,2,0)), "-") -> 694.83
A80: 99221227 | B80: =VLOOKUP(A80,'DATA (2022)'!A:E,2,FALSE) -> Цирк.насос MAGNA1 25-120 N 180 1x230V PN | C80: CB | E80: PN10 | F80: =VLOOKUP(A80,'DATA (2022)'!A:E,5,FALSE) -> 1430 | G80: =IFERROR(F80*(1-VLOOKUP(C80,ГОЛОВНА!K:L,2,0)), "-") -> 986.7
A81: 99221299 | B81: =VLOOKUP(A81,'DATA (2022)'!A:E,2,FALSE) -> Цирк.насос MAGNA1 40-40 F N 220 1x230V P | C81: CB | E81: PN6/10 | F81: =VLOOKUP(A81,'DATA (2022)'!A:E,5,FALSE) -> 1430 | G81: =IFERROR(F81*(1-VLOOKUP(C81,ГОЛОВНА!K:L,2,0)), "-") -> 986.7
A82: 99221255 | B82: =VLOOKUP(A82,'DATA (2022)'!A:E,2,FALSE) -> Цирк.насос MAGNA1 32-80 N 180 1x230V PN1 | C82: CB | E82: PN10 | F82: =VLOOKUP(A82,'DATA (2022)'!A:E,5,FALSE) -> 1271 | G82: =IFERROR(F82*(1-VLOOKUP(C82,ГОЛОВНА!K:L,2,0)), "-") -> 876.99
A83: 99221300 | B83: =VLOOKUP(A83,'DATA (2022)'!A:E,2,FALSE) -> Цирк.насос MAGNA1 40-60 F N 220 1x230V P | C83: CB | E83: PN6/10 | F83: =VLOOKUP(A83,'DATA (2022)'!A:E,5,FALSE) -> 1572 | G83: =IFERROR(F83*(1-VLOOKUP(C83,ГОЛОВНА!K:L,2,0)), "-") -> 1084.68
A84: 99221257 | B84: =VLOOKUP(A84,'DATA (2022)'!A:E,2,FALSE) -> Цирк.насос MAGNA1 32-100 F N 220 1x230V | C84: CB | E84: PN6/10 | F84: =VLOOKUP(A84,'DATA (2022)'!A:E,5,FALSE) -> 1625 | G84: =IFERROR(F84*(1-VLOOKUP(C84,ГОЛОВНА!K:L,2,0)), "-") -> 1121.25
A85: 99221374 | B85: =VLOOKUP(A85,'DATA (2022)'!A:E,2,FALSE) -> Цирк.насос MAGNA1 65-120 F 340 1x230V PN | C85: CB | D85: FT | E85: PN6/10 | F85: =VLOOKUP(A85,'DATA (2022)'!A:E,5,FALSE) -> 2315 | G85: =IFERROR(F85*(1-VLOOKUP(C85,ГОЛОВНА!K:L,2,0)), "-") -> 1597.35
A86: 99221305 | B86: =VLOOKUP(A86,'DATA (2022)'!A:E,2,FALSE) -> Цирк.насос MAGNA1 40-120 F 250 1x230V PN | C86: CB | D86: FT | E86: PN6/10 | F86: =VLOOKUP(A86,'DATA (2022)'!A:E,5,FALSE) -> 1454 | G86: =IFERROR(F86*(1-VLOOKUP(C86,ГОЛОВНА!K:L,2,0)), "-") -> 1003.26
A87: 99221289 | B87: =VLOOKUP(A87,'DATA (2022)'!A:E,2,FALSE) -> Цирк.насос MAGNA1 32-120 F N 220 1x230V | C87: CB | E87: PN6/10 | F87: =VLOOKUP(A87,'DATA (2022)'!A:E,5,FALSE) -> 1819 | G87: =IFERROR(F87*(1-VLOOKUP(C87,ГОЛОВНА!K:L,2,0)), "-") -> 1255.11
A88: 99221442 | B88: =VLOOKUP(A88,'DATA (2022)'!A:E,2,FALSE) -> Цирк.насос MAGNA1 100-120 F 450 1x230V P | C88: CB | E88: PN6 | F88: =VLOOKUP(A88,'DATA (2022)'!A:E,5,FALSE) -> За запитом | G88: =IFERROR(F88*(1-VLOOKUP(C88,ГОЛОВНА!K:L,2,0)), "-") -> -
A89: 99221447 | B89: =VLOOKUP(A89,'DATA (2022)'!A:E,2,FALSE) -> Цирк.насос MAGNA1 100-120 F 450 1x230V P | C89: CB | E89: PN10 | F89: =VLOOKUP(A89,'DATA (2022)'!A:E,5,FALSE) -> За запитом | G89: =IFERROR(F89*(1-VLOOKUP(C89,ГОЛОВНА!K:L,2,0)), "-") -> -
A90: 99221446 | B90: =VLOOKUP(A90,'DATA (2022)'!A:E,2,FALSE) -> Цирк.насос MAGNA1 100-100 F 450 1x230V P | C90: CB | E90: PN10 | F90: =VLOOKUP(A90,'DATA (2022)'!A:E,5,FALSE) -> 3077 | G90: =IFERROR(F90*(1-VLOOKUP(C90,ГОЛОВНА!K:L,2,0)), "-") -> 2123.13
A91: 99221441 | B91: =VLOOKUP(A91,'DATA (2022)'!A:E,2,FALSE) -> Цирк.насос MAGNA1 100-100 F 450 1x230V P | C91: CB | E91: PN6 | F91: =VLOOKUP(A91,'DATA (2022)'!A:E,5,FALSE) -> 2930 | G91: =IFERROR(F91*(1-VLOOKUP(C91,ГОЛОВНА!K:L,2,0)), "-") -> 2021.7
A92: 99221413 | B92: =VLOOKUP(A92,'DATA (2022)'!A:E,2,FALSE) -> Цирк.насос MAGNA1 80-120 F 360 1x230V PN | C92: CB | E92: PN10 | F92: =VLOOKUP(A92,'DATA (2022)'!A:E,5,FALSE) -> 2951 | G92: =IFERROR(F92*(1-VLOOKUP(C92,ГОЛОВНА!K:L,2,0)), "-") -> 2036.19
A93: 99221440 | B93: =VLOOKUP(A93,'DATA (2022)'!A:E,2,FALSE) -> Цирк.насос MAGNA1 100-80 F 450 1x230V PN | C93: CB | E93: PN6 | F93: =VLOOKUP(A93,'DATA (2022)'!A:E,5,FALSE) -> 2690 | G93: =IFERROR(F93*(1-VLOOKUP(C93,ГОЛОВНА!K:L,2,0)), "-") -> 1856.1
A94: 99221445 | B94: =VLOOKUP(A94,'DATA (2022)'!A:E,2,FALSE) -> Цирк.насос MAGNA1 100-80 F 450 1x230V PN | C94: CB | E94: PN10 | F94: =VLOOKUP(A94,'DATA (2022)'!A:E,5,FALSE) -> 2824 | G94: =IFERROR(F94*(1-VLOOKUP(C94,ГОЛОВНА!K:L,2,0)), "-") -> 1948.56
A95: 99221399 | B95: =VLOOKUP(A95,'DATA (2022)'!A:E,2,FALSE) -> Цирк.насос MAGNA1 65-150 F N 340 1x230V | C95: CB | E95: PN6/10 | F95: =VLOOKUP(A95,'DATA (2022)'!A:E,5,FALSE) -> За запитом | G95: =IFERROR(F95*(1-VLOOKUP(C95,ГОЛОВНА!K:L,2,0)), "-") -> -
A96: 99221338 | B96: =VLOOKUP(A96,'DATA (2022)'!A:E,2,FALSE) -> Цирк.насос MAGNA1 50-180 F 280 1x230V PN | C96: CB | D96: FT | E96: PN6/10 | F96: =VLOOKUP(A96,'DATA (2022)'!A:E,5,FALSE) -> 2522 | G96: =IFERROR(F96*(1-VLOOKUP(C96,ГОЛОВНА!K:L,2,0)), "-") -> 1740.18
A97: 99221363 | B97: =VLOOKUP(A97,'DATA (2022)'!A:E,2,FALSE) -> Цирк.насос MAGNA1 50-180 F N 280 1x230V | C97: CB | E97: PN6/10 | F97: =VLOOKUP(A97,'DATA (2022)'!A:E,5,FALSE) -> За запитом | G97: =IFERROR(F97*(1-VLOOKUP(C97,ГОЛОВНА!K:L,2,0)), "-") -> -
A98: 99221412 | B98: =VLOOKUP(A98,'DATA (2022)'!A:E,2,FALSE) -> Цирк.насос MAGNA1 80-100 F 360 1x230V PN | C98: CB | E98: PN10 | F98: =VLOOKUP(A98,'DATA (2022)'!A:E,5,FALSE) -> 2629 | G98: =IFERROR(F98*(1-VLOOKUP(C98,ГОЛОВНА!K:L,2,0)), "-") -> 1814.01
A99: 99221408 | B99: =VLOOKUP(A99,'DATA (2022)'!A:E,2,FALSE) -> Цирк.насос MAGNA1 80-100 F 360 1x230V PN | C99: CB | E99: PN6 | F99: =VLOOKUP(A99,'DATA (2022)'!A:E,5,FALSE) -> 2504 | G99: =IFERROR(F99*(1-VLOOKUP(C99,ГОЛОВНА!K:L,2,0)), "-") -> 1727.76
A100: 99221444 | B100: =VLOOKUP(A100,'DATA (2022)'!A:E,2,FALSE) -> Цирк.насос MAGNA1 100-60 F 450 1x230V PN | C100: CB | E100: PN10 | F100: =VLOOKUP(A100,'DATA (2022)'!A:E,5,FALSE) -> 2603 | G100: =IFERROR(F100*(1-VLOOKUP(C100,ГОЛОВНА!K:L,2,0)), "-") -> 1796.07
A101: 99221439 | B101: =VLOOKUP(A101,'DATA (2022)'!A:E,2,FALSE) -> Цирк.насос MAGNA1 100-60 F 450 1x230V PN | C101: CB | E101: PN6 | F101: =VLOOKUP(A101,'DATA (2022)'!A:E,5,FALSE) -> 2479 | G101: =IFERROR(F101*(1-VLOOKUP(C101,ГОЛОВНА!K:L,2,0)), "-") -> 1710.51
A102: 99221411 | B102: =VLOOKUP(A102,'DATA (2022)'!A:E,2,FALSE) -> Цирк.насос MAGNA1 80-80 F 360 1x230V PN1 | C102: CB | E102: PN10 | F102: =VLOOKUP(A102,'DATA (2022)'!A:E,5,FALSE) -> 2407 | G102: =IFERROR(F102*(1-VLOOKUP(C102,ГОЛОВНА!K:L,2,0)), "-") -> 1660.83
A103: 99221323 | B103: =VLOOKUP(A103,'DATA (2022)'!A:E,2,FALSE) -> Цирк.насос MAGNA1 40-80 F N 220 1x230V P | C103: CB | E103: PN6/10 | F103: =VLOOKUP(A103,'DATA (2022)'!A:E,5,FALSE) -> 1810 | G103: =IFERROR(F103*(1-VLOOKUP(C103,ГОЛОВНА!K:L,2,0)), "-") -> 1248.9
A104: 99221407 | B104: =VLOOKUP(A104,'DATA (2022)'!A:E,2,FALSE) -> Цирк.насос MAGNA1 80-80 F 360 1x230V PN6 | C104: CB | E104: PN6 | F104: =VLOOKUP(A104,'DATA (2022)'!A:E,5,FALSE) -> 2292 | G104: =IFERROR(F104*(1-VLOOKUP(C104,ГОЛОВНА!K:L,2,0)), "-") -> 1581.48
A105: 99221324 | B105: =VLOOKUP(A105,'DATA (2022)'!A:E,2,FALSE) -> Цирк.насос MAGNA1 40-100 F N 220 1x230V | C105: CB | E105: PN6/10 | F105: =VLOOKUP(A105,'DATA (2022)'!A:E,5,FALSE) -> 1996 | G105: =IFERROR(F105*(1-VLOOKUP(C105,ГОЛОВНА!K:L,2,0)), "-") -> 1377.24
A106: 99221438 | B106: =VLOOKUP(A106,'DATA (2022)'!A:E,2,FALSE) -> Цирк.насос MAGNA1 100-40 F 450 1x230V PN | C106: CB | E106: PN6 | F106: =VLOOKUP(A106,'DATA (2022)'!A:E,5,FALSE) -> 2270 | G106: =IFERROR(F106*(1-VLOOKUP(C106,ГОЛОВНА!K:L,2,0)), "-") -> 1566.3
A107: 99221398 | B107: =VLOOKUP(A107,'DATA (2022)'!A:E,2,FALSE) -> Цирк.насос MAGNA1 65-120 F N 340 1x230V | C107: CB | E107: PN6/10 | F107: =VLOOKUP(A107,'DATA (2022)'!A:E,5,FALSE) -> За запитом | G107: =IFERROR(F107*(1-VLOOKUP(C107,ГОЛОВНА!K:L,2,0)), "-") -> -
A108: 99221443 | B108: =VLOOKUP(A108,'DATA (2022)'!A:E,2,FALSE) -> Цирк.насос MAGNA1 100-40 F 450 1x230V PN | C108: CB | E108: PN10 | F108: =VLOOKUP(A108,'DATA (2022)'!A:E,5,FALSE) -> 2384 | G108: =IFERROR(F108*(1-VLOOKUP(C108,ГОЛОВНА!K:L,2,0)), "-") -> 1644.96
A109: 99221337 | B109: =VLOOKUP(A109,'DATA (2022)'!A:E,2,FALSE) -> Цирк.насос MAGNA1 50-150 F 280 1x230V PN | C109: CB | D109: FT | E109: PN6/10 | F109: =VLOOKUP(A109,'DATA (2022)'!A:E,5,FALSE) -> 2149 | G109: =IFERROR(F109*(1-VLOOKUP(C109,ГОЛОВНА!K:L,2,0)), "-") -> 1482.81
A110: 99221362 | B110: =VLOOKUP(A110,'DATA (2022)'!A:E,2,FALSE) -> Цирк.насос MAGNA1 50-150 F N 280 1x230V | C110: CB | E110: PN6/10 | F110: =VLOOKUP(A110,'DATA (2022)'!A:E,5,FALSE) -> За запитом | G110: =IFERROR(F110*(1-VLOOKUP(C110,ГОЛОВНА!K:L,2,0)), "-") -> -
A111: 99221410 | B111: =VLOOKUP(A111,'DATA (2022)'!A:E,2,FALSE) -> Цирк.насос MAGNA1 80-60 F 360 1x230V PN1 | C111: CB | E111: PN10 | F111: =VLOOKUP(A111,'DATA (2022)'!A:E,5,FALSE) -> 2235 | G111: =IFERROR(F111*(1-VLOOKUP(C111,ГОЛОВНА!K:L,2,0)), "-") -> 1542.15
A112: 99221406 | B112: =VLOOKUP(A112,'DATA (2022)'!A:E,2,FALSE) -> Цирк.насос MAGNA1 80-60 F 360 1x230V PN6 | C112: CB | E112: PN6 | F112: =VLOOKUP(A112,'DATA (2022)'!A:E,5,FALSE) -> 2128 | G112: =IFERROR(F112*(1-VLOOKUP(C112,ГОЛОВНА!K:L,2,0)), "-") -> 1468.32
A113: 99221397 | B113: =VLOOKUP(A113,'DATA (2022)'!A:E,2,FALSE) -> Цирк.насос MAGNA1 65-100 F N 340 1x230V | C113: CB | E113: PN6/10 | F113: =VLOOKUP(A113,'DATA (2022)'!A:E,5,FALSE) -> За запитом | G113: =IFERROR(F113*(1-VLOOKUP(C113,ГОЛОВНА!K:L,2,0)), "-") -> -
A114: 99221327 | B114: =VLOOKUP(A114,'DATA (2022)'!A:E,2,FALSE) -> Цирк.насос MAGNA1 40-180 F N 250 1x230V | C114: CB | E114: PN6/10 | F114: =VLOOKUP(A114,'DATA (2022)'!A:E,5,FALSE) -> За запитом | G114: =IFERROR(F114*(1-VLOOKUP(C114,ГОЛОВНА!K:L,2,0)), "-") -> -
A115: 99221396 | B115: =VLOOKUP(A115,'DATA (2022)'!A:E,2,FALSE) -> Цирк.насос MAGNA1 65-80 F N 340 1x230V P | C115: CB | E115: PN6/10 | F115: =VLOOKUP(A115,'DATA (2022)'!A:E,5,FALSE) -> За запитом | G115: =IFERROR(F115*(1-VLOOKUP(C115,ГОЛОВНА!K:L,2,0)), "-") -> -
A116: 99221307 | B116: =VLOOKUP(A116,'DATA (2022)'!A:E,2,FALSE) -> Цирк.насос MAGNA1 40-180 F 250 1x230V PN | C116: CB | D116: FT | E116: PN6/10 | F116: =VLOOKUP(A116,'DATA (2022)'!A:E,5,FALSE) -> 2007 | G116: =IFERROR(F116*(1-VLOOKUP(C116,ГОЛОВНА!K:L,2,0)), "-") -> 1384.83
A117: 99221372 | B117: =VLOOKUP(A117,'DATA (2022)'!A:E,2,FALSE) -> Цирк.насос MAGNA1 65-80 F 340 1x230V PN6 | C117: CB | D117: FT | E117: PN6/10 | F117: =VLOOKUP(A117,'DATA (2022)'!A:E,5,FALSE) -> 2007 | G117: =IFERROR(F117*(1-VLOOKUP(C117,ГОЛОВНА!K:L,2,0)), "-") -> 1384.83
A118: 99221361 | B118: =VLOOKUP(A118,'DATA (2022)'!A:E,2,FALSE) -> Цирк.насос MAGNA1 50-120 F N 280 1x230V | C118: CB | E118: PN6/10 | F118: =VLOOKUP(A118,'DATA (2022)'!A:E,5,FALSE) -> 2890 | G118: =IFERROR(F118*(1-VLOOKUP(C118,ГОЛОВНА!K:L,2,0)), "-") -> 1994.1
A119: 99221395 | B119: =VLOOKUP(A119,'DATA (2022)'!A:E,2,FALSE) -> Цирк.насос MAGNA1 65-60 F N 340 1x230V P | C119: CB | E119: PN6/10 | F119: =VLOOKUP(A119,'DATA (2022)'!A:E,5,FALSE) -> 2856 | G119: =IFERROR(F119*(1-VLOOKUP(C119,ГОЛОВНА!K:L,2,0)), "-") -> 1970.64
A120: 99221371 | B120: =VLOOKUP(A120,'DATA (2022)'!A:E,2,FALSE) -> Цирк.насос MAGNA1 65-60 F 340 1x230V PN6 | C120: CB | D120: FT | E120: PN6/10 | F120: =VLOOKUP(A120,'DATA (2022)'!A:E,5,FALSE) -> 1842 | G120: =IFERROR(F120*(1-VLOOKUP(C120,ГОЛОВНА!K:L,2,0)), "-") -> 1270.98
A121: 99221360 | B121: =VLOOKUP(A121,'DATA (2022)'!A:E,2,FALSE) -> Цирк.насос MAGNA1 50-100 F N 280 1x230V | C121: CB | E121: PN6/10 | F121: =VLOOKUP(A121,'DATA (2022)'!A:E,5,FALSE) -> 2737 | G121: =IFERROR(F121*(1-VLOOKUP(C121,ГОЛОВНА!K:L,2,0)), "-") -> 1888.53
A122: 99221335 | B122: =VLOOKUP(A122,'DATA (2022)'!A:E,2,FALSE) -> Цирк.насос MAGNA1 50-100 F 280 1x230V PN | C122: CB | D122: FT | E122: PN6/10 | F122: =VLOOKUP(A122,'DATA (2022)'!A:E,5,FALSE) -> 1766 | G122: =IFERROR(F122*(1-VLOOKUP(C122,ГОЛОВНА!K:L,2,0)), "-") -> 1218.54
A123: 99221326 | B123: =VLOOKUP(A123,'DATA (2022)'!A:E,2,FALSE) -> Цирк.насос MAGNA1 40-150 F N 250 1x230V | C123: CB | E123: PN6/10 | F123: =VLOOKUP(A123,'DATA (2022)'!A:E,5,FALSE) -> 2703 | G123: =IFERROR(F123*(1-VLOOKUP(C123,ГОЛОВНА!K:L,2,0)), "-") -> 1865.07
A124: 99221334 | B124: =VLOOKUP(A124,'DATA (2022)'!A:E,2,FALSE) -> Цирк.насос MAGNA1 50-80 F 240 1x230V PN6 | C124: CB | D124: FT | E124: PN6/10 | F124: =VLOOKUP(A124,'DATA (2022)'!A:E,5,FALSE) -> 1668 | G124: =IFERROR(F124*(1-VLOOKUP(C124,ГОЛОВНА!K:L,2,0)), "-") -> 1150.92
A125: 99221359 | B125: =VLOOKUP(A125,'DATA (2022)'!A:E,2,FALSE) -> Цирк.насос MAGNA1 50-80 F N 240 1x230V P | C125: CB | E125: PN6/10 | F125: =VLOOKUP(A125,'DATA (2022)'!A:E,5,FALSE) -> 2584 | G125: =IFERROR(F125*(1-VLOOKUP(C125,ГОЛОВНА!K:L,2,0)), "-") -> 1782.96
A126: 99221394 | B126: =VLOOKUP(A126,'DATA (2022)'!A:E,2,FALSE) -> Цирк.насос MAGNA1 65-40 F N 340 1x230V P | C126: CB | E126: PN6/10 | F126: =VLOOKUP(A126,'DATA (2022)'!A:E,5,FALSE) -> 2499 | G126: =IFERROR(F126*(1-VLOOKUP(C126,ГОЛОВНА!K:L,2,0)), "-") -> 1724.31
A127: 99221382 | B127: =VLOOKUP(A127,'DATA (2022)'!A:E,2,FALSE) -> Цирк.насос MAGNA1 65-40 F 340 1x230V PN6 | C127: CB | D127: FT | E127: PN6/10 | F127: =VLOOKUP(A127,'DATA (2022)'!A:E,5,FALSE) -> 1613 | G127: =IFERROR(F127*(1-VLOOKUP(C127,ГОЛОВНА!K:L,2,0)), "-") -> 1112.97
A128: 99221358 | B128: =VLOOKUP(A128,'DATA (2022)'!A:E,2,FALSE) -> Цирк.насос MAGNA1 50-60 F N 240 1x230V P | C128: CB | E128: PN6/10 | F128: =VLOOKUP(A128,'DATA (2022)'!A:E,5,FALSE) -> 2347 | G128: =IFERROR(F128*(1-VLOOKUP(C128,ГОЛОВНА!K:L,2,0)), "-") -> 1619.43
A129: 99221333 | B129: =VLOOKUP(A129,'DATA (2022)'!A:E,2,FALSE) -> Цирк.насос MAGNA1 50-60 F 240 1x230V PN6 | C129: CB | D129: FT | E129: PN6/10 | F129: =VLOOKUP(A129,'DATA (2022)'!A:E,5,FALSE) -> 1514 | G129: =IFERROR(F129*(1-VLOOKUP(C129,ГОЛОВНА!K:L,2,0)), "-") -> 1044.66
A130: 99221325 | B130: =VLOOKUP(A130,'DATA (2022)'!A:E,2,FALSE) -> Цирк.насос MAGNA1 40-120 F N 250 1x230V | C130: CB | E130: PN6/10 | F130: =VLOOKUP(A130,'DATA (2022)'!A:E,5,FALSE) -> 2209 | G130: =IFERROR(F130*(1-VLOOKUP(C130,ГОЛОВНА!K:L,2,0)), "-") -> 1524.21
A131: 99221304 | B131: =VLOOKUP(A131,'DATA (2022)'!A:E,2,FALSE) -> Цирк.насос MAGNA1 40-100 F 220 1x230V PN | C131: CB | D131: FT | E131: PN6/10 | F131: =VLOOKUP(A131,'DATA (2022)'!A:E,5,FALSE) -> 1283 | G131: =IFERROR(F131*(1-VLOOKUP(C131,ГОЛОВНА!K:L,2,0)), "-") -> 885.27
A132: 99221267 | B132: =VLOOKUP(A132,'DATA (2022)'!A:E,2,FALSE) -> Цирк.насос MAGNA1 D 32-40 F 220 1x230V P | C132: CB | E132: PN6/10 | F132: =VLOOKUP(A132,'DATA (2022)'!A:E,5,FALSE) -> 1321 | G132: =IFERROR(F132*(1-VLOOKUP(C132,ГОЛОВНА!K:L,2,0)), "-") -> 911.49
A133: 99221238 | B133: =VLOOKUP(A133,'DATA (2022)'!A:E,2,FALSE) -> Цирк.насос MAGNA1 D 32-40 180 1x230V PN1 | C133: CB | E133: PN10 | F133: =VLOOKUP(A133,'DATA (2022)'!A:E,5,FALSE) -> 1199 | G133: =IFERROR(F133*(1-VLOOKUP(C133,ГОЛОВНА!K:L,2,0)), "-") -> 827.31
A134: 99221241 | B134: =VLOOKUP(A134,'DATA (2022)'!A:E,2,FALSE) -> Цирк.насос MAGNA1 D 32-100 180 1x230V PN | C134: CB | E134: PN10 | F134: =VLOOKUP(A134,'DATA (2022)'!A:E,5,FALSE) -> 1606 | G134: =IFERROR(F134*(1-VLOOKUP(C134,ГОЛОВНА!K:L,2,0)), "-") -> 1108.14
A135: 99221279 | B135: =VLOOKUP(A135,'DATA (2022)'!A:E,2,FALSE) -> Цирк.насос MAGNA1 D 32-80 F 220 1x230V P | C135: CB | E135: PN6/10 | F135: =VLOOKUP(A135,'DATA (2022)'!A:E,5,FALSE) -> 1626 | G135: =IFERROR(F135*(1-VLOOKUP(C135,ГОЛОВНА!K:L,2,0)), "-") -> 1121.94
A136: 99221240 | B136: =VLOOKUP(A136,'DATA (2022)'!A:E,2,FALSE) -> Цирк.насос MAGNA1 D 32-80 180 1x230V PN1 | C136: CB | E136: PN10 | F136: =VLOOKUP(A136,'DATA (2022)'!A:E,5,FALSE) -> 1463 | G136: =IFERROR(F136*(1-VLOOKUP(C136,ГОЛОВНА!K:L,2,0)), "-") -> 1009.47
A137: 99221293 | B137: =VLOOKUP(A137,'DATA (2022)'!A:E,2,FALSE) -> Цирк.насос MAGNA1 D 40-40 F 220 1x230V P | C137: CB | E137: PN6/10 | F137: =VLOOKUP(A137,'DATA (2022)'!A:E,5,FALSE) -> 1646 | G137: =IFERROR(F137*(1-VLOOKUP(C137,ГОЛОВНА!K:L,2,0)), "-") -> 1135.74
A138: 99221239 | B138: =VLOOKUP(A138,'DATA (2022)'!A:E,2,FALSE) -> Цирк.насос MAGNA1 D 32-60 180 1x230V PN1 | C138: CB | E138: PN10 | F138: =VLOOKUP(A138,'DATA (2022)'!A:E,5,FALSE) -> 1402 | G138: =IFERROR(F138*(1-VLOOKUP(C138,ГОЛОВНА!K:L,2,0)), "-") -> 967.38
A139: 99221273 | B139: =VLOOKUP(A139,'DATA (2022)'!A:E,2,FALSE) -> Цирк.насос MAGNA1 D 32-60 F 220 1x230V P | C139: CB | E139: PN6/10 | F139: =VLOOKUP(A139,'DATA (2022)'!A:E,5,FALSE) -> 1545 | G139: =IFERROR(F139*(1-VLOOKUP(C139,ГОЛОВНА!K:L,2,0)), "-") -> 1066.05
A140: 99221242 | B140: =VLOOKUP(A140,'DATA (2022)'!A:E,2,FALSE) -> Цирк.насос MAGNA1 D 32-100 F 220 1x230V | C140: CB | E140: PN6/10 | F140: =VLOOKUP(A140,'DATA (2022)'!A:E,5,FALSE) -> 1870 | G140: =IFERROR(F140*(1-VLOOKUP(C140,ГОЛОВНА!K:L,2,0)), "-") -> 1290.3
A141: 99221457 | B141: =VLOOKUP(A141,'DATA (2022)'!A:E,2,FALSE) -> Цирк.насос MAGNA1 D 100-120 F 450 1x230V | C141: CB | E141: PN10 | F141: =VLOOKUP(A141,'DATA (2022)'!A:E,5,FALSE) -> За запитом | G141: =IFERROR(F141*(1-VLOOKUP(C141,ГОЛОВНА!K:L,2,0)), "-") -> -
A142: 99221452 | B142: =VLOOKUP(A142,'DATA (2022)'!A:E,2,FALSE) -> Цирк.насос MAGNA1 D 100-120 F 450 1x230V | C142: CB | E142: PN6 | F142: =VLOOKUP(A142,'DATA (2022)'!A:E,5,FALSE) -> За запитом | G142: =IFERROR(F142*(1-VLOOKUP(C142,ГОЛОВНА!K:L,2,0)), "-") -> -
A143: 99221451 | B143: =VLOOKUP(A143,'DATA (2022)'!A:E,2,FALSE) -> Цирк.насос MAGNA1 D 100-100 F 450 1x230V | C143: CB | E143: PN6 | F143: =VLOOKUP(A143,'DATA (2022)'!A:E,5,FALSE) -> За запитом | G143: =IFERROR(F143*(1-VLOOKUP(C143,ГОЛОВНА!K:L,2,0)), "-") -> -
A144: 99221456 | B144: =VLOOKUP(A144,'DATA (2022)'!A:E,2,FALSE) -> Цирк.насос MAGNA1 D 100-100 F 450 1x230V | C144: CB | E144: PN10 | F144: =VLOOKUP(A144,'DATA (2022)'!A:E,5,FALSE) -> За запитом | G144: =IFERROR(F144*(1-VLOOKUP(C144,ГОЛОВНА!K:L,2,0)), "-") -> -
A145: 99221417 | B145: =VLOOKUP(A145,'DATA (2022)'!A:E,2,FALSE) -> Цирк.насос MAGNA1 D 80-120 F 360 1x230V | C145: CB | E145: PN6 | F145: =VLOOKUP(A145,'DATA (2022)'!A:E,5,FALSE) -> За запитом | G145: =IFERROR(F145*(1-VLOOKUP(C145,ГОЛОВНА!K:L,2,0)), "-") -> -
A146: 99221421 | B146: =VLOOKUP(A146,'DATA (2022)'!A:E,2,FALSE) -> Цирк.насос MAGNA1 D 80-120 F 360 1x230V | C146: CB | E146: PN10 | F146: =VLOOKUP(A146,'DATA (2022)'!A:E,5,FALSE) -> За запитом | G146: =IFERROR(F146*(1-VLOOKUP(C146,ГОЛОВНА!K:L,2,0)), "-") -> -
A147: 99221455 | B147: =VLOOKUP(A147,'DATA (2022)'!A:E,2,FALSE) -> Цирк.насос MAGNA1 D 100-80 F 450 1x230V | C147: CB | E147: PN10 | F147: =VLOOKUP(A147,'DATA (2022)'!A:E,5,FALSE) -> За запитом | G147: =IFERROR(F147*(1-VLOOKUP(C147,ГОЛОВНА!K:L,2,0)), "-") -> -
A148: 99221450 | B148: =VLOOKUP(A148,'DATA (2022)'!A:E,2,FALSE) -> Цирк.насос MAGNA1 D 100-80 F 450 1x230V | C148: CB | E148: PN6 | F148: =VLOOKUP(A148,'DATA (2022)'!A:E,5,FALSE) -> За запитом | G148: =IFERROR(F148*(1-VLOOKUP(C148,ГОЛОВНА!K:L,2,0)), "-") -> -
A149: 99221420 | B149: =VLOOKUP(A149,'DATA (2022)'!A:E,2,FALSE) -> Цирк.насос MAGNA1 D 80-100 F 360 1x230V | C149: CB | E149: PN10 | F149: =VLOOKUP(A149,'DATA (2022)'!A:E,5,FALSE) -> За запитом | G149: =IFERROR(F149*(1-VLOOKUP(C149,ГОЛОВНА!K:L,2,0)), "-") -> -
A150: 99221416 | B150: =VLOOKUP(A150,'DATA (2022)'!A:E,2,FALSE) -> Цирк.насос MAGNA1 D 80-100 F 360 1x230V | C150: CB | E150: PN6 | F150: =VLOOKUP(A150,'DATA (2022)'!A:E,5,FALSE) -> За запитом | G150: =IFERROR(F150*(1-VLOOKUP(C150,ГОЛОВНА!K:L,2,0)), "-") -> -
A151: 99221454 | B151: =VLOOKUP(A151,'DATA (2022)'!A:E,2,FALSE) -> Цирк.насос MAGNA1 D 100-60 F 450 1x230V | C151: CB | E151: PN10 | F151: =VLOOKUP(A151,'DATA (2022)'!A:E,5,FALSE) -> За запитом | G151: =IFERROR(F151*(1-VLOOKUP(C151,ГОЛОВНА!K:L,2,0)), "-") -> -
A152: 99221449 | B152: =VLOOKUP(A152,'DATA (2022)'!A:E,2,FALSE) -> Цирк.насос MAGNA1 D 100-60 F 450 1x230V | C152: CB | E152: PN6 | F152: =VLOOKUP(A152,'DATA (2022)'!A:E,5,FALSE) -> За запитом | G152: =IFERROR(F152*(1-VLOOKUP(C152,ГОЛОВНА!K:L,2,0)), "-") -> -
A153: 99221419 | B153: =VLOOKUP(A153,'DATA (2022)'!A:E,2,FALSE) -> Цирк.насос MAGNA1 D 80-80 F 360 1x230V P | C153: CB | E153: PN10 | F153: =VLOOKUP(A153,'DATA (2022)'!A:E,5,FALSE) -> За запитом | G153: =IFERROR(F153*(1-VLOOKUP(C153,ГОЛОВНА!K:L,2,0)), "-") -> -
A154: 99221415 | B154: =VLOOKUP(A154,'DATA (2022)'!A:E,2,FALSE) -> Цирк.насос MAGNA1 D 80-80 F 360 1x230V P | C154: CB | E154: PN6 | F154: =VLOOKUP(A154,'DATA (2022)'!A:E,5,FALSE) -> За запитом | G154: =IFERROR(F154*(1-VLOOKUP(C154,ГОЛОВНА!K:L,2,0)), "-") -> -
A155: 99221453 | B155: =VLOOKUP(A155,'DATA (2022)'!A:E,2,FALSE) -> Цирк.насос MAGNA1 D 100-40 F 450 1x230V | C155: CB | E155: PN10 | F155: =VLOOKUP(A155,'DATA (2022)'!A:E,5,FALSE) -> За запитом | G155: =IFERROR(F155*(1-VLOOKUP(C155,ГОЛОВНА!K:L,2,0)), "-") -> -
A156: 99221448 | B156: =VLOOKUP(A156,'DATA (2022)'!A:E,2,FALSE) -> Цирк.насос MAGNA1 D 100-40 F 450 1x230V | C156: CB | E156: PN6 | F156: =VLOOKUP(A156,'DATA (2022)'!A:E,5,FALSE) -> За запитом | G156: =IFERROR(F156*(1-VLOOKUP(C156,ГОЛОВНА!K:L,2,0)), "-") -> -
A157: 99221418 | B157: =VLOOKUP(A157,'DATA (2022)'!A:E,2,FALSE) -> Цирк.насос MAGNA1 D 80-60 F 360 1x230V P | C157: CB | E157: PN10 | F157: =VLOOKUP(A157,'DATA (2022)'!A:E,5,FALSE) -> За запитом | G157: =IFERROR(F157*(1-VLOOKUP(C157,ГОЛОВНА!K:L,2,0)), "-") -> -
A158: 99221414 | B158: =VLOOKUP(A158,'DATA (2022)'!A:E,2,FALSE) -> Цирк.насос MAGNA1 D 80-60 F 360 1x230V P | C158: CB | E158: PN6 | F158: =VLOOKUP(A158,'DATA (2022)'!A:E,5,FALSE) -> За запитом | G158: =IFERROR(F158*(1-VLOOKUP(C158,ГОЛОВНА!K:L,2,0)), "-") -> -
A159: 99221379 | B159: =VLOOKUP(A159,'DATA (2022)'!A:E,2,FALSE) -> Цирк.насос MAGNA1 D 65-100 F 340 1x230V | C159: CB | E159: PN6/10 | F159: =VLOOKUP(A159,'DATA (2022)'!A:E,5,FALSE) -> За запитом | G159: =IFERROR(F159*(1-VLOOKUP(C159,ГОЛОВНА!K:L,2,0)), "-") -> -
A160: 99221378 | B160: =VLOOKUP(A160,'DATA (2022)'!A:E,2,FALSE) -> Цирк.насос MAGNA1 D 65-80 F 340 1x230V P | C160: CB | E160: PN6/10 | F160: =VLOOKUP(A160,'DATA (2022)'!A:E,5,FALSE) -> За запитом | G160: =IFERROR(F160*(1-VLOOKUP(C160,ГОЛОВНА!K:L,2,0)), "-") -> -
A161: 99230413 | B161: =VLOOKUP(A161,'DATA (2022)'!A:E,2,FALSE) -> Цирк.насос MAGNA1 D 80-40 F 360 1x230V P | C161: CB | E161: PN10 | F161: =VLOOKUP(A161,'DATA (2022)'!A:E,5,FALSE) -> За запитом | G161: =IFERROR(F161*(1-VLOOKUP(C161,ГОЛОВНА!K:L,2,0)), "-") -> -
A162: 99230392 | B162: =VLOOKUP(A162,'DATA (2022)'!A:E,2,FALSE) -> Цирк.насос MAGNA1 D 80-40 F 360 1x230V P | C162: CB | E162: PN6 | F162: =VLOOKUP(A162,'DATA (2022)'!A:E,5,FALSE) -> За запитом | G162: =IFERROR(F162*(1-VLOOKUP(C162,ГОЛОВНА!K:L,2,0)), "-") -> -
A163: 99221342 | B163: =VLOOKUP(A163,'DATA (2022)'!A:E,2,FALSE) -> Цирк.насос MAGNA1 D 50-120 F 280 1x230V | C163: CB | E163: PN6/10 | F163: =VLOOKUP(A163,'DATA (2022)'!A:E,5,FALSE) -> За запитом | G163: =IFERROR(F163*(1-VLOOKUP(C163,ГОЛОВНА!K:L,2,0)), "-") -> -
A164: 99221377 | B164: =VLOOKUP(A164,'DATA (2022)'!A:E,2,FALSE) -> Цирк.насос MAGNA1 D 65-60 F 340 1x230V P | C164: CB | E164: PN6/10 | F164: =VLOOKUP(A164,'DATA (2022)'!A:E,5,FALSE) -> За запитом | G164: =IFERROR(F164*(1-VLOOKUP(C164,ГОЛОВНА!K:L,2,0)), "-") -> -
A165: 99221340 | B165: =VLOOKUP(A165,'DATA (2022)'!A:E,2,FALSE) -> Цирк.насос MAGNA1 D 50-80 F 240 1x230V P | C165: CB | E165: PN6/10 | F165: =VLOOKUP(A165,'DATA (2022)'!A:E,5,FALSE) -> 3001 | G165: =IFERROR(F165*(1-VLOOKUP(C165,ГОЛОВНА!K:L,2,0)), "-") -> 2070.69
A166: 99221376 | B166: =VLOOKUP(A166,'DATA (2022)'!A:E,2,FALSE) -> Цирк.насос MAGNA1 D 65-40 F 340 1x230V P | C166: CB | E166: PN6/10 | F166: =VLOOKUP(A166,'DATA (2022)'!A:E,5,FALSE) -> 2902 | G166: =IFERROR(F166*(1-VLOOKUP(C166,ГОЛОВНА!K:L,2,0)), "-") -> 2002.38
A167: 99221339 | B167: =VLOOKUP(A167,'DATA (2022)'!A:E,2,FALSE) -> Цирк.насос MAGNA1 D 50-60 F 240 1x230V P | C167: CB | E167: PN6/10 | F167: =VLOOKUP(A167,'DATA (2022)'!A:E,5,FALSE) -> 2725 | G167: =IFERROR(F167*(1-VLOOKUP(C167,ГОЛОВНА!K:L,2,0)), "-") -> 1880.25
A168: 99230357 | B168: =VLOOKUP(A168,'DATA (2022)'!A:E,2,FALSE) -> Цирк.насос MAGNA1 D 50-40 F 240 1x230V P | C168: CB | E168: PN6/10 | F168: =VLOOKUP(A168,'DATA (2022)'!A:E,5,FALSE) -> 2310 | G168: =IFERROR(F168*(1-VLOOKUP(C168,ГОЛОВНА!K:L,2,0)), "-") -> 1593.9
A169: 99221345 | B169: =VLOOKUP(A169,'DATA (2022)'!A:E,2,FALSE) -> Цирк.насос MAGNA1 D 50-180 F 280 1x230V | C169: CB | E169: PN6/10 | F169: =VLOOKUP(A169,'DATA (2022)'!A:E,5,FALSE) -> За запитом | G169: =IFERROR(F169*(1-VLOOKUP(C169,ГОЛОВНА!K:L,2,0)), "-") -> -
A170: 99221285 | B170: =VLOOKUP(A170,'DATA (2022)'!A:E,2,FALSE) -> Цирк.насос MAGNA1 32-120 F 220 1x230V PN | C170: CB | D170: S | E170: PN6/10 | F170: =VLOOKUP(A170,'DATA (2022)'!A:E,5,FALSE) -> 1197 | G170: =IFERROR(F170*(1-VLOOKUP(C170,ГОЛОВНА!K:L,2,0)), "-") -> 825.93
A171: 99221381 | B171: =VLOOKUP(A171,'DATA (2022)'!A:E,2,FALSE) -> Цирк.насос MAGNA1 D 65-150 F 340 1x230V | C171: CB | E171: PN6/10 | F171: =VLOOKUP(A171,'DATA (2022)'!A:E,5,FALSE) -> За запитом | G171: =IFERROR(F171*(1-VLOOKUP(C171,ГОЛОВНА!K:L,2,0)), "-") -> -
A172: 99221306 | B172: =VLOOKUP(A172,'DATA (2022)'!A:E,2,FALSE) -> Цирк.насос MAGNA1 40-150 F 250 1x230V PN | C172: CB | D172: S | E172: PN6/10 | F172: =VLOOKUP(A172,'DATA (2022)'!A:E,5,FALSE) -> 1743 | G172: =IFERROR(F172*(1-VLOOKUP(C172,ГОЛОВНА!K:L,2,0)), "-") -> 1202.67
A173: 99221375 | B173: =VLOOKUP(A173,'DATA (2022)'!A:E,2,FALSE) -> Цирк.насос MAGNA1 65-150 F 340 1x230V PN | C173: CB | D173: S | E173: PN6/10 | F173: =VLOOKUP(A173,'DATA (2022)'!A:E,5,FALSE) -> 2624 | G173: =IFERROR(F173*(1-VLOOKUP(C173,ГОЛОВНА!K:L,2,0)), "-") -> 1810.56
A174: 99221213 | B174: =VLOOKUP(A174,'DATA (2022)'!A:E,2,FALSE) -> Цирк.насос MAGNA1 25-80 180 1x230V PN10 | C174: CB | D174: S | E174: PN10 | F174: =VLOOKUP(A174,'DATA (2022)'!A:E,5,FALSE) -> 741 | G174: =IFERROR(F174*(1-VLOOKUP(C174,ГОЛОВНА!K:L,2,0)), "-") -> 511.29
A175: 99221215 | B175: =VLOOKUP(A175,'DATA (2022)'!A:E,2,FALSE) -> Цирк.насос MAGNA1 25-120 180 1x230V PN10 | C175: CB | D175: S | E175: PN10 | F175: =VLOOKUP(A175,'DATA (2022)'!A:E,5,FALSE) -> 923 | G175: =IFERROR(F175*(1-VLOOKUP(C175,ГОЛОВНА!K:L,2,0)), "-") -> 636.87
A176: 99221214 | B176: =VLOOKUP(A176,'DATA (2022)'!A:E,2,FALSE) -> Цирк.насос MAGNA1 25-100 180 1x230V PN10 | C176: CB | D176: S | E176: PN10 | F176: =VLOOKUP(A176,'DATA (2022)'!A:E,5,FALSE) -> 820 | G176: =IFERROR(F176*(1-VLOOKUP(C176,ГОЛОВНА!K:L,2,0)), "-") -> 565.8
A177: 99221312 | B177: =VLOOKUP(A177,'DATA (2022)'!A:E,2,FALSE) -> Цирк.насос MAGNA1 D 40-180 F 250 1x230V | C177: CB | E177: PN6/10 | F177: =VLOOKUP(A177,'DATA (2022)'!A:E,5,FALSE) -> За запитом | G177: =IFERROR(F177*(1-VLOOKUP(C177,ГОЛОВНА!K:L,2,0)), "-") -> -
A178: 99221310 | B178: =VLOOKUP(A178,'DATA (2022)'!A:E,2,FALSE) -> Цирк.насос MAGNA1 D 40-120 F 250 1x230V | C178: CB | E178: PN6/10 | F178: =VLOOKUP(A178,'DATA (2022)'!A:E,5,FALSE) -> 2566 | G178: =IFERROR(F178*(1-VLOOKUP(C178,ГОЛОВНА!K:L,2,0)), "-") -> 1770.54
A179: 99221341 | B179: =VLOOKUP(A179,'DATA (2022)'!A:E,2,FALSE) -> Цирк.насос MAGNA1 D 50-100 F 280 1x230V | C179: CB | E179: PN6/10 | F179: =VLOOKUP(A179,'DATA (2022)'!A:E,5,FALSE) -> За запитом | G179: =IFERROR(F179*(1-VLOOKUP(C179,ГОЛОВНА!K:L,2,0)), "-") -> -
A180: 99221281 | B180: =VLOOKUP(A180,'DATA (2022)'!A:E,2,FALSE) -> Цирк.насос MAGNA1 32-120 180 1x230V PN10 | C180: CB | D180: S | E180: PN10 | F180: =VLOOKUP(A180,'DATA (2022)'!A:E,5,FALSE) -> 974 | G180: =IFERROR(F180*(1-VLOOKUP(C180,ГОЛОВНА!K:L,2,0)), "-") -> 672.06
A181: 99221236 | B181: =VLOOKUP(A181,'DATA (2022)'!A:E,2,FALSE) -> Цирк.насос MAGNA1 32-100 180 1x230V PN10 | C181: CB | D181: S | E181: PN10 | F181: =VLOOKUP(A181,'DATA (2022)'!A:E,5,FALSE) -> 900 | G181: =IFERROR(F181*(1-VLOOKUP(C181,ГОЛОВНА!K:L,2,0)), "-") -> 621
A182: 99221309 | B182: =VLOOKUP(A182,'DATA (2022)'!A:E,2,FALSE) -> Цирк.насос MAGNA1 D 40-100 F 220 1x230V | C182: CB | E182: PN6/10 | F182: =VLOOKUP(A182,'DATA (2022)'!A:E,5,FALSE) -> 2310 | G182: =IFERROR(F182*(1-VLOOKUP(C182,ГОЛОВНА!K:L,2,0)), "-") -> 1593.9
A183: 99221217 | B183: =VLOOKUP(A183,'DATA (2022)'!A:E,2,FALSE) -> Цирк.насос MAGNA1 25-60 180 1x230V PN10 | C183: CB | D183: S | E183: PN10 | F183: =VLOOKUP(A183,'DATA (2022)'!A:E,5,FALSE) -> 649 | G183: =IFERROR(F183*(1-VLOOKUP(C183,ГОЛОВНА!K:L,2,0)), "-") -> 447.81
A184: 99221380 | B184: =VLOOKUP(A184,'DATA (2022)'!A:E,2,FALSE) -> Цирк.насос MAGNA1 D 65-120 F 340 1x230V | C184: CB | E184: PN6/10 | F184: =VLOOKUP(A184,'DATA (2022)'!A:E,5,FALSE) -> За запитом | G184: =IFERROR(F184*(1-VLOOKUP(C184,ГОЛОВНА!K:L,2,0)), "-") -> -
A185: 99221343 | B185: =VLOOKUP(A185,'DATA (2022)'!A:E,2,FALSE) -> Цирк.насос MAGNA1 D 50-150 F 280 1x230V | C185: CB | E185: PN6/10 | F185: =VLOOKUP(A185,'DATA (2022)'!A:E,5,FALSE) -> За запитом | G185: =IFERROR(F185*(1-VLOOKUP(C185,ГОЛОВНА!K:L,2,0)), "-") -> -
A186: 99221294 | B186: =VLOOKUP(A186,'DATA (2022)'!A:E,2,FALSE) -> Цирк.насос MAGNA1 D 40-60 F 220 1x230V P | C186: CB | E186: PN6/10 | F186: =VLOOKUP(A186,'DATA (2022)'!A:E,5,FALSE) -> 1808 | G186: =IFERROR(F186*(1-VLOOKUP(C186,ГОЛОВНА!K:L,2,0)), "-") -> 1247.52
A187: 99221409 | B187: =VLOOKUP(A187,'DATA (2022)'!A:E,2,FALSE) -> Цирк.насос MAGNA1 80-120 F 360 1x230V PN | C187: CB | E187: PN6 | F187: =VLOOKUP(A187,'DATA (2022)'!A:E,5,FALSE) -> 2810 | G187: =IFERROR(F187*(1-VLOOKUP(C187,ГОЛОВНА!K:L,2,0)), "-") -> 1938.9
A188: 99221311 | B188: =VLOOKUP(A188,'DATA (2022)'!A:E,2,FALSE) -> Цирк.насос MAGNA1 D 40-150 F 250 1x230V | C188: CB | E188: PN6/10 | F188: =VLOOKUP(A188,'DATA (2022)'!A:E,5,FALSE) -> За запитом | G188: =IFERROR(F188*(1-VLOOKUP(C188,ГОЛОВНА!K:L,2,0)), "-") -> -
A189: 99221373 | B189: =VLOOKUP(A189,'DATA (2022)'!A:E,2,FALSE) -> Цирк.насос MAGNA1 65-100 F 340 1x230V PN | C189: CB | D189: FT | E189: PN6/10 | F189: =VLOOKUP(A189,'DATA (2022)'!A:E,5,FALSE) -> 2117 | G189: =IFERROR(F189*(1-VLOOKUP(C189,ГОЛОВНА!K:L,2,0)), "-") -> 1460.73
A190: 99221308 | B190: =VLOOKUP(A190,'DATA (2022)'!A:E,2,FALSE) -> Цирк.насос MAGNA1 D 40-80 F 220 1x230V P | C190: CB | E190: PN6/10 | F190: =VLOOKUP(A190,'DATA (2022)'!A:E,5,FALSE) -> 2093 | G190: =IFERROR(F190*(1-VLOOKUP(C190,ГОЛОВНА!K:L,2,0)), "-") -> 1444.17
A191: 99221286 | B191: =VLOOKUP(A191,'DATA (2022)'!A:E,2,FALSE) -> Цирк.насос MAGNA1 D 32-120 F 220 1x230V | C191: CB | E191: PN6/10 | F191: =VLOOKUP(A191,'DATA (2022)'!A:E,5,FALSE) -> 2112 | G191: =IFERROR(F191*(1-VLOOKUP(C191,ГОЛОВНА!K:L,2,0)), "-") -> 1457.28
A192: 99221275 | B192: =VLOOKUP(A192,'DATA (2022)'!A:E,2,FALSE) -> Цирк.насос MAGNA1 32-80 F 220 1x230V PN6 | C192: CB | E192: PN6/10 | F192: =VLOOKUP(A192,'DATA (2022)'!A:E,5,FALSE) -> 911 | G192: =IFERROR(F192*(1-VLOOKUP(C192,ГОЛОВНА!K:L,2,0)), "-") -> 628.59
A193: 99221336 | B193: =VLOOKUP(A193,'DATA (2022)'!A:E,2,FALSE) -> Цирк.насос MAGNA1 50-120 F 280 1x230V PN | C193: CB | D193: S | E193: PN6/10 | F193: =VLOOKUP(A193,'DATA (2022)'!A:E,5,FALSE) -> 1901 | G193: =IFERROR(F193*(1-VLOOKUP(C193,ГОЛОВНА!K:L,2,0)), "-") -> 1311.69
A194: 99221283 | B194: =VLOOKUP(A194,'DATA (2022)'!A:E,2,FALSE) -> Цирк.насос MAGNA1 32-120 N 180 1x230V PN | C194: CB | E194: PN10 | F194: =VLOOKUP(A194,'DATA (2022)'!A:E,5,FALSE) -> 1510 | G194: =IFERROR(F194*(1-VLOOKUP(C194,ГОЛОВНА!K:L,2,0)), "-") -> 1041.9
A195: 99221303 | B195: =VLOOKUP(A195,'DATA (2022)'!A:E,2,FALSE) -> Цирк.насос MAGNA1 40-80 F 220 1x230V PN6 | C195: CB | D195: FT | E195: PN6/10 | F195: =VLOOKUP(A195,'DATA (2022)'!A:E,5,FALSE) -> 1162 | G195: =IFERROR(F195*(1-VLOOKUP(C195,ГОЛОВНА!K:L,2,0)), "-") -> 801.78
A196: 99221216 | B196: =VLOOKUP(A196,'DATA (2022)'!A:E,2,FALSE) -> Цирк.насос MAGNA1 25-40 180 1x230V PN10 | C196: CB | E196: PN10 | F196: =VLOOKUP(A196,'DATA (2022)'!A:E,5,FALSE) -> 547 | G196: =IFERROR(F196*(1-VLOOKUP(C196,ГОЛОВНА!K:L,2,0)), "-") -> 377.43
A197: 99221269 | B197: =VLOOKUP(A197,'DATA (2022)'!A:E,2,FALSE) -> Цирк.насос MAGNA1 32-60 F 220 1x230V PN6 | C197: CB | E197: PN6/10 | F197: =VLOOKUP(A197,'DATA (2022)'!A:E,5,FALSE) -> 866 | G197: =IFERROR(F197*(1-VLOOKUP(C197,ГОЛОВНА!K:L,2,0)), "-") -> 597.54
A198: 99221225 | B198: =VLOOKUP(A198,'DATA (2022)'!A:E,2,FALSE) -> Цирк.насос MAGNA1 25-80 N 180 1x230V PN1 | C198: CB | E198: PN10 | F198: =VLOOKUP(A198,'DATA (2022)'!A:E,5,FALSE) -> 1148 | G198: =IFERROR(F198*(1-VLOOKUP(C198,ГОЛОВНА!K:L,2,0)), "-") -> 792.12
A199: 99221235 | B199: =VLOOKUP(A199,'DATA (2022)'!A:E,2,FALSE) -> Цирк.насос MAGNA1 32-80 180 1x230V PN10 | C199: CB | D199: S | E199: PN10 | F199: =VLOOKUP(A199,'DATA (2022)'!A:E,5,FALSE) -> 820 | G199: =IFERROR(F199*(1-VLOOKUP(C199,ГОЛОВНА!K:L,2,0)), "-") -> 565.8
A200: 99221263 | B200: =VLOOKUP(A200,'DATA (2022)'!A:E,2,FALSE) -> Цирк.насос MAGNA1 32-40 F 220 1x230V PN6 | C200: CB | E200: PN6/10 | F200: =VLOOKUP(A200,'DATA (2022)'!A:E,5,FALSE) -> 741 | G200: =IFERROR(F200*(1-VLOOKUP(C200,ГОЛОВНА!K:L,2,0)), "-") -> 511.29
A202: 97924286 | B202: =VLOOKUP(A202,'DATA (2022)'!A:E,2,FALSE) -> Цирк.насос MAGNA3 50-180 F 280 1x230V PN | C202: CB | D202: S | E202: PN6/10 | F202: =VLOOKUP(A202,'DATA (2022)'!A:E,5,FALSE) -> За запитом | G202: =IFERROR(F202*(1-VLOOKUP(C202,ГОЛОВНА!K:L,2,0)), "-") -> -
... 193 more rows

Sheet Comfort, UP, UP N, Solar
A1: АРТИКУЛ | B1: НАЙМЕНУВАННЯ (УКР) | C1: PRICE GROUP | D1: ДОСТАВКА | E1: ДОДАТКОВО | F1: ЦІНА (ЕВРО БЕЗ ПДВ) | G1: ЦІНА ЗІ ЗНИЖКОЮ | H1: НА ГОЛОВНУ
A2: Comfort, UP, UPS, Solar | G2: Циркуляційні насоси для систем гарячого водопостачання
A3: 97916771 | B3: =VLOOKUP(A3,'DATA (2022)'!A:F,2,FALSE) -> Цирк. насос COMFORT15-14B PM | C3: =VLOOKUP(A3,'DATA (2022)'!A:F,4,FALSE) -> DH | D3: S | E3: реле часу 98465228 | F3: =VLOOKUP(A3,'DATA (2022)'!A:F,5,FALSE) -> 152 | G3: =IFERROR(F3*(1-VLOOKUP(C3,ГОЛОВНА!K:L,2,0)), "-") -> 104.88
A4: 97916757 | B4: =VLOOKUP(A4,'DATA (2022)'!A:F,2,FALSE) -> Цирк. насос COMFORT15-14BA PM | C4: =VLOOKUP(A4,'DATA (2022)'!A:F,4,FALSE) -> DH | D4: S | F4: =VLOOKUP(A4,'DATA (2022)'!A:F,5,FALSE) -> 251 | G4: =IFERROR(F4*(1-VLOOKUP(C4,ГОЛОВНА!K:L,2,0)), "-") -> 173.19
A5: 97916772 | B5: =VLOOKUP(A5,'DATA (2022)'!A:F,2,FALSE) -> Цирк. насос COMFORT 15-14 BX PM | C5: =VLOOKUP(A5,'DATA (2022)'!A:F,4,FALSE) -> DH | D5: S | E5: реле часу 98465228 | F5: =VLOOKUP(A5,'DATA (2022)'!A:F,5,FALSE) -> 178 | G5: =IFERROR(F5*(1-VLOOKUP(C5,ГОЛОВНА!K:L,2,0)), "-") -> 122.82
A6: 97916749 | B6: =VLOOKUP(A6,'DATA (2022)'!A:F,2,FALSE) -> Цирк. насос COMFORT15-14 BXA PM | C6: =VLOOKUP(A6,'DATA (2022)'!A:F,4,FALSE) -> DH | D6: S | F6: =VLOOKUP(A6,'DATA (2022)'!A:F,5,FALSE) -> 284 | G6: =IFERROR(F6*(1-VLOOKUP(C6,ГОЛОВНА!K:L,2,0)), "-") -> 195.96
A7: 99812350 | B7: =VLOOKUP(A7,'DATA (2022)'!A:F,2,FALSE) -> Цирк.насос COMFORT 15-14 BDT PM | C7: =VLOOKUP(A7,'DATA (2022)'!A:F,4,FALSE) -> DH | D7: S | F7: =VLOOKUP(A7,'DATA (2022)'!A:F,5,FALSE) -> 203 | G7: =IFERROR(F7*(1-VLOOKUP(C7,ГОЛОВНА!K:L,2,0)), "-") -> 140.07
A8: 99831281 | B8: =VLOOKUP(A8,'DATA (2022)'!A:F,2,FALSE) -> Цирк.насос COMFORT 15-14 BXDT PM | C8: =VLOOKUP(A8,'DATA (2022)'!A:F,4,FALSE) -> DH | D8: S | F8: =VLOOKUP(A8,'DATA (2022)'!A:F,5,FALSE) -> 234 | G8: =IFERROR(F8*(1-VLOOKUP(C8,ГОЛОВНА!K:L,2,0)), "-") -> 161.46
B10: Аксесуари
A11: 98465228 | B11: =VLOOKUP(A11,'DATA (2022)'!A:F,2,FALSE) -> Модуль керування з реле часу TS4/T | C11: =VLOOKUP(A11,'DATA (2022)'!A:F,4,FALSE) -> CB | F11: =VLOOKUP(A11,'DATA (2022)'!A:F,5,FALSE) -> 65 | G11: =IFERROR(F11*(1-VLOOKUP(C11,ГОЛОВНА!K:L,2,0)), "-") -> 44.85
A12: 505821 | B12: =VLOOKUP(A12,'DATA (2022)'!A:F,2,FALSE) -> Комплект теплоізоляції до UPS 25/32-30/4 | C12: =VLOOKUP(A12,'DATA (2022)'!A:F,4,FALSE) -> CB | F12: =VLOOKUP(A12,'DATA (2022)'!A:F,5,FALSE) -> 22 | G12: =IFERROR(F12*(1-VLOOKUP(C12,ГОЛОВНА!K:L,2,0)), "-") -> 15.18
A13: 519801 | B13: =VLOOKUP(A13,'DATA (2022)'!A:F,2,FALSE) -> К-кт з'єднувальних елементів G1 1/4""-22 | C13: =VLOOKUP(A13,'DATA (2022)'!A:F,4,FALSE) -> CB | F13: =VLOOKUP(A13,'DATA (2022)'!A:F,5,FALSE) -> 37 | G13: =IFERROR(F13*(1-VLOOKUP(C13,ГОЛОВНА!K:L,2,0)), "-") -> 25.53
A14: 519802 | B14: =VLOOKUP(A14,'DATA (2022)'!A:F,2,FALSE) -> Елемент з'єднувальний з кульк-м клап-м G | C14: =VLOOKUP(A14,'DATA (2022)'!A:F,4,FALSE) -> CB | F14: =VLOOKUP(A14,'DATA (2022)'!A:F,5,FALSE) -> 37 | G14: =IFERROR(F14*(1-VLOOKUP(C14,ГОЛОВНА!K:L,2,0)), "-") -> 25.53
A15: 519805 | B15: =VLOOKUP(A15,'DATA (2022)'!A:F,2,FALSE) -> З'єднувальний елемент G 1 1/2 x Rp 3/4 | C15: =VLOOKUP(A15,'DATA (2022)'!A:F,4,FALSE) -> CB | F15: =VLOOKUP(A15,'DATA (2022)'!A:F,5,FALSE) -> 34 | G15: =IFERROR(F15*(1-VLOOKUP(C15,ГОЛОВНА!K:L,2,0)), "-") -> 23.46
A16: 519806 | B16: =VLOOKUP(A16,'DATA (2022)'!A:F,2,FALSE) -> З’єднув. елемент з кульк. клапаном G 1 1 | C16: =VLOOKUP(A16,'DATA (2022)'!A:F,4,FALSE) -> CB | F16: =VLOOKUP(A16,'DATA (2022)'!A:F,5,FALSE) -> 35 | G16: =IFERROR(F16*(1-VLOOKUP(C16,ГОЛОВНА!K:L,2,0)), "-") -> 24.15
A17: 519807 | B17: =VLOOKUP(A17,'DATA (2022)'!A:F,2,FALSE) -> Комплект з'єднань з кульк овим клапаном | C17: =VLOOKUP(A17,'DATA (2022)'!A:F,4,FALSE) -> CB | F17: =VLOOKUP(A17,'DATA (2022)'!A:F,5,FALSE) -> 41 | G17: =IFERROR(F17*(1-VLOOKUP(C17,ГОЛОВНА!K:L,2,0)), "-") -> 28.29
A18: 529922 | B18: =VLOOKUP(A18,'DATA (2022)'!A:F,2,FALSE) -> Комплект з'єднань G1 1/2"Rp1" | C18: =VLOOKUP(A18,'DATA (2022)'!A:F,4,FALSE) -> CB | E18: Заміна 99672022 | F18: =VLOOKUP(A18,'DATA (2022)'!A:F,5,FALSE) -> n-a | G18: =IFERROR(F18*(1-VLOOKUP(C18,ГОЛОВНА!K:L,2,0)), "-") -> -
A19: 529972 | B19: =VLOOKUP(A19,'DATA (2022)'!A:F,2,FALSE) -> Комплект зєднань G11/2"x1" | C19: =VLOOKUP(A19,'DATA (2022)'!A:F,4,FALSE) -> CB | F19: =VLOOKUP(A19,'DATA (2022)'!A:F,5,FALSE) -> 17 | G19: =IFERROR(F19*(1-VLOOKUP(C19,ГОЛОВНА!K:L,2,0)), "-") -> 11.73
A20: 529982 | B20: =VLOOKUP(A20,'DATA (2022)'!A:F,2,FALSE) -> Комплект з'єднань 3/4' | C20: =VLOOKUP(A20,'DATA (2022)'!A:F,4,FALSE) -> CB | F20: =VLOOKUP(A20,'DATA (2022)'!A:F,5,FALSE) -> 40 | G20: =IFERROR(F20*(1-VLOOKUP(C20,ГОЛОВНА!K:L,2,0)), "-") -> 27.6
A21: 529983 | B21: =VLOOKUP(A21,'DATA (2022)'!A:F,2,FALSE) -> Комплект з'єднань G 1 1/4 "x Rp 1", лату | C21: =VLOOKUP(A21,'DATA (2022)'!A:F,4,FALSE) -> CB | F21: =VLOOKUP(A21,'DATA (2022)'!A:F,5,FALSE) -> 68 | G21: =IFERROR(F21*(1-VLOOKUP(C21,ГОЛОВНА!K:L,2,0)), "-") -> 46.92
A22: 539702 | B22: =VLOOKUP(A22,'DATA (2022)'!A:F,2,FALSE) -> Фланці сталеві приварювальні, DN 40 | C22: =VLOOKUP(A22,'DATA (2022)'!A:F,4,FALSE) -> CB | F22: =VLOOKUP(A22,'DATA (2022)'!A:F,5,FALSE) -> 78 | G22: =IFERROR(F22*(1-VLOOKUP(C22,ГОЛОВНА!K:L,2,0)), "-") -> 53.82
A23: 539703 | B23: =VLOOKUP(A23,'DATA (2022)'!A:F,2,FALSE) -> Комплект різьбових фланці PN10 UPS32 1 1 | C23: =VLOOKUP(A23,'DATA (2022)'!A:F,4,FALSE) -> CB | F23: =VLOOKUP(A23,'DATA (2022)'!A:F,5,FALSE) -> 78 | G23: =IFERROR(F23*(1-VLOOKUP(C23,ГОЛОВНА!K:L,2,0)), "-") -> 53.82
A24: 95906254 | B24: =VLOOKUP(A24,'DATA (2022)'!A:F,2,FALSE) -> Блок тривоги до UPS XX 100 | C24: =VLOOKUP(A24,'DATA (2022)'!A:F,4,FALSE) -> CB | F24: =VLOOKUP(A24,'DATA (2022)'!A:F,5,FALSE) -> 172 | G24: =IFERROR(F24*(1-VLOOKUP(C24,ГОЛОВНА!K:L,2,0)), "-") -> 118.68
A25: 95906653 | B25: =VLOOKUP(A25,'DATA (2022)'!A:F,2,FALSE) -> Теплоізолятор для UPS XX- 100 | C25: =VLOOKUP(A25,'DATA (2022)'!A:F,4,FALSE) -> CB | F25: =VLOOKUP(A25,'DATA (2022)'!A:F,5,FALSE) -> 62 | G25: =IFERROR(F25*(1-VLOOKUP(C25,ГОЛОВНА!K:L,2,0)), "-") -> 42.78
A26: 95906655 | B26: =VLOOKUP(A26,'DATA (2022)'!A:F,2,FALSE) -> Термоізоляція до насосів серії UPS | C26: =VLOOKUP(A26,'DATA (2022)'!A:F,4,FALSE) -> CB | F26: =VLOOKUP(A26,'DATA (2022)'!A:F,5,FALSE) -> 35 | G26: =IFERROR(F26*(1-VLOOKUP(C26,ГОЛОВНА!K:L,2,0)), "-") -> 24.15
A27: 96433906 | B27: =VLOOKUP(A27,'DATA (2022)'!A:F,2,FALSE) -> Фланець для видалення повітря | C27: =VLOOKUP(A27,'DATA (2022)'!A:F,4,FALSE) -> CB | F27: =VLOOKUP(A27,'DATA (2022)'!A:F,5,FALSE) -> 30 | G27: =IFERROR(F27*(1-VLOOKUP(C27,ГОЛОВНА!K:L,2,0)), "-") -> 20.7
B30: Примітка:
A31: S | B31: - складська позиція (зазвичай є на скаді)
A32: FT | B32: - швидка поставка (зазвичай до 3-х тижнів)
B34: Більше інформації в Grundfos Product Center
B35: https://product-selection.grundfos.com/ua

Sheet JP, Scala, SB, SBA, UPA
A1: АРТИКУЛ | B1: НАЙМЕНУВАННЯ (УКР) | C1: PRICE GROUP | D1: ДОСТАВКА | E1: ПРИМІТКИ | F1: ЦІНА (ЕВРО БЕЗ ПДВ) | G1: ЦІНА ЗІ ЗНИЖКОЮ | H1: НА ГОЛОВНУ
A2: MQ, JP, Hydrojet | G2: Насоси і насосні установки для систем водопостачання
A3: 98562862 | B3: =VLOOKUP(A3,'DATA (2022)'!A:F,2,FALSE) -> Насосна установка SCALA2 3-45 AKCCDE 1x2 | C3: =VLOOKUP(A3,'DATA (2022)'!A:F,4,FALSE) -> DC | D3: S | F3: =VLOOKUP(A3,'DATA (2022)'!A:F,5,FALSE) -> 566 | G3: =IFERROR(F3*(1-VLOOKUP(C3,ГОЛОВНА!K:L,2,0)), "-") -> 379.22
A4: 99530404 | B4: =VLOOKUP(A4,'DATA (2022)'!A:F,2,FALSE) -> Насосна установка SCALA1 3-35 1x230V 50H | C4: =VLOOKUP(A4,'DATA (2022)'!A:F,4,FALSE) -> DC | D4: S | F4: =VLOOKUP(A4,'DATA (2022)'!A:F,5,FALSE) -> 466 | G4: =IFERROR(F4*(1-VLOOKUP(C4,ГОЛОВНА!K:L,2,0)), "-") -> 312.22
A5: 99530405 | B5: =VLOOKUP(A5,'DATA (2022)'!A:F,2,FALSE) -> Насосна установка SCALA1 3-45 1x230V 50H | C5: =VLOOKUP(A5,'DATA (2022)'!A:F,4,FALSE) -> DC | D5: S | F5: =VLOOKUP(A5,'DATA (2022)'!A:F,5,FALSE) -> 515 | G5: =IFERROR(F5*(1-VLOOKUP(C5,ГОЛОВНА!K:L,2,0)), "-") -> 345.05
A6: 99530407 | B6: =VLOOKUP(A6,'DATA (2022)'!A:F,2,FALSE) -> Насосна установка SCALA1 5-55 1x230V 50H | C6: =VLOOKUP(A6,'DATA (2022)'!A:F,4,FALSE) -> DC | D6: S | F6: =VLOOKUP(A6,'DATA (2022)'!A:F,5,FALSE) -> 589 | G6: =IFERROR(F6*(1-VLOOKUP(C6,ГОЛОВНА!K:L,2,0)), "-") -> 394.63
A7: 99725165 | B7: =VLOOKUP(A7,'DATA (2022)'!A:F,2,FALSE) -> Комплект для підключення SCALA1 Twin | C7: =VLOOKUP(A7,'DATA (2022)'!A:F,4,FALSE) -> DC | D7: S | F7: =VLOOKUP(A7,'DATA (2022)'!A:F,5,FALSE) -> 368 | G7: =IFERROR(F7*(1-VLOOKUP(C7,ГОЛОВНА!K:L,2,0)), "-") -> 246.56
A8: 99725183 | B8: =VLOOKUP(A8,'DATA (2022)'!A:F,2,FALSE) -> Вхідний фільтр Scala 250micron Rp1xRp1 | C8: =VLOOKUP(A8,'DATA (2022)'!A:F,4,FALSE) -> DC | D8: S | F8: =VLOOKUP(A8,'DATA (2022)'!A:F,5,FALSE) -> 49 | G8: =IFERROR(F8*(1-VLOOKUP(C8,ГОЛОВНА!K:L,2,0)), "-") -> 32.83
A9: 99463874 | B9: =VLOOKUP(A9,'DATA (2022)'!A:F,2,FALSE) -> Насос.установка JP 3-42 PT-H 1x230V 50Hz | C9: =VLOOKUP(A9,'DATA (2022)'!A:F,4,FALSE) -> DC | D9: S | E9: Об'єм баку 20 л | F9: =VLOOKUP(A9,'DATA (2022)'!A:F,5,FALSE) -> 329 | G9: =IFERROR(F9*(1-VLOOKUP(C9,ГОЛОВНА!K:L,2,0)), "-") -> 220.43
A10: 99463875 | B10: =VLOOKUP(A10,'DATA (2022)'!A:F,2,FALSE) -> Насос.установка JP 4-47 PT-H 1x230V 50Hz | C10: =VLOOKUP(A10,'DATA (2022)'!A:F,4,FALSE) -> DC | D10: S | E10: Об'єм баку 20 л | F10: =VLOOKUP(A10,'DATA (2022)'!A:F,5,FALSE) -> 345 | G10: =IFERROR(F10*(1-VLOOKUP(C10,ГОЛОВНА!K:L,2,0)), "-") -> 231.15
A11: 99594664 | B11: =VLOOKUP(A11,'DATA (2022)'!A:F,2,FALSE) -> Насос.установка JP 4-47 PT-H 60L, 230V, | C11: =VLOOKUP(A11,'DATA (2022)'!A:F,4,FALSE) -> DC | E11: Об'єм баку 60 л | F11: =VLOOKUP(A11,'DATA (2022)'!A:F,5,FALSE) -> 469 | G11: =IFERROR(F11*(1-VLOOKUP(C11,ГОЛОВНА!K:L,2,0)), "-") -> 314.23
A12: 99463876 | B12: =VLOOKUP(A12,'DATA (2022)'!A:F,2,FALSE) -> Насос.установка JP 4-54 PT-H 1x230V 50Hz | C12: =VLOOKUP(A12,'DATA (2022)'!A:F,4,FALSE) -> DC | D12: S | E12: Об'єм баку 20 л | F12: =VLOOKUP(A12,'DATA (2022)'!A:F,5,FALSE) -> 360 | G12: =IFERROR(F12*(1-VLOOKUP(C12,ГОЛОВНА!K:L,2,0)), "-") -> 241.2
A13: 99463877 | B13: =VLOOKUP(A13,'DATA (2022)'!A:F,2,FALSE) -> Насос.установка JP 5-48 PT-H 1x230V 50Hz | C13: =VLOOKUP(A13,'DATA (2022)'!A:F,4,FALSE) -> DC | D13: S | E13: Об'єм баку 20 л | F13: =VLOOKUP(A13,'DATA (2022)'!A:F,5,FALSE) -> 382 | G13: =IFERROR(F13*(1-VLOOKUP(C13,ГОЛОВНА!K:L,2,0)), "-") -> 255.94
A14: 99594666 | B14: =VLOOKUP(A14,'DATA (2022)'!A:F,2,FALSE) -> Насос.установка JP 5-48 PT-H 60L, 230V, | C14: =VLOOKUP(A14,'DATA (2022)'!A:F,4,FALSE) -> DC | E14: Об'єм баку 60 л | F14: =VLOOKUP(A14,'DATA (2022)'!A:F,5,FALSE) -> 509 | G14: =IFERROR(F14*(1-VLOOKUP(C14,ГОЛОВНА!K:L,2,0)), "-") -> 341.03
A15: 99515135 | B15: =VLOOKUP(A15,'DATA (2022)'!A:F,2,FALSE) -> Насос.установка JP 3-42 PM1 1x230V 50Hz | C15: =VLOOKUP(A15,'DATA (2022)'!A:F,4,FALSE) -> DC | D15: S | F15: =VLOOKUP(A15,'DATA (2022)'!A:F,5,FALSE) -> 345 | G15: =IFERROR(F15*(1-VLOOKUP(C15,ГОЛОВНА!K:L,2,0)), "-") -> 231.15
A16: 99515137 | B16: =VLOOKUP(A16,'DATA (2022)'!A:F,2,FALSE) -> Насос.установка JP 4-54 PM1 1x230V 50Hz | C16: =VLOOKUP(A16,'DATA (2022)'!A:F,4,FALSE) -> DC | D16: S | F16: =VLOOKUP(A16,'DATA (2022)'!A:F,5,FALSE) -> 383 | G16: =IFERROR(F16*(1-VLOOKUP(C16,ГОЛОВНА!K:L,2,0)), "-") -> 256.61
A17: 99458766 | B17: =VLOOKUP(A17,'DATA (2022)'!A:F,2,FALSE) -> Насос водопост JP 3-42 1x230V 50Hz 1,5m | C17: =VLOOKUP(A17,'DATA (2022)'!A:F,4,FALSE) -> DC | D17: S | F17: =VLOOKUP(A17,'DATA (2022)'!A:F,5,FALSE) -> 211 | G17: =IFERROR(F17*(1-VLOOKUP(C17,ГОЛОВНА!K:L,2,0)), "-") -> 141.37
A18: 99458767 | B18: =VLOOKUP(A18,'DATA (2022)'!A:F,2,FALSE) -> Насос водопост JP 4-47 1x230V 50Hz 1,5m | C18: =VLOOKUP(A18,'DATA (2022)'!A:F,4,FALSE) -> DC | D18: S | F18: =VLOOKUP(A18,'DATA (2022)'!A:F,5,FALSE) -> 244 | G18: =IFERROR(F18*(1-VLOOKUP(C18,ГОЛОВНА!K:L,2,0)), "-") -> 163.48
A19: 99458768 | B19: =VLOOKUP(A19,'DATA (2022)'!A:F,2,FALSE) -> Насос водопост JP 4-54 1x230V 50Hz 1,5m | C19: =VLOOKUP(A19,'DATA (2022)'!A:F,4,FALSE) -> DC | D19: S | F19: =VLOOKUP(A19,'DATA (2022)'!A:F,5,FALSE) -> 255 | G19: =IFERROR(F19*(1-VLOOKUP(C19,ГОЛОВНА!K:L,2,0)), "-") -> 170.85
A20: 99458769 | B20: =VLOOKUP(A20,'DATA (2022)'!A:F,2,FALSE) -> Насос водопост JP 5-48 1x230V 50Hz 1,5m | C20: =VLOOKUP(A20,'DATA (2022)'!A:F,4,FALSE) -> DC | D20: S | F20: =VLOOKUP(A20,'DATA (2022)'!A:F,5,FALSE) -> 266 | G20: =IFERROR(F20*(1-VLOOKUP(C20,ГОЛОВНА!K:L,2,0)), "-") -> 178.22
A22: SB, SBA | G22: Насоси і насосні установки для систем водопостачання
A23: 97686699 | B23: =VLOOKUP(A23,'DATA (2022)'!A:F,2,FALSE) -> Насос для колодязів SB3-25 A 1x230V 50Hz | C23: =VLOOKUP(A23,'DATA (2022)'!A:F,4,FALSE) -> DC | D23: заміна | E23: Звертайтесь до GRUNDFOS | F23: =VLOOKUP(A23,'DATA (2022)'!A:F,5,FALSE) -> n-a | G23: =IFERROR(F23*(1-VLOOKUP(C23,ГОЛОВНА!K:L,2,0)), "-") -> -
A24: 97686701 | B24: =VLOOKUP(A24,'DATA (2022)'!A:F,2,FALSE) -> Насос для колодязів SB 3-35 A 1x220-240V | C24: =VLOOKUP(A24,'DATA (2022)'!A:F,4,FALSE) -> DC | D24: заміна | E24: Звертайтесь до GRUNDFOS | F24: =VLOOKUP(A24,'DATA (2022)'!A:F,5,FALSE) -> n-a | G24: =IFERROR(F24*(1-VLOOKUP(C24,ГОЛОВНА!K:L,2,0)), "-") -> -
A25: 97686703 | B25: =VLOOKUP(A25,'DATA (2022)'!A:F,2,FALSE) -> Насос для колодязів SB3-35 AW 1x230V 50H | C25: =VLOOKUP(A25,'DATA (2022)'!A:F,4,FALSE) -> DC | D25: заміна | E25: Звертайтесь до GRUNDFOS | F25: =VLOOKUP(A25,'DATA (2022)'!A:F,5,FALSE) -> n-a | G25: =IFERROR(F25*(1-VLOOKUP(C25,ГОЛОВНА!K:L,2,0)), "-") -> -
A26: 97686705 | B26: =VLOOKUP(A26,'DATA (2022)'!A:F,2,FALSE) -> Насос для колодязів SB 3-45 A 1x22 | C26: =VLOOKUP(A26,'DATA (2022)'!A:F,4,FALSE) -> DC | D26: заміна | E26: Звертайтесь до GRUNDFOS | F26: =VLOOKUP(A26,'DATA (2022)'!A:F,5,FALSE) -> n-a | G26: =IFERROR(F26*(1-VLOOKUP(C26,ГОЛОВНА!K:L,2,0)), "-") -> -
A27: 97686707 | B27: =VLOOKUP(A27,'DATA (2022)'!A:F,2,FALSE) -> Насос для колодязів SB3-45 AW 1x220-240V | C27: =VLOOKUP(A27,'DATA (2022)'!A:F,4,FALSE) -> DC | D27: заміна | E27: Звертайтесь до GRUNDFOS | F27: =VLOOKUP(A27,'DATA (2022)'!A:F,5,FALSE) -> n-a | G27: =IFERROR(F27*(1-VLOOKUP(C27,ГОЛОВНА!K:L,2,0)), "-") -> -
A28: 97904043 | B28: =VLOOKUP(A28,'DATA (2022)'!A:F,2,FALSE) -> Насос для колодязів SB Booster 3-45AW,PM | C28: =VLOOKUP(A28,'DATA (2022)'!A:F,4,FALSE) -> DC | D28: заміна | E28: Звертайтесь до GRUNDFOS | F28: =VLOOKUP(A28,'DATA (2022)'!A:F,5,FALSE) -> n-a | G28: =IFERROR(F28*(1-VLOOKUP(C28,ГОЛОВНА!K:L,2,0)), "-") -> -
A29: 97896286 | B29: =VLOOKUP(A29,'DATA (2022)'!A:F,2,FALSE) -> Насос для колодязів SBA3-35 A 1x220-240V | C29: =VLOOKUP(A29,'DATA (2022)'!A:F,4,FALSE) -> DC | D29: заміна | E29: Звертайтесь до GRUNDFOS | F29: =VLOOKUP(A29,'DATA (2022)'!A:F,5,FALSE) -> n-a | G29: =IFERROR(F29*(1-VLOOKUP(C29,ГОЛОВНА!K:L,2,0)), "-") -> -
A30: 97896288 | B30: =VLOOKUP(A30,'DATA (2022)'!A:F,2,FALSE) -> Насос для колодязів SBA3-35 AW 1x220-240 | C30: =VLOOKUP(A30,'DATA (2022)'!A:F,4,FALSE) -> DC | D30: заміна | E30: Звертайтесь до GRUNDFOS | F30: =VLOOKUP(A30,'DATA (2022)'!A:F,5,FALSE) -> n-a | G30: =IFERROR(F30*(1-VLOOKUP(C30,ГОЛОВНА!K:L,2,0)), "-") -> -
A31: 97896290 | B31: =VLOOKUP(A31,'DATA (2022)'!A:F,2,FALSE) -> Насос для колодязів SBA 3-45 A 1x220-240 | C31: =VLOOKUP(A31,'DATA (2022)'!A:F,4,FALSE) -> DC | D31: заміна | E31: Звертайтесь до GRUNDFOS | F31: =VLOOKUP(A31,'DATA (2022)'!A:F,5,FALSE) -> n-a | G31: =IFERROR(F31*(1-VLOOKUP(C31,ГОЛОВНА!K:L,2,0)), "-") -> -
A32: 97896312 | B32: =VLOOKUP(A32,'DATA (2022)'!A:F,2,FALSE) -> Насос для колодязів SBA3-45 AW 1x220-240 | C32: =VLOOKUP(A32,'DATA (2022)'!A:F,4,FALSE) -> DC | D32: заміна | E32: Звертайтесь до GRUNDFOS | F32: =VLOOKUP(A32,'DATA (2022)'!A:F,5,FALSE) -> n-a | G32: =IFERROR(F32*(1-VLOOKUP(C32,ГОЛОВНА!K:L,2,0)), "-") -> -
A34: UPA | G34: Насоси для підвищення тиску
A35: 99547009 | B35: =VLOOKUP(A35,'DATA (2022)'!A:F,2,FALSE) -> Насос підвищ.тиску UPA 15-90 230В Schuko | C35: =VLOOKUP(A35,'DATA (2022)'!A:F,4,FALSE) -> DC | D35: S | F35: =VLOOKUP(A35,'DATA (2022)'!A:F,5,FALSE) -> 130 | G35: =IFERROR(F35*(1-VLOOKUP(C35,ГОЛОВНА!K:L,2,0)), "-") -> 87.1
A36: 99539041 | B36: =VLOOKUP(A36,'DATA (2022)'!A:F,2,FALSE) -> Насос підвищ.тиску UPA 15-90N 230V Schuk | C36: =VLOOKUP(A36,'DATA (2022)'!A:F,4,FALSE) -> DC | D36: S | F36: =VLOOKUP(A36,'DATA (2022)'!A:F,5,FALSE) -> 251 | G36: =IFERROR(F36*(1-VLOOKUP(C36,ГОЛОВНА!K:L,2,0)), "-") -> 168.17
A37: 99553575 | B37: =VLOOKUP(A37,'DATA (2022)'!A:F,2,FALSE) -> Насос підвищ.тиску UPA 15-120 230V Schuk | C37: =VLOOKUP(A37,'DATA (2022)'!A:F,4,FALSE) -> DC | D37: S | F37: =VLOOKUP(A37,'DATA (2022)'!A:F,5,FALSE) -> 181 | G37: =IFERROR(F37*(1-VLOOKUP(C37,ГОЛОВНА!K:L,2,0)), "-") -> 121.27
B39: Аксесуари
A40: 96848670 | B40: =VLOOKUP(A40,'DATA (2022)'!A:F,2,FALSE) -> Реле тиску PM 1 15 1x230V 50Hz | C40: =VLOOKUP(A40,'DATA (2022)'!A:F,4,FALSE) -> DC | F40: =VLOOKUP(A40,'DATA (2022)'!A:F,5,FALSE) -> 121 | G40: =IFERROR(F40*(1-VLOOKUP(C40,ГОЛОВНА!K:L,2,0)), "-") -> 81.07
A41: 96848693 | B41: =VLOOKUP(A41,'DATA (2022)'!A:F,2,FALSE) -> Реле тиску PM 1 15 1x230V 50/60Hz | C41: =VLOOKUP(A41,'DATA (2022)'!A:F,4,FALSE) -> DC | D41: S | F41: =VLOOKUP(A41,'DATA (2022)'!A:F,5,FALSE) -> 122 | G41: =IFERROR(F41*(1-VLOOKUP(C41,ГОЛОВНА!K:L,2,0)), "-") -> 81.74
A42: 96848722 | B42: =VLOOKUP(A42,'DATA (2022)'!A:F,2,FALSE) -> Реле тиску PM 1 22 1x230V 50/60Hz | C42: =VLOOKUP(A42,'DATA (2022)'!A:F,4,FALSE) -> DC | D42: S | F42: =VLOOKUP(A42,'DATA (2022)'!A:F,5,FALSE) -> 121 | G42: =IFERROR(F42*(1-VLOOKUP(C42,ГОЛОВНА!K:L,2,0)), "-") -> 81.07
A43: 96848738 | B43: =VLOOKUP(A43,'DATA (2022)'!A:F,2,FALSE) -> Реле тиску PM 2 AD 1x230V 50Hz | C43: =VLOOKUP(A43,'DATA (2022)'!A:F,4,FALSE) -> DC | F43: =VLOOKUP(A43,'DATA (2022)'!A:F,5,FALSE) -> 209 | G43: =IFERROR(F43*(1-VLOOKUP(C43,ГОЛОВНА!K:L,2,0)), "-") -> 140.03
A44: 96848740 | B44: =VLOOKUP(A44,'DATA (2022)'!A:F,2,FALSE) -> Реле тиску PM 2 AD 1x230V 50/60Hz | C44: =VLOOKUP(A44,'DATA (2022)'!A:F,4,FALSE) -> DC | D44: S | F44: =VLOOKUP(A44,'DATA (2022)'!A:F,5,FALSE) -> 209 | G44: =IFERROR(F44*(1-VLOOKUP(C44,ГОЛОВНА!K:L,2,0)), "-") -> 140.03
A45: 91760166 | B45: =VLOOKUP(A45,'DATA (2022)'!A:F,2,FALSE) -> Датчик протоку для UPA120 | C45: =VLOOKUP(A45,'DATA (2022)'!A:F,4,FALSE) -> DH | F45: =VLOOKUP(A45,'DATA (2022)'!A:F,5,FALSE) -> 32 | G45: =IFERROR(F45*(1-VLOOKUP(C45,ГОЛОВНА!K:L,2,0)), "-") -> 22.08
B48: Примітка:
A49: S | B49: - складська позиція (зазвичай є на скаді)
A50: FT | B50: - швидка поставка (зазвичай до 3-х тижнів)
B52: Більше інформації в Grundfos Product Center
B53: https://product-selection.grundfos.com/ua

Sheet Basic Line
A1: АРТИКУЛ | B1: НАЙМЕНУВАННЯ (УКР) | C1: PRICE GROUP | D1: ДОСТАВКА (ТИЖНІВ) | E1: ДОДАТКОВО | F1: ЦІНА (ЕВРО БЕЗ ПДВ) | G1: ЦІНА ЗІ ЗНИЖКОЮ | H1: НА ГОЛОВНУ
A2: JPBASIC, JPBASIC PT, PF BASIC | G2: Насоси і насосні установки для систем водопостачання
A3: 98904963 | B3: =VLOOKUP(A3,'DATA (2022)'!A:F,2,FALSE) -> Насос водопостач NS 3-40 1x230V 50Hz IT | C3: DC | F3: =VLOOKUP(A3,'DATA (2022)'!A:F,5,FALSE) -> 230 | G3: =IFERROR(F3*(1-VLOOKUP(C3,ГОЛОВНА!K:L,2,0)), "-") -> 154.1
A4: 98904964 | B4: =VLOOKUP(A4,'DATA (2022)'!A:F,2,FALSE) -> Насос водопостач NS 4-23 1x230V 50Hz IT | C4: DC | F4: =VLOOKUP(A4,'DATA (2022)'!A:F,5,FALSE) -> 167 | G4: =IFERROR(F4*(1-VLOOKUP(C4,ГОЛОВНА!K:L,2,0)), "-") -> 111.89
A5: 98904967 | B5: =VLOOKUP(A5,'DATA (2022)'!A:F,2,FALSE) -> Насос водопостач NS 5-50 1x230V 50Hz CN | C5: DC | F5: =VLOOKUP(A5,'DATA (2022)'!A:F,5,FALSE) -> 374 | G5: =IFERROR(F5*(1-VLOOKUP(C5,ГОЛОВНА!K:L,2,0)), "-") -> 250.58
A6: 98904968 | B6: =VLOOKUP(A6,'DATA (2022)'!A:F,2,FALSE) -> Насос водопостач NS 5-60 1x230V 50Hz IT | C6: DC | F6: =VLOOKUP(A6,'DATA (2022)'!A:F,5,FALSE) -> 406 | G6: =IFERROR(F6*(1-VLOOKUP(C6,ГОЛОВНА!K:L,2,0)), "-") -> 272.02
A7: 98904970 | B7: =VLOOKUP(A7,'DATA (2022)'!A:F,2,FALSE) -> Насос водопостач NS 6-40 1x230V 50Hz IT | C7: DC | F7: =VLOOKUP(A7,'DATA (2022)'!A:F,5,FALSE) -> 362 | G7: =IFERROR(F7*(1-VLOOKUP(C7,ГОЛОВНА!K:L,2,0)), "-") -> 242.54
A8: 98904981 | B8: =VLOOKUP(A8,'DATA (2022)'!A:F,2,FALSE) -> Насос водопостач NS 13-18 1x230V 50Hz IT | C8: DC | F8: =VLOOKUP(A8,'DATA (2022)'!A:F,5,FALSE) -> 211 | G8: =IFERROR(F8*(1-VLOOKUP(C8,ГОЛОВНА!K:L,2,0)), "-") -> 141.37
A9: 98904982 | B9: =VLOOKUP(A9,'DATA (2022)'!A:F,2,FALSE) -> Насос водопостач NS 30-18 1x230V 50Hz IT | C9: DC | F9: =VLOOKUP(A9,'DATA (2022)'!A:F,5,FALSE) -> 356 | G9: =IFERROR(F9*(1-VLOOKUP(C9,ГОЛОВНА!K:L,2,0)), "-") -> 238.52
A10: 98907044 | B10: =VLOOKUP(A10,'DATA (2022)'!A:F,2,FALSE) -> Насос водопостач NS 30-30 3x400V 50Hz IT | C10: DC | F10: =VLOOKUP(A10,'DATA (2022)'!A:F,5,FALSE) -> 608 | G10: =IFERROR(F10*(1-VLOOKUP(C10,ГОЛОВНА!K:L,2,0)), "-") -> 407.36
A11: 98907045 | B11: =VLOOKUP(A11,'DATA (2022)'!A:F,2,FALSE) -> Насос водопостач NS 30-36 3x400V 50Hz IT | C11: DC | F11: =VLOOKUP(A11,'DATA (2022)'!A:F,5,FALSE) -> 619 | G11: =IFERROR(F11*(1-VLOOKUP(C11,ГОЛОВНА!K:L,2,0)), "-") -> 414.73
A12: 98863989 | B12: =VLOOKUP(A12,'DATA (2022)'!A:F,2,FALSE) -> Насос для брудн води KPC 300 A 1x220 50H | C12: DC | D12: S | F12: =VLOOKUP(A12,'DATA (2022)'!A:F,5,FALSE) -> 175 | G12: =IFERROR(F12*(1-VLOOKUP(C12,ГОЛОВНА!K:L,2,0)), "-") -> 117.25
A13: 98864015 | B13: =VLOOKUP(A13,'DATA (2022)'!A:F,2,FALSE) -> Насос для брудн води KPC 600 A 1x220 50H | C13: DC | D13: S | F13: =VLOOKUP(A13,'DATA (2022)'!A:F,5,FALSE) -> 225 | G13: =IFERROR(F13*(1-VLOOKUP(C13,ГОЛОВНА!K:L,2,0)), "-") -> 150.75
B16: Примітка:
A17: S | B17: - складська позиція (зазвичай є на скаді)
A18: FT | B18: - швидка поставка (зазвичай до 3-х тижнів)
B20: Більше інформації в Grundfos Product Center
B21: https://product-selection.grundfos.com/ua

Sheet SQ, SQE, SP, SP-NE
A1: АРТИКУЛ | B1: НАЙМЕНУВАННЯ (УКР) | C1: PRICE GROUP | D1: ДОСТАВКА | E1: ДОДАТКОВО | F1: ЦІНА (ЕВРО БЕЗ ПДВ) | G1: ЦІНА ЗІ ЗНИЖКОЮ | H1: НА ГОЛОВНУ
A2: SQE | G2: Пакети постійного тиску
A3: 96160961 | B3: =VLOOKUP(A3,'DATA (2022)'!A:F,2,FALSE) -> Глиб.насос SQE2-70 +60м+пакет пост.тиску | C3: =VLOOKUP(A3,'DATA (2022)'!A:F,4,FALSE) -> DC | F3: =VLOOKUP(A3,'DATA (2022)'!A:F,5,FALSE) -> 2283 | G3: =IFERROR(F3*(1-VLOOKUP(C3,ГОЛОВНА!K:L,2,0)), "-") -> 1529.61
A4: 96160962 | B4: =VLOOKUP(A4,'DATA (2022)'!A:F,2,FALSE) -> Комплект пост. тиску SQE2-85+90m.3x2.5mm | C4: =VLOOKUP(A4,'DATA (2022)'!A:F,4,FALSE) -> DC | F4: =VLOOKUP(A4,'DATA (2022)'!A:F,5,FALSE) -> 2481 | G4: =IFERROR(F4*(1-VLOOKUP(C4,ГОЛОВНА!K:L,2,0)), "-") -> 1662.27
A5: 96524501 | B5: =VLOOKUP(A5,'DATA (2022)'!A:F,2,FALSE) -> Глиб.насос SQE3-65 +40м+пакет пост.тиску | C5: =VLOOKUP(A5,'DATA (2022)'!A:F,4,FALSE) -> DC | D5: S | F5: =VLOOKUP(A5,'DATA (2022)'!A:F,5,FALSE) -> 2266 | G5: =IFERROR(F5*(1-VLOOKUP(C5,ГОЛОВНА!K:L,2,0)), "-") -> 1518.22
A6: 96524503 | B6: =VLOOKUP(A6,'DATA (2022)'!A:F,2,FALSE) -> Глиб.насос SQE5-70 +40м+пакет пост.тиску | C6: =VLOOKUP(A6,'DATA (2022)'!A:F,4,FALSE) -> DC | D6: S | F6: =VLOOKUP(A6,'DATA (2022)'!A:F,5,FALSE) -> 2360 | G6: =IFERROR(F6*(1-VLOOKUP(C6,ГОЛОВНА!K:L,2,0)), "-") -> 1581.2
A7: 96524505 | B7: =VLOOKUP(A7,'DATA (2022)'!A:F,2,FALSE) -> Глиб.насос SQE2-55 +40м+пакет пост.тиску | C7: =VLOOKUP(A7,'DATA (2022)'!A:F,4,FALSE) -> DC | D7: S | F7: =VLOOKUP(A7,'DATA (2022)'!A:F,5,FALSE) -> 2037 | G7: =IFERROR(F7*(1-VLOOKUP(C7,ГОЛОВНА!K:L,2,0)), "-") -> 1364.79
A8: 96524506 | B8: =VLOOKUP(A8,'DATA (2022)'!A:F,2,FALSE) -> Глиб.насос SQE2-85+60м+пакет пост.тиску | C8: =VLOOKUP(A8,'DATA (2022)'!A:F,4,FALSE) -> DC | D8: S | F8: =VLOOKUP(A8,'DATA (2022)'!A:F,5,FALSE) -> 2524 | G8: =IFERROR(F8*(1-VLOOKUP(C8,ГОЛОВНА!K:L,2,0)), "-") -> 1691.08
A9: 96524507 | B9: =VLOOKUP(A9,'DATA (2022)'!A:F,2,FALSE) -> Глиб.насос SQE2-115 +80м+пакет пост.тиск | C9: =VLOOKUP(A9,'DATA (2022)'!A:F,4,FALSE) -> DC | D9: S | F9: =VLOOKUP(A9,'DATA (2022)'!A:F,5,FALSE) -> 2760 | G9: =IFERROR(F9*(1-VLOOKUP(C9,ГОЛОВНА!K:L,2,0)), "-") -> 1849.2
A10: 96524508 | B10: =VLOOKUP(A10,'DATA (2022)'!A:F,2,FALSE) -> Глиб.насос SQE3-105+80m+пакет пост.тиск | C10: =VLOOKUP(A10,'DATA (2022)'!A:F,4,FALSE) -> DC | D10: S | F10: =VLOOKUP(A10,'DATA (2022)'!A:F,5,FALSE) -> 2643 | G10: =IFERROR(F10*(1-VLOOKUP(C10,ГОЛОВНА!K:L,2,0)), "-") -> 1770.81
A12: SQ, SQE | G12: Глибинні насоси та пакети постійного тиску
A13: 96510071 | B13: =VLOOKUP(A13,'DATA (2022)'!A:F,2,FALSE) -> Глиб.насос SQE 1-35 0.70kW 200-240V 50/ | C13: =VLOOKUP(A13,'DATA (2022)'!A:F,4,FALSE) -> DC | F13: =VLOOKUP(A13,'DATA (2022)'!A:F,5,FALSE) -> 864 | G13: =IFERROR(F13*(1-VLOOKUP(C13,ГОЛОВНА!K:L,2,0)), "-") -> 578.88
A14: 96510141 | B14: =VLOOKUP(A14,'DATA (2022)'!A:F,2,FALSE) -> Глиб.насос SQE 1-50 0.70kW 200-240V 50/ | C14: =VLOOKUP(A14,'DATA (2022)'!A:F,4,FALSE) -> DC | F14: =VLOOKUP(A14,'DATA (2022)'!A:F,5,FALSE) -> 938 | G14: =IFERROR(F14*(1-VLOOKUP(C14,ГОЛОВНА!K:L,2,0)), "-") -> 628.46
A15: 96510142 | B15: =VLOOKUP(A15,'DATA (2022)'!A:F,2,FALSE) -> Глиб.насос SQE 1-65 0.70kW 200-240V 50/ | C15: =VLOOKUP(A15,'DATA (2022)'!A:F,4,FALSE) -> DC | F15: =VLOOKUP(A15,'DATA (2022)'!A:F,5,FALSE) -> 1008 | G15: =IFERROR(F15*(1-VLOOKUP(C15,ГОЛОВНА!K:L,2,0)), "-") -> 675.36
A16: 96510143 | B16: =VLOOKUP(A16,'DATA (2022)'!A:F,2,FALSE) -> Глиб.насос SQE 1-80 1.15kW 200-240V 50/ | C16: =VLOOKUP(A16,'DATA (2022)'!A:F,4,FALSE) -> DC | F16: =VLOOKUP(A16,'DATA (2022)'!A:F,5,FALSE) -> 1214 | G16: =IFERROR(F16*(1-VLOOKUP(C16,ГОЛОВНА!K:L,2,0)), "-") -> 813.38
A17: 96510144 | B17: =VLOOKUP(A17,'DATA (2022)'!A:F,2,FALSE) -> Глиб.насос SQE 1-95 1.15kW 200-240V 50/ | C17: =VLOOKUP(A17,'DATA (2022)'!A:F,4,FALSE) -> DC | F17: =VLOOKUP(A17,'DATA (2022)'!A:F,5,FALSE) -> 1265 | G17: =IFERROR(F17*(1-VLOOKUP(C17,ГОЛОВНА!K:L,2,0)), "-") -> 847.55
A18: 96510145 | B18: =VLOOKUP(A18,'DATA (2022)'!A:F,2,FALSE) -> Глиб.насос SQE 1-110 1.15kW 200-240V 50 | C18: =VLOOKUP(A18,'DATA (2022)'!A:F,4,FALSE) -> DC | F18: =VLOOKUP(A18,'DATA (2022)'!A:F,5,FALSE) -> 1309 | G18: =IFERROR(F18*(1-VLOOKUP(C18,ГОЛОВНА!K:L,2,0)), "-") -> 877.03
A19: 96510146 | B19: =VLOOKUP(A19,'DATA (2022)'!A:F,2,FALSE) -> Глиб.насос SQE 1-125 1.55kW 200-240V 50 | C19: =VLOOKUP(A19,'DATA (2022)'!A:F,4,FALSE) -> DC | F19: =VLOOKUP(A19,'DATA (2022)'!A:F,5,FALSE) -> 1568 | G19: =IFERROR(F19*(1-VLOOKUP(C19,ГОЛОВНА!K:L,2,0)), "-") -> 1050.56
A20: 96510147 | B20: =VLOOKUP(A20,'DATA (2022)'!A:F,2,FALSE) -> Глиб.насос SQE 1-140 1.55kW 200-240V 50 | C20: =VLOOKUP(A20,'DATA (2022)'!A:F,4,FALSE) -> DC | F20: =VLOOKUP(A20,'DATA (2022)'!A:F,5,FALSE) -> 1619 | G20: =IFERROR(F20*(1-VLOOKUP(C20,ГОЛОВНА!K:L,2,0)), "-") -> 1084.73
A21: 96510148 | B21: =VLOOKUP(A21,'DATA (2022)'!A:F,2,FALSE) -> Глиб.насос SQE 1-155 1.85kW 200-240V 50 | C21: =VLOOKUP(A21,'DATA (2022)'!A:F,4,FALSE) -> DC | F21: =VLOOKUP(A21,'DATA (2022)'!A:F,5,FALSE) -> 1670 | G21: =IFERROR(F21*(1-VLOOKUP(C21,ГОЛОВНА!K:L,2,0)), "-") -> 1118.9
A22: 96510150 | B22: =VLOOKUP(A22,'DATA (2022)'!A:F,2,FALSE) -> Глиб.насос SQE 2-35 0.70kW 200-240V 50 | C22: =VLOOKUP(A22,'DATA (2022)'!A:F,4,FALSE) -> DC | F22: =VLOOKUP(A22,'DATA (2022)'!A:F,5,FALSE) -> 897 | G22: =IFERROR(F22*(1-VLOOKUP(C22,ГОЛОВНА!K:L,2,0)), "-") -> 600.99
A23: 96510151 | B23: =VLOOKUP(A23,'DATA (2022)'!A:F,2,FALSE) -> Глиб.насос SQE 2-55 0.70kW 200-240V 50/ | C23: =VLOOKUP(A23,'DATA (2022)'!A:F,4,FALSE) -> DC | F23: =VLOOKUP(A23,'DATA (2022)'!A:F,5,FALSE) -> 1001 | G23: =IFERROR(F23*(1-VLOOKUP(C23,ГОЛОВНА!K:L,2,0)), "-") -> 670.67
A24: 96510152 | B24: =VLOOKUP(A24,'DATA (2022)'!A:F,2,FALSE) -> Глиб.насос SQE 2-70 1.15kW 200-240V 50/ | C24: =VLOOKUP(A24,'DATA (2022)'!A:F,4,FALSE) -> DC | F24: =VLOOKUP(A24,'DATA (2022)'!A:F,5,FALSE) -> 1053 | G24: =IFERROR(F24*(1-VLOOKUP(C24,ГОЛОВНА!K:L,2,0)), "-") -> 705.51
A25: 96510153 | B25: =VLOOKUP(A25,'DATA (2022)'!A:F,2,FALSE) -> Глиб.насос SQE 2-85 1.15kW 200-240V 50/ | C25: =VLOOKUP(A25,'DATA (2022)'!A:F,4,FALSE) -> DC | F25: =VLOOKUP(A25,'DATA (2022)'!A:F,5,FALSE) -> 1178 | G25: =IFERROR(F25*(1-VLOOKUP(C25,ГОЛОВНА!K:L,2,0)), "-") -> 789.26
A26: 96510154 | B26: =VLOOKUP(A26,'DATA (2022)'!A:F,2,FALSE) -> Глиб.насос SQE 2-100 1.55kW 200-240V 50 | C26: =VLOOKUP(A26,'DATA (2022)'!A:F,4,FALSE) -> DC | F26: =VLOOKUP(A26,'DATA (2022)'!A:F,5,FALSE) -> 1462 | G26: =IFERROR(F26*(1-VLOOKUP(C26,ГОЛОВНА!K:L,2,0)), "-") -> 979.54
A27: 96510155 | B27: =VLOOKUP(A27,'DATA (2022)'!A:F,2,FALSE) -> Глиб.насос SQE 2-115 1.85kW 200-240V 50 | C27: =VLOOKUP(A27,'DATA (2022)'!A:F,4,FALSE) -> DC | F27: =VLOOKUP(A27,'DATA (2022)'!A:F,5,FALSE) -> 1512 | G27: =IFERROR(F27*(1-VLOOKUP(C27,ГОЛОВНА!K:L,2,0)), "-") -> 1013.04
A28: 96510156 | B28: =VLOOKUP(A28,'DATA (2022)'!A:F,2,FALSE) -> Глиб.насос SQE 3-30 0.70kW 200-240V 50/ | C28: =VLOOKUP(A28,'DATA (2022)'!A:F,4,FALSE) -> DC | F28: =VLOOKUP(A28,'DATA (2022)'!A:F,5,FALSE) -> 860 | G28: =IFERROR(F28*(1-VLOOKUP(C28,ГОЛОВНА!K:L,2,0)), "-") -> 576.2
A29: 96510157 | B29: =VLOOKUP(A29,'DATA (2022)'!A:F,2,FALSE) -> Глиб.насос SQE 3-40 0.70kW 200-240V 50/ | C29: =VLOOKUP(A29,'DATA (2022)'!A:F,4,FALSE) -> DC | F29: =VLOOKUP(A29,'DATA (2022)'!A:F,5,FALSE) -> 911 | G29: =IFERROR(F29*(1-VLOOKUP(C29,ГОЛОВНА!K:L,2,0)), "-") -> 610.37
A30: 96510158 | B30: =VLOOKUP(A30,'DATA (2022)'!A:F,2,FALSE) -> Глиб.насос SQE 3-55 1.15kW 200-240V 50/ | C30: =VLOOKUP(A30,'DATA (2022)'!A:F,4,FALSE) -> DC | F30: =VLOOKUP(A30,'DATA (2022)'!A:F,5,FALSE) -> 1052 | G30: =IFERROR(F30*(1-VLOOKUP(C30,ГОЛОВНА!K:L,2,0)), "-") -> 704.84
A31: 96510159 | B31: =VLOOKUP(A31,'DATA (2022)'!A:F,2,FALSE) -> Глиб.насос SQE 3-65 1.15kW 200-240V 50/ | C31: =VLOOKUP(A31,'DATA (2022)'!A:F,4,FALSE) -> DC | F31: =VLOOKUP(A31,'DATA (2022)'!A:F,5,FALSE) -> 1235 | G31: =IFERROR(F31*(1-VLOOKUP(C31,ГОЛОВНА!K:L,2,0)), "-") -> 827.45
A32: 96510160 | B32: =VLOOKUP(A32,'DATA (2022)'!A:F,2,FALSE) -> Глиб.насос SQE 3-80 1.55kW 200-240V 50/ | C32: =VLOOKUP(A32,'DATA (2022)'!A:F,4,FALSE) -> DC | F32: =VLOOKUP(A32,'DATA (2022)'!A:F,5,FALSE) -> 1532 | G32: =IFERROR(F32*(1-VLOOKUP(C32,ГОЛОВНА!K:L,2,0)), "-") -> 1026.44
A33: 96510161 | B33: =VLOOKUP(A33,'DATA (2022)'!A:F,2,FALSE) -> Глибинний насос SQE3-95 1,68кВт 220-240В | C33: =VLOOKUP(A33,'DATA (2022)'!A:F,4,FALSE) -> DC | F33: =VLOOKUP(A33,'DATA (2022)'!A:F,5,FALSE) -> 1511 | G33: =IFERROR(F33*(1-VLOOKUP(C33,ГОЛОВНА!K:L,2,0)), "-") -> 1012.37
A34: 96510162 | B34: =VLOOKUP(A34,'DATA (2022)'!A:F,2,FALSE) -> Глиб.насос SQE 3-105 1.85kW 200-240V 50 | C34: =VLOOKUP(A34,'DATA (2022)'!A:F,4,FALSE) -> DC | D34: FT | F34: =VLOOKUP(A34,'DATA (2022)'!A:F,5,FALSE) -> 1639 | G34: =IFERROR(F34*(1-VLOOKUP(C34,ГОЛОВНА!K:L,2,0)), "-") -> 1098.13
A35: 96510163 | B35: =VLOOKUP(A35,'DATA (2022)'!A:F,2,FALSE) -> Глиб.насос SQE 5-15 0.70kW 200-240V 50/ | C35: =VLOOKUP(A35,'DATA (2022)'!A:F,4,FALSE) -> DC | F35: =VLOOKUP(A35,'DATA (2022)'!A:F,5,FALSE) -> 849 | G35: =IFERROR(F35*(1-VLOOKUP(C35,ГОЛОВНА!K:L,2,0)), "-") -> 568.83
A36: 96510164 | B36: =VLOOKUP(A36,'DATA (2022)'!A:F,2,FALSE) -> Глиб.насос SQE 5-25 0.70kW 200-240V 50/ | C36: =VLOOKUP(A36,'DATA (2022)'!A:F,4,FALSE) -> DC | F36: =VLOOKUP(A36,'DATA (2022)'!A:F,5,FALSE) -> 885 | G36: =IFERROR(F36*(1-VLOOKUP(C36,ГОЛОВНА!K:L,2,0)), "-") -> 592.95
A37: 96510165 | B37: =VLOOKUP(A37,'DATA (2022)'!A:F,2,FALSE) -> Глиб.насос SQE 5-35 1.15kW 200-240V 50/ | C37: =VLOOKUP(A37,'DATA (2022)'!A:F,4,FALSE) -> DC | F37: =VLOOKUP(A37,'DATA (2022)'!A:F,5,FALSE) -> 1052 | G37: =IFERROR(F37*(1-VLOOKUP(C37,ГОЛОВНА!K:L,2,0)), "-") -> 704.84
A38: 96510166 | B38: =VLOOKUP(A38,'DATA (2022)'!A:F,2,FALSE) -> Глиб.насос SQE 5-50 1.55kW 200-240V 50/ | C38: =VLOOKUP(A38,'DATA (2022)'!A:F,4,FALSE) -> DC | F38: =VLOOKUP(A38,'DATA (2022)'!A:F,5,FALSE) -> 1176 | G38: =IFERROR(F38*(1-VLOOKUP(C38,ГОЛОВНА!K:L,2,0)), "-") -> 787.92
A39: 96510167 | B39: =VLOOKUP(A39,'DATA (2022)'!A:F,2,FALSE) -> Глиб.насос SQE 5-60 1.55kW 200-240V 50/ | C39: =VLOOKUP(A39,'DATA (2022)'!A:F,4,FALSE) -> DC | F39: =VLOOKUP(A39,'DATA (2022)'!A:F,5,FALSE) -> 1590 | G39: =IFERROR(F39*(1-VLOOKUP(C39,ГОЛОВНА!K:L,2,0)), "-") -> 1065.3
A40: 96510168 | B40: =VLOOKUP(A40,'DATA (2022)'!A:F,2,FALSE) -> Глиб.насос SQE 5-70 1.85kW 200-240V 50/ | C40: =VLOOKUP(A40,'DATA (2022)'!A:F,4,FALSE) -> DC | F40: =VLOOKUP(A40,'DATA (2022)'!A:F,5,FALSE) -> 1643 | G40: =IFERROR(F40*(1-VLOOKUP(C40,ГОЛОВНА!K:L,2,0)), "-") -> 1100.81
A41: 96510169 | B41: =VLOOKUP(A41,'DATA (2022)'!A:F,2,FALSE) -> Глиб.насос SQE 7-15 0.70kW 200-240V 50/ | C41: =VLOOKUP(A41,'DATA (2022)'!A:F,4,FALSE) -> DC | F41: =VLOOKUP(A41,'DATA (2022)'!A:F,5,FALSE) -> 1164 | G41: =IFERROR(F41*(1-VLOOKUP(C41,ГОЛОВНА!K:L,2,0)), "-") -> 779.88
A42: 96510170 | B42: =VLOOKUP(A42,'DATA (2022)'!A:F,2,FALSE) -> Глиб.насос SQE 7-30 1.15kW 200-240V 50/ | C42: =VLOOKUP(A42,'DATA (2022)'!A:F,4,FALSE) -> DC | F42: =VLOOKUP(A42,'DATA (2022)'!A:F,5,FALSE) -> 1265 | G42: =IFERROR(F42*(1-VLOOKUP(C42,ГОЛОВНА!K:L,2,0)), "-") -> 847.55
A43: 96510171 | B43: =VLOOKUP(A43,'DATA (2022)'!A:F,2,FALSE) -> Глиб.насос SQE 7-40 1.55kW 200-240V 50/ | C43: =VLOOKUP(A43,'DATA (2022)'!A:F,4,FALSE) -> DC | F43: =VLOOKUP(A43,'DATA (2022)'!A:F,5,FALSE) -> 1619 | G43: =IFERROR(F43*(1-VLOOKUP(C43,ГОЛОВНА!K:L,2,0)), "-") -> 1084.73
A44: 96524509 | B44: =VLOOKUP(A44,'DATA (2022)'!A:F,2,FALSE) -> Занурений насос SQE5-50 + 40m 3x1,5mm | C44: =VLOOKUP(A44,'DATA (2022)'!A:F,4,FALSE) -> DC | F44: =VLOOKUP(A44,'DATA (2022)'!A:F,5,FALSE) -> 2290 | G44: =IFERROR(F44*(1-VLOOKUP(C44,ГОЛОВНА!K:L,2,0)), "-") -> 1534.3
A45: 96510178 | B45: =VLOOKUP(A45,'DATA (2022)'!A:F,2,FALSE) -> Глиб.насос SQ 1-35 0.70kW 200-240V 50/6 | C45: =VLOOKUP(A45,'DATA (2022)'!A:F,4,FALSE) -> DC | F45: =VLOOKUP(A45,'DATA (2022)'!A:F,5,FALSE) -> 761 | G45: =IFERROR(F45*(1-VLOOKUP(C45,ГОЛОВНА!K:L,2,0)), "-") -> 509.87
A46: 96510179 | B46: =VLOOKUP(A46,'DATA (2022)'!A:F,2,FALSE) -> Глиб.насос SQ 1-50 0.70kW 200-240V 50/6 | C46: =VLOOKUP(A46,'DATA (2022)'!A:F,4,FALSE) -> DC | D46: FT | F46: =VLOOKUP(A46,'DATA (2022)'!A:F,5,FALSE) -> 822 | G46: =IFERROR(F46*(1-VLOOKUP(C46,ГОЛОВНА!K:L,2,0)), "-") -> 550.74
A47: 96510190 | B47: =VLOOKUP(A47,'DATA (2022)'!A:F,2,FALSE) -> Глиб.насос SQ 1-65 0.70kW 200-240V 50/6 | C47: =VLOOKUP(A47,'DATA (2022)'!A:F,4,FALSE) -> DC | D47: FT | F47: =VLOOKUP(A47,'DATA (2022)'!A:F,5,FALSE) -> 884 | G47: =IFERROR(F47*(1-VLOOKUP(C47,ГОЛОВНА!K:L,2,0)), "-") -> 592.28
A48: 96510191 | B48: =VLOOKUP(A48,'DATA (2022)'!A:F,2,FALSE) -> Глиб.насос SQ 1-80 1.15kW 200-240V 50/6 | C48: =VLOOKUP(A48,'DATA (2022)'!A:F,4,FALSE) -> DC | F48: =VLOOKUP(A48,'DATA (2022)'!A:F,5,FALSE) -> 1067 | G48: =IFERROR(F48*(1-VLOOKUP(C48,ГОЛОВНА!K:L,2,0)), "-") -> 714.89
A49: 96510192 | B49: =VLOOKUP(A49,'DATA (2022)'!A:F,2,FALSE) -> Глиб.насос SQ 1-95 1.15kW 200-240V 50/6 | C49: =VLOOKUP(A49,'DATA (2022)'!A:F,4,FALSE) -> DC | F49: =VLOOKUP(A49,'DATA (2022)'!A:F,5,FALSE) -> 1111 | G49: =IFERROR(F49*(1-VLOOKUP(C49,ГОЛОВНА!K:L,2,0)), "-") -> 744.37
A50: 96510193 | B50: =VLOOKUP(A50,'DATA (2022)'!A:F,2,FALSE) -> Глиб.насос SQ 1-110 1.15kW 200-240V 50/ | C50: =VLOOKUP(A50,'DATA (2022)'!A:F,4,FALSE) -> DC | F50: =VLOOKUP(A50,'DATA (2022)'!A:F,5,FALSE) -> 1155 | G50: =IFERROR(F50*(1-VLOOKUP(C50,ГОЛОВНА!K:L,2,0)), "-") -> 773.85
A51: 96510194 | B51: =VLOOKUP(A51,'DATA (2022)'!A:F,2,FALSE) -> Глиб.насос SQ 1-125 1.55kW 200-240V 50/ | C51: =VLOOKUP(A51,'DATA (2022)'!A:F,4,FALSE) -> DC | F51: =VLOOKUP(A51,'DATA (2022)'!A:F,5,FALSE) -> 1377 | G51: =IFERROR(F51*(1-VLOOKUP(C51,ГОЛОВНА!K:L,2,0)), "-") -> 922.59
A52: 96510195 | B52: =VLOOKUP(A52,'DATA (2022)'!A:F,2,FALSE) -> Глиб.насос SQ 1-140 1.55kW 200-240V 50/ | C52: =VLOOKUP(A52,'DATA (2022)'!A:F,4,FALSE) -> DC | F52: =VLOOKUP(A52,'DATA (2022)'!A:F,5,FALSE) -> 1423 | G52: =IFERROR(F52*(1-VLOOKUP(C52,ГОЛОВНА!K:L,2,0)), "-") -> 953.41
A53: 96510196 | B53: =VLOOKUP(A53,'DATA (2022)'!A:F,2,FALSE) -> Глибинний насос SQ1-155 1,85кВт 220-240В | C53: =VLOOKUP(A53,'DATA (2022)'!A:F,4,FALSE) -> DC | F53: =VLOOKUP(A53,'DATA (2022)'!A:F,5,FALSE) -> 1467 | G53: =IFERROR(F53*(1-VLOOKUP(C53,ГОЛОВНА!K:L,2,0)), "-") -> 982.89
A54: 96510198 | B54: =VLOOKUP(A54,'DATA (2022)'!A:F,2,FALSE) -> Глиб.насос SQ 2-35 0.70kW 200-240V 50/6 | C54: =VLOOKUP(A54,'DATA (2022)'!A:F,4,FALSE) -> DC | D54: FT | F54: =VLOOKUP(A54,'DATA (2022)'!A:F,5,FALSE) -> 805 | G54: =IFERROR(F54*(1-VLOOKUP(C54,ГОЛОВНА!K:L,2,0)), "-") -> 539.35
A55: 96510199 | B55: =VLOOKUP(A55,'DATA (2022)'!A:F,2,FALSE) -> Глиб.насос SQ 2-55 0.70kW 200-240V 50/6 | C55: =VLOOKUP(A55,'DATA (2022)'!A:F,4,FALSE) -> DC | D55: S | F55: =VLOOKUP(A55,'DATA (2022)'!A:F,5,FALSE) -> 855 | G55: =IFERROR(F55*(1-VLOOKUP(C55,ГОЛОВНА!K:L,2,0)), "-") -> 572.85
A56: 96510200 | B56: =VLOOKUP(A56,'DATA (2022)'!A:F,2,FALSE) -> Глиб.насос SQ 2-70 1.15kW 200-240V 50/6 | C56: =VLOOKUP(A56,'DATA (2022)'!A:F,4,FALSE) -> DC | D56: S | F56: =VLOOKUP(A56,'DATA (2022)'!A:F,5,FALSE) -> 947 | G56: =IFERROR(F56*(1-VLOOKUP(C56,ГОЛОВНА!K:L,2,0)), "-") -> 634.49
A57: 96510201 | B57: =VLOOKUP(A57,'DATA (2022)'!A:F,2,FALSE) -> Глиб.насос SQ 2-85 1.15kW 200-240V 50/6 | C57: =VLOOKUP(A57,'DATA (2022)'!A:F,4,FALSE) -> DC | D57: S | F57: =VLOOKUP(A57,'DATA (2022)'!A:F,5,FALSE) -> 1060 | G57: =IFERROR(F57*(1-VLOOKUP(C57,ГОЛОВНА!K:L,2,0)), "-") -> 710.2
A58: 96510202 | B58: =VLOOKUP(A58,'DATA (2022)'!A:F,2,FALSE) -> Глиб.насос SQ 2-100 1.55kW 200-240V 50/ | C58: =VLOOKUP(A58,'DATA (2022)'!A:F,4,FALSE) -> DC | D58: S | F58: =VLOOKUP(A58,'DATA (2022)'!A:F,5,FALSE) -> 1315 | G58: =IFERROR(F58*(1-VLOOKUP(C58,ГОЛОВНА!K:L,2,0)), "-") -> 881.05
A59: 96510203 | B59: =VLOOKUP(A59,'DATA (2022)'!A:F,2,FALSE) -> Глиб.насос SQ 2-115 1.85kW 200-240V 50/ | C59: =VLOOKUP(A59,'DATA (2022)'!A:F,4,FALSE) -> DC | D59: S | F59: =VLOOKUP(A59,'DATA (2022)'!A:F,5,FALSE) -> 1361 | G59: =IFERROR(F59*(1-VLOOKUP(C59,ГОЛОВНА!K:L,2,0)), "-") -> 911.87
A60: 96524434 | B60: =VLOOKUP(A60,'DATA (2022)'!A:F,2,FALSE) -> Глиб.насос SQ 2- 70 1.15kW 200-240V 50/ | C60: =VLOOKUP(A60,'DATA (2022)'!A:F,4,FALSE) -> DC | F60: =VLOOKUP(A60,'DATA (2022)'!A:F,5,FALSE) -> 1143 | G60: =IFERROR(F60*(1-VLOOKUP(C60,ГОЛОВНА!K:L,2,0)), "-") -> 765.81
A61: 96160906 | B61: =VLOOKUP(A61,'DATA (2022)'!A:F,2,FALSE) -> SQ pump cpl. with fitting s | C61: =VLOOKUP(A61,'DATA (2022)'!A:F,4,FALSE) -> DC | F61: =VLOOKUP(A61,'DATA (2022)'!A:F,5,FALSE) -> 1028 | G61: =IFERROR(F61*(1-VLOOKUP(C61,ГОЛОВНА!K:L,2,0)), "-") -> 688.76
A62: 96160907 | B62: =VLOOKUP(A62,'DATA (2022)'!A:F,2,FALSE) -> SQ pump cpl. with fitting s | C62: =VLOOKUP(A62,'DATA (2022)'!A:F,4,FALSE) -> DC | F62: =VLOOKUP(A62,'DATA (2022)'!A:F,5,FALSE) -> 1232 | G62: =IFERROR(F62*(1-VLOOKUP(C62,ГОЛОВНА!K:L,2,0)), "-") -> 825.44
A63: 96160908 | B63: =VLOOKUP(A63,'DATA (2022)'!A:F,2,FALSE) -> Пакет для водопостачання SQ3-40 з кабеле | C63: =VLOOKUP(A63,'DATA (2022)'!A:F,4,FALSE) -> DC | F63: =VLOOKUP(A63,'DATA (2022)'!A:F,5,FALSE) -> 1308 | G63: =IFERROR(F63*(1-VLOOKUP(C63,ГОЛОВНА!K:L,2,0)), "-") -> 876.36
A64: 96510204 | B64: =VLOOKUP(A64,'DATA (2022)'!A:F,2,FALSE) -> Глиб.насос SQ 3-30 0.70kW 200-240V 50/6 | C64: =VLOOKUP(A64,'DATA (2022)'!A:F,4,FALSE) -> DC | F64: =VLOOKUP(A64,'DATA (2022)'!A:F,5,FALSE) -> 756 | G64: =IFERROR(F64*(1-VLOOKUP(C64,ГОЛОВНА!K:L,2,0)), "-") -> 506.52
A65: 96510205 | B65: =VLOOKUP(A65,'DATA (2022)'!A:F,2,FALSE) -> Глиб.насос SQ 3-40 0.70kW 200-240V 50/6 | C65: =VLOOKUP(A65,'DATA (2022)'!A:F,4,FALSE) -> DC | D65: FT | F65: =VLOOKUP(A65,'DATA (2022)'!A:F,5,FALSE) -> 800 | G65: =IFERROR(F65*(1-VLOOKUP(C65,ГОЛОВНА!K:L,2,0)), "-") -> 536
A66: 96510206 | B66: =VLOOKUP(A66,'DATA (2022)'!A:F,2,FALSE) -> Глиб.насос SQ 3-55 1.15kW 200-240V 50/6 | C66: =VLOOKUP(A66,'DATA (2022)'!A:F,4,FALSE) -> DC | D66: S | F66: =VLOOKUP(A66,'DATA (2022)'!A:F,5,FALSE) -> 925 | G66: =IFERROR(F66*(1-VLOOKUP(C66,ГОЛОВНА!K:L,2,0)), "-") -> 619.75
A67: 96510207 | B67: =VLOOKUP(A67,'DATA (2022)'!A:F,2,FALSE) -> Глиб.насос SQ 3-65 1.15kW 200-240V 50/6 | C67: =VLOOKUP(A67,'DATA (2022)'!A:F,4,FALSE) -> DC | D67: S | F67: =VLOOKUP(A67,'DATA (2022)'!A:F,5,FALSE) -> 1035 | G67: =IFERROR(F67*(1-VLOOKUP(C67,ГОЛОВНА!K:L,2,0)), "-") -> 693.45
A68: 96510208 | B68: =VLOOKUP(A68,'DATA (2022)'!A:F,2,FALSE) -> Глиб.насос SQ 3-80 1.55kW 200-240V 50/6 | C68: =VLOOKUP(A68,'DATA (2022)'!A:F,4,FALSE) -> DC | D68: S | F68: =VLOOKUP(A68,'DATA (2022)'!A:F,5,FALSE) -> 1284 | G68: =IFERROR(F68*(1-VLOOKUP(C68,ГОЛОВНА!K:L,2,0)), "-") -> 860.28
A69: 96510209 | B69: =VLOOKUP(A69,'DATA (2022)'!A:F,2,FALSE) -> Глиб.насос SQ 3-95 1.55kW 200-240V 50/60 | C69: =VLOOKUP(A69,'DATA (2022)'!A:F,4,FALSE) -> DC | D69: S | F69: =VLOOKUP(A69,'DATA (2022)'!A:F,5,FALSE) -> 1330 | G69: =IFERROR(F69*(1-VLOOKUP(C69,ГОЛОВНА!K:L,2,0)), "-") -> 891.1
A70: 96510210 | B70: =VLOOKUP(A70,'DATA (2022)'!A:F,2,FALSE) -> Глиб.насос SQ 3-105 1.85kW 200-240V 50/ | C70: =VLOOKUP(A70,'DATA (2022)'!A:F,4,FALSE) -> DC | D70: S | F70: =VLOOKUP(A70,'DATA (2022)'!A:F,5,FALSE) -> 1374 | G70: =IFERROR(F70*(1-VLOOKUP(C70,ГОЛОВНА!K:L,2,0)), "-") -> 920.58
A71: 96524445 | B71: =VLOOKUP(A71,'DATA (2022)'!A:F,2,FALSE) -> Глиб.насос SQ 3- 80 1.55kW 200-240V 50/ | C71: =VLOOKUP(A71,'DATA (2022)'!A:F,4,FALSE) -> DC | F71: =VLOOKUP(A71,'DATA (2022)'!A:F,5,FALSE) -> 1476 | G71: =IFERROR(F71*(1-VLOOKUP(C71,ГОЛОВНА!K:L,2,0)), "-") -> 988.92
A72: 96510211 | B72: =VLOOKUP(A72,'DATA (2022)'!A:F,2,FALSE) -> Глиб.насос SQ 5-15 0.70kW 200-240V 50/6 | C72: =VLOOKUP(A72,'DATA (2022)'!A:F,4,FALSE) -> DC | F72: =VLOOKUP(A72,'DATA (2022)'!A:F,5,FALSE) -> 747 | G72: =IFERROR(F72*(1-VLOOKUP(C72,ГОЛОВНА!K:L,2,0)), "-") -> 500.49
A73: 96510212 | B73: =VLOOKUP(A73,'DATA (2022)'!A:F,2,FALSE) -> Глиб.насос SQ 5-25 0.70kW 200-240V 50/6 | C73: =VLOOKUP(A73,'DATA (2022)'!A:F,4,FALSE) -> DC | F73: =VLOOKUP(A73,'DATA (2022)'!A:F,5,FALSE) -> 764 | G73: =IFERROR(F73*(1-VLOOKUP(C73,ГОЛОВНА!K:L,2,0)), "-") -> 511.88
A74: 96510213 | B74: =VLOOKUP(A74,'DATA (2022)'!A:F,2,FALSE) -> Глиб.насос SQ 5-35 1.15kW 200-240V 50/6 | C74: =VLOOKUP(A74,'DATA (2022)'!A:F,4,FALSE) -> DC | D74: FT | F74: =VLOOKUP(A74,'DATA (2022)'!A:F,5,FALSE) -> 925 | G74: =IFERROR(F74*(1-VLOOKUP(C74,ГОЛОВНА!K:L,2,0)), "-") -> 619.75
A75: 96510214 | B75: =VLOOKUP(A75,'DATA (2022)'!A:F,2,FALSE) -> Глиб.насос SQ 5-50 1.55kW 200-240V 50/6 | C75: =VLOOKUP(A75,'DATA (2022)'!A:F,4,FALSE) -> DC | F75: =VLOOKUP(A75,'DATA (2022)'!A:F,5,FALSE) -> 1035 | G75: =IFERROR(F75*(1-VLOOKUP(C75,ГОЛОВНА!K:L,2,0)), "-") -> 693.45
A76: 96510215 | B76: =VLOOKUP(A76,'DATA (2022)'!A:F,2,FALSE) -> Глиб.насос SQ 5-60 1.55kW 200-240V 50/6 | C76: =VLOOKUP(A76,'DATA (2022)'!A:F,4,FALSE) -> DC | F76: =VLOOKUP(A76,'DATA (2022)'!A:F,5,FALSE) -> 1330 | G76: =IFERROR(F76*(1-VLOOKUP(C76,ГОЛОВНА!K:L,2,0)), "-") -> 891.1
A77: 96510217 | B77: =VLOOKUP(A77,'DATA (2022)'!A:F,2,FALSE) -> Глиб.насос SQ 5-70 1.85kW 200-240V 50/6 | C77: =VLOOKUP(A77,'DATA (2022)'!A:F,4,FALSE) -> DC | D77: S | F77: =VLOOKUP(A77,'DATA (2022)'!A:F,5,FALSE) -> 1374 | G77: =IFERROR(F77*(1-VLOOKUP(C77,ГОЛОВНА!K:L,2,0)), "-") -> 920.58
A78: 96510218 | B78: =VLOOKUP(A78,'DATA (2022)'!A:F,2,FALSE) -> Глиб.насос SQ 7-15 0.70kW 200-240V 50/6 | C78: =VLOOKUP(A78,'DATA (2022)'!A:F,4,FALSE) -> DC | F78: =VLOOKUP(A78,'DATA (2022)'!A:F,5,FALSE) -> 1029 | G78: =IFERROR(F78*(1-VLOOKUP(C78,ГОЛОВНА!K:L,2,0)), "-") -> 689.43
A79: 96510219 | B79: =VLOOKUP(A79,'DATA (2022)'!A:F,2,FALSE) -> Глиб.насос SQ 7-30 1.15kW 200-240V 50/6 | C79: =VLOOKUP(A79,'DATA (2022)'!A:F,4,FALSE) -> DC | F79: =VLOOKUP(A79,'DATA (2022)'!A:F,5,FALSE) -> 1118 | G79: =IFERROR(F79*(1-VLOOKUP(C79,ГОЛОВНА!K:L,2,0)), "-") -> 749.06
A80: 96510220 | B80: =VLOOKUP(A80,'DATA (2022)'!A:F,2,FALSE) -> Глиб.насос SQ 7-40 1.55kW 200-240V 50/6 | C80: =VLOOKUP(A80,'DATA (2022)'!A:F,4,FALSE) -> DC | F80: =VLOOKUP(A80,'DATA (2022)'!A:F,5,FALSE) -> 1424 | G80: =IFERROR(F80*(1-VLOOKUP(C80,ГОЛОВНА!K:L,2,0)), "-") -> 954.08
A81: 96160370 | B81: =VLOOKUP(A81,'DATA (2022)'!A:F,2,FALSE) -> Глиб.насос SQ 1-35 N 0.70kW 200-240V 50 | C81: =VLOOKUP(A81,'DATA (2022)'!A:F,4,FALSE) -> DC | F81: =VLOOKUP(A81,'DATA (2022)'!A:F,5,FALSE) -> 852 | G81: =IFERROR(F81*(1-VLOOKUP(C81,ГОЛОВНА!K:L,2,0)), "-") -> 570.84
A82: 96160371 | B82: =VLOOKUP(A82,'DATA (2022)'!A:F,2,FALSE) -> Глиб.насос SQ 1-50 N 0.70kW 200-240V 50 | C82: =VLOOKUP(A82,'DATA (2022)'!A:F,4,FALSE) -> DC | F82: =VLOOKUP(A82,'DATA (2022)'!A:F,5,FALSE) -> 921 | G82: =IFERROR(F82*(1-VLOOKUP(C82,ГОЛОВНА!K:L,2,0)), "-") -> 617.07
A83: 96160372 | B83: =VLOOKUP(A83,'DATA (2022)'!A:F,2,FALSE) -> Глиб.насос SQ 1-65 N 0.70kW 200-240V 50 | C83: =VLOOKUP(A83,'DATA (2022)'!A:F,4,FALSE) -> DC | F83: =VLOOKUP(A83,'DATA (2022)'!A:F,5,FALSE) -> 1026 | G83: =IFERROR(F83*(1-VLOOKUP(C83,ГОЛОВНА!K:L,2,0)), "-") -> 687.42
A84: 96160373 | B84: =VLOOKUP(A84,'DATA (2022)'!A:F,2,FALSE) -> Глиб.насос SQ 1-80 N 1.15kW 200-240V 50 | C84: =VLOOKUP(A84,'DATA (2022)'!A:F,4,FALSE) -> DC | F84: =VLOOKUP(A84,'DATA (2022)'!A:F,5,FALSE) -> 1196 | G84: =IFERROR(F84*(1-VLOOKUP(C84,ГОЛОВНА!K:L,2,0)), "-") -> 801.32
A85: 96160374 | B85: =VLOOKUP(A85,'DATA (2022)'!A:F,2,FALSE) -> Глиб.насос SQ 1-95 N 1.15kW 200-240V 50 | C85: =VLOOKUP(A85,'DATA (2022)'!A:F,4,FALSE) -> DC | F85: =VLOOKUP(A85,'DATA (2022)'!A:F,5,FALSE) -> 1245 | G85: =IFERROR(F85*(1-VLOOKUP(C85,ГОЛОВНА!K:L,2,0)), "-") -> 834.15
A86: 96160375 | B86: =VLOOKUP(A86,'DATA (2022)'!A:F,2,FALSE) -> Глиб.насос SQ 1-110 N 1.15kW 200-240V 5 | C86: =VLOOKUP(A86,'DATA (2022)'!A:F,4,FALSE) -> DC | F86: =VLOOKUP(A86,'DATA (2022)'!A:F,5,FALSE) -> 1295 | G86: =IFERROR(F86*(1-VLOOKUP(C86,ГОЛОВНА!K:L,2,0)), "-") -> 867.65
A87: 96160376 | B87: =VLOOKUP(A87,'DATA (2022)'!A:F,2,FALSE) -> Глиб.насос SQ 1-125 N 1.55kW 200-240V 5 | C87: =VLOOKUP(A87,'DATA (2022)'!A:F,4,FALSE) -> DC | F87: =VLOOKUP(A87,'DATA (2022)'!A:F,5,FALSE) -> 1543 | G87: =IFERROR(F87*(1-VLOOKUP(C87,ГОЛОВНА!K:L,2,0)), "-") -> 1033.81
A88: 96160377 | B88: =VLOOKUP(A88,'DATA (2022)'!A:F,2,FALSE) -> Глиб.насос SQ 1-140 N 1.55kW 200-240V 5 | C88: =VLOOKUP(A88,'DATA (2022)'!A:F,4,FALSE) -> DC | F88: =VLOOKUP(A88,'DATA (2022)'!A:F,5,FALSE) -> 1595 | G88: =IFERROR(F88*(1-VLOOKUP(C88,ГОЛОВНА!K:L,2,0)), "-") -> 1068.65
A89: 96160378 | B89: =VLOOKUP(A89,'DATA (2022)'!A:F,2,FALSE) -> Глиб.насос SQ 1-155 N 1.85kW 200-240V 5 | C89: =VLOOKUP(A89,'DATA (2022)'!A:F,4,FALSE) -> DC | F89: =VLOOKUP(A89,'DATA (2022)'!A:F,5,FALSE) -> 1644 | G89: =IFERROR(F89*(1-VLOOKUP(C89,ГОЛОВНА!K:L,2,0)), "-") -> 1101.48
A90: 96160379 | B90: =VLOOKUP(A90,'DATA (2022)'!A:F,2,FALSE) -> Глиб.насос SQ 2-35 N 0.70kW 200-240V 50 | C90: =VLOOKUP(A90,'DATA (2022)'!A:F,4,FALSE) -> DC | F90: =VLOOKUP(A90,'DATA (2022)'!A:F,5,FALSE) -> 881 | G90: =IFERROR(F90*(1-VLOOKUP(C90,ГОЛОВНА!K:L,2,0)), "-") -> 590.27
A91: 96160380 | B91: =VLOOKUP(A91,'DATA (2022)'!A:F,2,FALSE) -> Глиб.насос SQ 2-55 N 0.70kW 200-240V 50 | C91: =VLOOKUP(A91,'DATA (2022)'!A:F,4,FALSE) -> DC | F91: =VLOOKUP(A91,'DATA (2022)'!A:F,5,FALSE) -> 936 | G91: =IFERROR(F91*(1-VLOOKUP(C91,ГОЛОВНА!K:L,2,0)), "-") -> 627.12
A92: 96160381 | B92: =VLOOKUP(A92,'DATA (2022)'!A:F,2,FALSE) -> Глиб.насос SQ 2-70 N 1.15kW 200-240V 50 | C92: =VLOOKUP(A92,'DATA (2022)'!A:F,4,FALSE) -> DC | F92: =VLOOKUP(A92,'DATA (2022)'!A:F,5,FALSE) -> 1037 | G92: =IFERROR(F92*(1-VLOOKUP(C92,ГОЛОВНА!K:L,2,0)), "-") -> 694.79
A93: 96160382 | B93: =VLOOKUP(A93,'DATA (2022)'!A:F,2,FALSE) -> Глиб.насос SQ 2-85 N 1.15kW 200-240V 50 | C93: =VLOOKUP(A93,'DATA (2022)'!A:F,4,FALSE) -> DC | F93: =VLOOKUP(A93,'DATA (2022)'!A:F,5,FALSE) -> 1160 | G93: =IFERROR(F93*(1-VLOOKUP(C93,ГОЛОВНА!K:L,2,0)), "-") -> 777.2
A94: 96160383 | B94: =VLOOKUP(A94,'DATA (2022)'!A:F,2,FALSE) -> Глиб.насос SQ 2-100 N 1.55kW 200-240V 5 | C94: =VLOOKUP(A94,'DATA (2022)'!A:F,4,FALSE) -> DC | F94: =VLOOKUP(A94,'DATA (2022)'!A:F,5,FALSE) -> 1439 | G94: =IFERROR(F94*(1-VLOOKUP(C94,ГОЛОВНА!K:L,2,0)), "-") -> 964.13
A95: 96160384 | B95: =VLOOKUP(A95,'DATA (2022)'!A:F,2,FALSE) -> Глиб.насос SQ 2-115 N 1.85kW 200-240V 5 | C95: =VLOOKUP(A95,'DATA (2022)'!A:F,4,FALSE) -> DC | F95: =VLOOKUP(A95,'DATA (2022)'!A:F,5,FALSE) -> 1490 | G95: =IFERROR(F95*(1-VLOOKUP(C95,ГОЛОВНА!K:L,2,0)), "-") -> 998.3
A96: 96160386 | B96: =VLOOKUP(A96,'DATA (2022)'!A:F,2,FALSE) -> Глиб.насос SQ 3-30 N 0.70kW 200-240V 50 | C96: =VLOOKUP(A96,'DATA (2022)'!A:F,4,FALSE) -> DC | F96: =VLOOKUP(A96,'DATA (2022)'!A:F,5,FALSE) -> 847 | G96: =IFERROR(F96*(1-VLOOKUP(C96,ГОЛОВНА!K:L,2,0)), "-") -> 567.49
A97: 96160387 | B97: =VLOOKUP(A97,'DATA (2022)'!A:F,2,FALSE) -> Глиб.насос SQ 3-40 N 0.70kW 200-240V 50 | C97: =VLOOKUP(A97,'DATA (2022)'!A:F,4,FALSE) -> DC | F97: =VLOOKUP(A97,'DATA (2022)'!A:F,5,FALSE) -> 896 | G97: =IFERROR(F97*(1-VLOOKUP(C97,ГОЛОВНА!K:L,2,0)), "-") -> 600.32
A98: 96160388 | B98: =VLOOKUP(A98,'DATA (2022)'!A:F,2,FALSE) -> Глиб.насос SQ 3-55 N 1.15kW 200-240V 50 | C98: =VLOOKUP(A98,'DATA (2022)'!A:F,4,FALSE) -> DC | F98: =VLOOKUP(A98,'DATA (2022)'!A:F,5,FALSE) -> 1037 | G98: =IFERROR(F98*(1-VLOOKUP(C98,ГОЛОВНА!K:L,2,0)), "-") -> 694.79
A99: 96160389 | B99: =VLOOKUP(A99,'DATA (2022)'!A:F,2,FALSE) -> Глиб.насос SQ 3-65 N 1.05kW 200-240V 50 | C99: =VLOOKUP(A99,'DATA (2022)'!A:F,4,FALSE) -> DC | F99: =VLOOKUP(A99,'DATA (2022)'!A:F,5,FALSE) -> 1160 | G99: =IFERROR(F99*(1-VLOOKUP(C99,ГОЛОВНА!K:L,2,0)), "-") -> 777.2
A100: 96160390 | B100: =VLOOKUP(A100,'DATA (2022)'!A:F,2,FALSE) -> Глиб.насос SQ 3-80 N 1.55kW 200-240V 50 | C100: =VLOOKUP(A100,'DATA (2022)'!A:F,4,FALSE) -> DC | F100: =VLOOKUP(A100,'DATA (2022)'!A:F,5,FALSE) -> 1439 | G100: =IFERROR(F100*(1-VLOOKUP(C100,ГОЛОВНА!K:L,2,0)), "-") -> 964.13
A101: 96160391 | B101: =VLOOKUP(A101,'DATA (2022)'!A:F,2,FALSE) -> Глиб.насос SQ 3-95 N 1.55kW 200-240V 50 | C101: =VLOOKUP(A101,'DATA (2022)'!A:F,4,FALSE) -> DC | F101: =VLOOKUP(A101,'DATA (2022)'!A:F,5,FALSE) -> 1490 | G101: =IFERROR(F101*(1-VLOOKUP(C101,ГОЛОВНА!K:L,2,0)), "-") -> 998.3
A102: 96160392 | B102: =VLOOKUP(A102,'DATA (2022)'!A:F,2,FALSE) -> Глиб.насос SQ 3-105 N 1.85kW 200-240V 5 | C102: =VLOOKUP(A102,'DATA (2022)'!A:F,4,FALSE) -> DC | F102: =VLOOKUP(A102,'DATA (2022)'!A:F,5,FALSE) -> 1540 | G102: =IFERROR(F102*(1-VLOOKUP(C102,ГОЛОВНА!K:L,2,0)), "-") -> 1031.8
A103: 96160393 | B103: =VLOOKUP(A103,'DATA (2022)'!A:F,2,FALSE) -> Глиб.насос SQ 5-15 N 0.70kW 200-240V 50 | C103: =VLOOKUP(A103,'DATA (2022)'!A:F,4,FALSE) -> DC | F103: =VLOOKUP(A103,'DATA (2022)'!A:F,5,FALSE) -> 837 | G103: =IFERROR(F103*(1-VLOOKUP(C103,ГОЛОВНА!K:L,2,0)), "-") -> 560.79
A104: 96160394 | B104: =VLOOKUP(A104,'DATA (2022)'!A:F,2,FALSE) -> Глиб.насос SQ 5-25 N 0.70kW 200-240V 50 | C104: =VLOOKUP(A104,'DATA (2022)'!A:F,4,FALSE) -> DC | F104: =VLOOKUP(A104,'DATA (2022)'!A:F,5,FALSE) -> 871 | G104: =IFERROR(F104*(1-VLOOKUP(C104,ГОЛОВНА!K:L,2,0)), "-") -> 583.57
A105: 96160395 | B105: =VLOOKUP(A105,'DATA (2022)'!A:F,2,FALSE) -> Глиб.насос SQ 5-35 N 1.15kW 200-240V 50 | C105: =VLOOKUP(A105,'DATA (2022)'!A:F,4,FALSE) -> DC | F105: =VLOOKUP(A105,'DATA (2022)'!A:F,5,FALSE) -> 1037 | G105: =IFERROR(F105*(1-VLOOKUP(C105,ГОЛОВНА!K:L,2,0)), "-") -> 694.79
A106: 96160396 | B106: =VLOOKUP(A106,'DATA (2022)'!A:F,2,FALSE) -> Глиб.насос SQ 5-50 N 1.55kW 200-240V 50 | C106: =VLOOKUP(A106,'DATA (2022)'!A:F,4,FALSE) -> DC | F106: =VLOOKUP(A106,'DATA (2022)'!A:F,5,FALSE) -> 1156 | G106: =IFERROR(F106*(1-VLOOKUP(C106,ГОЛОВНА!K:L,2,0)), "-") -> 774.52
A107: 96160397 | B107: =VLOOKUP(A107,'DATA (2022)'!A:F,2,FALSE) -> Глиб.насос SQ 5-60 N 1.55kW 200-240V 50 | C107: =VLOOKUP(A107,'DATA (2022)'!A:F,4,FALSE) -> DC | F107: =VLOOKUP(A107,'DATA (2022)'!A:F,5,FALSE) -> 1490 | G107: =IFERROR(F107*(1-VLOOKUP(C107,ГОЛОВНА!K:L,2,0)), "-") -> 998.3
A108: 96160398 | B108: =VLOOKUP(A108,'DATA (2022)'!A:F,2,FALSE) -> Глиб.насос SQ 5-70 N 1.85kW 200-240V 50 | C108: =VLOOKUP(A108,'DATA (2022)'!A:F,4,FALSE) -> DC | F108: =VLOOKUP(A108,'DATA (2022)'!A:F,5,FALSE) -> 1540 | G108: =IFERROR(F108*(1-VLOOKUP(C108,ГОЛОВНА!K:L,2,0)), "-") -> 1031.8
A109: 96160399 | B109: =VLOOKUP(A109,'DATA (2022)'!A:F,2,FALSE) -> Глиб.насос SQ 7-15 N 0.70kW 200-240V 50 | C109: =VLOOKUP(A109,'DATA (2022)'!A:F,4,FALSE) -> DC | F109: =VLOOKUP(A109,'DATA (2022)'!A:F,5,FALSE) -> 1147 | G109: =IFERROR(F109*(1-VLOOKUP(C109,ГОЛОВНА!K:L,2,0)), "-") -> 768.49
A110: 96160400 | B110: =VLOOKUP(A110,'DATA (2022)'!A:F,2,FALSE) -> Глиб.насос SQ 7-30 N 1.15kW 200-240V 50 | C110: =VLOOKUP(A110,'DATA (2022)'!A:F,4,FALSE) -> DC | F110: =VLOOKUP(A110,'DATA (2022)'!A:F,5,FALSE) -> 1245 | G110: =IFERROR(F110*(1-VLOOKUP(C110,ГОЛОВНА!K:L,2,0)), "-") -> 834.15
A111: 96160401 | B111: =VLOOKUP(A111,'DATA (2022)'!A:F,2,FALSE) -> Глиб.насос SQ 7-40 N 1.55kW 200-240V 50 | C111: =VLOOKUP(A111,'DATA (2022)'!A:F,4,FALSE) -> DC | F111: =VLOOKUP(A111,'DATA (2022)'!A:F,5,FALSE) -> 1595 | G111: =IFERROR(F111*(1-VLOOKUP(C111,ГОЛОВНА!K:L,2,0)), "-") -> 1068.65
B113: Аксесуари
A114: 96524504 | B114: =VLOOKUP(A114,'DATA (2022)'!A:F,2,FALSE) -> Комплект пост. тиску без насоса SQE | C114: =VLOOKUP(A114,'DATA (2022)'!A:F,4,FALSE) -> DC | D114: FT | F114: =VLOOKUP(A114,'DATA (2022)'!A:F,5,FALSE) -> 796 | G114: =IFERROR(F114*(1-VLOOKUP(C114,ГОЛОВНА!K:L,2,0)), "-") -> 533.32
A115: 00ID8952 | B115: =VLOOKUP(A115,'DATA (2022)'!A:F,2,FALSE) -> Реле тиску FF4-4 DAY 0,22-4 bar | C115: =VLOOKUP(A115,'DATA (2022)'!A:F,4,FALSE) -> CW | D115: S | F115: =VLOOKUP(A115,'DATA (2022)'!A:F,5,FALSE) -> 86 | G115: =IFERROR(F115*(1-VLOOKUP(C115,ГОЛОВНА!K:L,2,0)), "-") -> 59.34
A116: 00ID8953 | B116: =VLOOKUP(A116,'DATA (2022)'!A:F,2,FALSE) -> Реле тиску FF4-8 DAY 0,5-8 bar | C116: =VLOOKUP(A116,'DATA (2022)'!A:F,4,FALSE) -> CW | D116: S | F116: =VLOOKUP(A116,'DATA (2022)'!A:F,5,FALSE) -> 86 | G116: =IFERROR(F116*(1-VLOOKUP(C116,ГОЛОВНА!K:L,2,0)), "-") -> 59.34
A117: 00ID8954 | B117: =VLOOKUP(A117,'DATA (2022)'!A:F,2,FALSE) -> Реле тиску FF4-16 DAY 1-16 bar | C117: =VLOOKUP(A117,'DATA (2022)'!A:F,4,FALSE) -> CW | D117: S | F117: =VLOOKUP(A117,'DATA (2022)'!A:F,5,FALSE) -> 119 | G117: =IFERROR(F117*(1-VLOOKUP(C117,ГОЛОВНА!K:L,2,0)), "-") -> 82.11
A118: 96021473 | B118: =VLOOKUP(A118,'DATA (2022)'!A:F,2,FALSE) -> Термоусадкова муфта 3х1,5-6мм2 | C118: =VLOOKUP(A118,'DATA (2022)'!A:F,4,FALSE) -> DC | F118: =VLOOKUP(A118,'DATA (2022)'!A:F,5,FALSE) -> 48 | G118: =IFERROR(F118*(1-VLOOKUP(C118,ГОЛОВНА!K:L,2,0)), "-") -> 32.16
A119: 96436753 | B119: =VLOOKUP(A119,'DATA (2022)'!A:F,2,FALSE) -> Блок керування CU301 в зборі | C119: =VLOOKUP(A119,'DATA (2022)'!A:F,4,FALSE) -> DC | F119: =VLOOKUP(A119,'DATA (2022)'!A:F,5,FALSE) -> 378 | G119: =IFERROR(F119*(1-VLOOKUP(C119,ГОЛОВНА!K:L,2,0)), "-") -> 253.26
A120: 97512995 | B120: =VLOOKUP(A120,'DATA (2022)'!A:F,2,FALSE) -> Накладні хомути (2шт.) D68/D88 | C120: =VLOOKUP(A120,'DATA (2022)'!A:F,4,FALSE) -> DC | F120: =VLOOKUP(A120,'DATA (2022)'!A:F,5,FALSE) -> 109 | G120: =IFERROR(F120*(1-VLOOKUP(C120,ГОЛОВНА!K:L,2,0)), "-") -> 73.03
A121: 98148594 | B121: =VLOOKUP(A121,'DATA (2022)'!A:F,2,FALSE) -> Кожух охолодження SQ/SQE | C121: =VLOOKUP(A121,'DATA (2022)'!A:F,4,FALSE) -> DC | F121: =VLOOKUP(A121,'DATA (2022)'!A:F,5,FALSE) -> 347 | G121: =IFERROR(F121*(1-VLOOKUP(C121,ГОЛОВНА!K:L,2,0)), "-") -> 232.49
A122: 00ID7946 | B122: =VLOOKUP(A122,'DATA (2022)'!A:F,2,FALSE) -> Кабель для питної води 3x1.5 мм2 | C122: =VLOOKUP(A122,'DATA (2022)'!A:F,4,FALSE) -> WS | F122: =VLOOKUP(A122,'DATA (2022)'!A:F,5,FALSE) -> 3 | G122: =IFERROR(F122*(1-VLOOKUP(C122,ГОЛОВНА!K:L,2,0)), "-") -> 2.22
A123: 00ID7947 | B123: =VLOOKUP(A123,'DATA (2022)'!A:F,2,FALSE) -> Кабель для питної води 3x2.5 мм2 | C123: =VLOOKUP(A123,'DATA (2022)'!A:F,4,FALSE) -> WS | F123: =VLOOKUP(A123,'DATA (2022)'!A:F,5,FALSE) -> 6 | G123: =IFERROR(F123*(1-VLOOKUP(C123,ГОЛОВНА!K:L,2,0)), "-") -> 4.44
A125: SP, SP-NE, SPE | G125: Глибинні насоси для професійного водопостачання
A126: 98779739 | B126: =VLOOKUP(A126,'DATA (2022)'!A:F,2,FALSE) -> Глиб.насос SP9-10 Rp2 4"3X380-415/50 2.2 | C126: =VLOOKUP(A126,'DATA (2022)'!A:F,4,FALSE) -> CW | F126: =VLOOKUP(A126,'DATA (2022)'!A:F,5,FALSE) -> 1777 | G126: =IFERROR(F126*(1-VLOOKUP(C126,ГОЛОВНА!K:L,2,0)), "-") -> 1226.13
A127: 98699312 | B127: =VLOOKUP(A127,'DATA (2022)'!A:F,2,FALSE) -> Глиб.насос SP11- 3 Rp2 4"3X380-415/50 0. | C127: =VLOOKUP(A127,'DATA (2022)'!A:F,4,FALSE) -> CW | F127: =VLOOKUP(A127,'DATA (2022)'!A:F,5,FALSE) -> 958 | G127: =IFERROR(F127*(1-VLOOKUP(C127,ГОЛОВНА!K:L,2,0)), "-") -> 661.02
A128: 98699313 | B128: =VLOOKUP(A128,'DATA (2022)'!A:F,2,FALSE) -> Глиб.насос SP11- 5 Rp2 4"3X380-415/50 1. | C128: =VLOOKUP(A128,'DATA (2022)'!A:F,4,FALSE) -> CW | F128: =VLOOKUP(A128,'DATA (2022)'!A:F,5,FALSE) -> 1181 | G128: =IFERROR(F128*(1-VLOOKUP(C128,ГОЛОВНА!K:L,2,0)), "-") -> 814.89
A129: 98699315 | B129: =VLOOKUP(A129,'DATA (2022)'!A:F,2,FALSE) -> Глиб.насос SP11-11 Rp2 4"3X380-415/50 2. | C129: =VLOOKUP(A129,'DATA (2022)'!A:F,4,FALSE) -> CW | F129: =VLOOKUP(A129,'DATA (2022)'!A:F,5,FALSE) -> 1893 | G129: =IFERROR(F129*(1-VLOOKUP(C129,ГОЛОВНА!K:L,2,0)), "-") -> 1306.17
A130: 98699317 | B130: =VLOOKUP(A130,'DATA (2022)'!A:F,2,FALSE) -> Глиб.насос SP11-20 Rp2 4"3X380-415/50 4. | C130: =VLOOKUP(A130,'DATA (2022)'!A:F,4,FALSE) -> CW | F130: =VLOOKUP(A130,'DATA (2022)'!A:F,5,FALSE) -> За запитом | G130: =IFERROR(F130*(1-VLOOKUP(C130,ГОЛОВНА!K:L,2,0)), "-") -> -
A131: 98699293 | B131: =VLOOKUP(A131,'DATA (2022)'!A:F,2,FALSE) -> Глиб.насос SP11- 3 Rp2 4"1X230/50 0.75kW | C131: =VLOOKUP(A131,'DATA (2022)'!A:F,4,FALSE) -> CW | F131: =VLOOKUP(A131,'DATA (2022)'!A:F,5,FALSE) -> 958 | G131: =IFERROR(F131*(1-VLOOKUP(C131,ГОЛОВНА!K:L,2,0)), "-") -> 661.02
A132: 98699321 | B132: =VLOOKUP(A132,'DATA (2022)'!A:F,2,FALSE) -> Глиб.насос SP11- 3N Rp2 4"3X380-415/50 0 | C132: =VLOOKUP(A132,'DATA (2022)'!A:F,4,FALSE) -> CW | F132: =VLOOKUP(A132,'DATA (2022)'!A:F,5,FALSE) -> 2277 | G132: =IFERROR(F132*(1-VLOOKUP(C132,ГОЛОВНА!K:L,2,0)), "-") -> 1571.13
A133: 98699294 | B133: =VLOOKUP(A133,'DATA (2022)'!A:F,2,FALSE) -> Глиб.насос SP11- 5 Rp2 4"1X230/50 1.10kW | C133: =VLOOKUP(A133,'DATA (2022)'!A:F,4,FALSE) -> CW | F133: =VLOOKUP(A133,'DATA (2022)'!A:F,5,FALSE) -> 1181 | G133: =IFERROR(F133*(1-VLOOKUP(C133,ГОЛОВНА!K:L,2,0)), "-") -> 814.89
A134: 98699322 | B134: =VLOOKUP(A134,'DATA (2022)'!A:F,2,FALSE) -> Глиб.насос SP11- 5N Rp2 4"3X380-415/50 1 | C134: =VLOOKUP(A134,'DATA (2022)'!A:F,4,FALSE) -> CW | F134: =VLOOKUP(A134,'DATA (2022)'!A:F,5,FALSE) -> 2564 | G134: =IFERROR(F134*(1-VLOOKUP(C134,ГОЛОВНА!K:L,2,0)), "-") -> 1769.16
A135: 98699295 | B135: =VLOOKUP(A135,'DATA (2022)'!A:F,2,FALSE) -> Глиб.насос SP11- 7 Rp2 4"1X230/50 1.5kW | C135: =VLOOKUP(A135,'DATA (2022)'!A:F,4,FALSE) -> CW | F135: =VLOOKUP(A135,'DATA (2022)'!A:F,5,FALSE) -> 1424 | G135: =IFERROR(F135*(1-VLOOKUP(C135,ГОЛОВНА!K:L,2,0)), "-") -> 982.56
A136: 98699314 | B136: =VLOOKUP(A136,'DATA (2022)'!A:F,2,FALSE) -> Глиб.насос SP11- 7 Rp2 4"3X380-415/50 1. | C136: =VLOOKUP(A136,'DATA (2022)'!A:F,4,FALSE) -> CW | F136: =VLOOKUP(A136,'DATA (2022)'!A:F,5,FALSE) -> 1424 | G136: =IFERROR(F136*(1-VLOOKUP(C136,ГОЛОВНА!K:L,2,0)), "-") -> 982.56
A137: 98699323 | B137: =VLOOKUP(A137,'DATA (2022)'!A:F,2,FALSE) -> Глиб.насос SP11- 7N Rp2 4"3X380-415/50 1 | C137: =VLOOKUP(A137,'DATA (2022)'!A:F,4,FALSE) -> CW | F137: =VLOOKUP(A137,'DATA (2022)'!A:F,5,FALSE) -> 2832 | G137: =IFERROR(F137*(1-VLOOKUP(C137,ГОЛОВНА!K:L,2,0)), "-") -> 1954.08
A138: 98699296 | B138: =VLOOKUP(A138,'DATA (2022)'!A:F,2,FALSE) -> Глиб.насос SP11-11 Rp2 4"1X220-230/50 2. | C138: =VLOOKUP(A138,'DATA (2022)'!A:F,4,FALSE) -> CW | F138: =VLOOKUP(A138,'DATA (2022)'!A:F,5,FALSE) -> 2208 | G138: =IFERROR(F138*(1-VLOOKUP(C138,ГОЛОВНА!K:L,2,0)), "-") -> 1523.52
A139: 98699324 | B139: =VLOOKUP(A139,'DATA (2022)'!A:F,2,FALSE) -> Глиб.насос SP11-11N Rp2 4"3X380-415/50 2 | C139: =VLOOKUP(A139,'DATA (2022)'!A:F,4,FALSE) -> CW | F139: =VLOOKUP(A139,'DATA (2022)'!A:F,5,FALSE) -> За запитом | G139: =IFERROR(F139*(1-VLOOKUP(C139,ГОЛОВНА!K:L,2,0)), "-") -> -
A140: 98699316 | B140: =VLOOKUP(A140,'DATA (2022)'!A:F,2,FALSE) -> Глиб.насос SP11-15 Rp2 4"3X380-415/50 3. | C140: =VLOOKUP(A140,'DATA (2022)'!A:F,4,FALSE) -> CW | F140: =VLOOKUP(A140,'DATA (2022)'!A:F,5,FALSE) -> 2600 | G140: =IFERROR(F140*(1-VLOOKUP(C140,ГОЛОВНА!K:L,2,0)), "-") -> 1794
A141: 98699325 | B141: =VLOOKUP(A141,'DATA (2022)'!A:F,2,FALSE) -> Глиб.насос SP11-15N Rp2 4"3X380-415/50 3 | C141: =VLOOKUP(A141,'DATA (2022)'!A:F,4,FALSE) -> CW | F141: =VLOOKUP(A141,'DATA (2022)'!A:F,5,FALSE) -> За запитом | G141: =IFERROR(F141*(1-VLOOKUP(C141,ГОЛОВНА!K:L,2,0)), "-") -> -
A142: 98699318 | B142: =VLOOKUP(A142,'DATA (2022)'!A:F,2,FALSE) -> Глиб.насос SP11-24 Rp2 4"3X380-415/50 5. | C142: =VLOOKUP(A142,'DATA (2022)'!A:F,4,FALSE) -> CW | F142: =VLOOKUP(A142,'DATA (2022)'!A:F,5,FALSE) -> За запитом | G142: =IFERROR(F142*(1-VLOOKUP(C142,ГОЛОВНА!K:L,2,0)), "-") -> -
A143: 98699336 | B143: =VLOOKUP(A143,'DATA (2022)'!A:F,2,FALSE) -> Глиб.насос SP14- 4 Rp2 4"1X230/50 1.10kW | C143: =VLOOKUP(A143,'DATA (2022)'!A:F,4,FALSE) -> CW | F143: =VLOOKUP(A143,'DATA (2022)'!A:F,5,FALSE) -> 1098 | G143: =IFERROR(F143*(1-VLOOKUP(C143,ГОЛОВНА!K:L,2,0)), "-") -> 757.62
A144: 98699353 | B144: =VLOOKUP(A144,'DATA (2022)'!A:F,2,FALSE) -> Глиб.насос SP14- 4 Rp2 4"3X380-415/50 1. | C144: =VLOOKUP(A144,'DATA (2022)'!A:F,4,FALSE) -> CW | F144: =VLOOKUP(A144,'DATA (2022)'!A:F,5,FALSE) -> 1098 | G144: =IFERROR(F144*(1-VLOOKUP(C144,ГОЛОВНА!K:L,2,0)), "-") -> 757.62
A145: 98699362 | B145: =VLOOKUP(A145,'DATA (2022)'!A:F,2,FALSE) -> Глиб.насос SP14- 4N Rp2 4"3X380-415/50 1 | C145: =VLOOKUP(A145,'DATA (2022)'!A:F,4,FALSE) -> CW | F145: =VLOOKUP(A145,'DATA (2022)'!A:F,5,FALSE) -> 2426 | G145: =IFERROR(F145*(1-VLOOKUP(C145,ГОЛОВНА!K:L,2,0)), "-") -> 1673.94
A146: 98699337 | B146: =VLOOKUP(A146,'DATA (2022)'!A:F,2,FALSE) -> Глиб.насос SP14- 6 Rp2 4"1X230/50 1.5kW | C146: =VLOOKUP(A146,'DATA (2022)'!A:F,4,FALSE) -> CW | F146: =VLOOKUP(A146,'DATA (2022)'!A:F,5,FALSE) -> 1350 | G146: =IFERROR(F146*(1-VLOOKUP(C146,ГОЛОВНА!K:L,2,0)), "-") -> 931.5
A147: 98699354 | B147: =VLOOKUP(A147,'DATA (2022)'!A:F,2,FALSE) -> Глиб.насос SP14- 6 Rp2 4"3X380-415/50 1. | C147: =VLOOKUP(A147,'DATA (2022)'!A:F,4,FALSE) -> CW | F147: =VLOOKUP(A147,'DATA (2022)'!A:F,5,FALSE) -> 1350 | G147: =IFERROR(F147*(1-VLOOKUP(C147,ГОЛОВНА!K:L,2,0)), "-") -> 931.5
A148: 98699363 | B148: =VLOOKUP(A148,'DATA (2022)'!A:F,2,FALSE) -> Глиб.насос SP14- 6N Rp2 4"3X380-415/50 1 | C148: =VLOOKUP(A148,'DATA (2022)'!A:F,4,FALSE) -> CW | F148: =VLOOKUP(A148,'DATA (2022)'!A:F,5,FALSE) -> 2710 | G148: =IFERROR(F148*(1-VLOOKUP(C148,ГОЛОВНА!K:L,2,0)), "-") -> 1869.9
A149: 98699338 | B149: =VLOOKUP(A149,'DATA (2022)'!A:F,2,FALSE) -> Глиб.насос SP14- 8 Rp2 4"1X220-230/50 2. | C149: =VLOOKUP(A149,'DATA (2022)'!A:F,4,FALSE) -> CW | F149: =VLOOKUP(A149,'DATA (2022)'!A:F,5,FALSE) -> 1957 | G149: =IFERROR(F149*(1-VLOOKUP(C149,ГОЛОВНА!K:L,2,0)), "-") -> 1350.33
A150: 98699355 | B150: =VLOOKUP(A150,'DATA (2022)'!A:F,2,FALSE) -> Глиб.насос SP14- 8 Rp2 4"3X380-415/50 2. | C150: =VLOOKUP(A150,'DATA (2022)'!A:F,4,FALSE) -> CW | F150: =VLOOKUP(A150,'DATA (2022)'!A:F,5,FALSE) -> 1647 | G150: =IFERROR(F150*(1-VLOOKUP(C150,ГОЛОВНА!K:L,2,0)), "-") -> 1136.43
A151: 98699364 | B151: =VLOOKUP(A151,'DATA (2022)'!A:F,2,FALSE) -> Глиб.насос SP14- 8N Rp2 4"3X380-415/50 2 | C151: =VLOOKUP(A151,'DATA (2022)'!A:F,4,FALSE) -> CW | F151: =VLOOKUP(A151,'DATA (2022)'!A:F,5,FALSE) -> 3013 | G151: =IFERROR(F151*(1-VLOOKUP(C151,ГОЛОВНА!K:L,2,0)), "-") -> 2078.97
A152: 98699365 | B152: =VLOOKUP(A152,'DATA (2022)'!A:F,2,FALSE) -> Глиб.насос SP14-11N Rp2 4"3X380-415/50 3 | C152: =VLOOKUP(A152,'DATA (2022)'!A:F,4,FALSE) -> CW | F152: =VLOOKUP(A152,'DATA (2022)'!A:F,5,FALSE) -> За запитом | G152: =IFERROR(F152*(1-VLOOKUP(C152,ГОЛОВНА!K:L,2,0)), "-") -> -
A153: 98699357 | B153: =VLOOKUP(A153,'DATA (2022)'!A:F,2,FALSE) -> Глиб.насос SP14-13 Rp2 4"3X380-415/50 3. | C153: =VLOOKUP(A153,'DATA (2022)'!A:F,4,FALSE) -> CW | F153: =VLOOKUP(A153,'DATA (2022)'!A:F,5,FALSE) -> 2459 | G153: =IFERROR(F153*(1-VLOOKUP(C153,ГОЛОВНА!K:L,2,0)), "-") -> 1696.71
A154: 98699366 | B154: =VLOOKUP(A154,'DATA (2022)'!A:F,2,FALSE) -> Глиб.насос SP14-13N Rp2 4"3X380-415/50 3 | C154: =VLOOKUP(A154,'DATA (2022)'!A:F,4,FALSE) -> CW | F154: =VLOOKUP(A154,'DATA (2022)'!A:F,5,FALSE) -> За запитом | G154: =IFERROR(F154*(1-VLOOKUP(C154,ГОЛОВНА!K:L,2,0)), "-") -> -
A155: 98699358 | B155: =VLOOKUP(A155,'DATA (2022)'!A:F,2,FALSE) -> Глиб.насос SP14-15 Rp2 4"3X380-415/50 4. | C155: =VLOOKUP(A155,'DATA (2022)'!A:F,4,FALSE) -> CW | F155: =VLOOKUP(A155,'DATA (2022)'!A:F,5,FALSE) -> 2773 | G155: =IFERROR(F155*(1-VLOOKUP(C155,ГОЛОВНА!K:L,2,0)), "-") -> 1913.37
A156: 98699359 | B156: =VLOOKUP(A156,'DATA (2022)'!A:F,2,FALSE) -> Глиб.насос SP14-17 Rp2 4"3X380-415/50 4. | C156: =VLOOKUP(A156,'DATA (2022)'!A:F,4,FALSE) -> CW | F156: =VLOOKUP(A156,'DATA (2022)'!A:F,5,FALSE) -> 2952 | G156: =IFERROR(F156*(1-VLOOKUP(C156,ГОЛОВНА!K:L,2,0)), "-") -> 2036.88
A157: 98699360 | B157: =VLOOKUP(A157,'DATA (2022)'!A:F,2,FALSE) -> Глиб.насос SP14-20 Rp2 4"3X380-415/50 5. | C157: =VLOOKUP(A157,'DATA (2022)'!A:F,4,FALSE) -> CW | F157: =VLOOKUP(A157,'DATA (2022)'!A:F,5,FALSE) -> За запитом | G157: =IFERROR(F157*(1-VLOOKUP(C157,ГОЛОВНА!K:L,2,0)), "-") -> -
A158: 98699371 | B158: =VLOOKUP(A158,'DATA (2022)'!A:F,2,FALSE) -> Глиб.насос SP14-20 Rp2 6"3X380-415/50 5. | C158: =VLOOKUP(A158,'DATA (2022)'!A:F,4,FALSE) -> CW | F158: =VLOOKUP(A158,'DATA (2022)'!A:F,5,FALSE) -> За запитом | G158: =IFERROR(F158*(1-VLOOKUP(C158,ГОЛОВНА!K:L,2,0)), "-") -> -
A159: 98699361 | B159: =VLOOKUP(A159,'DATA (2022)'!A:F,2,FALSE) -> Глиб.насос SP14-23 Rp2 4"3X380-415/50 5. | C159: =VLOOKUP(A159,'DATA (2022)'!A:F,4,FALSE) -> CW | F159: =VLOOKUP(A159,'DATA (2022)'!A:F,5,FALSE) -> За запитом | G159: =IFERROR(F159*(1-VLOOKUP(C159,ГОЛОВНА!K:L,2,0)), "-") -> -
A160: 12A02104 | B160: =VLOOKUP(A160,'DATA (2022)'!A:F,2,FALSE) -> Глиб.насос SP17- 4 Rp2½ 4"1X220-230/50 2 | C160: =VLOOKUP(A160,'DATA (2022)'!A:F,4,FALSE) -> WS | F160: =VLOOKUP(A160,'DATA (2022)'!A:F,5,FALSE) -> 2188 | G160: =IFERROR(F160*(1-VLOOKUP(C160,ГОЛОВНА!K:L,2,0)), "-") -> 1619.12
A161: 08001K09 | B161: =VLOOKUP(A161,'DATA (2022)'!A:F,2,FALSE) -> Глиб.насос SP1A- 9 0.37kW 380-4 | C161: =VLOOKUP(A161,'DATA (2022)'!A:F,4,FALSE) -> CW | F161: =VLOOKUP(A161,'DATA (2022)'!A:F,5,FALSE) -> 815 | G161: =IFERROR(F161*(1-VLOOKUP(C161,ГОЛОВНА!K:L,2,0)), "-") -> 562.35
A162: 08001K14 | B162: =VLOOKUP(A162,'DATA (2022)'!A:F,2,FALSE) -> Глиб.насос SP1A-14 0.37kW 380-4 | C162: =VLOOKUP(A162,'DATA (2022)'!A:F,4,FALSE) -> CW | F162: =VLOOKUP(A162,'DATA (2022)'!A:F,5,FALSE) -> 908 | G162: =IFERROR(F162*(1-VLOOKUP(C162,ГОЛОВНА!K:L,2,0)), "-") -> 626.52
A163: 09001K06 | B163: =VLOOKUP(A163,'DATA (2022)'!A:F,2,FALSE) -> Глиб.насос SP2A- 6 0.37kW 380-4 | C163: =VLOOKUP(A163,'DATA (2022)'!A:F,4,FALSE) -> CW | D163: FT | F163: =VLOOKUP(A163,'DATA (2022)'!A:F,5,FALSE) -> 792 | G163: =IFERROR(F163*(1-VLOOKUP(C163,ГОЛОВНА!K:L,2,0)), "-") -> 546.48
A164: 09001K09 | B164: =VLOOKUP(A164,'DATA (2022)'!A:F,2,FALSE) -> Глиб.насос SP2A- 9 0.37kW 380-4 | C164: =VLOOKUP(A164,'DATA (2022)'!A:F,4,FALSE) -> CW | D164: FT | F164: =VLOOKUP(A164,'DATA (2022)'!A:F,5,FALSE) -> 833 | G164: =IFERROR(F164*(1-VLOOKUP(C164,ГОЛОВНА!K:L,2,0)), "-") -> 574.77
A165: 09001K13 | B165: =VLOOKUP(A165,'DATA (2022)'!A:F,2,FALSE) -> Глиб.насос SP2A-13 0.55kW 380-4 | C165: =VLOOKUP(A165,'DATA (2022)'!A:F,4,FALSE) -> CW | D165: FT | F165: =VLOOKUP(A165,'DATA (2022)'!A:F,5,FALSE) -> 918 | G165: =IFERROR(F165*(1-VLOOKUP(C165,ГОЛОВНА!K:L,2,0)), "-") -> 633.42
A166: 9007513 | B166: =VLOOKUP(A166,'DATA (2022)'!A:F,2,FALSE) -> Глиб.насос SP2A-13 0.55kW 1x220-2 | C166: =VLOOKUP(A166,'DATA (2022)'!A:F,4,FALSE) -> CW | F166: =VLOOKUP(A166,'DATA (2022)'!A:F,5,FALSE) -> 932 | G166: =IFERROR(F166*(1-VLOOKUP(C166,ГОЛОВНА!K:L,2,0)), "-") -> 643.08
A167: 09001K18 | B167: =VLOOKUP(A167,'DATA (2022)'!A:F,2,FALSE) -> Глиб.насос SP2A-18 0.75kW 380-4 | C167: =VLOOKUP(A167,'DATA (2022)'!A:F,4,FALSE) -> CW | D167: FT | F167: =VLOOKUP(A167,'DATA (2022)'!A:F,5,FALSE) -> 1011 | G167: =IFERROR(F167*(1-VLOOKUP(C167,ГОЛОВНА!K:L,2,0)), "-") -> 697.59
A168: 09001K23 | B168: =VLOOKUP(A168,'DATA (2022)'!A:F,2,FALSE) -> Глиб.насос SP2A-23 1.1kW 380-4 | C168: =VLOOKUP(A168,'DATA (2022)'!A:F,4,FALSE) -> CW | F168: =VLOOKUP(A168,'DATA (2022)'!A:F,5,FALSE) -> 1143 | G168: =IFERROR(F168*(1-VLOOKUP(C168,ГОЛОВНА!K:L,2,0)), "-") -> 788.67
A169: 09001K28 | B169: =VLOOKUP(A169,'DATA (2022)'!A:F,2,FALSE) -> Глиб.насос SP2A-28 1.5kW 380-415V | C169: =VLOOKUP(A169,'DATA (2022)'!A:F,4,FALSE) -> CW | F169: =VLOOKUP(A169,'DATA (2022)'!A:F,5,FALSE) -> 1283 | G169: =IFERROR(F169*(1-VLOOKUP(C169,ГОЛОВНА!K:L,2,0)), "-") -> 885.27
A170: 09001K33 | B170: =VLOOKUP(A170,'DATA (2022)'!A:F,2,FALSE) -> Глиб.насос SP2A-33 1,5kW 380-4 | C170: =VLOOKUP(A170,'DATA (2022)'!A:F,4,FALSE) -> CW | F170: =VLOOKUP(A170,'DATA (2022)'!A:F,5,FALSE) -> 1351 | G170: =IFERROR(F170*(1-VLOOKUP(C170,ГОЛОВНА!K:L,2,0)), "-") -> 932.19
A171: 09101K40 | B171: =VLOOKUP(A171,'DATA (2022)'!A:F,2,FALSE) -> Глиб.насос SP2A-40 2.2kW 3x380x4 | C171: =VLOOKUP(A171,'DATA (2022)'!A:F,4,FALSE) -> CW | F171: =VLOOKUP(A171,'DATA (2022)'!A:F,5,FALSE) -> 2510 | G171: =IFERROR(F171*(1-VLOOKUP(C171,ГОЛОВНА!K:L,2,0)), "-") -> 1731.9
A172: 09101K48 | B172: =VLOOKUP(A172,'DATA (2022)'!A:F,2,FALSE) -> Глиб.насос SP2A-48 2.2KW 3x380-4 | C172: =VLOOKUP(A172,'DATA (2022)'!A:F,4,FALSE) -> CW | F172: =VLOOKUP(A172,'DATA (2022)'!A:F,5,FALSE) -> 2816 | G172: =IFERROR(F172*(1-VLOOKUP(C172,ГОЛОВНА!K:L,2,0)), "-") -> 1943.04
A173: 09101K55 | B173: =VLOOKUP(A173,'DATA (2022)'!A:F,2,FALSE) -> Глиб.насос SP2A-55 3.0KW 3x380-4 | C173: =VLOOKUP(A173,'DATA (2022)'!A:F,4,FALSE) -> CW | F173: =VLOOKUP(A173,'DATA (2022)'!A:F,5,FALSE) -> За запитом | G173: =IFERROR(F173*(1-VLOOKUP(C173,ГОЛОВНА!K:L,2,0)), "-") -> -
A174: 09101K65 | B174: =VLOOKUP(A174,'DATA (2022)'!A:F,2,FALSE) -> Глиб.насос SP2A-65 3.0kW 3x380-4 | C174: =VLOOKUP(A174,'DATA (2022)'!A:F,4,FALSE) -> CW | F174: =VLOOKUP(A174,'DATA (2022)'!A:F,5,FALSE) -> За запитом | G174: =IFERROR(F174*(1-VLOOKUP(C174,ГОЛОВНА!K:L,2,0)), "-") -> -
A175: 10001K06 | B175: =VLOOKUP(A175,'DATA (2022)'!A:F,2,FALSE) -> Глиб.насос SP3A- 6 0.37kW 380-4 | C175: =VLOOKUP(A175,'DATA (2022)'!A:F,4,FALSE) -> CW | D175: FT | F175: =VLOOKUP(A175,'DATA (2022)'!A:F,5,FALSE) -> 822 | G175: =IFERROR(F175*(1-VLOOKUP(C175,ГОЛОВНА!K:L,2,0)), "-") -> 567.18
A176: 10201906 | B176: =VLOOKUP(A176,'DATA (2022)'!A:F,2,FALSE) -> Глиб.насос SP3A- 6N 0.75kW 3x380-415V 50 | C176: =VLOOKUP(A176,'DATA (2022)'!A:F,4,FALSE) -> CW | F176: =VLOOKUP(A176,'DATA (2022)'!A:F,5,FALSE) -> 2137 | G176: =IFERROR(F176*(1-VLOOKUP(C176,ГОЛОВНА!K:L,2,0)), "-") -> 1474.53
A177: 10221906 | B177: =VLOOKUP(A177,'DATA (2022)'!A:F,2,FALSE) -> Глиб.насос SP3A- 6NE 0.75kW 3x380-415V 5 | C177: =VLOOKUP(A177,'DATA (2022)'!A:F,4,FALSE) -> WS | F177: =VLOOKUP(A177,'DATA (2022)'!A:F,5,FALSE) -> 2570 | G177: =IFERROR(F177*(1-VLOOKUP(C177,ГОЛОВНА!K:L,2,0)), "-") -> 1901.8
A178: 10001K09 | B178: =VLOOKUP(A178,'DATA (2022)'!A:F,2,FALSE) -> Глиб.насос SP3A- 9 0.55kW 380-4 | C178: =VLOOKUP(A178,'DATA (2022)'!A:F,4,FALSE) -> CW | D178: FT | F178: =VLOOKUP(A178,'DATA (2022)'!A:F,5,FALSE) -> 869 | G178: =IFERROR(F178*(1-VLOOKUP(C178,ГОЛОВНА!K:L,2,0)), "-") -> 599.61
A179: 10201909 | B179: =VLOOKUP(A179,'DATA (2022)'!A:F,2,FALSE) -> Глиб.насос SP3A- 9N 0.75kW 3x380-415V 50 | C179: =VLOOKUP(A179,'DATA (2022)'!A:F,4,FALSE) -> CW | F179: =VLOOKUP(A179,'DATA (2022)'!A:F,5,FALSE) -> 2199 | G179: =IFERROR(F179*(1-VLOOKUP(C179,ГОЛОВНА!K:L,2,0)), "-") -> 1517.31
A180: 10221909 | B180: =VLOOKUP(A180,'DATA (2022)'!A:F,2,FALSE) -> Глиб.насос SP3A- 9NE 0.75kW 3x380-415V 5 | C180: =VLOOKUP(A180,'DATA (2022)'!A:F,4,FALSE) -> WS | F180: =VLOOKUP(A180,'DATA (2022)'!A:F,5,FALSE) -> 2682 | G180: =IFERROR(F180*(1-VLOOKUP(C180,ГОЛОВНА!K:L,2,0)), "-") -> 1984.68
A181: 10001K12 | B181: =VLOOKUP(A181,'DATA (2022)'!A:F,2,FALSE) -> Глиб.насос SP3A-12 0.75kW 380-4 | C181: =VLOOKUP(A181,'DATA (2022)'!A:F,4,FALSE) -> CW | D181: FT | F181: =VLOOKUP(A181,'DATA (2022)'!A:F,5,FALSE) -> 961 | G181: =IFERROR(F181*(1-VLOOKUP(C181,ГОЛОВНА!K:L,2,0)), "-") -> 663.09
A182: 10201912 | B182: =VLOOKUP(A182,'DATA (2022)'!A:F,2,FALSE) -> Глиб.насос SP3A-12N 0.75kW 3x380-415V 50 | C182: =VLOOKUP(A182,'DATA (2022)'!A:F,4,FALSE) -> CW | F182: =VLOOKUP(A182,'DATA (2022)'!A:F,5,FALSE) -> 2262 | G182: =IFERROR(F182*(1-VLOOKUP(C182,ГОЛОВНА!K:L,2,0)), "-") -> 1560.78
A183: 10221912 | B183: =VLOOKUP(A183,'DATA (2022)'!A:F,2,FALSE) -> Глиб.насос SP3A-12NE 0.75kW 3x380-415V 5 | C183: =VLOOKUP(A183,'DATA (2022)'!A:F,4,FALSE) -> WS | F183: =VLOOKUP(A183,'DATA (2022)'!A:F,5,FALSE) -> 2727 | G183: =IFERROR(F183*(1-VLOOKUP(C183,ГОЛОВНА!K:L,2,0)), "-") -> 2017.98
A184: 10001K15 | B184: =VLOOKUP(A184,'DATA (2022)'!A:F,2,FALSE) -> Глиб.насос SP3A-15 1.1kW 380-4 | C184: =VLOOKUP(A184,'DATA (2022)'!A:F,4,FALSE) -> CW | D184: FT | F184: =VLOOKUP(A184,'DATA (2022)'!A:F,5,FALSE) -> 1067 | G184: =IFERROR(F184*(1-VLOOKUP(C184,ГОЛОВНА!K:L,2,0)), "-") -> 736.23
A185: 10201915 | B185: =VLOOKUP(A185,'DATA (2022)'!A:F,2,FALSE) -> Глиб.насос SP3A-15N 1.1kW 3x380-415V 50H | C185: =VLOOKUP(A185,'DATA (2022)'!A:F,4,FALSE) -> CW | F185: =VLOOKUP(A185,'DATA (2022)'!A:F,5,FALSE) -> 2348 | G185: =IFERROR(F185*(1-VLOOKUP(C185,ГОЛОВНА!K:L,2,0)), "-") -> 1620.12
A186: 10221915 | B186: =VLOOKUP(A186,'DATA (2022)'!A:F,2,FALSE) -> Глиб.насос SP3A-15NE 1.1kW 3x380-415V 50 | C186: =VLOOKUP(A186,'DATA (2022)'!A:F,4,FALSE) -> WS | F186: =VLOOKUP(A186,'DATA (2022)'!A:F,5,FALSE) -> 2840 | G186: =IFERROR(F186*(1-VLOOKUP(C186,ГОЛОВНА!K:L,2,0)), "-") -> 2101.6
A187: 10201918 | B187: =VLOOKUP(A187,'DATA (2022)'!A:F,2,FALSE) -> Глиб.насос SP3A-18N 1.1kW 3x380-415V 50H | C187: =VLOOKUP(A187,'DATA (2022)'!A:F,4,FALSE) -> WS | F187: =VLOOKUP(A187,'DATA (2022)'!A:F,5,FALSE) -> 2378 | G187: =IFERROR(F187*(1-VLOOKUP(C187,ГОЛОВНА!K:L,2,0)), "-") -> 1759.72
A188: 10221918 | B188: =VLOOKUP(A188,'DATA (2022)'!A:F,2,FALSE) -> Глиб.насос SP3A-18NE 1.1kW 3x380-415V 50 | C188: =VLOOKUP(A188,'DATA (2022)'!A:F,4,FALSE) -> WS | F188: =VLOOKUP(A188,'DATA (2022)'!A:F,5,FALSE) -> 2922 | G188: =IFERROR(F188*(1-VLOOKUP(C188,ГОЛОВНА!K:L,2,0)), "-") -> 2162.28
A189: 10201922 | B189: =VLOOKUP(A189,'DATA (2022)'!A:F,2,FALSE) -> Глиб.насос SP3A-22N 1.5kW 3x380-415V 50H | C189: =VLOOKUP(A189,'DATA (2022)'!A:F,4,FALSE) -> CW | F189: =VLOOKUP(A189,'DATA (2022)'!A:F,5,FALSE) -> 2499 | G189: =IFERROR(F189*(1-VLOOKUP(C189,ГОЛОВНА!K:L,2,0)), "-") -> 1724.31
A190: 10221922 | B190: =VLOOKUP(A190,'DATA (2022)'!A:F,2,FALSE) -> Глиб.насос SP3A-22NE 1.5kW 3x380-415V 50 | C190: =VLOOKUP(A190,'DATA (2022)'!A:F,4,FALSE) -> WS | F190: =VLOOKUP(A190,'DATA (2022)'!A:F,5,FALSE) -> 3032 | G190: =IFERROR(F190*(1-VLOOKUP(C190,ГОЛОВНА!K:L,2,0)), "-") -> 2243.68
A191: 10001K25 | B191: =VLOOKUP(A191,'DATA (2022)'!A:F,2,FALSE) -> Глиб.насос SP3A-25 1.5kW 380-4 | C191: =VLOOKUP(A191,'DATA (2022)'!A:F,4,FALSE) -> CW | F191: =VLOOKUP(A191,'DATA (2022)'!A:F,5,FALSE) -> 1258 | G191: =IFERROR(F191*(1-VLOOKUP(C191,ГОЛОВНА!K:L,2,0)), "-") -> 868.02
A192: 10201925 | B192: =VLOOKUP(A192,'DATA (2022)'!A:F,2,FALSE) -> Глиб.насос SP3A-25N 1.5kW 3x380-415V 50H | C192: =VLOOKUP(A192,'DATA (2022)'!A:F,4,FALSE) -> WS | F192: =VLOOKUP(A192,'DATA (2022)'!A:F,5,FALSE) -> 2528 | G192: =IFERROR(F192*(1-VLOOKUP(C192,ГОЛОВНА!K:L,2,0)), "-") -> 1870.72
A193: 10221925 | B193: =VLOOKUP(A193,'DATA (2022)'!A:F,2,FALSE) -> Глиб.насос SP3A-25NE 1.5kW 3x380-415V 50 | C193: =VLOOKUP(A193,'DATA (2022)'!A:F,4,FALSE) -> WS | F193: =VLOOKUP(A193,'DATA (2022)'!A:F,5,FALSE) -> За запитом | G193: =IFERROR(F193*(1-VLOOKUP(C193,ГОЛОВНА!K:L,2,0)), "-") -> -
A194: 10201929 | B194: =VLOOKUP(A194,'DATA (2022)'!A:F,2,FALSE) -> Глиб.насос SP3A-29N 2.2kW 3x380-415V 50H | C194: =VLOOKUP(A194,'DATA (2022)'!A:F,4,FALSE) -> CW | F194: =VLOOKUP(A194,'DATA (2022)'!A:F,5,FALSE) -> 2685 | G194: =IFERROR(F194*(1-VLOOKUP(C194,ГОЛОВНА!K:L,2,0)), "-") -> 1852.65
A195: 10221929 | B195: =VLOOKUP(A195,'DATA (2022)'!A:F,2,FALSE) -> Глиб.насос SP3A-29NE 2.2kW 3x380-415V 50 | C195: =VLOOKUP(A195,'DATA (2022)'!A:F,4,FALSE) -> WS | F195: =VLOOKUP(A195,'DATA (2022)'!A:F,5,FALSE) -> За запитом | G195: =IFERROR(F195*(1-VLOOKUP(C195,ГОЛОВНА!K:L,2,0)), "-") -> -
A196: 10101K39 | B196: =VLOOKUP(A196,'DATA (2022)'!A:F,2,FALSE) -> Глиб.насос SP3A-39 3.0KW 3x380-4 | C196: =VLOOKUP(A196,'DATA (2022)'!A:F,4,FALSE) -> CW | F196: =VLOOKUP(A196,'DATA (2022)'!A:F,5,FALSE) -> 2895 | G196: =IFERROR(F196*(1-VLOOKUP(C196,ГОЛОВНА!K:L,2,0)), "-") -> 1997.55
A197: 10201939 | B197: =VLOOKUP(A197,'DATA (2022)'!A:F,2,FALSE) -> Глиб.насос SP3A-39N 3.0kW 3x380-415V 50H | C197: =VLOOKUP(A197,'DATA (2022)'!A:F,4,FALSE) -> WS | F197: =VLOOKUP(A197,'DATA (2022)'!A:F,5,FALSE) -> За запитом | G197: =IFERROR(F197*(1-VLOOKUP(C197,ГОЛОВНА!K:L,2,0)), "-") -> -
A198: 10101K45 | B198: =VLOOKUP(A198,'DATA (2022)'!A:F,2,FALSE) -> Глиб.насос SP3A-45 3.0KW 3x380-4 | C198: =VLOOKUP(A198,'DATA (2022)'!A:F,4,FALSE) -> CW | F198: =VLOOKUP(A198,'DATA (2022)'!A:F,5,FALSE) -> За запитом | G198: =IFERROR(F198*(1-VLOOKUP(C198,ГОЛОВНА!K:L,2,0)), "-") -> -
A199: 10101K52 | B199: =VLOOKUP(A199,'DATA (2022)'!A:F,2,FALSE) -> Глиб.насос SP3A-52 4.0KW 3x380-4 | C199: =VLOOKUP(A199,'DATA (2022)'!A:F,4,FALSE) -> CW | F199: =VLOOKUP(A199,'DATA (2022)'!A:F,5,FALSE) -> За запитом | G199: =IFERROR(F199*(1-VLOOKUP(C199,ГОЛОВНА!K:L,2,0)), "-") -> -
A200: 10101K60 | B200: =VLOOKUP(A200,'DATA (2022)'!A:F,2,FALSE) -> Глиб.насос SP3A-60 4.0kW 3x380-4 | C200: =VLOOKUP(A200,'DATA (2022)'!A:F,4,FALSE) -> CW | F200: =VLOOKUP(A200,'DATA (2022)'!A:F,5,FALSE) -> За запитом | G200: =IFERROR(F200*(1-VLOOKUP(C200,ГОЛОВНА!K:L,2,0)), "-") -> -
A201: 05001K04 | B201: =VLOOKUP(A201,'DATA (2022)'!A:F,2,FALSE) -> Глиб.насос SP5A- 4 0.37kW 380-4 | C201: =VLOOKUP(A201,'DATA (2022)'!A:F,4,FALSE) -> CW | F201: =VLOOKUP(A201,'DATA (2022)'!A:F,5,FALSE) -> 813 | G201: =IFERROR(F201*(1-VLOOKUP(C201,ГОЛОВНА!K:L,2,0)), "-") -> 560.97
A202: 5201904 | B202: =VLOOKUP(A202,'DATA (2022)'!A:F,2,FALSE) -> Глиб.насос SP5A- 4N 0.75kW 3x380-415V 50 | C202: =VLOOKUP(A202,'DATA (2022)'!A:F,4,FALSE) -> CW | F202: =VLOOKUP(A202,'DATA (2022)'!A:F,5,FALSE) -> 2123 | G202: =IFERROR(F202*(1-VLOOKUP(C202,ГОЛОВНА!K:L,2,0)), "-") -> 1464.87
A203: 5221904 | B203: =VLOOKUP(A203,'DATA (2022)'!A:F,2,FALSE) -> Глиб.насос SP5A- 4NE 0.75kW 3x380-415V 5 | C203: =VLOOKUP(A203,'DATA (2022)'!A:F,4,FALSE) -> WS | F203: =VLOOKUP(A203,'DATA (2022)'!A:F,5,FALSE) -> 2525 | G203: =IFERROR(F203*(1-VLOOKUP(C203,ГОЛОВНА!K:L,2,0)), "-") -> 1868.5
... 418 more rows

Sheet Sololift, Unilift AP, KP
A1: АРТИКУЛ | B1: НАЙМЕНУВАННЯ (УКР) | C1: PRICE GROUP | D1: ДОСТАВКА | E1: ДОДАТКОВО | F1: ЦІНА (ЕВРО БЕЗ ПДВ) | G1: ЦІНА ЗІ ЗНИЖКОЮ | H1: НА ГОЛОВНУ
A2: Conlift, Sololift, Liftaway | G2: Дренажні та каналізаційні насоси та насосні станції
A3: 97775317 | B3: =VLOOKUP(A3,'DATA (2022)'!A:F,2,FALSE) -> Каналізаційна установка Sololift2 C-3 | C3: =VLOOKUP(A3,'DATA (2022)'!A:F,4,FALSE) -> DC | D3: S | F3: =VLOOKUP(A3,'DATA (2022)'!A:F,5,FALSE) -> 465 | G3: =IFERROR(F3*(1-VLOOKUP(C3,ГОЛОВНА!K:L,2,0)), "-") -> 311.55
A4: 97775316 | B4: =VLOOKUP(A4,'DATA (2022)'!A:F,2,FALSE) -> Каналізаційна установка Sololift2 CWC-3 | C4: =VLOOKUP(A4,'DATA (2022)'!A:F,4,FALSE) -> DC | D4: S | F4: =VLOOKUP(A4,'DATA (2022)'!A:F,5,FALSE) -> 515 | G4: =IFERROR(F4*(1-VLOOKUP(C4,ГОЛОВНА!K:L,2,0)), "-") -> 345.05
A5: 97775318 | B5: =VLOOKUP(A5,'DATA (2022)'!A:F,2,FALSE) -> Каналізаційна установка Sololift2 D-2 | C5: =VLOOKUP(A5,'DATA (2022)'!A:F,4,FALSE) -> DC | D5: S | F5: =VLOOKUP(A5,'DATA (2022)'!A:F,5,FALSE) -> 368 | G5: =IFERROR(F5*(1-VLOOKUP(C5,ГОЛОВНА!K:L,2,0)), "-") -> 246.56
A6: 97775314 | B6: =VLOOKUP(A6,'DATA (2022)'!A:F,2,FALSE) -> Каналізаційна установка Sololift2 WC-1 | C6: =VLOOKUP(A6,'DATA (2022)'!A:F,4,FALSE) -> DC | D6: S | F6: =VLOOKUP(A6,'DATA (2022)'!A:F,5,FALSE) -> 412 | G6: =IFERROR(F6*(1-VLOOKUP(C6,ГОЛОВНА!K:L,2,0)), "-") -> 276.04
A7: 97775315 | B7: =VLOOKUP(A7,'DATA (2022)'!A:F,2,FALSE) -> Каналізаційна установка Sololift2 WC-3 | C7: =VLOOKUP(A7,'DATA (2022)'!A:F,4,FALSE) -> DC | D7: S | F7: =VLOOKUP(A7,'DATA (2022)'!A:F,5,FALSE) -> 498 | G7: =IFERROR(F7*(1-VLOOKUP(C7,ГОЛОВНА!K:L,2,0)), "-") -> 333.66
A8: 97936156 | B8: =VLOOKUP(A8,'DATA (2022)'!A:F,2,FALSE) -> Дренажна установка CONLIFT1 | C8: =VLOOKUP(A8,'DATA (2022)'!A:F,4,FALSE) -> DC | D8: S | F8: =VLOOKUP(A8,'DATA (2022)'!A:F,5,FALSE) -> 122 | G8: =IFERROR(F8*(1-VLOOKUP(C8,ГОЛОВНА!K:L,2,0)), "-") -> 81.74
A9: 96003985 | B9: =VLOOKUP(A9,'DATA (2022)'!A:F,2,FALSE) -> Каналізаційна установка Liftaway C 40-1 | C9: =VLOOKUP(A9,'DATA (2022)'!A:F,4,FALSE) -> DC | F9: =VLOOKUP(A9,'DATA (2022)'!A:F,5,FALSE) -> 293 | G9: =IFERROR(F9*(1-VLOOKUP(C9,ГОЛОВНА!K:L,2,0)), "-") -> 196.31
A11: Unilift KP,CC, KPC, AP, AP B | G11: Дренажні та каналізаційні насоси та насосні станції
A12: 98863989 | B12: =VLOOKUP(A12,'DATA (2022)'!A:F,2,FALSE) -> Насос для брудн води KPC 300 A 1x220 50H | C12: =VLOOKUP(A12,'DATA (2022)'!A:F,4,FALSE) -> DC | F12: =VLOOKUP(A12,'DATA (2022)'!A:F,5,FALSE) -> 175 | G12: =IFERROR(F12*(1-VLOOKUP(C12,ГОЛОВНА!K:L,2,0)), "-") -> 117.25
A13: 98864015 | B13: =VLOOKUP(A13,'DATA (2022)'!A:F,2,FALSE) -> Насос для брудн води KPC 600 A 1x220 50H | C13: =VLOOKUP(A13,'DATA (2022)'!A:F,4,FALSE) -> DC | F13: =VLOOKUP(A13,'DATA (2022)'!A:F,5,FALSE) -> 225 | G13: =IFERROR(F13*(1-VLOOKUP(C13,ГОЛОВНА!K:L,2,0)), "-") -> 150.75
A14: 96280966 | B14: =VLOOKUP(A14,'DATA (2022)'!A:F,2,FALSE) -> Насос стічн.вод Unilift CC5 - A1 220-240 | C14: =VLOOKUP(A14,'DATA (2022)'!A:F,4,FALSE) -> DC | D14: S | F14: =VLOOKUP(A14,'DATA (2022)'!A:F,5,FALSE) -> 207 | G14: =IFERROR(F14*(1-VLOOKUP(C14,ГОЛОВНА!K:L,2,0)), "-") -> 138.69
A15: 96280965 | B15: =VLOOKUP(A15,'DATA (2022)'!A:F,2,FALSE) -> Насос стічн.вод Unilift CC5 - M1 220-240 | C15: =VLOOKUP(A15,'DATA (2022)'!A:F,4,FALSE) -> DC | F15: =VLOOKUP(A15,'DATA (2022)'!A:F,5,FALSE) -> 194 | G15: =IFERROR(F15*(1-VLOOKUP(C15,ГОЛОВНА!K:L,2,0)), "-") -> 129.98
A16: 96280968 | B16: =VLOOKUP(A16,'DATA (2022)'!A:F,2,FALSE) -> Насос стічн.вод Unilift CC7 - A1 220-240 | C16: =VLOOKUP(A16,'DATA (2022)'!A:F,4,FALSE) -> DC | D16: S | F16: =VLOOKUP(A16,'DATA (2022)'!A:F,5,FALSE) -> 240 | G16: =IFERROR(F16*(1-VLOOKUP(C16,ГОЛОВНА!K:L,2,0)), "-") -> 160.8
A17: 96280967 | B17: =VLOOKUP(A17,'DATA (2022)'!A:F,2,FALSE) -> Насос стічн.вод Unilift CC7 - M1 220-240 | C17: =VLOOKUP(A17,'DATA (2022)'!A:F,4,FALSE) -> DC | F17: =VLOOKUP(A17,'DATA (2022)'!A:F,5,FALSE) -> 230 | G17: =IFERROR(F17*(1-VLOOKUP(C17,ГОЛОВНА!K:L,2,0)), "-") -> 154.1
A18: 96280970 | B18: =VLOOKUP(A18,'DATA (2022)'!A:F,2,FALSE) -> Насос стічн.вод Unilift CC9 - A1 220-240 | C18: =VLOOKUP(A18,'DATA (2022)'!A:F,4,FALSE) -> DC | D18: S | F18: =VLOOKUP(A18,'DATA (2022)'!A:F,5,FALSE) -> 310 | G18: =IFERROR(F18*(1-VLOOKUP(C18,ГОЛОВНА!K:L,2,0)), "-") -> 207.7
A19: 96280969 | B19: =VLOOKUP(A19,'DATA (2022)'!A:F,2,FALSE) -> Насос стічн.вод Unilift CC9 - M1 220-240 | C19: =VLOOKUP(A19,'DATA (2022)'!A:F,4,FALSE) -> DC | F19: =VLOOKUP(A19,'DATA (2022)'!A:F,5,FALSE) -> 292 | G19: =IFERROR(F19*(1-VLOOKUP(C19,ГОЛОВНА!K:L,2,0)), "-") -> 195.64
A20: 011H1800 | B20: =VLOOKUP(A20,'DATA (2022)'!A:F,2,FALSE) -> Насос стічн.вод UNILIFT KP150-A-1 1x220 | C20: =VLOOKUP(A20,'DATA (2022)'!A:F,4,FALSE) -> DC | D20: S | F20: =VLOOKUP(A20,'DATA (2022)'!A:F,5,FALSE) -> 327 | G20: =IFERROR(F20*(1-VLOOKUP(C20,ГОЛОВНА!K:L,2,0)), "-") -> 219.09
A21: 011H1600 | B21: =VLOOKUP(A21,'DATA (2022)'!A:F,2,FALSE) -> Насос стічн.вод UNILIFT KP150-A-1 1x220 | C21: =VLOOKUP(A21,'DATA (2022)'!A:F,4,FALSE) -> DC | D21: S | F21: =VLOOKUP(A21,'DATA (2022)'!A:F,5,FALSE) -> 306 | G21: =IFERROR(F21*(1-VLOOKUP(C21,ГОЛОВНА!K:L,2,0)), "-") -> 205.02
A22: 011H1400 | B22: =VLOOKUP(A22,'DATA (2022)'!A:F,2,FALSE) -> Насос стічн.вод UNILIFT KP150-AV-1 1x220 | C22: =VLOOKUP(A22,'DATA (2022)'!A:F,4,FALSE) -> DC | F22: =VLOOKUP(A22,'DATA (2022)'!A:F,5,FALSE) -> 324 | G22: =IFERROR(F22*(1-VLOOKUP(C22,ГОЛОВНА!K:L,2,0)), "-") -> 217.08
A23: 011H1900 | B23: =VLOOKUP(A23,'DATA (2022)'!A:F,2,FALSE) -> Насос стічн.вод UNILIFT KP150-AV-1 1x220 | C23: =VLOOKUP(A23,'DATA (2022)'!A:F,4,FALSE) -> DC | F23: =VLOOKUP(A23,'DATA (2022)'!A:F,5,FALSE) -> 345 | G23: =IFERROR(F23*(1-VLOOKUP(C23,ГОЛОВНА!K:L,2,0)), "-") -> 231.15
A24: 011H6300 | B24: =VLOOKUP(A24,'DATA (2022)'!A:F,2,FALSE) -> Насос стічн.вод UNILIFT KP150-M-1 1x220 | C24: =VLOOKUP(A24,'DATA (2022)'!A:F,4,FALSE) -> DC | F24: =VLOOKUP(A24,'DATA (2022)'!A:F,5,FALSE) -> 304 | G24: =IFERROR(F24*(1-VLOOKUP(C24,ГОЛОВНА!K:L,2,0)), "-") -> 203.68
A25: 011H1300 | B25: =VLOOKUP(A25,'DATA (2022)'!A:F,2,FALSE) -> Насос стічн.вод UNILIFT KP150-M-1 1x220 | C25: =VLOOKUP(A25,'DATA (2022)'!A:F,4,FALSE) -> DC | F25: =VLOOKUP(A25,'DATA (2022)'!A:F,5,FALSE) -> 308 | G25: =IFERROR(F25*(1-VLOOKUP(C25,ГОЛОВНА!K:L,2,0)), "-") -> 206.36
A26: 012H1800 | B26: =VLOOKUP(A26,'DATA (2022)'!A:F,2,FALSE) -> Насос стічн.вод UNILIFT KP250-A-1 1x220 | C26: =VLOOKUP(A26,'DATA (2022)'!A:F,4,FALSE) -> DC | D26: S | F26: =VLOOKUP(A26,'DATA (2022)'!A:F,5,FALSE) -> 388 | G26: =IFERROR(F26*(1-VLOOKUP(C26,ГОЛОВНА!K:L,2,0)), "-") -> 259.96
A27: 012H1600 | B27: =VLOOKUP(A27,'DATA (2022)'!A:F,2,FALSE) -> Насос стічн.вод UNILIFT KP250-A-1 1x220 | C27: =VLOOKUP(A27,'DATA (2022)'!A:F,4,FALSE) -> DC | D27: S | F27: =VLOOKUP(A27,'DATA (2022)'!A:F,5,FALSE) -> 368 | G27: =IFERROR(F27*(1-VLOOKUP(C27,ГОЛОВНА!K:L,2,0)), "-") -> 246.56
A28: 012H1400 | B28: =VLOOKUP(A28,'DATA (2022)'!A:F,2,FALSE) -> Насос стічн.вод UNILIFT KP250-AV-1 1x220 | C28: =VLOOKUP(A28,'DATA (2022)'!A:F,4,FALSE) -> DC | F28: =VLOOKUP(A28,'DATA (2022)'!A:F,5,FALSE) -> 386 | G28: =IFERROR(F28*(1-VLOOKUP(C28,ГОЛОВНА!K:L,2,0)), "-") -> 258.62
A29: 012H1900 | B29: =VLOOKUP(A29,'DATA (2022)'!A:F,2,FALSE) -> Насос стічн.вод UNILIFT KP250-AV-1 1x220 | C29: =VLOOKUP(A29,'DATA (2022)'!A:F,4,FALSE) -> DC | F29: =VLOOKUP(A29,'DATA (2022)'!A:F,5,FALSE) -> 407 | G29: =IFERROR(F29*(1-VLOOKUP(C29,ГОЛОВНА!K:L,2,0)), "-") -> 272.69
A30: 012H1300 | B30: =VLOOKUP(A30,'DATA (2022)'!A:F,2,FALSE) -> Насос стічн.вод UNILIFT KP250-M-1 1x220 | C30: =VLOOKUP(A30,'DATA (2022)'!A:F,4,FALSE) -> DC | F30: =VLOOKUP(A30,'DATA (2022)'!A:F,5,FALSE) -> 370 | G30: =IFERROR(F30*(1-VLOOKUP(C30,ГОЛОВНА!K:L,2,0)), "-") -> 247.9
A31: 012M6300 | B31: =VLOOKUP(A31,'DATA (2022)'!A:F,2,FALSE) -> Насос стічн.вод UNILIFT KP250-M-3 3x380 | C31: =VLOOKUP(A31,'DATA (2022)'!A:F,4,FALSE) -> DC | F31: =VLOOKUP(A31,'DATA (2022)'!A:F,5,FALSE) -> 364 | G31: =IFERROR(F31*(1-VLOOKUP(C31,ГОЛОВНА!K:L,2,0)), "-") -> 243.88
A32: 012M6100 | B32: =VLOOKUP(A32,'DATA (2022)'!A:F,2,FALSE) -> Насос стічн.вод UNILIFT KP250-M-3 3x380 | C32: =VLOOKUP(A32,'DATA (2022)'!A:F,4,FALSE) -> DC | F32: =VLOOKUP(A32,'DATA (2022)'!A:F,5,FALSE) -> 350 | G32: =IFERROR(F32*(1-VLOOKUP(C32,ГОЛОВНА!K:L,2,0)), "-") -> 234.5
A33: 013N1800 | B33: =VLOOKUP(A33,'DATA (2022)'!A:F,2,FALSE) -> Насос стічн.вод UNILIFT KP350-A-1 1x220 | C33: =VLOOKUP(A33,'DATA (2022)'!A:F,4,FALSE) -> DC | F33: =VLOOKUP(A33,'DATA (2022)'!A:F,5,FALSE) -> 502 | G33: =IFERROR(F33*(1-VLOOKUP(C33,ГОЛОВНА!K:L,2,0)), "-") -> 336.34
A34: 013N1600 | B34: =VLOOKUP(A34,'DATA (2022)'!A:F,2,FALSE) -> Насос стічн.вод UNILIFT KP350-A-1 1x220 | C34: =VLOOKUP(A34,'DATA (2022)'!A:F,4,FALSE) -> DC | D34: S | F34: =VLOOKUP(A34,'DATA (2022)'!A:F,5,FALSE) -> 468 | G34: =IFERROR(F34*(1-VLOOKUP(C34,ГОЛОВНА!K:L,2,0)), "-") -> 313.56
A35: 013N1400 | B35: =VLOOKUP(A35,'DATA (2022)'!A:F,2,FALSE) -> Насос стічн.вод UNILIFT KP350-AV-1 1x220 | C35: =VLOOKUP(A35,'DATA (2022)'!A:F,4,FALSE) -> DC | F35: =VLOOKUP(A35,'DATA (2022)'!A:F,5,FALSE) -> 541 | G35: =IFERROR(F35*(1-VLOOKUP(C35,ГОЛОВНА!K:L,2,0)), "-") -> 362.47
A36: 013N1900 | B36: =VLOOKUP(A36,'DATA (2022)'!A:F,2,FALSE) -> Насос стічн.вод UNILIFT KP350-AV-1 1x220 | C36: =VLOOKUP(A36,'DATA (2022)'!A:F,4,FALSE) -> DC | F36: =VLOOKUP(A36,'DATA (2022)'!A:F,5,FALSE) -> 575 | G36: =IFERROR(F36*(1-VLOOKUP(C36,ГОЛОВНА!K:L,2,0)), "-") -> 385.25
A37: 013N1300 | B37: =VLOOKUP(A37,'DATA (2022)'!A:F,2,FALSE) -> Насос стічн.вод UNILIFT KP350-M-1 1x220 | C37: =VLOOKUP(A37,'DATA (2022)'!A:F,4,FALSE) -> DC | F37: =VLOOKUP(A37,'DATA (2022)'!A:F,5,FALSE) -> 470 | G37: =IFERROR(F37*(1-VLOOKUP(C37,ГОЛОВНА!K:L,2,0)), "-") -> 314.9
A38: 013M6300 | B38: =VLOOKUP(A38,'DATA (2022)'!A:F,2,FALSE) -> Насос стічн.вод UNILIFT KP350-M-3 3x380 | C38: =VLOOKUP(A38,'DATA (2022)'!A:F,4,FALSE) -> DC | F38: =VLOOKUP(A38,'DATA (2022)'!A:F,5,FALSE) -> 487 | G38: =IFERROR(F38*(1-VLOOKUP(C38,ГОЛОВНА!K:L,2,0)), "-") -> 326.29
A39: 96011016 | B39: =VLOOKUP(A39,'DATA (2022)'!A:F,2,FALSE) -> Насос стічн.вод UNILIFT AP12.40.04.1 | C39: =VLOOKUP(A39,'DATA (2022)'!A:F,4,FALSE) -> CW | F39: =VLOOKUP(A39,'DATA (2022)'!A:F,5,FALSE) -> 679 | G39: =IFERROR(F39*(1-VLOOKUP(C39,ГОЛОВНА!K:L,2,0)), "-") -> 468.51
A40: 96011024 | B40: =VLOOKUP(A40,'DATA (2022)'!A:F,2,FALSE) -> Насос стічн.вод UNILIFT AP12.40.04.3 | C40: =VLOOKUP(A40,'DATA (2022)'!A:F,4,FALSE) -> CW | F40: =VLOOKUP(A40,'DATA (2022)'!A:F,5,FALSE) -> 655 | G40: =IFERROR(F40*(1-VLOOKUP(C40,ГОЛОВНА!K:L,2,0)), "-") -> 451.95
A41: 96011018 | B41: =VLOOKUP(A41,'DATA (2022)'!A:F,2,FALSE) -> Насос стічн.вод UNILIFT AP12.40.04.A1 | C41: =VLOOKUP(A41,'DATA (2022)'!A:F,4,FALSE) -> CW | F41: =VLOOKUP(A41,'DATA (2022)'!A:F,5,FALSE) -> 735 | G41: =IFERROR(F41*(1-VLOOKUP(C41,ГОЛОВНА!K:L,2,0)), "-") -> 507.15
A42: 96011017 | B42: =VLOOKUP(A42,'DATA (2022)'!A:F,2,FALSE) -> Насос стічн.вод UNILIFT AP12.40.04.A1 | C42: =VLOOKUP(A42,'DATA (2022)'!A:F,4,FALSE) -> CW | D42: S | F42: =VLOOKUP(A42,'DATA (2022)'!A:F,5,FALSE) -> 694 | G42: =IFERROR(F42*(1-VLOOKUP(C42,ГОЛОВНА!K:L,2,0)), "-") -> 478.86
A43: 96023871 | B43: =VLOOKUP(A43,'DATA (2022)'!A:F,2,FALSE) -> Насос стічн.вод UNILIFT AP12.40.04.A3 | C43: =VLOOKUP(A43,'DATA (2022)'!A:F,4,FALSE) -> CW | F43: =VLOOKUP(A43,'DATA (2022)'!A:F,5,FALSE) -> 868 | G43: =IFERROR(F43*(1-VLOOKUP(C43,ГОЛОВНА!K:L,2,0)), "-") -> 598.92
A44: 96001720 | B44: =VLOOKUP(A44,'DATA (2022)'!A:F,2,FALSE) -> Насос стічн.вод UNILIFT AP12.40.06.1 | C44: =VLOOKUP(A44,'DATA (2022)'!A:F,4,FALSE) -> CW | F44: =VLOOKUP(A44,'DATA (2022)'!A:F,5,FALSE) -> 708 | G44: =IFERROR(F44*(1-VLOOKUP(C44,ГОЛОВНА!K:L,2,0)), "-") -> 488.52
A45: 96001652 | B45: =VLOOKUP(A45,'DATA (2022)'!A:F,2,FALSE) -> Насос стічн.вод UNILIFT AP12.40.06.3 | C45: =VLOOKUP(A45,'DATA (2022)'!A:F,4,FALSE) -> CW | F45: =VLOOKUP(A45,'DATA (2022)'!A:F,5,FALSE) -> 685 | G45: =IFERROR(F45*(1-VLOOKUP(C45,ГОЛОВНА!K:L,2,0)), "-") -> 472.65
A46: 96010979 | B46: =VLOOKUP(A46,'DATA (2022)'!A:F,2,FALSE) -> Насос стічн.вод UNILIFT AP12.40.06.A1 | C46: =VLOOKUP(A46,'DATA (2022)'!A:F,4,FALSE) -> CW | F46: =VLOOKUP(A46,'DATA (2022)'!A:F,5,FALSE) -> 781 | G46: =IFERROR(F46*(1-VLOOKUP(C46,ГОЛОВНА!K:L,2,0)), "-") -> 538.89
A47: 96001735 | B47: =VLOOKUP(A47,'DATA (2022)'!A:F,2,FALSE) -> Насос стічн.вод UNILIFT AP12.40.06.A1 | C47: =VLOOKUP(A47,'DATA (2022)'!A:F,4,FALSE) -> CW | D47: S | F47: =VLOOKUP(A47,'DATA (2022)'!A:F,5,FALSE) -> 731 | G47: =IFERROR(F47*(1-VLOOKUP(C47,ГОЛОВНА!K:L,2,0)), "-") -> 504.39
A48: 96023872 | B48: =VLOOKUP(A48,'DATA (2022)'!A:F,2,FALSE) -> Насос стічн.вод UNILIFT AP12.40.06.A3 | C48: =VLOOKUP(A48,'DATA (2022)'!A:F,4,FALSE) -> CW | F48: =VLOOKUP(A48,'DATA (2022)'!A:F,5,FALSE) -> 916 | G48: =IFERROR(F48*(1-VLOOKUP(C48,ГОЛОВНА!K:L,2,0)), "-") -> 632.04
A49: 96001869 | B49: =VLOOKUP(A49,'DATA (2022)'!A:F,2,FALSE) -> Насос стічн.вод UNILIFT AP12.40.08.1 | C49: =VLOOKUP(A49,'DATA (2022)'!A:F,4,FALSE) -> CW | F49: =VLOOKUP(A49,'DATA (2022)'!A:F,5,FALSE) -> 803 | G49: =IFERROR(F49*(1-VLOOKUP(C49,ГОЛОВНА!K:L,2,0)), "-") -> 554.07
A50: 96001791 | B50: =VLOOKUP(A50,'DATA (2022)'!A:F,2,FALSE) -> Насос стічн.вод UNILIFT AP12.40.08.3 | C50: =VLOOKUP(A50,'DATA (2022)'!A:F,4,FALSE) -> CW | F50: =VLOOKUP(A50,'DATA (2022)'!A:F,5,FALSE) -> 775 | G50: =IFERROR(F50*(1-VLOOKUP(C50,ГОЛОВНА!K:L,2,0)), "-") -> 534.75
A51: 96404181 | B51: =VLOOKUP(A51,'DATA (2022)'!A:F,2,FALSE) -> Насос стічн.вод UNILIFT AP12.40.08.A1 | C51: =VLOOKUP(A51,'DATA (2022)'!A:F,4,FALSE) -> CW | F51: =VLOOKUP(A51,'DATA (2022)'!A:F,5,FALSE) -> 877 | G51: =IFERROR(F51*(1-VLOOKUP(C51,ГОЛОВНА!K:L,2,0)), "-") -> 605.13
A52: 96010980 | B52: =VLOOKUP(A52,'DATA (2022)'!A:F,2,FALSE) -> Насос для брудної води AP12.40.08.A1 1X2 | C52: =VLOOKUP(A52,'DATA (2022)'!A:F,4,FALSE) -> CW | F52: =VLOOKUP(A52,'DATA (2022)'!A:F,5,FALSE) -> 865 | G52: =IFERROR(F52*(1-VLOOKUP(C52,ГОЛОВНА!K:L,2,0)), "-") -> 596.85
A53: 96001798 | B53: =VLOOKUP(A53,'DATA (2022)'!A:F,2,FALSE) -> Насос стічн.вод UNILIFT AP12.40.08.A1 | C53: =VLOOKUP(A53,'DATA (2022)'!A:F,4,FALSE) -> CW | F53: =VLOOKUP(A53,'DATA (2022)'!A:F,5,FALSE) -> 829 | G53: =IFERROR(F53*(1-VLOOKUP(C53,ГОЛОВНА!K:L,2,0)), "-") -> 572.01
A54: 96010925 | B54: =VLOOKUP(A54,'DATA (2022)'!A:F,2,FALSE) -> Насос стічн.вод UNILIFT AP12.40.08.A3 | C54: =VLOOKUP(A54,'DATA (2022)'!A:F,4,FALSE) -> CW | F54: =VLOOKUP(A54,'DATA (2022)'!A:F,5,FALSE) -> 941 | G54: =IFERROR(F54*(1-VLOOKUP(C54,ГОЛОВНА!K:L,2,0)), "-") -> 649.29
A55: 96023873 | B55: =VLOOKUP(A55,'DATA (2022)'!A:F,2,FALSE) -> Насос стічн.вод UNILIFT AP12.40.08.A3 | C55: =VLOOKUP(A55,'DATA (2022)'!A:F,4,FALSE) -> CW | F55: =VLOOKUP(A55,'DATA (2022)'!A:F,5,FALSE) -> 977 | G55: =IFERROR(F55*(1-VLOOKUP(C55,ГОЛОВНА!K:L,2,0)), "-") -> 674.13
A56: 96001958 | B56: =VLOOKUP(A56,'DATA (2022)'!A:F,2,FALSE) -> Насос стічн.вод UNILIFT AP12.50.11.1 | C56: =VLOOKUP(A56,'DATA (2022)'!A:F,4,FALSE) -> CW | F56: =VLOOKUP(A56,'DATA (2022)'!A:F,5,FALSE) -> 1117 | G56: =IFERROR(F56*(1-VLOOKUP(C56,ГОЛОВНА!K:L,2,0)), "-") -> 770.73
A57: 96001975 | B57: =VLOOKUP(A57,'DATA (2022)'!A:F,2,FALSE) -> Насос стічн.вод UNILIFT AP12.50.11.3 | C57: =VLOOKUP(A57,'DATA (2022)'!A:F,4,FALSE) -> CW | F57: =VLOOKUP(A57,'DATA (2022)'!A:F,5,FALSE) -> 1093 | G57: =IFERROR(F57*(1-VLOOKUP(C57,ГОЛОВНА!K:L,2,0)), "-") -> 754.17
A58: 96010981 | B58: =VLOOKUP(A58,'DATA (2022)'!A:F,2,FALSE) -> Насос стічн.вод UNILIFT AP12.50.11.A1 | C58: =VLOOKUP(A58,'DATA (2022)'!A:F,4,FALSE) -> CW | F58: =VLOOKUP(A58,'DATA (2022)'!A:F,5,FALSE) -> 1205 | G58: =IFERROR(F58*(1-VLOOKUP(C58,ГОЛОВНА!K:L,2,0)), "-") -> 831.45
A59: 96001965 | B59: =VLOOKUP(A59,'DATA (2022)'!A:F,2,FALSE) -> Насос стічн.вод UNILIFT AP12.50.11.A1 | C59: =VLOOKUP(A59,'DATA (2022)'!A:F,4,FALSE) -> CW | D59: S | F59: =VLOOKUP(A59,'DATA (2022)'!A:F,5,FALSE) -> 1151 | G59: =IFERROR(F59*(1-VLOOKUP(C59,ГОЛОВНА!K:L,2,0)), "-") -> 794.19
A60: 96023874 | B60: =VLOOKUP(A60,'DATA (2022)'!A:F,2,FALSE) -> Насос стічн.вод UNILIFT AP12.50.11.A3 | C60: =VLOOKUP(A60,'DATA (2022)'!A:F,4,FALSE) -> CW | F60: =VLOOKUP(A60,'DATA (2022)'!A:F,5,FALSE) -> 1290 | G60: =IFERROR(F60*(1-VLOOKUP(C60,ГОЛОВНА!K:L,2,0)), "-") -> 890.1
A61: 96001796 | B61: =VLOOKUP(A61,'DATA (2022)'!A:F,2,FALSE) -> Насос стічн.вод UNILIFT AP35.40.06.1V | C61: =VLOOKUP(A61,'DATA (2022)'!A:F,4,FALSE) -> CW | F61: =VLOOKUP(A61,'DATA (2022)'!A:F,5,FALSE) -> 809 | G61: =IFERROR(F61*(1-VLOOKUP(C61,ГОЛОВНА!K:L,2,0)), "-") -> 558.21
A62: 96000169 | B62: =VLOOKUP(A62,'DATA (2022)'!A:F,2,FALSE) -> Насос стічн.вод UNILIFT AP35.40.06.3V | C62: =VLOOKUP(A62,'DATA (2022)'!A:F,4,FALSE) -> CW | F62: =VLOOKUP(A62,'DATA (2022)'!A:F,5,FALSE) -> 783 | G62: =IFERROR(F62*(1-VLOOKUP(C62,ГОЛОВНА!K:L,2,0)), "-") -> 540.27
A63: 96010982 | B63: =VLOOKUP(A63,'DATA (2022)'!A:F,2,FALSE) -> Насос стічн.вод UNILIFT AP35.40.06.A1V | C63: =VLOOKUP(A63,'DATA (2022)'!A:F,4,FALSE) -> CW | F63: =VLOOKUP(A63,'DATA (2022)'!A:F,5,FALSE) -> 899 | G63: =IFERROR(F63*(1-VLOOKUP(C63,ГОЛОВНА!K:L,2,0)), "-") -> 620.31
A64: 96023875 | B64: =VLOOKUP(A64,'DATA (2022)'!A:F,2,FALSE) -> Насос стічн.вод UNILIFT AP35.40.06.A3V | C64: =VLOOKUP(A64,'DATA (2022)'!A:F,4,FALSE) -> CW | F64: =VLOOKUP(A64,'DATA (2022)'!A:F,5,FALSE) -> 992 | G64: =IFERROR(F64*(1-VLOOKUP(C64,ГОЛОВНА!K:L,2,0)), "-") -> 684.48
A65: 96001672 | B65: =VLOOKUP(A65,'DATA (2022)'!A:F,2,FALSE) -> Насос стічн.вод UNILIFT AP35.40.08.1V | C65: =VLOOKUP(A65,'DATA (2022)'!A:F,4,FALSE) -> CW | F65: =VLOOKUP(A65,'DATA (2022)'!A:F,5,FALSE) -> 887 | G65: =IFERROR(F65*(1-VLOOKUP(C65,ГОЛОВНА!K:L,2,0)), "-") -> 612.03
A66: 96001718 | B66: =VLOOKUP(A66,'DATA (2022)'!A:F,2,FALSE) -> Насос стічн.вод UNILIFT AP35.40.08.3V | C66: =VLOOKUP(A66,'DATA (2022)'!A:F,4,FALSE) -> CW | F66: =VLOOKUP(A66,'DATA (2022)'!A:F,5,FALSE) -> 856 | G66: =IFERROR(F66*(1-VLOOKUP(C66,ГОЛОВНА!K:L,2,0)), "-") -> 590.64
A67: 96010983 | B67: =VLOOKUP(A67,'DATA (2022)'!A:F,2,FALSE) -> Насос стічн.вод UNILIFT AP35.40.08.A1V | C67: =VLOOKUP(A67,'DATA (2022)'!A:F,4,FALSE) -> CW | F67: =VLOOKUP(A67,'DATA (2022)'!A:F,5,FALSE) -> 954 | G67: =IFERROR(F67*(1-VLOOKUP(C67,ГОЛОВНА!K:L,2,0)), "-") -> 658.26
A68: 96001897 | B68: =VLOOKUP(A68,'DATA (2022)'!A:F,2,FALSE) -> Насос стічн.вод UNILIFT AP35.40.08.A1V | C68: =VLOOKUP(A68,'DATA (2022)'!A:F,4,FALSE) -> CW | F68: =VLOOKUP(A68,'DATA (2022)'!A:F,5,FALSE) -> 913 | G68: =IFERROR(F68*(1-VLOOKUP(C68,ГОЛОВНА!K:L,2,0)), "-") -> 629.97
A69: 96023876 | B69: =VLOOKUP(A69,'DATA (2022)'!A:F,2,FALSE) -> Насос стічн.вод UNILIFT AP35.40.08.A3V | C69: =VLOOKUP(A69,'DATA (2022)'!A:F,4,FALSE) -> CW | F69: =VLOOKUP(A69,'DATA (2022)'!A:F,5,FALSE) -> 1103 | G69: =IFERROR(F69*(1-VLOOKUP(C69,ГОЛОВНА!K:L,2,0)), "-") -> 761.07
A70: 96004563 | B70: =VLOOKUP(A70,'DATA (2022)'!A:F,2,FALSE) -> Насос стічн.вод UNILIFT AP35B.50.06.1V | C70: =VLOOKUP(A70,'DATA (2022)'!A:F,4,FALSE) -> CW | F70: =VLOOKUP(A70,'DATA (2022)'!A:F,5,FALSE) -> 537 | G70: =IFERROR(F70*(1-VLOOKUP(C70,ГОЛОВНА!K:L,2,0)), "-") -> 370.53
A71: 96468190 | B71: =VLOOKUP(A71,'DATA (2022)'!A:F,2,FALSE) -> Насос стічн.вод UNILIFT AP35B.50.06.3V | C71: =VLOOKUP(A71,'DATA (2022)'!A:F,4,FALSE) -> CW | F71: =VLOOKUP(A71,'DATA (2022)'!A:F,5,FALSE) -> 600 | G71: =IFERROR(F71*(1-VLOOKUP(C71,ГОЛОВНА!K:L,2,0)), "-") -> 414
A72: 96004565 | B72: =VLOOKUP(A72,'DATA (2022)'!A:F,2,FALSE) -> Насос стічн.вод UNILIFT AP35B.50.06.3V | C72: =VLOOKUP(A72,'DATA (2022)'!A:F,4,FALSE) -> CW | F72: =VLOOKUP(A72,'DATA (2022)'!A:F,5,FALSE) -> 589 | G72: =IFERROR(F72*(1-VLOOKUP(C72,ГОЛОВНА!K:L,2,0)), "-") -> 406.41
A73: 96468356 | B73: =VLOOKUP(A73,'DATA (2022)'!A:F,2,FALSE) -> Насос стічн.вод UNILIFT AP35B.50.06.A1V | C73: =VLOOKUP(A73,'DATA (2022)'!A:F,4,FALSE) -> CW | D73: S | F73: =VLOOKUP(A73,'DATA (2022)'!A:F,5,FALSE) -> 629 | G73: =IFERROR(F73*(1-VLOOKUP(C73,ГОЛОВНА!K:L,2,0)), "-") -> 434.01
A74: 96004562 | B74: =VLOOKUP(A74,'DATA (2022)'!A:F,2,FALSE) -> Насос стічн.вод UNILIFT AP35B.50.06.A1V | C74: =VLOOKUP(A74,'DATA (2022)'!A:F,4,FALSE) -> CW | F74: =VLOOKUP(A74,'DATA (2022)'!A:F,5,FALSE) -> 614 | G74: =IFERROR(F74*(1-VLOOKUP(C74,ГОЛОВНА!K:L,2,0)), "-") -> 423.66
A75: 96004575 | B75: =VLOOKUP(A75,'DATA (2022)'!A:F,2,FALSE) -> Насос стічн.вод UNILIFT AP35B.50.08.1V | C75: =VLOOKUP(A75,'DATA (2022)'!A:F,4,FALSE) -> CW | F75: =VLOOKUP(A75,'DATA (2022)'!A:F,5,FALSE) -> 648 | G75: =IFERROR(F75*(1-VLOOKUP(C75,ГОЛОВНА!K:L,2,0)), "-") -> 447.12
A76: 96468193 | B76: =VLOOKUP(A76,'DATA (2022)'!A:F,2,FALSE) -> Насос стічн.вод UNILIFT AP35B.50.08.3V | C76: =VLOOKUP(A76,'DATA (2022)'!A:F,4,FALSE) -> CW | F76: =VLOOKUP(A76,'DATA (2022)'!A:F,5,FALSE) -> 713 | G76: =IFERROR(F76*(1-VLOOKUP(C76,ГОЛОВНА!K:L,2,0)), "-") -> 491.97
A77: 96004577 | B77: =VLOOKUP(A77,'DATA (2022)'!A:F,2,FALSE) -> Насос стічн.вод UNILIFT AP35B.50.08.3V | C77: =VLOOKUP(A77,'DATA (2022)'!A:F,4,FALSE) -> CW | F77: =VLOOKUP(A77,'DATA (2022)'!A:F,5,FALSE) -> 701 | G77: =IFERROR(F77*(1-VLOOKUP(C77,ГОЛОВНА!K:L,2,0)), "-") -> 483.69
A78: 96468355 | B78: =VLOOKUP(A78,'DATA (2022)'!A:F,2,FALSE) -> Насос стічн.вод UNILIFT AP35B.50.08.A1V | C78: =VLOOKUP(A78,'DATA (2022)'!A:F,4,FALSE) -> CW | F78: =VLOOKUP(A78,'DATA (2022)'!A:F,5,FALSE) -> 741 | G78: =IFERROR(F78*(1-VLOOKUP(C78,ГОЛОВНА!K:L,2,0)), "-") -> 511.29
A79: 96004574 | B79: =VLOOKUP(A79,'DATA (2022)'!A:F,2,FALSE) -> Насос стічн.вод UNILIFT AP35B.50.08.A1V | C79: =VLOOKUP(A79,'DATA (2022)'!A:F,4,FALSE) -> CW | F79: =VLOOKUP(A79,'DATA (2022)'!A:F,5,FALSE) -> 726 | G79: =IFERROR(F79*(1-VLOOKUP(C79,ГОЛОВНА!K:L,2,0)), "-") -> 500.94
A80: 96010595 | B80: =VLOOKUP(A80,'DATA (2022)'!A:F,2,FALSE) -> Насос стічн.вод UNILIFT AP50.50.08.1V | C80: =VLOOKUP(A80,'DATA (2022)'!A:F,4,FALSE) -> CW | F80: =VLOOKUP(A80,'DATA (2022)'!A:F,5,FALSE) -> 1163 | G80: =IFERROR(F80*(1-VLOOKUP(C80,ГОЛОВНА!K:L,2,0)), "-") -> 802.47
A81: 96010563 | B81: =VLOOKUP(A81,'DATA (2022)'!A:F,2,FALSE) -> Насос стічн.вод UNILIFT AP50.50.08.3V | C81: =VLOOKUP(A81,'DATA (2022)'!A:F,4,FALSE) -> CW | F81: =VLOOKUP(A81,'DATA (2022)'!A:F,5,FALSE) -> 1125 | G81: =IFERROR(F81*(1-VLOOKUP(C81,ГОЛОВНА!K:L,2,0)), "-") -> 776.25
A82: 96010984 | B82: =VLOOKUP(A82,'DATA (2022)'!A:F,2,FALSE) -> Насос стічн.вод UNILIFT AP50.50.08.A1V | C82: =VLOOKUP(A82,'DATA (2022)'!A:F,4,FALSE) -> CW | F82: =VLOOKUP(A82,'DATA (2022)'!A:F,5,FALSE) -> 1268 | G82: =IFERROR(F82*(1-VLOOKUP(C82,ГОЛОВНА!K:L,2,0)), "-") -> 874.92
A83: 96010584 | B83: =VLOOKUP(A83,'DATA (2022)'!A:F,2,FALSE) -> Насос стічн.вод UNILIFT AP50.50.08.A1V | C83: =VLOOKUP(A83,'DATA (2022)'!A:F,4,FALSE) -> CW | F83: =VLOOKUP(A83,'DATA (2022)'!A:F,5,FALSE) -> 1200 | G83: =IFERROR(F83*(1-VLOOKUP(C83,ГОЛОВНА!K:L,2,0)), "-") -> 828
A84: 96023877 | B84: =VLOOKUP(A84,'DATA (2022)'!A:F,2,FALSE) -> Насос стічн.вод UNILIFT AP50.50.08.A3V | C84: =VLOOKUP(A84,'DATA (2022)'!A:F,4,FALSE) -> CW | F84: =VLOOKUP(A84,'DATA (2022)'!A:F,5,FALSE) -> 1356 | G84: =IFERROR(F84*(1-VLOOKUP(C84,ГОЛОВНА!K:L,2,0)), "-") -> 935.64
A85: 96010577 | B85: =VLOOKUP(A85,'DATA (2022)'!A:F,2,FALSE) -> Насос стічн.вод UNILIFT AP50.50.11.1V | C85: =VLOOKUP(A85,'DATA (2022)'!A:F,4,FALSE) -> CW | F85: =VLOOKUP(A85,'DATA (2022)'!A:F,5,FALSE) -> 1759 | G85: =IFERROR(F85*(1-VLOOKUP(C85,ГОЛОВНА!K:L,2,0)), "-") -> 1213.71
A86: 96010562 | B86: =VLOOKUP(A86,'DATA (2022)'!A:F,2,FALSE) -> Насос стічн.вод UNILIFT AP50.50.11.3V | C86: =VLOOKUP(A86,'DATA (2022)'!A:F,4,FALSE) -> CW | F86: =VLOOKUP(A86,'DATA (2022)'!A:F,5,FALSE) -> 1704 | G86: =IFERROR(F86*(1-VLOOKUP(C86,ГОЛОВНА!K:L,2,0)), "-") -> 1175.76
A87: 96010985 | B87: =VLOOKUP(A87,'DATA (2022)'!A:F,2,FALSE) -> Насос стічн.вод UNILIFT AP50.50.11.A1V | C87: =VLOOKUP(A87,'DATA (2022)'!A:F,4,FALSE) -> CW | F87: =VLOOKUP(A87,'DATA (2022)'!A:F,5,FALSE) -> 1861 | G87: =IFERROR(F87*(1-VLOOKUP(C87,ГОЛОВНА!K:L,2,0)), "-") -> 1284.09
A88: 96023878 | B88: =VLOOKUP(A88,'DATA (2022)'!A:F,2,FALSE) -> Насос стічн.вод UNILIFT AP50.50.11.A3V | C88: =VLOOKUP(A88,'DATA (2022)'!A:F,4,FALSE) -> CW | F88: =VLOOKUP(A88,'DATA (2022)'!A:F,5,FALSE) -> 1934 | G88: =IFERROR(F88*(1-VLOOKUP(C88,ГОЛОВНА!K:L,2,0)), "-") -> 1334.46
A89: 96004587 | B89: =VLOOKUP(A89,'DATA (2022)'!A:F,2,FALSE) -> Насос стічн.вод UNILIFT AP50B.50.08.1V | C89: =VLOOKUP(A89,'DATA (2022)'!A:F,4,FALSE) -> CW | F89: =VLOOKUP(A89,'DATA (2022)'!A:F,5,FALSE) -> 829 | G89: =IFERROR(F89*(1-VLOOKUP(C89,ГОЛОВНА!K:L,2,0)), "-") -> 572.01
A90: 96468194 | B90: =VLOOKUP(A90,'DATA (2022)'!A:F,2,FALSE) -> Насос стічн.вод UNILIFT AP50B.50.08.3V | C90: =VLOOKUP(A90,'DATA (2022)'!A:F,4,FALSE) -> CW | D90: S | F90: =VLOOKUP(A90,'DATA (2022)'!A:F,5,FALSE) -> 830 | G90: =IFERROR(F90*(1-VLOOKUP(C90,ГОЛОВНА!K:L,2,0)), "-") -> 572.7
A91: 96004589 | B91: =VLOOKUP(A91,'DATA (2022)'!A:F,2,FALSE) -> Насос стічн.вод UNILIFT AP50B.50.08.3V | C91: =VLOOKUP(A91,'DATA (2022)'!A:F,4,FALSE) -> CW | F91: =VLOOKUP(A91,'DATA (2022)'!A:F,5,FALSE) -> 816 | G91: =IFERROR(F91*(1-VLOOKUP(C91,ГОЛОВНА!K:L,2,0)), "-") -> 563.04
A92: 96468354 | B92: =VLOOKUP(A92,'DATA (2022)'!A:F,2,FALSE) -> Насос стічн.вод UNILIFT AP50B.50.08.A1V | C92: =VLOOKUP(A92,'DATA (2022)'!A:F,4,FALSE) -> CW | F92: =VLOOKUP(A92,'DATA (2022)'!A:F,5,FALSE) -> 929 | G92: =IFERROR(F92*(1-VLOOKUP(C92,ГОЛОВНА!K:L,2,0)), "-") -> 641.01
A93: 96004586 | B93: =VLOOKUP(A93,'DATA (2022)'!A:F,2,FALSE) -> Насос стічн.вод UNILIFT AP50B.50.08.A1V | C93: =VLOOKUP(A93,'DATA (2022)'!A:F,4,FALSE) -> CW | F93: =VLOOKUP(A93,'DATA (2022)'!A:F,5,FALSE) -> 905 | G93: =IFERROR(F93*(1-VLOOKUP(C93,ГОЛОВНА!K:L,2,0)), "-") -> 624.45
A94: 96004599 | B94: =VLOOKUP(A94,'DATA (2022)'!A:F,2,FALSE) -> Насос стічн.вод UNILIFT AP50B.50.11.1V | C94: =VLOOKUP(A94,'DATA (2022)'!A:F,4,FALSE) -> CW | F94: =VLOOKUP(A94,'DATA (2022)'!A:F,5,FALSE) -> 1025 | G94: =IFERROR(F94*(1-VLOOKUP(C94,ГОЛОВНА!K:L,2,0)), "-") -> 707.25
A95: 96468195 | B95: =VLOOKUP(A95,'DATA (2022)'!A:F,2,FALSE) -> Насос стічн.вод UNILIFT AP50B.50.11.3V | C95: =VLOOKUP(A95,'DATA (2022)'!A:F,4,FALSE) -> CW | F95: =VLOOKUP(A95,'DATA (2022)'!A:F,5,FALSE) -> 978 | G95: =IFERROR(F95*(1-VLOOKUP(C95,ГОЛОВНА!K:L,2,0)), "-") -> 674.82
A96: 96004601 | B96: =VLOOKUP(A96,'DATA (2022)'!A:F,2,FALSE) -> Насос стічн.вод UNILIFT AP50B.50.11.3V | C96: =VLOOKUP(A96,'DATA (2022)'!A:F,4,FALSE) -> CW | F96: =VLOOKUP(A96,'DATA (2022)'!A:F,5,FALSE) -> 962 | G96: =IFERROR(F96*(1-VLOOKUP(C96,ГОЛОВНА!K:L,2,0)), "-") -> 663.78
A97: 96468352 | B97: =VLOOKUP(A97,'DATA (2022)'!A:F,2,FALSE) -> Насос стічн.вод UNILIFT AP50B.50.11.A1V | C97: =VLOOKUP(A97,'DATA (2022)'!A:F,4,FALSE) -> CW | F97: =VLOOKUP(A97,'DATA (2022)'!A:F,5,FALSE) -> 1129 | G97: =IFERROR(F97*(1-VLOOKUP(C97,ГОЛОВНА!K:L,2,0)), "-") -> 779.01
A98: 96004598 | B98: =VLOOKUP(A98,'DATA (2022)'!A:F,2,FALSE) -> Насос для брудної води AP50B.50.11.A1V 1 | C98: =VLOOKUP(A98,'DATA (2022)'!A:F,4,FALSE) -> CW | F98: =VLOOKUP(A98,'DATA (2022)'!A:F,5,FALSE) -> 1104 | G98: =IFERROR(F98*(1-VLOOKUP(C98,ГОЛОВНА!K:L,2,0)), "-") -> 761.76
A99: 96468196 | B99: =VLOOKUP(A99,'DATA (2022)'!A:F,2,FALSE) -> Насос стічн.вод UNILIFT AP50B.50.15.3V | C99: =VLOOKUP(A99,'DATA (2022)'!A:F,4,FALSE) -> CW | F99: =VLOOKUP(A99,'DATA (2022)'!A:F,5,FALSE) -> 1144 | G99: =IFERROR(F99*(1-VLOOKUP(C99,ГОЛОВНА!K:L,2,0)), "-") -> 789.36
A100: 96004609 | B100: =VLOOKUP(A100,'DATA (2022)'!A:F,2,FALSE) -> Насос стічн.вод UNILIFT AP50B.50.15.3V | C100: =VLOOKUP(A100,'DATA (2022)'!A:F,4,FALSE) -> CW | F100: =VLOOKUP(A100,'DATA (2022)'!A:F,5,FALSE) -> 1130 | G100: =IFERROR(F100*(1-VLOOKUP(C100,ГОЛОВНА!K:L,2,0)), "-") -> 779.7
A101: 92611467 | B101: =VLOOKUP(A101,'DATA (2022)'!A:F,2,FALSE) -> Насос стічн.вод UNILIFT APG.40.10.A1 1x230V SCH | C101: =VLOOKUP(A101,'DATA (2022)'!A:F,4,FALSE) -> CW | F101: =VLOOKUP(A101,'DATA (2022)'!A:F,5,FALSE) -> 1074 | G101: =IFERROR(F101*(1-VLOOKUP(C101,ГОЛОВНА!K:L,2,0)), "-") -> 741.06
A102: 92616874 | B102: =VLOOKUP(A102,'DATA (2022)'!A:F,2,FALSE) -> Насос стічн.вод UNILIFT APG.40.10.A1 1x230V No Plug | C102: =VLOOKUP(A102,'DATA (2022)'!A:F,4,FALSE) -> CW | F102: =VLOOKUP(A102,'DATA (2022)'!A:F,5,FALSE) -> 1074 | G102: =IFERROR(F102*(1-VLOOKUP(C102,ГОЛОВНА!K:L,2,0)), "-") -> 741.06
A103: 92616890 | B103: =VLOOKUP(A103,'DATA (2022)'!A:F,2,FALSE) -> Насос стічн.вод UNILIFT APG.40.10.1 1x230V SCH | C103: =VLOOKUP(A103,'DATA (2022)'!A:F,4,FALSE) -> CW | F103: =VLOOKUP(A103,'DATA (2022)'!A:F,5,FALSE) -> 1001 | G103: =IFERROR(F103*(1-VLOOKUP(C103,ГОЛОВНА!K:L,2,0)), "-") -> 690.69
A104: 92616891 | B104: =VLOOKUP(A104,'DATA (2022)'!A:F,2,FALSE) -> Насос стічн.вод UNILIFT APG.40.10.1 1x230V No Plug | C104: =VLOOKUP(A104,'DATA (2022)'!A:F,4,FALSE) -> CW | F104: =VLOOKUP(A104,'DATA (2022)'!A:F,5,FALSE) -> 1001 | G104: =IFERROR(F104*(1-VLOOKUP(C104,ГОЛОВНА!K:L,2,0)), "-") -> 690.69
A105: 92616892 | B105: =VLOOKUP(A105,'DATA (2022)'!A:F,2,FALSE) -> Насос стічн.водUNILIFT APG.40.10.A3 3x400V No plug | C105: =VLOOKUP(A105,'DATA (2022)'!A:F,4,FALSE) -> CW | F105: =VLOOKUP(A105,'DATA (2022)'!A:F,5,FALSE) -> 1233 | G105: =IFERROR(F105*(1-VLOOKUP(C105,ГОЛОВНА!K:L,2,0)), "-") -> 850.77
A106: 92616893 | B106: =VLOOKUP(A106,'DATA (2022)'!A:F,2,FALSE) -> Насос стічн.вод UNILIFT APG.40.10.3 3x400V No plug | C106: =VLOOKUP(A106,'DATA (2022)'!A:F,4,FALSE) -> CW | F106: =VLOOKUP(A106,'DATA (2022)'!A:F,5,FALSE) -> 1001 | G106: =IFERROR(F106*(1-VLOOKUP(C106,ГОЛОВНА!K:L,2,0)), "-") -> 690.69
B108: Аксесуари
A109: 330767 | B109: =VLOOKUP(A109,'DATA (2022)'!A:F,2,FALSE) -> Ніпель R 1 1/2 | C109: =VLOOKUP(A109,'DATA (2022)'!A:F,4,FALSE) -> CW | F109: =VLOOKUP(A109,'DATA (2022)'!A:F,5,FALSE) -> 45 | G109: =IFERROR(F109*(1-VLOOKUP(C109,ГОЛОВНА!K:L,2,0)), "-") -> 31.05
A110: 91070765 | B110: =VLOOKUP(A110,'DATA (2022)'!A:F,2,FALSE) -> Труба направляюча 1 1/2 6 м | C110: =VLOOKUP(A110,'DATA (2022)'!A:F,4,FALSE) -> CW | F110: =VLOOKUP(A110,'DATA (2022)'!A:F,5,FALSE) -> 229 | G110: =IFERROR(F110*(1-VLOOKUP(C110,ГОЛОВНА!K:L,2,0)), "-") -> 158.01
A111: 98989664 | B111: =VLOOKUP(A111,'DATA (2022)'!A:F,2,FALSE) -> Ланцюг 320кг 3м SS cert. cpl | C111: =VLOOKUP(A111,'DATA (2022)'!A:F,4,FALSE) -> WW | F111: =VLOOKUP(A111,'DATA (2022)'!A:F,5,FALSE) -> 96 | G111: =IFERROR(F111*(1-VLOOKUP(C111,ГОЛОВНА!K:L,2,0)), "-") -> 71.04
A112: 91072171 | B112: =VLOOKUP(A112,'DATA (2022)'!A:F,2,FALSE) -> Двосторонній ніпель 210 R2" 100 1.4571 | C112: =VLOOKUP(A112,'DATA (2022)'!A:F,4,FALSE) -> CW | F112: =VLOOKUP(A112,'DATA (2022)'!A:F,5,FALSE) -> 36 | G112: =IFERROR(F112*(1-VLOOKUP(C112,ГОЛОВНА!K:L,2,0)), "-") -> 24.84
A113: 91072424 | B113: =VLOOKUP(A113,'DATA (2022)'!A:F,2,FALSE) -> Комплект нап. труб 11/2" 2 шт 6м 1.4541 | C113: =VLOOKUP(A113,'DATA (2022)'!A:F,4,FALSE) -> CW | F113: =VLOOKUP(A113,'DATA (2022)'!A:F,5,FALSE) -> 827 | G113: =IFERROR(F113*(1-VLOOKUP(C113,ГОЛОВНА!K:L,2,0)), "-") -> 570.63
A114: 96001977 | B114: =VLOOKUP(A114,'DATA (2022)'!A:F,2,FALSE) -> Муфта Storz 1 1/2 | C114: =VLOOKUP(A114,'DATA (2022)'!A:F,4,FALSE) -> CW | F114: =VLOOKUP(A114,'DATA (2022)'!A:F,5,FALSE) -> 48 | G114: =IFERROR(F114*(1-VLOOKUP(C114,ГОЛОВНА!K:L,2,0)), "-") -> 33.12
A115: 96001979 | B115: =VLOOKUP(A115,'DATA (2022)'!A:F,2,FALSE) -> Коліно 90 R/Rp11/2 | C115: =VLOOKUP(A115,'DATA (2022)'!A:F,4,FALSE) -> CW | F115: =VLOOKUP(A115,'DATA (2022)'!A:F,5,FALSE) -> 28 | G115: =IFERROR(F115*(1-VLOOKUP(C115,ГОЛОВНА!K:L,2,0)), "-") -> 19.32
A116: 96001980 | B116: =VLOOKUP(A116,'DATA (2022)'!A:F,2,FALSE) -> Коліно оцинк 2 R /RP 90* | C116: =VLOOKUP(A116,'DATA (2022)'!A:F,4,FALSE) -> CW | F116: =VLOOKUP(A116,'DATA (2022)'!A:F,5,FALSE) -> 30 | G116: =IFERROR(F116*(1-VLOOKUP(C116,ГОЛОВНА!K:L,2,0)), "-") -> 20.7
A117: 96001981 | B117: =VLOOKUP(A117,'DATA (2022)'!A:F,2,FALSE) -> Коліно оцинк 2 1/2 R /RP 90* | C117: =VLOOKUP(A117,'DATA (2022)'!A:F,4,FALSE) -> CW | F117: =VLOOKUP(A117,'DATA (2022)'!A:F,5,FALSE) -> 56 | G117: =IFERROR(F117*(1-VLOOKUP(C117,ГОЛОВНА!K:L,2,0)), "-") -> 38.64
A118: 96001984 | B118: =VLOOKUP(A118,'DATA (2022)'!A:F,2,FALSE) -> Муфта STORZ 3 | C118: =VLOOKUP(A118,'DATA (2022)'!A:F,4,FALSE) -> CW | F118: =VLOOKUP(A118,'DATA (2022)'!A:F,5,FALSE) -> 60 | G118: =IFERROR(F118*(1-VLOOKUP(C118,ГОЛОВНА!K:L,2,0)), "-") -> 41.4
A119: 96001993 | B119: =VLOOKUP(A119,'DATA (2022)'!A:F,2,FALSE) -> Ніпель R 2 | C119: =VLOOKUP(A119,'DATA (2022)'!A:F,4,FALSE) -> CW | F119: =VLOOKUP(A119,'DATA (2022)'!A:F,5,FALSE) -> 15 | G119: =IFERROR(F119*(1-VLOOKUP(C119,ГОЛОВНА!K:L,2,0)), "-") -> 10.35
A120: 96001996 | B120: =VLOOKUP(A120,'DATA (2022)'!A:F,2,FALSE) -> Флан. різьбовий Rp 2 1/2 DN 65 GW | C120: =VLOOKUP(A120,'DATA (2022)'!A:F,4,FALSE) -> CW | F120: =VLOOKUP(A120,'DATA (2022)'!A:F,5,FALSE) -> 61 | G120: =IFERROR(F120*(1-VLOOKUP(C120,ГОЛОВНА!K:L,2,0)), "-") -> 42.09
A121: 96001999 | B121: =VLOOKUP(A121,'DATA (2022)'!A:F,2,FALSE) -> Набір прокладок DN80 | C121: =VLOOKUP(A121,'DATA (2022)'!A:F,4,FALSE) -> CW | F121: =VLOOKUP(A121,'DATA (2022)'!A:F,5,FALSE) -> 57 | G121: =IFERROR(F121*(1-VLOOKUP(C121,ГОЛОВНА!K:L,2,0)), "-") -> 39.33
A122: 96002002 | B122: =VLOOKUP(A122,'DATA (2022)'!A:F,2,FALSE) -> Зворотній клапан Rp2", PN10 | C122: =VLOOKUP(A122,'DATA (2022)'!A:F,4,FALSE) -> CW | D122: S | F122: =VLOOKUP(A122,'DATA (2022)'!A:F,5,FALSE) -> 142 | G122: =IFERROR(F122*(1-VLOOKUP(C122,ГОЛОВНА!K:L,2,0)), "-") -> 97.98
A123: 96002005 | B123: =VLOOKUP(A123,'DATA (2022)'!A:F,2,FALSE) -> Клапан запірний Rp2'/Rp2''(латунь) | C123: =VLOOKUP(A123,'DATA (2022)'!A:F,4,FALSE) -> CW | D123: S | F123: =VLOOKUP(A123,'DATA (2022)'!A:F,5,FALSE) -> 76 | G123: =IFERROR(F123*(1-VLOOKUP(C123,ГОЛОВНА!K:L,2,0)), "-") -> 52.44
A124: 96002006 | B124: =VLOOKUP(A124,'DATA (2022)'!A:F,2,FALSE) -> Відсічний клапан 2 1/2 | C124: =VLOOKUP(A124,'DATA (2022)'!A:F,4,FALSE) -> WW | F124: =VLOOKUP(A124,'DATA (2022)'!A:F,5,FALSE) -> 160 | G124: =IFERROR(F124*(1-VLOOKUP(C124,ГОЛОВНА!K:L,2,0)), "-") -> 118.4
A125: 96002008 | B125: =VLOOKUP(A125,'DATA (2022)'!A:F,2,FALSE) -> Кульовий зворотний клапан DN 65 PN 10 | C125: =VLOOKUP(A125,'DATA (2022)'!A:F,4,FALSE) -> WW | D125: S | F125: =VLOOKUP(A125,'DATA (2022)'!A:F,5,FALSE) -> 193 | G125: =IFERROR(F125*(1-VLOOKUP(C125,ГОЛОВНА!K:L,2,0)), "-") -> 142.82
A126: 96002009 | B126: =VLOOKUP(A126,'DATA (2022)'!A:F,2,FALSE) -> Зворотний клапан кульовий DN 80 PN10 (SE | C126: =VLOOKUP(A126,'DATA (2022)'!A:F,4,FALSE) -> WW | D126: S | F126: =VLOOKUP(A126,'DATA (2022)'!A:F,5,FALSE) -> 229 | G126: =IFERROR(F126*(1-VLOOKUP(C126,ГОЛОВНА!K:L,2,0)), "-") -> 169.46
A127: 96002010 | B127: =VLOOKUP(A127,'DATA (2022)'!A:F,2,FALSE) -> Засувка клинова DN 65 PN 10 | C127: =VLOOKUP(A127,'DATA (2022)'!A:F,4,FALSE) -> WW | D127: S | F127: =VLOOKUP(A127,'DATA (2022)'!A:F,5,FALSE) -> 212 | G127: =IFERROR(F127*(1-VLOOKUP(C127,ГОЛОВНА!K:L,2,0)), "-") -> 156.88
A128: 96002011 | B128: =VLOOKUP(A128,'DATA (2022)'!A:F,2,FALSE) -> Запірний клапан DN80 PN10/16 (SEV, M/MD) | C128: =VLOOKUP(A128,'DATA (2022)'!A:F,4,FALSE) -> WW | D128: S | F128: =VLOOKUP(A128,'DATA (2022)'!A:F,5,FALSE) -> 258 | G128: =IFERROR(F128*(1-VLOOKUP(C128,ГОЛОВНА!K:L,2,0)), "-") -> 190.92
A129: 96002085 | B129: =VLOOKUP(A129,'DATA (2022)'!A:F,2,FALSE) -> Кульовий зворотний клапан DN100 PN10 | C129: =VLOOKUP(A129,'DATA (2022)'!A:F,4,FALSE) -> WW | F129: =VLOOKUP(A129,'DATA (2022)'!A:F,5,FALSE) -> 343 | G129: =IFERROR(F129*(1-VLOOKUP(C129,ГОЛОВНА!K:L,2,0)), "-") -> 253.82
A130: 96003605 | B130: =VLOOKUP(A130,'DATA (2022)'!A:F,2,FALSE) -> Монтажний комплект до фланця DN150 | C130: =VLOOKUP(A130,'DATA (2022)'!A:F,4,FALSE) -> CW | F130: =VLOOKUP(A130,'DATA (2022)'!A:F,5,FALSE) -> 92 | G130: =IFERROR(F130*(1-VLOOKUP(C130,ГОЛОВНА!K:L,2,0)), "-") -> 63.48
A131: 96003632 | B131: =VLOOKUP(A131,'DATA (2022)'!A:F,2,FALSE) -> Ніпель R 1 1/2 | C131: =VLOOKUP(A131,'DATA (2022)'!A:F,4,FALSE) -> CW | F131: =VLOOKUP(A131,'DATA (2022)'!A:F,5,FALSE) -> 30 | G131: =IFERROR(F131*(1-VLOOKUP(C131,ГОЛОВНА!K:L,2,0)), "-") -> 20.7
A132: 96003823 | B132: =VLOOKUP(A132,'DATA (2022)'!A:F,2,FALSE) -> Монтажний комплект DN100 | C132: =VLOOKUP(A132,'DATA (2022)'!A:F,4,FALSE) -> CW | F132: =VLOOKUP(A132,'DATA (2022)'!A:F,5,FALSE) -> 64 | G132: =IFERROR(F132*(1-VLOOKUP(C132,ГОЛОВНА!K:L,2,0)), "-") -> 44.16
A133: 96003826 | B133: =VLOOKUP(A133,'DATA (2022)'!A:F,2,FALSE) -> Клапан зворотній DN80 | C133: =VLOOKUP(A133,'DATA (2022)'!A:F,4,FALSE) -> WW | F133: =VLOOKUP(A133,'DATA (2022)'!A:F,5,FALSE) -> 649 | G133: =IFERROR(F133*(1-VLOOKUP(C133,ГОЛОВНА!K:L,2,0)), "-") -> 480.26
A134: 96003827 | B134: =VLOOKUP(A134,'DATA (2022)'!A:F,2,FALSE) -> Зворотній капан DN100 PN10 | C134: =VLOOKUP(A134,'DATA (2022)'!A:F,4,FALSE) -> CW | F134: =VLOOKUP(A134,'DATA (2022)'!A:F,5,FALSE) -> 658 | G134: =IFERROR(F134*(1-VLOOKUP(C134,ГОЛОВНА!K:L,2,0)), "-") -> 454.02
A135: 96004422 | B135: =VLOOKUP(A135,'DATA (2022)'!A:F,2,FALSE) -> Кульовий зворотній клапан DN300 PN10 | C135: =VLOOKUP(A135,'DATA (2022)'!A:F,4,FALSE) -> WW | F135: =VLOOKUP(A135,'DATA (2022)'!A:F,5,FALSE) -> За запитом | G135: =IFERROR(F135*(1-VLOOKUP(C135,ГОЛОВНА!K:L,2,0)), "-") -> -
A136: 96004423 | B136: =VLOOKUP(A136,'DATA (2022)'!A:F,2,FALSE) -> Засувка клинова DN250 PN10 | C136: =VLOOKUP(A136,'DATA (2022)'!A:F,4,FALSE) -> WW | F136: =VLOOKUP(A136,'DATA (2022)'!A:F,5,FALSE) -> 1115 | G136: =IFERROR(F136*(1-VLOOKUP(C136,ГОЛОВНА!K:L,2,0)), "-") -> 825.1
A137: 96004445 | B137: =VLOOKUP(A137,'DATA (2022)'!A:F,2,FALSE) -> Авт. муфта підвісна 2" (з коліном 90) | C137: =VLOOKUP(A137,'DATA (2022)'!A:F,4,FALSE) -> WW | F137: =VLOOKUP(A137,'DATA (2022)'!A:F,5,FALSE) -> 218 | G137: =IFERROR(F137*(1-VLOOKUP(C137,ГОЛОВНА!K:L,2,0)), "-") -> 161.32
A138: 96005259 | B138: =VLOOKUP(A138,'DATA (2022)'!A:F,2,FALSE) -> Напірний шланг з муфтою Storz L=20м 3 | C138: =VLOOKUP(A138,'DATA (2022)'!A:F,4,FALSE) -> WW | F138: =VLOOKUP(A138,'DATA (2022)'!A:F,5,FALSE) -> 447 | G138: =IFERROR(F138*(1-VLOOKUP(C138,ГОЛОВНА!K:L,2,0)), "-") -> 330.78
A139: 96005308 | B139: =VLOOKUP(A139,'DATA (2022)'!A:F,2,FALSE) -> Зворотній клапан R 1 1/4 | C139: =VLOOKUP(A139,'DATA (2022)'!A:F,4,FALSE) -> WW | F139: =VLOOKUP(A139,'DATA (2022)'!A:F,5,FALSE) -> 56 | G139: =IFERROR(F139*(1-VLOOKUP(C139,ГОЛОВНА!K:L,2,0)), "-") -> 41.44
A140: 96005309 | B140: =VLOOKUP(A140,'DATA (2022)'!A:F,2,FALSE) -> Зворотний клапан Rp 1 1/2" | C140: =VLOOKUP(A140,'DATA (2022)'!A:F,4,FALSE) -> CW | F140: =VLOOKUP(A140,'DATA (2022)'!A:F,5,FALSE) -> 119 | G140: =IFERROR(F140*(1-VLOOKUP(C140,ГОЛОВНА!K:L,2,0)), "-") -> 82.11
A141: 96489959 | B141: =VLOOKUP(A141,'DATA (2022)'!A:F,2,FALSE) -> Фланець різьбовий DN40, Rp 1 1/2" | C141: =VLOOKUP(A141,'DATA (2022)'!A:F,4,FALSE) -> CW | F141: =VLOOKUP(A141,'DATA (2022)'!A:F,5,FALSE) -> 35 | G141: =IFERROR(F141*(1-VLOOKUP(C141,ГОЛОВНА!K:L,2,0)), "-") -> 24.15
A142: 96489973 | B142: =VLOOKUP(A142,'DATA (2022)'!A:F,2,FALSE) -> Клапан запірний Rp/Rp 1 1/2" | C142: =VLOOKUP(A142,'DATA (2022)'!A:F,4,FALSE) -> CW | D142: S | F142: =VLOOKUP(A142,'DATA (2022)'!A:F,5,FALSE) -> 102 | G142: =IFERROR(F142*(1-VLOOKUP(C142,ГОЛОВНА!K:L,2,0)), "-") -> 70.38
A143: 91070503 | B143: =VLOOKUP(A143,'DATA (2022)'!A:F,2,FALSE) -> Кабельна муфта роз'ємна MS6 (4x6..16мм2) | C143: =VLOOKUP(A143,'DATA (2022)'!A:F,4,FALSE) -> WS | F143: =VLOOKUP(A143,'DATA (2022)'!A:F,5,FALSE) -> 520 | G143: =IFERROR(F143*(1-VLOOKUP(C143,ГОЛОВНА!K:L,2,0)), "-") -> 384.8
A144: 00ID7948 | B144: =VLOOKUP(A144,'DATA (2022)'!A:F,2,FALSE) -> Кабель для питної води 3x4.0 мм2 | C144: =VLOOKUP(A144,'DATA (2022)'!A:F,4,FALSE) -> WS | F144: =VLOOKUP(A144,'DATA (2022)'!A:F,5,FALSE) -> 8 | G144: =IFERROR(F144*(1-VLOOKUP(C144,ГОЛОВНА!K:L,2,0)), "-") -> 5.92
A145: 00RM4098 | B145: =VLOOKUP(A145,'DATA (2022)'!A:F,2,FALSE) -> Кабель для питної води 3x6.0мм2 | C145: =VLOOKUP(A145,'DATA (2022)'!A:F,4,FALSE) -> WS | F145: =VLOOKUP(A145,'DATA (2022)'!A:F,5,FALSE) -> 11.5 | G145: =IFERROR(F145*(1-VLOOKUP(C145,ГОЛОВНА!K:L,2,0)), "-") -> 8.51
A146: 00ID7803 | B146: =VLOOKUP(A146,'DATA (2022)'!A:F,2,FALSE) -> Поплавцевий вимикач REIFA-E w/3m-cable | C146: =VLOOKUP(A146,'DATA (2022)'!A:F,4,FALSE) -> CW | F146: =VLOOKUP(A146,'DATA (2022)'!A:F,5,FALSE) -> 35 | G146: =IFERROR(F146*(1-VLOOKUP(C146,ГОЛОВНА!K:L,2,0)), "-") -> 24.15
A147: 00ID7805 | B147: =VLOOKUP(A147,'DATA (2022)'!A:F,2,FALSE) -> Поплавцевий вимикач REIFA SAS, 5 м | C147: =VLOOKUP(A147,'DATA (2022)'!A:F,4,FALSE) -> CW | F147: =VLOOKUP(A147,'DATA (2022)'!A:F,5,FALSE) -> 49 | G147: =IFERROR(F147*(1-VLOOKUP(C147,ГОЛОВНА!K:L,2,0)), "-") -> 33.81
A148: 00ID7942 | B148: =VLOOKUP(A148,'DATA (2022)'!A:F,2,FALSE) -> Поплавцевий вимикач Reifa E 20,0 м | C148: =VLOOKUP(A148,'DATA (2022)'!A:F,4,FALSE) -> CW | F148: =VLOOKUP(A148,'DATA (2022)'!A:F,5,FALSE) -> 113 | G148: =IFERROR(F148*(1-VLOOKUP(C148,ГОЛОВНА!K:L,2,0)), "-") -> 77.97
A149: 15211 | B149: =VLOOKUP(A149,'DATA (2022)'!A:F,2,FALSE) -> Зворотній клапан до насоса KP | C149: =VLOOKUP(A149,'DATA (2022)'!A:F,4,FALSE) -> CW | F149: =VLOOKUP(A149,'DATA (2022)'!A:F,5,FALSE) -> 27 | G149: =IFERROR(F149*(1-VLOOKUP(C149,ГОЛОВНА!K:L,2,0)), "-") -> 18.63
A150: 00ID7809 | B150: =VLOOKUP(A150,'DATA (2022)'!A:F,2,FALSE) -> Поплавцевий вимикач з кабелем 10 м | C150: =VLOOKUP(A150,'DATA (2022)'!A:F,4,FALSE) -> CW | F150: =VLOOKUP(A150,'DATA (2022)'!A:F,5,FALSE) -> 77.4 | G150: =IFERROR(F150*(1-VLOOKUP(C150,ГОЛОВНА!K:L,2,0)), "-") -> 53.406
A151: 00ID8961 | B151: =VLOOKUP(A151,'DATA (2022)'!A:F,2,FALSE) -> Запобіжний вимикач для підключення | C151: =VLOOKUP(A151,'DATA (2022)'!A:F,4,FALSE) -> CW | F151: =VLOOKUP(A151,'DATA (2022)'!A:F,5,FALSE) -> 220 | G151: =IFERROR(F151*(1-VLOOKUP(C151,ГОЛОВНА!K:L,2,0)), "-") -> 151.8
A152: 00ID8962 | B152: =VLOOKUP(A152,'DATA (2022)'!A:F,2,FALSE) -> Муфта швидкого монтажу MS 1 1/4 PN40 | C152: =VLOOKUP(A152,'DATA (2022)'!A:F,4,FALSE) -> CW | F152: =VLOOKUP(A152,'DATA (2022)'!A:F,5,FALSE) -> 22 | G152: =IFERROR(F152*(1-VLOOKUP(C152,ГОЛОВНА!K:L,2,0)), "-") -> 15.18
A153: 00ID8963 | B153: =VLOOKUP(A153,'DATA (2022)'!A:F,2,FALSE) -> Муфта швидкого монтажа PN20 | C153: =VLOOKUP(A153,'DATA (2022)'!A:F,4,FALSE) -> CW | F153: =VLOOKUP(A153,'DATA (2022)'!A:F,5,FALSE) -> 12 | G153: =IFERROR(F153*(1-VLOOKUP(C153,ГОЛОВНА!K:L,2,0)), "-") -> 8.28
A154: 00ID9052 | B154: =VLOOKUP(A154,'DATA (2022)'!A:F,2,FALSE) -> Муфта швидкого монтажу R 1 1/4 --> STORZ | C154: =VLOOKUP(A154,'DATA (2022)'!A:F,4,FALSE) -> CW | F154: =VLOOKUP(A154,'DATA (2022)'!A:F,5,FALSE) -> 17 | G154: =IFERROR(F154*(1-VLOOKUP(C154,ГОЛОВНА!K:L,2,0)), "-") -> 11.73
A155: 00ID9053 | B155: =VLOOKUP(A155,'DATA (2022)'!A:F,2,FALSE) -> Хомут для шланга, 1 1/4 | C155: =VLOOKUP(A155,'DATA (2022)'!A:F,4,FALSE) -> CW | D155: S | F155: =VLOOKUP(A155,'DATA (2022)'!A:F,5,FALSE) -> 5 | G155: =IFERROR(F155*(1-VLOOKUP(C155,ГОЛОВНА!K:L,2,0)), "-") -> 3.45
B158: Примітка:
A159: S | B159: - складська позиція (зазвичай є на скаді)
A160: FT | B160: - швидка поставка (зазвичай до 3-х тижнів)
B163: Більше інформації в Grundfos Product Center
B164: https://product-selection.grundfos.com/ua

Sheet SEG, AutoADAPT
A1: АРТИКУЛ | B1: НАЙМЕНУВАННЯ (УКР) | C1: PRICE GROUP | D1: ДОСТАВКА | E1: ДОДАТКОВО | F1: ЦІНА (ЕВРО БЕЗ ПДВ) | G1: ЦІНА ЗІ ЗНИЖКОЮ | H1: НА ГОЛОВНУ
A2: SEG | G2: Каналізаційні насоси з ріжучим механізмом
A3: 96075893 | B3: =VLOOKUP(A3,'DATA (2022)'!A:F,2,FALSE) -> Кан.насос SEG.40.09.2.1.502 | C3: =VLOOKUP(A3,'DATA (2022)'!A:F,4,FALSE) -> CW | D3: S | F3: =VLOOKUP(A3,'DATA (2022)'!A:F,5,FALSE) -> 1767 | G3: =IFERROR(F3*(1-VLOOKUP(C3,ГОЛОВНА!K:L,2,0)), "-") -> 1219.23
A4: 96076212 | B4: =VLOOKUP(A4,'DATA (2022)'!A:F,2,FALSE) -> Кан.насос SEG.40.09.2.1.502 | C4: =VLOOKUP(A4,'DATA (2022)'!A:F,4,FALSE) -> CW | F4: =VLOOKUP(A4,'DATA (2022)'!A:F,5,FALSE) -> 1853 | G4: =IFERROR(F4*(1-VLOOKUP(C4,ГОЛОВНА!K:L,2,0)), "-") -> 1278.57
A5: 96075897 | B5: =VLOOKUP(A5,'DATA (2022)'!A:F,2,FALSE) -> Кан.насос SEG.40.09.2.50B | C5: =VLOOKUP(A5,'DATA (2022)'!A:F,4,FALSE) -> CW | D5: S | F5: =VLOOKUP(A5,'DATA (2022)'!A:F,5,FALSE) -> 1767 | G5: =IFERROR(F5*(1-VLOOKUP(C5,ГОЛОВНА!K:L,2,0)), "-") -> 1219.23
A6: 96878505 | B6: =VLOOKUP(A6,'DATA (2022)'!A:F,2,FALSE) -> Кан.насос SEG.40.09.E.2.1.502 | C6: =VLOOKUP(A6,'DATA (2022)'!A:F,4,FALSE) -> CW | D6: S | F6: =VLOOKUP(A6,'DATA (2022)'!A:F,5,FALSE) -> 2501 | G6: =IFERROR(F6*(1-VLOOKUP(C6,ГОЛОВНА!K:L,2,0)), "-") -> 1725.69
A7: 96878506 | B7: =VLOOKUP(A7,'DATA (2022)'!A:F,2,FALSE) -> Кан.насос SEG.40.09.E.2.50B | C7: =VLOOKUP(A7,'DATA (2022)'!A:F,4,FALSE) -> CW | D7: S | F7: =VLOOKUP(A7,'DATA (2022)'!A:F,5,FALSE) -> 2501 | G7: =IFERROR(F7*(1-VLOOKUP(C7,ГОЛОВНА!K:L,2,0)), "-") -> 1725.69
A8: 96878507 | B8: =VLOOKUP(A8,'DATA (2022)'!A:F,2,FALSE) -> Кан.насос SEG.40.09.E.Ex.2.1.502 | C8: =VLOOKUP(A8,'DATA (2022)'!A:F,4,FALSE) -> CW | F8: =VLOOKUP(A8,'DATA (2022)'!A:F,5,FALSE) -> 2730 | G8: =IFERROR(F8*(1-VLOOKUP(C8,ГОЛОВНА!K:L,2,0)), "-") -> 1883.7
A9: 96878508 | B9: =VLOOKUP(A9,'DATA (2022)'!A:F,2,FALSE) -> Кан.насос SEG.40.09.E.Ex.2.50B | C9: =VLOOKUP(A9,'DATA (2022)'!A:F,4,FALSE) -> CW | F9: =VLOOKUP(A9,'DATA (2022)'!A:F,5,FALSE) -> 2730 | G9: =IFERROR(F9*(1-VLOOKUP(C9,ГОЛОВНА!K:L,2,0)), "-") -> 1883.7
A10: 96075894 | B10: =VLOOKUP(A10,'DATA (2022)'!A:F,2,FALSE) -> Кан.насос SEG.40.09.EX.2.1.502 | C10: =VLOOKUP(A10,'DATA (2022)'!A:F,4,FALSE) -> CW | F10: =VLOOKUP(A10,'DATA (2022)'!A:F,5,FALSE) -> 1954 | G10: =IFERROR(F10*(1-VLOOKUP(C10,ГОЛОВНА!K:L,2,0)), "-") -> 1348.26
A11: 96076213 | B11: =VLOOKUP(A11,'DATA (2022)'!A:F,2,FALSE) -> Кан.насос SEG.40.09.EX.2.1.502 | C11: =VLOOKUP(A11,'DATA (2022)'!A:F,4,FALSE) -> CW | F11: =VLOOKUP(A11,'DATA (2022)'!A:F,5,FALSE) -> 2001 | G11: =IFERROR(F11*(1-VLOOKUP(C11,ГОЛОВНА!K:L,2,0)), "-") -> 1380.69
A12: 96075898 | B12: =VLOOKUP(A12,'DATA (2022)'!A:F,2,FALSE) -> Кан.насос SEG.40.09.EX.2.50B | C12: =VLOOKUP(A12,'DATA (2022)'!A:F,4,FALSE) -> CW | F12: =VLOOKUP(A12,'DATA (2022)'!A:F,5,FALSE) -> 1954 | G12: =IFERROR(F12*(1-VLOOKUP(C12,ГОЛОВНА!K:L,2,0)), "-") -> 1348.26
A13: 96076215 | B13: =VLOOKUP(A13,'DATA (2022)'!A:F,2,FALSE) -> Кан.насос SEG.40.09.EX.2.50B | C13: =VLOOKUP(A13,'DATA (2022)'!A:F,4,FALSE) -> CW | F13: =VLOOKUP(A13,'DATA (2022)'!A:F,5,FALSE) -> 2001 | G13: =IFERROR(F13*(1-VLOOKUP(C13,ГОЛОВНА!K:L,2,0)), "-") -> 1380.69
A14: 96075901 | B14: =VLOOKUP(A14,'DATA (2022)'!A:F,2,FALSE) -> Кан.насос SEG.40.12.2.1.502 | C14: =VLOOKUP(A14,'DATA (2022)'!A:F,4,FALSE) -> CW | D14: S | F14: =VLOOKUP(A14,'DATA (2022)'!A:F,5,FALSE) -> 1767 | G14: =IFERROR(F14*(1-VLOOKUP(C14,ГОЛОВНА!K:L,2,0)), "-") -> 1219.23
A15: 96075905 | B15: =VLOOKUP(A15,'DATA (2022)'!A:F,2,FALSE) -> Кан.насос SEG.40.12.2.50B | C15: =VLOOKUP(A15,'DATA (2022)'!A:F,4,FALSE) -> CW | D15: S | F15: =VLOOKUP(A15,'DATA (2022)'!A:F,5,FALSE) -> 1767 | G15: =IFERROR(F15*(1-VLOOKUP(C15,ГОЛОВНА!K:L,2,0)), "-") -> 1219.23
A16: 96878509 | B16: =VLOOKUP(A16,'DATA (2022)'!A:F,2,FALSE) -> Кан.насос SEG.40.12.E.2.1.502 | C16: =VLOOKUP(A16,'DATA (2022)'!A:F,4,FALSE) -> CW | D16: S | F16: =VLOOKUP(A16,'DATA (2022)'!A:F,5,FALSE) -> 2501 | G16: =IFERROR(F16*(1-VLOOKUP(C16,ГОЛОВНА!K:L,2,0)), "-") -> 1725.69
A17: 96878510 | B17: =VLOOKUP(A17,'DATA (2022)'!A:F,2,FALSE) -> Кан.насос SEG.40.12.E.2.50B | C17: =VLOOKUP(A17,'DATA (2022)'!A:F,4,FALSE) -> CW | D17: S | F17: =VLOOKUP(A17,'DATA (2022)'!A:F,5,FALSE) -> 2501 | G17: =IFERROR(F17*(1-VLOOKUP(C17,ГОЛОВНА!K:L,2,0)), "-") -> 1725.69
A18: 96878512 | B18: =VLOOKUP(A18,'DATA (2022)'!A:F,2,FALSE) -> Кан.насос SEG.40.12.E.Ex.2.1.502 | C18: =VLOOKUP(A18,'DATA (2022)'!A:F,4,FALSE) -> CW | F18: =VLOOKUP(A18,'DATA (2022)'!A:F,5,FALSE) -> 2730 | G18: =IFERROR(F18*(1-VLOOKUP(C18,ГОЛОВНА!K:L,2,0)), "-") -> 1883.7
A19: 96878513 | B19: =VLOOKUP(A19,'DATA (2022)'!A:F,2,FALSE) -> Кан.насос SEG.40.12.E.Ex.2.50B | C19: =VLOOKUP(A19,'DATA (2022)'!A:F,4,FALSE) -> CW | F19: =VLOOKUP(A19,'DATA (2022)'!A:F,5,FALSE) -> 2730 | G19: =IFERROR(F19*(1-VLOOKUP(C19,ГОЛОВНА!K:L,2,0)), "-") -> 1883.7
A20: 96075902 | B20: =VLOOKUP(A20,'DATA (2022)'!A:F,2,FALSE) -> Кан.насос SEG.40.12.EX.2.1.502 | C20: =VLOOKUP(A20,'DATA (2022)'!A:F,4,FALSE) -> CW | F20: =VLOOKUP(A20,'DATA (2022)'!A:F,5,FALSE) -> 1954 | G20: =IFERROR(F20*(1-VLOOKUP(C20,ГОЛОВНА!K:L,2,0)), "-") -> 1348.26
A21: 96076217 | B21: =VLOOKUP(A21,'DATA (2022)'!A:F,2,FALSE) -> Кан.насос SEG.40.12.EX.2.1.502 | C21: =VLOOKUP(A21,'DATA (2022)'!A:F,4,FALSE) -> CW | F21: =VLOOKUP(A21,'DATA (2022)'!A:F,5,FALSE) -> 2001 | G21: =IFERROR(F21*(1-VLOOKUP(C21,ГОЛОВНА!K:L,2,0)), "-") -> 1380.69
A22: 96075906 | B22: =VLOOKUP(A22,'DATA (2022)'!A:F,2,FALSE) -> Кан.насос SEG.40.12.EX.2.50B | C22: =VLOOKUP(A22,'DATA (2022)'!A:F,4,FALSE) -> CW | F22: =VLOOKUP(A22,'DATA (2022)'!A:F,5,FALSE) -> 1954 | G22: =IFERROR(F22*(1-VLOOKUP(C22,ГОЛОВНА!K:L,2,0)), "-") -> 1348.26
A23: 96076219 | B23: =VLOOKUP(A23,'DATA (2022)'!A:F,2,FALSE) -> Кан.насос SEG.40.12.EX.2.50B | C23: =VLOOKUP(A23,'DATA (2022)'!A:F,4,FALSE) -> CW | F23: =VLOOKUP(A23,'DATA (2022)'!A:F,5,FALSE) -> 2001 | G23: =IFERROR(F23*(1-VLOOKUP(C23,ГОЛОВНА!K:L,2,0)), "-") -> 1380.69
A24: 98280724 | B24: =VLOOKUP(A24,'DATA (2022)'!A:F,2,FALSE) -> Кан.насос SEG.40.15.2.1.502 | C24: =VLOOKUP(A24,'DATA (2022)'!A:F,4,FALSE) -> CW | F24: =VLOOKUP(A24,'DATA (2022)'!A:F,5,FALSE) -> 1936 | G24: =IFERROR(F24*(1-VLOOKUP(C24,ГОЛОВНА!K:L,2,0)), "-") -> 1335.84
A25: 96075909 | B25: =VLOOKUP(A25,'DATA (2022)'!A:F,2,FALSE) -> Кан.насос SEG.40.15.2.50B | C25: =VLOOKUP(A25,'DATA (2022)'!A:F,4,FALSE) -> CW | D25: S | F25: =VLOOKUP(A25,'DATA (2022)'!A:F,5,FALSE) -> 1995 | G25: =IFERROR(F25*(1-VLOOKUP(C25,ГОЛОВНА!K:L,2,0)), "-") -> 1376.55
A26: 98280726 | B26: =VLOOKUP(A26,'DATA (2022)'!A:F,2,FALSE) -> Кан.насос SEG.40.15.E.2.1.502 | C26: =VLOOKUP(A26,'DATA (2022)'!A:F,4,FALSE) -> CW | F26: =VLOOKUP(A26,'DATA (2022)'!A:F,5,FALSE) -> 2707 | G26: =IFERROR(F26*(1-VLOOKUP(C26,ГОЛОВНА!K:L,2,0)), "-") -> 1867.83
A27: 96878514 | B27: =VLOOKUP(A27,'DATA (2022)'!A:F,2,FALSE) -> Кан.насос SEG.40.15.E.2.50B | C27: =VLOOKUP(A27,'DATA (2022)'!A:F,4,FALSE) -> CW | D27: S | F27: =VLOOKUP(A27,'DATA (2022)'!A:F,5,FALSE) -> 2707 | G27: =IFERROR(F27*(1-VLOOKUP(C27,ГОЛОВНА!K:L,2,0)), "-") -> 1867.83
A28: 96878515 | B28: =VLOOKUP(A28,'DATA (2022)'!A:F,2,FALSE) -> Кан.насос SEG.40.15.E.Ex.2.50B | C28: =VLOOKUP(A28,'DATA (2022)'!A:F,4,FALSE) -> CW | F28: =VLOOKUP(A28,'DATA (2022)'!A:F,5,FALSE) -> 2866 | G28: =IFERROR(F28*(1-VLOOKUP(C28,ГОЛОВНА!K:L,2,0)), "-") -> 1977.54
A29: 96075910 | B29: =VLOOKUP(A29,'DATA (2022)'!A:F,2,FALSE) -> Кан.насос SEG.40.15.EX.2.50B | C29: =VLOOKUP(A29,'DATA (2022)'!A:F,4,FALSE) -> CW | F29: =VLOOKUP(A29,'DATA (2022)'!A:F,5,FALSE) -> 2128 | G29: =IFERROR(F29*(1-VLOOKUP(C29,ГОЛОВНА!K:L,2,0)), "-") -> 1468.32
A30: 96076221 | B30: =VLOOKUP(A30,'DATA (2022)'!A:F,2,FALSE) -> Кан.насос SEG.40.15.EX.2.50B | C30: =VLOOKUP(A30,'DATA (2022)'!A:F,4,FALSE) -> CW | F30: =VLOOKUP(A30,'DATA (2022)'!A:F,5,FALSE) -> 2272 | G30: =IFERROR(F30*(1-VLOOKUP(C30,ГОЛОВНА!K:L,2,0)), "-") -> 1567.68
A31: 96075913 | B31: =VLOOKUP(A31,'DATA (2022)'!A:F,2,FALSE) -> Кан.насос SEG.40.26.2.50B | C31: =VLOOKUP(A31,'DATA (2022)'!A:F,4,FALSE) -> CW | D31: S | F31: =VLOOKUP(A31,'DATA (2022)'!A:F,5,FALSE) -> 2477 | G31: =IFERROR(F31*(1-VLOOKUP(C31,ГОЛОВНА!K:L,2,0)), "-") -> 1709.13
A32: 96878516 | B32: =VLOOKUP(A32,'DATA (2022)'!A:F,2,FALSE) -> Кан.насос SEG.40.26.E.2.50B | C32: =VLOOKUP(A32,'DATA (2022)'!A:F,4,FALSE) -> CW | D32: S | F32: =VLOOKUP(A32,'DATA (2022)'!A:F,5,FALSE) -> За запитом | G32: =IFERROR(F32*(1-VLOOKUP(C32,ГОЛОВНА!K:L,2,0)), "-") -> -
A33: 96878517 | B33: =VLOOKUP(A33,'DATA (2022)'!A:F,2,FALSE) -> Кан.насос SEG.40.26.E.Ex.2.50B | C33: =VLOOKUP(A33,'DATA (2022)'!A:F,4,FALSE) -> CW | F33: =VLOOKUP(A33,'DATA (2022)'!A:F,5,FALSE) -> За запитом | G33: =IFERROR(F33*(1-VLOOKUP(C33,ГОЛОВНА!K:L,2,0)), "-") -> -
A34: 96075914 | B34: =VLOOKUP(A34,'DATA (2022)'!A:F,2,FALSE) -> Кан.насос SEG.40.26.EX.2.50B | C34: =VLOOKUP(A34,'DATA (2022)'!A:F,4,FALSE) -> CW | F34: =VLOOKUP(A34,'DATA (2022)'!A:F,5,FALSE) -> 2591 | G34: =IFERROR(F34*(1-VLOOKUP(C34,ГОЛОВНА!K:L,2,0)), "-") -> 1787.79
A35: 96076223 | B35: =VLOOKUP(A35,'DATA (2022)'!A:F,2,FALSE) -> Кан.насос SEG.40.26.EX.2.50B | C35: =VLOOKUP(A35,'DATA (2022)'!A:F,4,FALSE) -> CW | F35: =VLOOKUP(A35,'DATA (2022)'!A:F,5,FALSE) -> 2638 | G35: =IFERROR(F35*(1-VLOOKUP(C35,ГОЛОВНА!K:L,2,0)), "-") -> 1820.22
A36: 96075915 | B36: =VLOOKUP(A36,'DATA (2022)'!A:F,2,FALSE) -> Кан.насос SEG.40.31.2.50B | C36: =VLOOKUP(A36,'DATA (2022)'!A:F,4,FALSE) -> CW | D36: S | F36: =VLOOKUP(A36,'DATA (2022)'!A:F,5,FALSE) -> 2565 | G36: =IFERROR(F36*(1-VLOOKUP(C36,ГОЛОВНА!K:L,2,0)), "-") -> 1769.85
A37: 96878518 | B37: =VLOOKUP(A37,'DATA (2022)'!A:F,2,FALSE) -> Кан.насос SEG.40.31.E.2.50B | C37: =VLOOKUP(A37,'DATA (2022)'!A:F,4,FALSE) -> CW | D37: S | F37: =VLOOKUP(A37,'DATA (2022)'!A:F,5,FALSE) -> За запитом | G37: =IFERROR(F37*(1-VLOOKUP(C37,ГОЛОВНА!K:L,2,0)), "-") -> -
A38: 96878519 | B38: =VLOOKUP(A38,'DATA (2022)'!A:F,2,FALSE) -> Кан.насос SEG.40.31.E.Ex.2.50B | C38: =VLOOKUP(A38,'DATA (2022)'!A:F,4,FALSE) -> CW | F38: =VLOOKUP(A38,'DATA (2022)'!A:F,5,FALSE) -> За запитом | G38: =IFERROR(F38*(1-VLOOKUP(C38,ГОЛОВНА!K:L,2,0)), "-") -> -
A39: 96075916 | B39: =VLOOKUP(A39,'DATA (2022)'!A:F,2,FALSE) -> Кан.насос SEG.40.31.EX.2.50B | C39: =VLOOKUP(A39,'DATA (2022)'!A:F,4,FALSE) -> CW | F39: =VLOOKUP(A39,'DATA (2022)'!A:F,5,FALSE) -> 2680 | G39: =IFERROR(F39*(1-VLOOKUP(C39,ГОЛОВНА!K:L,2,0)), "-") -> 1849.2
A40: 96076225 | B40: =VLOOKUP(A40,'DATA (2022)'!A:F,2,FALSE) -> Кан.насос SEG.40.31.EX.2.50B | C40: =VLOOKUP(A40,'DATA (2022)'!A:F,4,FALSE) -> CW | F40: =VLOOKUP(A40,'DATA (2022)'!A:F,5,FALSE) -> 2726 | G40: =IFERROR(F40*(1-VLOOKUP(C40,ГОЛОВНА!K:L,2,0)), "-") -> 1880.94
A41: 96075917 | B41: =VLOOKUP(A41,'DATA (2022)'!A:F,2,FALSE) -> Кан.насос SEG.40.40.2.50B | C41: =VLOOKUP(A41,'DATA (2022)'!A:F,4,FALSE) -> CW | D41: S | F41: =VLOOKUP(A41,'DATA (2022)'!A:F,5,FALSE) -> 2993 | G41: =IFERROR(F41*(1-VLOOKUP(C41,ГОЛОВНА!K:L,2,0)), "-") -> 2065.17
A42: 96878520 | B42: =VLOOKUP(A42,'DATA (2022)'!A:F,2,FALSE) -> Кан.насос SEG.40.40.E.2.50B | C42: =VLOOKUP(A42,'DATA (2022)'!A:F,4,FALSE) -> CW | D42: S | F42: =VLOOKUP(A42,'DATA (2022)'!A:F,5,FALSE) -> За запитом | G42: =IFERROR(F42*(1-VLOOKUP(C42,ГОЛОВНА!K:L,2,0)), "-") -> -
A43: 96878521 | B43: =VLOOKUP(A43,'DATA (2022)'!A:F,2,FALSE) -> Кан.насос SEG.40.40.E.Ex.2.50B | C43: =VLOOKUP(A43,'DATA (2022)'!A:F,4,FALSE) -> CW | F43: =VLOOKUP(A43,'DATA (2022)'!A:F,5,FALSE) -> За запитом | G43: =IFERROR(F43*(1-VLOOKUP(C43,ГОЛОВНА!K:L,2,0)), "-") -> -
A44: 96075918 | B44: =VLOOKUP(A44,'DATA (2022)'!A:F,2,FALSE) -> Кан.насос SEG.40.40.EX.2.50B | C44: =VLOOKUP(A44,'DATA (2022)'!A:F,4,FALSE) -> CW | F44: =VLOOKUP(A44,'DATA (2022)'!A:F,5,FALSE) -> За запитом | G44: =IFERROR(F44*(1-VLOOKUP(C44,ГОЛОВНА!K:L,2,0)), "-") -> -
A45: 96076227 | B45: =VLOOKUP(A45,'DATA (2022)'!A:F,2,FALSE) -> Кан.насос SEG.40.40.EX.2.50B | C45: =VLOOKUP(A45,'DATA (2022)'!A:F,4,FALSE) -> CW | F45: =VLOOKUP(A45,'DATA (2022)'!A:F,5,FALSE) -> За запитом | G45: =IFERROR(F45*(1-VLOOKUP(C45,ГОЛОВНА!K:L,2,0)), "-") -> -
A46: 99274435 | B46: =VLOOKUP(A46,'DATA (2022)'!A:F,2,FALSE) -> Кан.насос SEG.50.26.E.Ex.2.50B | C46: =VLOOKUP(A46,'DATA (2022)'!A:F,4,FALSE) -> CW | F46: =VLOOKUP(A46,'DATA (2022)'!A:F,5,FALSE) -> За запитом | G46: =IFERROR(F46*(1-VLOOKUP(C46,ГОЛОВНА!K:L,2,0)), "-") -> -
A47: 99274436 | B47: =VLOOKUP(A47,'DATA (2022)'!A:F,2,FALSE) -> Кан.насос SEG.50.31.E.2.50B | C47: =VLOOKUP(A47,'DATA (2022)'!A:F,4,FALSE) -> CW | F47: =VLOOKUP(A47,'DATA (2022)'!A:F,5,FALSE) -> За запитом | G47: =IFERROR(F47*(1-VLOOKUP(C47,ГОЛОВНА!K:L,2,0)), "-") -> -
A48: 99274434 | B48: =VLOOKUP(A48,'DATA (2022)'!A:F,2,FALSE) -> Кан.насос SEG.50.26.E.2.50B | C48: =VLOOKUP(A48,'DATA (2022)'!A:F,4,FALSE) -> CW | F48: =VLOOKUP(A48,'DATA (2022)'!A:F,5,FALSE) -> За запитом | G48: =IFERROR(F48*(1-VLOOKUP(C48,ГОЛОВНА!K:L,2,0)), "-") -> -
A49: 99274437 | B49: =VLOOKUP(A49,'DATA (2022)'!A:F,2,FALSE) -> Кан.насос SEG.50.31.E.Ex.2.50B | C49: =VLOOKUP(A49,'DATA (2022)'!A:F,4,FALSE) -> CW | F49: =VLOOKUP(A49,'DATA (2022)'!A:F,5,FALSE) -> За запитом | G49: =IFERROR(F49*(1-VLOOKUP(C49,ГОЛОВНА!K:L,2,0)), "-") -> -
A50: 99274439 | B50: =VLOOKUP(A50,'DATA (2022)'!A:F,2,FALSE) -> Кан.насос SEG.50.40.E.Ex.2.50B | C50: =VLOOKUP(A50,'DATA (2022)'!A:F,4,FALSE) -> CW | F50: =VLOOKUP(A50,'DATA (2022)'!A:F,5,FALSE) -> За запитом | G50: =IFERROR(F50*(1-VLOOKUP(C50,ГОЛОВНА!K:L,2,0)), "-") -> -
A51: 99274389 | B51: =VLOOKUP(A51,'DATA (2022)'!A:F,2,FALSE) -> Кан.насос SEG.50.40.EX.2.50B | C51: =VLOOKUP(A51,'DATA (2022)'!A:F,4,FALSE) -> CW | F51: =VLOOKUP(A51,'DATA (2022)'!A:F,5,FALSE) -> За запитом | G51: =IFERROR(F51*(1-VLOOKUP(C51,ГОЛОВНА!K:L,2,0)), "-") -> -
A52: 99274386 | B52: =VLOOKUP(A52,'DATA (2022)'!A:F,2,FALSE) -> Кан.насос SEG.50.31.2.50B | C52: =VLOOKUP(A52,'DATA (2022)'!A:F,4,FALSE) -> CW | F52: =VLOOKUP(A52,'DATA (2022)'!A:F,5,FALSE) -> 2694 | G52: =IFERROR(F52*(1-VLOOKUP(C52,ГОЛОВНА!K:L,2,0)), "-") -> 1858.86
A53: 99274385 | B53: =VLOOKUP(A53,'DATA (2022)'!A:F,2,FALSE) -> Кан.насос SEG.50.26.EX.2.50B | C53: =VLOOKUP(A53,'DATA (2022)'!A:F,4,FALSE) -> CW | F53: =VLOOKUP(A53,'DATA (2022)'!A:F,5,FALSE) -> 2721 | G53: =IFERROR(F53*(1-VLOOKUP(C53,ГОЛОВНА!K:L,2,0)), "-") -> 1877.49
A54: 99274387 | B54: =VLOOKUP(A54,'DATA (2022)'!A:F,2,FALSE) -> Кан.насос SEG.50.31.EX.2.50B | C54: =VLOOKUP(A54,'DATA (2022)'!A:F,4,FALSE) -> CW | F54: =VLOOKUP(A54,'DATA (2022)'!A:F,5,FALSE) -> 2814 | G54: =IFERROR(F54*(1-VLOOKUP(C54,ГОЛОВНА!K:L,2,0)), "-") -> 1941.66
A55: 99274388 | B55: =VLOOKUP(A55,'DATA (2022)'!A:F,2,FALSE) -> Кан.насос SEG.50.40.2.50B | C55: =VLOOKUP(A55,'DATA (2022)'!A:F,4,FALSE) -> CW | F55: =VLOOKUP(A55,'DATA (2022)'!A:F,5,FALSE) -> За запитом | G55: =IFERROR(F55*(1-VLOOKUP(C55,ГОЛОВНА!K:L,2,0)), "-") -> -
A56: 99274384 | B56: =VLOOKUP(A56,'DATA (2022)'!A:F,2,FALSE) -> Кан.насос SEG.50.26.2.50B | C56: =VLOOKUP(A56,'DATA (2022)'!A:F,4,FALSE) -> CW | F56: =VLOOKUP(A56,'DATA (2022)'!A:F,5,FALSE) -> 2601 | G56: =IFERROR(F56*(1-VLOOKUP(C56,ГОЛОВНА!K:L,2,0)), "-") -> 1794.69
A57: 99274438 | B57: =VLOOKUP(A57,'DATA (2022)'!A:F,2,FALSE) -> Кан.насос SEG.50.40.E.2.50B | C57: =VLOOKUP(A57,'DATA (2022)'!A:F,4,FALSE) -> CW | F57: =VLOOKUP(A57,'DATA (2022)'!A:F,5,FALSE) -> За запитом | G57: =IFERROR(F57*(1-VLOOKUP(C57,ГОЛОВНА!K:L,2,0)), "-") -> -
B59: Аксесуари
A60: 96001977 | B60: =VLOOKUP(A60,'DATA (2022)'!A:F,2,FALSE) -> Муфта Storz 1 1/2 | C60: =VLOOKUP(A60,'DATA (2022)'!A:F,4,FALSE) -> CW | F60: =VLOOKUP(A60,'DATA (2022)'!A:F,5,FALSE) -> 48 | G60: =IFERROR(F60*(1-VLOOKUP(C60,ГОЛОВНА!K:L,2,0)), "-") -> 33.12
A61: 96002002 | B61: =VLOOKUP(A61,'DATA (2022)'!A:F,2,FALSE) -> Зворотній клапан Rp2", PN10 | C61: =VLOOKUP(A61,'DATA (2022)'!A:F,4,FALSE) -> CW | D61: S | F61: =VLOOKUP(A61,'DATA (2022)'!A:F,5,FALSE) -> 142 | G61: =IFERROR(F61*(1-VLOOKUP(C61,ГОЛОВНА!K:L,2,0)), "-") -> 97.98
A62: 96489973 | B62: =VLOOKUP(A62,'DATA (2022)'!A:F,2,FALSE) -> Клапан запірний Rp/Rp 1 1/2" | C62: =VLOOKUP(A62,'DATA (2022)'!A:F,4,FALSE) -> CW | D62: S | F62: =VLOOKUP(A62,'DATA (2022)'!A:F,5,FALSE) -> 102 | G62: =IFERROR(F62*(1-VLOOKUP(C62,ГОЛОВНА!K:L,2,0)), "-") -> 70.38
A63: 96489973 | B63: =VLOOKUP(A63,'DATA (2022)'!A:F,2,FALSE) -> Клапан запірний Rp/Rp 1 1/2" | C63: =VLOOKUP(A63,'DATA (2022)'!A:F,4,FALSE) -> CW | D63: S | F63: =VLOOKUP(A63,'DATA (2022)'!A:F,5,FALSE) -> 102 | G63: =IFERROR(F63*(1-VLOOKUP(C63,ГОЛОВНА!K:L,2,0)), "-") -> 70.38
A64: 96003632 | B64: =VLOOKUP(A64,'DATA (2022)'!A:F,2,FALSE) -> Ніпель R 1 1/2 | C64: =VLOOKUP(A64,'DATA (2022)'!A:F,4,FALSE) -> CW | F64: =VLOOKUP(A64,'DATA (2022)'!A:F,5,FALSE) -> 30 | G64: =IFERROR(F64*(1-VLOOKUP(C64,ГОЛОВНА!K:L,2,0)), "-") -> 20.7
A65: 96001993 | B65: =VLOOKUP(A65,'DATA (2022)'!A:F,2,FALSE) -> Ніпель R 2 | C65: =VLOOKUP(A65,'DATA (2022)'!A:F,4,FALSE) -> CW | F65: =VLOOKUP(A65,'DATA (2022)'!A:F,5,FALSE) -> 15 | G65: =IFERROR(F65*(1-VLOOKUP(C65,ГОЛОВНА!K:L,2,0)), "-") -> 10.35
A66: 96001993 | B66: =VLOOKUP(A66,'DATA (2022)'!A:F,2,FALSE) -> Ніпель R 2 | C66: =VLOOKUP(A66,'DATA (2022)'!A:F,4,FALSE) -> CW | F66: =VLOOKUP(A66,'DATA (2022)'!A:F,5,FALSE) -> 15 | G66: =IFERROR(F66*(1-VLOOKUP(C66,ГОЛОВНА!K:L,2,0)), "-") -> 10.35
A67: 96001980 | B67: =VLOOKUP(A67,'DATA (2022)'!A:F,2,FALSE) -> Коліно оцинк 2 R /RP 90* | C67: =VLOOKUP(A67,'DATA (2022)'!A:F,4,FALSE) -> CW | F67: =VLOOKUP(A67,'DATA (2022)'!A:F,5,FALSE) -> 30 | G67: =IFERROR(F67*(1-VLOOKUP(C67,ГОЛОВНА!K:L,2,0)), "-") -> 20.7
A68: 96076063 | B68: =VLOOKUP(A68,'DATA (2022)'!A:F,2,FALSE) -> Автоматична муфта DN40 (SEG) | C68: =VLOOKUP(A68,'DATA (2022)'!A:F,4,FALSE) -> WW | D68: S | F68: =VLOOKUP(A68,'DATA (2022)'!A:F,5,FALSE) -> 242 | G68: =IFERROR(F68*(1-VLOOKUP(C68,ГОЛОВНА!K:L,2,0)), "-") -> 179.08
A69: 96489959 | B69: =VLOOKUP(A69,'DATA (2022)'!A:F,2,FALSE) -> Фланець різьбовий DN40, Rp 1 1/2" | C69: =VLOOKUP(A69,'DATA (2022)'!A:F,4,FALSE) -> CW | F69: =VLOOKUP(A69,'DATA (2022)'!A:F,5,FALSE) -> 35 | G69: =IFERROR(F69*(1-VLOOKUP(C69,ГОЛОВНА!K:L,2,0)), "-") -> 24.15
A70: 98538177 | B70: =VLOOKUP(A70,'DATA (2022)'!A:F,2,FALSE) -> Ланцюг 500кг 6м нерж. компл. | C70: =VLOOKUP(A70,'DATA (2022)'!A:F,4,FALSE) -> WW | F70: =VLOOKUP(A70,'DATA (2022)'!A:F,5,FALSE) -> 237 | G70: =IFERROR(F70*(1-VLOOKUP(C70,ГОЛОВНА!K:L,2,0)), "-") -> 175.38
A71: 98538176 | B71: =VLOOKUP(A71,'DATA (2022)'!A:F,2,FALSE) -> Ланцюг 500кг 4м нерж. компл. | C71: =VLOOKUP(A71,'DATA (2022)'!A:F,4,FALSE) -> WW | F71: =VLOOKUP(A71,'DATA (2022)'!A:F,5,FALSE) -> 169 | G71: =IFERROR(F71*(1-VLOOKUP(C71,ГОЛОВНА!K:L,2,0)), "-") -> 125.06
A72: 96004442 | B72: =VLOOKUP(A72,'DATA (2022)'!A:F,2,FALSE) -> Автоматична трубна муфта Rp/Rp2, cpl. | C72: =VLOOKUP(A72,'DATA (2022)'!A:F,4,FALSE) -> WW | F72: =VLOOKUP(A72,'DATA (2022)'!A:F,5,FALSE) -> 215 | G72: =IFERROR(F72*(1-VLOOKUP(C72,ГОЛОВНА!K:L,2,0)), "-") -> 159.1
A73: 96076196 | B73: =VLOOKUP(A73,'DATA (2022)'!A:F,2,FALSE) -> Опори для переносного монтажу SEG (3 шт) | C73: =VLOOKUP(A73,'DATA (2022)'!A:F,4,FALSE) -> CW | D73: S | F73: =VLOOKUP(A73,'DATA (2022)'!A:F,5,FALSE) -> 119 | G73: =IFERROR(F73*(1-VLOOKUP(C73,ГОЛОВНА!K:L,2,0)), "-") -> 82.11
A74: 96076196 | B74: =VLOOKUP(A74,'DATA (2022)'!A:F,2,FALSE) -> Опори для переносного монтажу SEG (3 шт) | C74: =VLOOKUP(A74,'DATA (2022)'!A:F,4,FALSE) -> CW | D74: S | F74: =VLOOKUP(A74,'DATA (2022)'!A:F,5,FALSE) -> 119 | G74: =IFERROR(F74*(1-VLOOKUP(C74,ГОЛОВНА!K:L,2,0)), "-") -> 82.11
A75: 96914019 | B75: =VLOOKUP(A75,'DATA (2022)'!A:F,2,FALSE) -> Пульт керування CU 100.400.3.5.A | C75: =VLOOKUP(A75,'DATA (2022)'!A:F,4,FALSE) -> CW | D75: S | F75: =VLOOKUP(A75,'DATA (2022)'!A:F,5,FALSE) -> 769 | G75: =IFERROR(F75*(1-VLOOKUP(C75,ГОЛОВНА!K:L,2,0)), "-") -> 530.61
A76: 99369644 | B76: =VLOOKUP(A76,'DATA (2022)'!A:F,2,FALSE) -> Шафа керув LC 231 1x1-12 DOL 3x460 PI CE | C76: =VLOOKUP(A76,'DATA (2022)'!A:F,4,FALSE) -> CW | F76: =VLOOKUP(A76,'DATA (2022)'!A:F,5,FALSE) -> 902 | G76: =IFERROR(F76*(1-VLOOKUP(C76,ГОЛОВНА!K:L,2,0)), "-") -> 622.38
A77: 99369650 | B77: =VLOOKUP(A77,'DATA (2022)'!A:F,2,FALSE) -> Шафа керування LC 231 2x 1-9 DOL | C77: =VLOOKUP(A77,'DATA (2022)'!A:F,4,FALSE) -> CW | F77: =VLOOKUP(A77,'DATA (2022)'!A:F,5,FALSE) -> 1131 | G77: =IFERROR(F77*(1-VLOOKUP(C77,ГОЛОВНА!K:L,2,0)), "-") -> 780.39
A78: 99877171 | B78: =VLOOKUP(A78,'DATA (2022)'!A:F,2,FALSE) -> Шафа керув LC 241 1x 5,7-12 DOL 30 150 1 | C78: =VLOOKUP(A78,'DATA (2022)'!A:F,4,FALSE) -> CW | F78: =VLOOKUP(A78,'DATA (2022)'!A:F,5,FALSE) -> 2154 | G78: =IFERROR(F78*(1-VLOOKUP(C78,ГОЛОВНА!K:L,2,0)), "-") -> 1486.26
A79: 99877161 | B79: =VLOOKUP(A79,'DATA (2022)'!A:F,2,FALSE) -> Шафа керув LC 241 2x 1,9-6,3 DOL 30 150 | C79: =VLOOKUP(A79,'DATA (2022)'!A:F,4,FALSE) -> CW | F79: =VLOOKUP(A79,'DATA (2022)'!A:F,5,FALSE) -> 2473 | G79: =IFERROR(F79*(1-VLOOKUP(C79,ГОЛОВНА!K:L,2,0)), "-") -> 1706.37
A80: 99877119 | B80: =VLOOKUP(A80,'DATA (2022)'!A:F,2,FALSE) -> Шафа керув LC 241 1x 0,8-2,7 DOL 3x230/4 | C80: =VLOOKUP(A80,'DATA (2022)'!A:F,4,FALSE) -> CW | F80: =VLOOKUP(A80,'DATA (2022)'!A:F,5,FALSE) -> 1824 | G80: =IFERROR(F80*(1-VLOOKUP(C80,ГОЛОВНА!K:L,2,0)), "-") -> 1258.56
A81: 99877139 | B81: =VLOOKUP(A81,'DATA (2022)'!A:F,2,FALSE) -> Шафа керув LC 241 1x 1,9-6,3 DOL 3x230/4 | C81: =VLOOKUP(A81,'DATA (2022)'!A:F,4,FALSE) -> CW | F81: =VLOOKUP(A81,'DATA (2022)'!A:F,5,FALSE) -> 1829 | G81: =IFERROR(F81*(1-VLOOKUP(C81,ГОЛОВНА!K:L,2,0)), "-") -> 1262.01
A82: 99877164 | B82: =VLOOKUP(A82,'DATA (2022)'!A:F,2,FALSE) -> Шафа керув LC 241 1x 5,7-12 DOL 3x230/40 | C82: =VLOOKUP(A82,'DATA (2022)'!A:F,4,FALSE) -> CW | F82: =VLOOKUP(A82,'DATA (2022)'!A:F,5,FALSE) -> 1879 | G82: =IFERROR(F82*(1-VLOOKUP(C82,ГОЛОВНА!K:L,2,0)), "-") -> 1296.51
A83: 99877183 | B83: =VLOOKUP(A83,'DATA (2022)'!A:F,2,FALSE) -> Шафа керув LC 241 1x 9-26 DOL 3x230/400 | C83: =VLOOKUP(A83,'DATA (2022)'!A:F,4,FALSE) -> CW | F83: =VLOOKUP(A83,'DATA (2022)'!A:F,5,FALSE) -> 2269 | G83: =IFERROR(F83*(1-VLOOKUP(C83,ГОЛОВНА!K:L,2,0)), "-") -> 1565.61
A84: 99877134 | B84: =VLOOKUP(A84,'DATA (2022)'!A:F,2,FALSE) -> Шафа керув LC 241 2x 0,8-2,7 DOL 3x230/4 | C84: =VLOOKUP(A84,'DATA (2022)'!A:F,4,FALSE) -> CW | F84: =VLOOKUP(A84,'DATA (2022)'!A:F,5,FALSE) -> 2107 | G84: =IFERROR(F84*(1-VLOOKUP(C84,ГОЛОВНА!K:L,2,0)), "-") -> 1453.83
A85: 99877174 | B85: =VLOOKUP(A85,'DATA (2022)'!A:F,2,FALSE) -> Шафа керув LC 241 2x 5,7-12 DOL 3x230/40 | C85: =VLOOKUP(A85,'DATA (2022)'!A:F,4,FALSE) -> CW | F85: =VLOOKUP(A85,'DATA (2022)'!A:F,5,FALSE) -> 2269 | G85: =IFERROR(F85*(1-VLOOKUP(C85,ГОЛОВНА!K:L,2,0)), "-") -> 1565.61
A86: 99877156 | B86: =VLOOKUP(A86,'DATA (2022)'!A:F,2,FALSE) -> Шафа керув LC 241 2x 1,9-6,3 DOL 3x230/4 | C86: =VLOOKUP(A86,'DATA (2022)'!A:F,4,FALSE) -> CW | F86: =VLOOKUP(A86,'DATA (2022)'!A:F,5,FALSE) -> 2104 | G86: =IFERROR(F86*(1-VLOOKUP(C86,ГОЛОВНА!K:L,2,0)), "-") -> 1451.76
A87: 96003332 | B87: =VLOOKUP(A87,'DATA (2022)'!A:F,2,FALSE) -> Поплавцевий вимикач MS1+10м кабель | C87: =VLOOKUP(A87,'DATA (2022)'!A:F,4,FALSE) -> CW | D87: S | F87: =VLOOKUP(A87,'DATA (2022)'!A:F,5,FALSE) -> 132.5 | G87: =IFERROR(F87*(1-VLOOKUP(C87,ГОЛОВНА!K:L,2,0)), "-") -> 91.425
A88: 62500013 | B88: =VLOOKUP(A88,'DATA (2022)'!A:F,2,FALSE) -> Поплавцевий вимикач MS1 + 10м каб, 2 шт. | C88: =VLOOKUP(A88,'DATA (2022)'!A:F,4,FALSE) -> CW | F88: =VLOOKUP(A88,'DATA (2022)'!A:F,5,FALSE) -> 336 | G88: =IFERROR(F88*(1-VLOOKUP(C88,ГОЛОВНА!K:L,2,0)), "-") -> 231.84
A89: 62500014 | B89: =VLOOKUP(A89,'DATA (2022)'!A:F,2,FALSE) -> Поплавцевий вимикач МS1 + 10м каб, 3 шт. | C89: =VLOOKUP(A89,'DATA (2022)'!A:F,4,FALSE) -> CW | F89: =VLOOKUP(A89,'DATA (2022)'!A:F,5,FALSE) -> 537 | G89: =IFERROR(F89*(1-VLOOKUP(C89,ГОЛОВНА!K:L,2,0)), "-") -> 370.53
A90: 62500015 | B90: =VLOOKUP(A90,'DATA (2022)'!A:F,2,FALSE) -> Поплавцевий вимикач МS1 + 10м каб, 4шт. | C90: =VLOOKUP(A90,'DATA (2022)'!A:F,4,FALSE) -> CW | F90: =VLOOKUP(A90,'DATA (2022)'!A:F,5,FALSE) -> 676 | G90: =IFERROR(F90*(1-VLOOKUP(C90,ГОЛОВНА!K:L,2,0)), "-") -> 466.44
A91: 96003421 | B91: =VLOOKUP(A91,'DATA (2022)'!A:F,2,FALSE) -> Поплавцевий вимикач MS1 (Ex) з кабел 10м | C91: =VLOOKUP(A91,'DATA (2022)'!A:F,4,FALSE) -> CW | F91: =VLOOKUP(A91,'DATA (2022)'!A:F,5,FALSE) -> 184 | G91: =IFERROR(F91*(1-VLOOKUP(C91,ГОЛОВНА!K:L,2,0)), "-") -> 126.96
A92: 99911624 | B92: =VLOOKUP(A92,'DATA (2022)'!A:F,2,FALSE) -> Поплавцевий вимикач FS1, кабель 10м | C92: =VLOOKUP(A92,'DATA (2022)'!A:F,4,FALSE) -> CW | D92: S | F92: =VLOOKUP(A92,'DATA (2022)'!A:F,5,FALSE) -> 72 | G92: =IFERROR(F92*(1-VLOOKUP(C92,ГОЛОВНА!K:L,2,0)), "-") -> 49.68
A93: 62500016 | B93: =VLOOKUP(A93,'DATA (2022)'!A:F,2,FALSE) -> Поплавцевий вимикач, к-т 2 шт., вибухоза | C93: =VLOOKUP(A93,'DATA (2022)'!A:F,4,FALSE) -> CW | F93: =VLOOKUP(A93,'DATA (2022)'!A:F,5,FALSE) -> 447 | G93: =IFERROR(F93*(1-VLOOKUP(C93,ГОЛОВНА!K:L,2,0)), "-") -> 308.43
A94: 62500017 | B94: =VLOOKUP(A94,'DATA (2022)'!A:F,2,FALSE) -> Поплавцевий вимикач, к-т 3 шт., вибухоза | C94: =VLOOKUP(A94,'DATA (2022)'!A:F,4,FALSE) -> CW | F94: =VLOOKUP(A94,'DATA (2022)'!A:F,5,FALSE) -> 709 | G94: =IFERROR(F94*(1-VLOOKUP(C94,ГОЛОВНА!K:L,2,0)), "-") -> 489.21
A95: 62500018 | B95: =VLOOKUP(A95,'DATA (2022)'!A:F,2,FALSE) -> Поплавцевий вимикач, к-т 4 шт., вибухоза | C95: =VLOOKUP(A95,'DATA (2022)'!A:F,4,FALSE) -> CW | F95: =VLOOKUP(A95,'DATA (2022)'!A:F,5,FALSE) -> 912 | G95: =IFERROR(F95*(1-VLOOKUP(C95,ГОЛОВНА!K:L,2,0)), "-") -> 629.28
B98: Примітка:
A99: S | B99: - складська позиція (зазвичай є на скаді)
A100: FT | B100: - швидка поставка (зазвичай до 3-х тижнів)
B103: Більше інформації в Grundfos Product Center
B104: https://product-selection.grundfos.com/ua

Sheet Multilift
A1: АРТИКУЛ | B1: НАЙМЕНУВАННЯ (УКР) | C1: PRICE GROUP | D1: ДОСТАВКА (ТИЖНІВ) | E1: ДОДАТКОВО | F1: ЦІНА (ЕВРО БЕЗ ПДВ) | G1: ЦІНА ЗІ ЗНИЖКОЮ | H1: НА ГОЛОВНУ
A2: Multilift | G2: Компактні каналізаційні станції для встановлення у приміщенні
A3: 97901064 | B3: =VLOOKUP(A3,'DATA (2022)'!A:F,2,FALSE) -> Кан.установка M.12.1.4 1x230V | C3: =VLOOKUP(A3,'DATA (2022)'!A:F,4,FALSE) -> CW | F3: =VLOOKUP(A3,'DATA (2022)'!A:F,5,FALSE) -> За запитом | G3: =IFERROR(F3*(1-VLOOKUP(C3,ГОЛОВНА!K:L,2,0)), "-") -> -
A4: 97901076 | B4: =VLOOKUP(A4,'DATA (2022)'!A:F,2,FALSE) -> Кан.установка M.12.1.4 1x230V 10m | C4: =VLOOKUP(A4,'DATA (2022)'!A:F,4,FALSE) -> CW | F4: =VLOOKUP(A4,'DATA (2022)'!A:F,5,FALSE) -> За запитом | G4: =IFERROR(F4*(1-VLOOKUP(C4,ГОЛОВНА!K:L,2,0)), "-") -> -
A5: 97901065 | B5: =VLOOKUP(A5,'DATA (2022)'!A:F,2,FALSE) -> Кан.установка M.12.3.4 3x400V | C5: =VLOOKUP(A5,'DATA (2022)'!A:F,4,FALSE) -> CW | F5: =VLOOKUP(A5,'DATA (2022)'!A:F,5,FALSE) -> За запитом | G5: =IFERROR(F5*(1-VLOOKUP(C5,ГОЛОВНА!K:L,2,0)), "-") -> -
A6: 97901066 | B6: =VLOOKUP(A6,'DATA (2022)'!A:F,2,FALSE) -> Кан.установка M.15.1.4 1x230V | C6: =VLOOKUP(A6,'DATA (2022)'!A:F,4,FALSE) -> CW | F6: =VLOOKUP(A6,'DATA (2022)'!A:F,5,FALSE) -> За запитом | G6: =IFERROR(F6*(1-VLOOKUP(C6,ГОЛОВНА!K:L,2,0)), "-") -> -
A7: 97901067 | B7: =VLOOKUP(A7,'DATA (2022)'!A:F,2,FALSE) -> Кан.установка M.15.3.4 3x400V | C7: =VLOOKUP(A7,'DATA (2022)'!A:F,4,FALSE) -> CW | F7: =VLOOKUP(A7,'DATA (2022)'!A:F,5,FALSE) -> За запитом | G7: =IFERROR(F7*(1-VLOOKUP(C7,ГОЛОВНА!K:L,2,0)), "-") -> -
A8: 97901068 | B8: =VLOOKUP(A8,'DATA (2022)'!A:F,2,FALSE) -> Кан.установка M.22.3.4 3x400V | C8: =VLOOKUP(A8,'DATA (2022)'!A:F,4,FALSE) -> CW | F8: =VLOOKUP(A8,'DATA (2022)'!A:F,5,FALSE) -> За запитом | G8: =IFERROR(F8*(1-VLOOKUP(C8,ГОЛОВНА!K:L,2,0)), "-") -> -
A9: 97901037 | B9: =VLOOKUP(A9,'DATA (2022)'!A:F,2,FALSE) -> Кан.установка MSS.11.1.2 1x230V 4m | C9: =VLOOKUP(A9,'DATA (2022)'!A:F,4,FALSE) -> CW | D9: S | F9: =VLOOKUP(A9,'DATA (2022)'!A:F,5,FALSE) -> 2311 | G9: =IFERROR(F9*(1-VLOOKUP(C9,ГОЛОВНА!K:L,2,0)), "-") -> 1594.59
A10: 97901027 | B10: =VLOOKUP(A10,'DATA (2022)'!A:F,2,FALSE) -> Кан.установка MSS.11.3.2 3x400V 4m | C10: =VLOOKUP(A10,'DATA (2022)'!A:F,4,FALSE) -> CW | F10: =VLOOKUP(A10,'DATA (2022)'!A:F,5,FALSE) -> 2311 | G10: =IFERROR(F10*(1-VLOOKUP(C10,ГОЛОВНА!K:L,2,0)), "-") -> 1594.59
B12: Примітка:
A13: S | B13: - складська позиція (зазвичай є на скаді)
A14: FT | B14: - швидка поставка (зазвичай до 3-х тижнів)
B16: Більше інформації в Grundfos Product Center
B17: https://product-selection.grundfos.com/ua/products/multilift?tab=products

Sheet SE, SL
A1: АРТИКУЛ | B1: НАЙМЕНУВАННЯ (УКР) | C1: PRICE GROUP | D1: ДОСТАВКА | E1: ДОДАТКОВО | F1: ЦІНА (ЕВРО БЕЗ ПДВ) | G1: ЦІНА ЗІ ЗНИЖКОЮ | H1: НА ГОЛОВНУ
A2: SE/SL | G2: Каналізаційні насоси
A3: 96106562 | B3: =VLOOKUP(A3,'DATA (2022)'!A:F,2,FALSE) -> Кан.насос SL1.50.65.09.2.1.502 | C3: =VLOOKUP(A3,'DATA (2022)'!A:F,4,FALSE) -> CW | F3: =VLOOKUP(A3,'DATA (2022)'!A:F,5,FALSE) -> 1533 | G3: =IFERROR(F3*(1-VLOOKUP(C3,ГОЛОВНА!K:L,2,0)), "-") -> 1057.77
A4: 96106566 | B4: =VLOOKUP(A4,'DATA (2022)'!A:F,2,FALSE) -> Кан.насос SL1.50.65.09.2.50B | C4: =VLOOKUP(A4,'DATA (2022)'!A:F,4,FALSE) -> CW | F4: =VLOOKUP(A4,'DATA (2022)'!A:F,5,FALSE) -> 1533 | G4: =IFERROR(F4*(1-VLOOKUP(C4,ГОЛОВНА!K:L,2,0)), "-") -> 1057.77
A5: 96106564 | B5: =VLOOKUP(A5,'DATA (2022)'!A:F,2,FALSE) -> Кан.насос SL1.50.65.09.A.2.1.502 | C5: =VLOOKUP(A5,'DATA (2022)'!A:F,4,FALSE) -> CW | F5: =VLOOKUP(A5,'DATA (2022)'!A:F,5,FALSE) -> 2137 | G5: =IFERROR(F5*(1-VLOOKUP(C5,ГОЛОВНА!K:L,2,0)), "-") -> 1474.53
A6: 96106570 | B6: =VLOOKUP(A6,'DATA (2022)'!A:F,2,FALSE) -> Кан.насос SL1.50.65.09.A.2.50B | C6: =VLOOKUP(A6,'DATA (2022)'!A:F,4,FALSE) -> CW | F6: =VLOOKUP(A6,'DATA (2022)'!A:F,5,FALSE) -> 1948 | G6: =IFERROR(F6*(1-VLOOKUP(C6,ГОЛОВНА!K:L,2,0)), "-") -> 1344.12
A7: 96878450 | B7: =VLOOKUP(A7,'DATA (2022)'!A:F,2,FALSE) -> Кан.насос SL1.50.65.09.E.2.1.502 | C7: =VLOOKUP(A7,'DATA (2022)'!A:F,4,FALSE) -> CW | F7: =VLOOKUP(A7,'DATA (2022)'!A:F,5,FALSE) -> 2361 | G7: =IFERROR(F7*(1-VLOOKUP(C7,ГОЛОВНА!K:L,2,0)), "-") -> 1629.09
A8: 96878451 | B8: =VLOOKUP(A8,'DATA (2022)'!A:F,2,FALSE) -> Кан.насос SL1.50.65.09.E.2.50B | C8: =VLOOKUP(A8,'DATA (2022)'!A:F,4,FALSE) -> CW | F8: =VLOOKUP(A8,'DATA (2022)'!A:F,5,FALSE) -> 2361 | G8: =IFERROR(F8*(1-VLOOKUP(C8,ГОЛОВНА!K:L,2,0)), "-") -> 1629.09
A9: 96878452 | B9: =VLOOKUP(A9,'DATA (2022)'!A:F,2,FALSE) -> Кан.насос SL1.50.65.09.E.Ex.2.1.502 | C9: =VLOOKUP(A9,'DATA (2022)'!A:F,4,FALSE) -> CW | F9: =VLOOKUP(A9,'DATA (2022)'!A:F,5,FALSE) -> 2600 | G9: =IFERROR(F9*(1-VLOOKUP(C9,ГОЛОВНА!K:L,2,0)), "-") -> 1794
A10: 96878453 | B10: =VLOOKUP(A10,'DATA (2022)'!A:F,2,FALSE) -> Кан.насос SL1.50.65.09.E.Ex.2.50B | C10: =VLOOKUP(A10,'DATA (2022)'!A:F,4,FALSE) -> CW | F10: =VLOOKUP(A10,'DATA (2022)'!A:F,5,FALSE) -> 2600 | G10: =IFERROR(F10*(1-VLOOKUP(C10,ГОЛОВНА!K:L,2,0)), "-") -> 1794
A11: 96106563 | B11: =VLOOKUP(A11,'DATA (2022)'!A:F,2,FALSE) -> Кан.насос SL1.50.65.09.Ex.2.1.502 | C11: =VLOOKUP(A11,'DATA (2022)'!A:F,4,FALSE) -> CW | F11: =VLOOKUP(A11,'DATA (2022)'!A:F,5,FALSE) -> 1725 | G11: =IFERROR(F11*(1-VLOOKUP(C11,ГОЛОВНА!K:L,2,0)), "-") -> 1190.25
A12: 96106568 | B12: =VLOOKUP(A12,'DATA (2022)'!A:F,2,FALSE) -> Кан.насос SL1.50.65.09.Ex.2.50B | C12: =VLOOKUP(A12,'DATA (2022)'!A:F,4,FALSE) -> CW | F12: =VLOOKUP(A12,'DATA (2022)'!A:F,5,FALSE) -> 1725 | G12: =IFERROR(F12*(1-VLOOKUP(C12,ГОЛОВНА!K:L,2,0)), "-") -> 1190.25
A13: 96104125 | B13: =VLOOKUP(A13,'DATA (2022)'!A:F,2,FALSE) -> Кан.насос SL1.50.65.11.2.1.502 | C13: =VLOOKUP(A13,'DATA (2022)'!A:F,4,FALSE) -> CW | F13: =VLOOKUP(A13,'DATA (2022)'!A:F,5,FALSE) -> 1741 | G13: =IFERROR(F13*(1-VLOOKUP(C13,ГОЛОВНА!K:L,2,0)), "-") -> 1201.29
A14: 96104129 | B14: =VLOOKUP(A14,'DATA (2022)'!A:F,2,FALSE) -> Кан.насос SL1.50.65.11.2.50B | C14: =VLOOKUP(A14,'DATA (2022)'!A:F,4,FALSE) -> CW | F14: =VLOOKUP(A14,'DATA (2022)'!A:F,5,FALSE) -> 1741 | G14: =IFERROR(F14*(1-VLOOKUP(C14,ГОЛОВНА!K:L,2,0)), "-") -> 1201.29
A15: 96104127 | B15: =VLOOKUP(A15,'DATA (2022)'!A:F,2,FALSE) -> Кан.насос SL1.50.65.11.A.2.1.502 | C15: =VLOOKUP(A15,'DATA (2022)'!A:F,4,FALSE) -> CW | F15: =VLOOKUP(A15,'DATA (2022)'!A:F,5,FALSE) -> 2155 | G15: =IFERROR(F15*(1-VLOOKUP(C15,ГОЛОВНА!K:L,2,0)), "-") -> 1486.95
A16: 96104133 | B16: =VLOOKUP(A16,'DATA (2022)'!A:F,2,FALSE) -> Кан.насос SL1.50.65.11.A.2.50B | C16: =VLOOKUP(A16,'DATA (2022)'!A:F,4,FALSE) -> CW | F16: =VLOOKUP(A16,'DATA (2022)'!A:F,5,FALSE) -> 2155 | G16: =IFERROR(F16*(1-VLOOKUP(C16,ГОЛОВНА!K:L,2,0)), "-") -> 1486.95
A17: 96878454 | B17: =VLOOKUP(A17,'DATA (2022)'!A:F,2,FALSE) -> Кан.насос SL1.50.65.11.E.2.1.502 | C17: =VLOOKUP(A17,'DATA (2022)'!A:F,4,FALSE) -> CW | F17: =VLOOKUP(A17,'DATA (2022)'!A:F,5,FALSE) -> 2550 | G17: =IFERROR(F17*(1-VLOOKUP(C17,ГОЛОВНА!K:L,2,0)), "-") -> 1759.5
A18: 96878455 | B18: =VLOOKUP(A18,'DATA (2022)'!A:F,2,FALSE) -> Кан.насос SL1.50.65.11.E.2.50B | C18: =VLOOKUP(A18,'DATA (2022)'!A:F,4,FALSE) -> CW | F18: =VLOOKUP(A18,'DATA (2022)'!A:F,5,FALSE) -> 2550 | G18: =IFERROR(F18*(1-VLOOKUP(C18,ГОЛОВНА!K:L,2,0)), "-") -> 1759.5
A19: 96878456 | B19: =VLOOKUP(A19,'DATA (2022)'!A:F,2,FALSE) -> Кан.насос SL1.50.65.11.E.Ex.2.1.502 | C19: =VLOOKUP(A19,'DATA (2022)'!A:F,4,FALSE) -> CW | F19: =VLOOKUP(A19,'DATA (2022)'!A:F,5,FALSE) -> 2789 | G19: =IFERROR(F19*(1-VLOOKUP(C19,ГОЛОВНА!K:L,2,0)), "-") -> 1924.41
A20: 96878457 | B20: =VLOOKUP(A20,'DATA (2022)'!A:F,2,FALSE) -> Кан.насос SL1.50.65.11.E.Ex.2.50B | C20: =VLOOKUP(A20,'DATA (2022)'!A:F,4,FALSE) -> CW | F20: =VLOOKUP(A20,'DATA (2022)'!A:F,5,FALSE) -> 2789 | G20: =IFERROR(F20*(1-VLOOKUP(C20,ГОЛОВНА!K:L,2,0)), "-") -> 1924.41
A21: 96104126 | B21: =VLOOKUP(A21,'DATA (2022)'!A:F,2,FALSE) -> Кан.насос SL1.50.65.11.Ex.2.1.502 | C21: =VLOOKUP(A21,'DATA (2022)'!A:F,4,FALSE) -> CW | F21: =VLOOKUP(A21,'DATA (2022)'!A:F,5,FALSE) -> 1931 | G21: =IFERROR(F21*(1-VLOOKUP(C21,ГОЛОВНА!K:L,2,0)), "-") -> 1332.39
A22: 96104131 | B22: =VLOOKUP(A22,'DATA (2022)'!A:F,2,FALSE) -> Кан.насос SL1.50.65.11.Ex.2.50B | C22: =VLOOKUP(A22,'DATA (2022)'!A:F,4,FALSE) -> CW | F22: =VLOOKUP(A22,'DATA (2022)'!A:F,5,FALSE) -> 1931 | G22: =IFERROR(F22*(1-VLOOKUP(C22,ГОЛОВНА!K:L,2,0)), "-") -> 1332.39
A23: 96104118 | B23: =VLOOKUP(A23,'DATA (2022)'!A:F,2,FALSE) -> Кан.насос SL1.50.65.15.2.50B | C23: =VLOOKUP(A23,'DATA (2022)'!A:F,4,FALSE) -> CW | F23: =VLOOKUP(A23,'DATA (2022)'!A:F,5,FALSE) -> 2135 | G23: =IFERROR(F23*(1-VLOOKUP(C23,ГОЛОВНА!K:L,2,0)), "-") -> 1473.15
A24: 96104122 | B24: =VLOOKUP(A24,'DATA (2022)'!A:F,2,FALSE) -> Кан.насос SL1.50.65.15.A.2.50B | C24: =VLOOKUP(A24,'DATA (2022)'!A:F,4,FALSE) -> CW | F24: =VLOOKUP(A24,'DATA (2022)'!A:F,5,FALSE) -> 2548 | G24: =IFERROR(F24*(1-VLOOKUP(C24,ГОЛОВНА!K:L,2,0)), "-") -> 1758.12
A25: 96878458 | B25: =VLOOKUP(A25,'DATA (2022)'!A:F,2,FALSE) -> Кан.насос SL1.50.65.15.E.2.50B | C25: =VLOOKUP(A25,'DATA (2022)'!A:F,4,FALSE) -> CW | F25: =VLOOKUP(A25,'DATA (2022)'!A:F,5,FALSE) -> 2910 | G25: =IFERROR(F25*(1-VLOOKUP(C25,ГОЛОВНА!K:L,2,0)), "-") -> 2007.9
A26: 96878472 | B26: =VLOOKUP(A26,'DATA (2022)'!A:F,2,FALSE) -> Кан.насос SL1.50.65.15.E.Ex.2.50B | C26: =VLOOKUP(A26,'DATA (2022)'!A:F,4,FALSE) -> CW | F26: =VLOOKUP(A26,'DATA (2022)'!A:F,5,FALSE) -> За запитом | G26: =IFERROR(F26*(1-VLOOKUP(C26,ГОЛОВНА!K:L,2,0)), "-") -> -
A27: 96104120 | B27: =VLOOKUP(A27,'DATA (2022)'!A:F,2,FALSE) -> Кан.насос SL1.50.65.15.Ex.2.50B | C27: =VLOOKUP(A27,'DATA (2022)'!A:F,4,FALSE) -> CW | F27: =VLOOKUP(A27,'DATA (2022)'!A:F,5,FALSE) -> 2325 | G27: =IFERROR(F27*(1-VLOOKUP(C27,ГОЛОВНА!K:L,2,0)), "-") -> 1604.25
A28: 96115119 | B28: =VLOOKUP(A28,'DATA (2022)'!A:F,2,FALSE) -> Кан.насос SLV.65.65.09.2.1.502 | C28: =VLOOKUP(A28,'DATA (2022)'!A:F,4,FALSE) -> CW | F28: =VLOOKUP(A28,'DATA (2022)'!A:F,5,FALSE) -> 1513 | G28: =IFERROR(F28*(1-VLOOKUP(C28,ГОЛОВНА!K:L,2,0)), "-") -> 1043.97
A29: 96115123 | B29: =VLOOKUP(A29,'DATA (2022)'!A:F,2,FALSE) -> Кан.насос SLV.65.65.09.2.50B | C29: =VLOOKUP(A29,'DATA (2022)'!A:F,4,FALSE) -> CW | F29: =VLOOKUP(A29,'DATA (2022)'!A:F,5,FALSE) -> 1513 | G29: =IFERROR(F29*(1-VLOOKUP(C29,ГОЛОВНА!K:L,2,0)), "-") -> 1043.97
A30: 96115121 | B30: =VLOOKUP(A30,'DATA (2022)'!A:F,2,FALSE) -> Кан.насос SLV.65.65.09.A.2.1.502 | C30: =VLOOKUP(A30,'DATA (2022)'!A:F,4,FALSE) -> CW | F30: =VLOOKUP(A30,'DATA (2022)'!A:F,5,FALSE) -> 1928 | G30: =IFERROR(F30*(1-VLOOKUP(C30,ГОЛОВНА!K:L,2,0)), "-") -> 1330.32
A31: 96115125 | B31: =VLOOKUP(A31,'DATA (2022)'!A:F,2,FALSE) -> Кан.насос SLV.65.65.09.A.2.50B | C31: =VLOOKUP(A31,'DATA (2022)'!A:F,4,FALSE) -> CW | F31: =VLOOKUP(A31,'DATA (2022)'!A:F,5,FALSE) -> 1928 | G31: =IFERROR(F31*(1-VLOOKUP(C31,ГОЛОВНА!K:L,2,0)), "-") -> 1330.32
A32: 96878474 | B32: =VLOOKUP(A32,'DATA (2022)'!A:F,2,FALSE) -> Кан.насос SLV.65.65.09.E.2.1.502 | C32: =VLOOKUP(A32,'DATA (2022)'!A:F,4,FALSE) -> CW | F32: =VLOOKUP(A32,'DATA (2022)'!A:F,5,FALSE) -> 2343 | G32: =IFERROR(F32*(1-VLOOKUP(C32,ГОЛОВНА!K:L,2,0)), "-") -> 1616.67
A33: 96878475 | B33: =VLOOKUP(A33,'DATA (2022)'!A:F,2,FALSE) -> Кан.насос SLV.65.65.09.E.2.50B | C33: =VLOOKUP(A33,'DATA (2022)'!A:F,4,FALSE) -> CW | F33: =VLOOKUP(A33,'DATA (2022)'!A:F,5,FALSE) -> 2343 | G33: =IFERROR(F33*(1-VLOOKUP(C33,ГОЛОВНА!K:L,2,0)), "-") -> 1616.67
A34: 96878476 | B34: =VLOOKUP(A34,'DATA (2022)'!A:F,2,FALSE) -> Кан.насос SLV.65.65.09.E.Ex.2.1.502 | C34: =VLOOKUP(A34,'DATA (2022)'!A:F,4,FALSE) -> CW | F34: =VLOOKUP(A34,'DATA (2022)'!A:F,5,FALSE) -> 2582 | G34: =IFERROR(F34*(1-VLOOKUP(C34,ГОЛОВНА!K:L,2,0)), "-") -> 1781.58
A35: 96878477 | B35: =VLOOKUP(A35,'DATA (2022)'!A:F,2,FALSE) -> Кан.насос SLV.65.65.09.E.Ex.2.50B | C35: =VLOOKUP(A35,'DATA (2022)'!A:F,4,FALSE) -> CW | F35: =VLOOKUP(A35,'DATA (2022)'!A:F,5,FALSE) -> 2582 | G35: =IFERROR(F35*(1-VLOOKUP(C35,ГОЛОВНА!K:L,2,0)), "-") -> 1781.58
A36: 96115120 | B36: =VLOOKUP(A36,'DATA (2022)'!A:F,2,FALSE) -> Кан.насос SLV.65.65.09.Ex.2.1.502 | C36: =VLOOKUP(A36,'DATA (2022)'!A:F,4,FALSE) -> CW | F36: =VLOOKUP(A36,'DATA (2022)'!A:F,5,FALSE) -> 1705 | G36: =IFERROR(F36*(1-VLOOKUP(C36,ГОЛОВНА!K:L,2,0)), "-") -> 1176.45
A37: 96106573 | B37: =VLOOKUP(A37,'DATA (2022)'!A:F,2,FALSE) -> Кан.насос SLV.65.65.11.2.1.502 | C37: =VLOOKUP(A37,'DATA (2022)'!A:F,4,FALSE) -> CW | F37: =VLOOKUP(A37,'DATA (2022)'!A:F,5,FALSE) -> 1699 | G37: =IFERROR(F37*(1-VLOOKUP(C37,ГОЛОВНА!K:L,2,0)), "-") -> 1172.31
A38: 96106577 | B38: =VLOOKUP(A38,'DATA (2022)'!A:F,2,FALSE) -> Кан.насос SLV.65.65.11.2.50B | C38: =VLOOKUP(A38,'DATA (2022)'!A:F,4,FALSE) -> CW | F38: =VLOOKUP(A38,'DATA (2022)'!A:F,5,FALSE) -> 1649 | G38: =IFERROR(F38*(1-VLOOKUP(C38,ГОЛОВНА!K:L,2,0)), "-") -> 1137.81
A39: 96106575 | B39: =VLOOKUP(A39,'DATA (2022)'!A:F,2,FALSE) -> Кан.насос SLV.65.65.11.A.2.1.502 | C39: =VLOOKUP(A39,'DATA (2022)'!A:F,4,FALSE) -> CW | F39: =VLOOKUP(A39,'DATA (2022)'!A:F,5,FALSE) -> 2114 | G39: =IFERROR(F39*(1-VLOOKUP(C39,ГОЛОВНА!K:L,2,0)), "-") -> 1458.66
A40: 96106579 | B40: =VLOOKUP(A40,'DATA (2022)'!A:F,2,FALSE) -> Кан.насос SLV.65.65.11.A.2.50B | C40: =VLOOKUP(A40,'DATA (2022)'!A:F,4,FALSE) -> CW | F40: =VLOOKUP(A40,'DATA (2022)'!A:F,5,FALSE) -> 2114 | G40: =IFERROR(F40*(1-VLOOKUP(C40,ГОЛОВНА!K:L,2,0)), "-") -> 1458.66
A41: 96882685 | B41: =VLOOKUP(A41,'DATA (2022)'!A:F,2,FALSE) -> Кан.насос SLV.65.65.11.E.2.1.502 | C41: =VLOOKUP(A41,'DATA (2022)'!A:F,4,FALSE) -> CW | F41: =VLOOKUP(A41,'DATA (2022)'!A:F,5,FALSE) -> 2512 | G41: =IFERROR(F41*(1-VLOOKUP(C41,ГОЛОВНА!K:L,2,0)), "-") -> 1733.28
A42: 96882686 | B42: =VLOOKUP(A42,'DATA (2022)'!A:F,2,FALSE) -> Кан.насос SLV.65.65.11.E.2.50B | C42: =VLOOKUP(A42,'DATA (2022)'!A:F,4,FALSE) -> CW | F42: =VLOOKUP(A42,'DATA (2022)'!A:F,5,FALSE) -> 2512 | G42: =IFERROR(F42*(1-VLOOKUP(C42,ГОЛОВНА!K:L,2,0)), "-") -> 1733.28
A43: 96878480 | B43: =VLOOKUP(A43,'DATA (2022)'!A:F,2,FALSE) -> Кан.насос SLV.65.65.11.E.Ex.2.1.502 | C43: =VLOOKUP(A43,'DATA (2022)'!A:F,4,FALSE) -> CW | F43: =VLOOKUP(A43,'DATA (2022)'!A:F,5,FALSE) -> 2751 | G43: =IFERROR(F43*(1-VLOOKUP(C43,ГОЛОВНА!K:L,2,0)), "-") -> 1898.19
A44: 96878481 | B44: =VLOOKUP(A44,'DATA (2022)'!A:F,2,FALSE) -> Кан.насос SLV.65.65.11.E.Ex.2.50B | C44: =VLOOKUP(A44,'DATA (2022)'!A:F,4,FALSE) -> CW | F44: =VLOOKUP(A44,'DATA (2022)'!A:F,5,FALSE) -> 2751 | G44: =IFERROR(F44*(1-VLOOKUP(C44,ГОЛОВНА!K:L,2,0)), "-") -> 1898.19
A45: 96106574 | B45: =VLOOKUP(A45,'DATA (2022)'!A:F,2,FALSE) -> Кан.насос SLV.65.65.11.Ex.2.1.502 | C45: =VLOOKUP(A45,'DATA (2022)'!A:F,4,FALSE) -> CW | F45: =VLOOKUP(A45,'DATA (2022)'!A:F,5,FALSE) -> 1890 | G45: =IFERROR(F45*(1-VLOOKUP(C45,ГОЛОВНА!K:L,2,0)), "-") -> 1304.1
A46: 96106578 | B46: =VLOOKUP(A46,'DATA (2022)'!A:F,2,FALSE) -> Кан.насос SLV.65.65.11.Ex.2.50B | C46: =VLOOKUP(A46,'DATA (2022)'!A:F,4,FALSE) -> CW | F46: =VLOOKUP(A46,'DATA (2022)'!A:F,5,FALSE) -> 1890 | G46: =IFERROR(F46*(1-VLOOKUP(C46,ГОЛОВНА!K:L,2,0)), "-") -> 1304.1
A47: 96104192 | B47: =VLOOKUP(A47,'DATA (2022)'!A:F,2,FALSE) -> Кан.насос SLV.65.65.15.2.50B | C47: =VLOOKUP(A47,'DATA (2022)'!A:F,4,FALSE) -> CW | F47: =VLOOKUP(A47,'DATA (2022)'!A:F,5,FALSE) -> 2092 | G47: =IFERROR(F47*(1-VLOOKUP(C47,ГОЛОВНА!K:L,2,0)), "-") -> 1443.48
A48: 96104194 | B48: =VLOOKUP(A48,'DATA (2022)'!A:F,2,FALSE) -> Кан.насос SLV.65.65.15.A.2.50B | C48: =VLOOKUP(A48,'DATA (2022)'!A:F,4,FALSE) -> CW | F48: =VLOOKUP(A48,'DATA (2022)'!A:F,5,FALSE) -> 2506 | G48: =IFERROR(F48*(1-VLOOKUP(C48,ГОЛОВНА!K:L,2,0)), "-") -> 1729.14
A49: 96878503 | B49: =VLOOKUP(A49,'DATA (2022)'!A:F,2,FALSE) -> Кан.насос SLV.65.65.15.E.2.50B | C49: =VLOOKUP(A49,'DATA (2022)'!A:F,4,FALSE) -> CW | F49: =VLOOKUP(A49,'DATA (2022)'!A:F,5,FALSE) -> 2872 | G49: =IFERROR(F49*(1-VLOOKUP(C49,ГОЛОВНА!K:L,2,0)), "-") -> 1981.68
A50: 96878504 | B50: =VLOOKUP(A50,'DATA (2022)'!A:F,2,FALSE) -> Кан.насос SLV.65.65.15.E.Ex.2.50B | C50: =VLOOKUP(A50,'DATA (2022)'!A:F,4,FALSE) -> CW | F50: =VLOOKUP(A50,'DATA (2022)'!A:F,5,FALSE) -> За запитом | G50: =IFERROR(F50*(1-VLOOKUP(C50,ГОЛОВНА!K:L,2,0)), "-") -> -
A51: 96104193 | B51: =VLOOKUP(A51,'DATA (2022)'!A:F,2,FALSE) -> Кан.насос SLV.65.65.15.Ex.2.50B | C51: =VLOOKUP(A51,'DATA (2022)'!A:F,4,FALSE) -> CW | F51: =VLOOKUP(A51,'DATA (2022)'!A:F,5,FALSE) -> 2284 | G51: =IFERROR(F51*(1-VLOOKUP(C51,ГОЛОВНА!K:L,2,0)), "-") -> 1575.96
A52: 96106562 | B52: =VLOOKUP(A52,'DATA (2022)'!A:F,2,FALSE) -> Кан.насос SL1.50.65.09.2.1.502 | C52: =VLOOKUP(A52,'DATA (2022)'!A:F,4,FALSE) -> CW | F52: =VLOOKUP(A52,'DATA (2022)'!A:F,5,FALSE) -> 1533 | G52: =IFERROR(F52*(1-VLOOKUP(C52,ГОЛОВНА!K:L,2,0)), "-") -> 1057.77
A53: 96106566 | B53: =VLOOKUP(A53,'DATA (2022)'!A:F,2,FALSE) -> Кан.насос SL1.50.65.09.2.50B | C53: =VLOOKUP(A53,'DATA (2022)'!A:F,4,FALSE) -> CW | F53: =VLOOKUP(A53,'DATA (2022)'!A:F,5,FALSE) -> 1533 | G53: =IFERROR(F53*(1-VLOOKUP(C53,ГОЛОВНА!K:L,2,0)), "-") -> 1057.77
A54: 96106564 | B54: =VLOOKUP(A54,'DATA (2022)'!A:F,2,FALSE) -> Кан.насос SL1.50.65.09.A.2.1.502 | C54: =VLOOKUP(A54,'DATA (2022)'!A:F,4,FALSE) -> CW | F54: =VLOOKUP(A54,'DATA (2022)'!A:F,5,FALSE) -> 2137 | G54: =IFERROR(F54*(1-VLOOKUP(C54,ГОЛОВНА!K:L,2,0)), "-") -> 1474.53
A55: 96106570 | B55: =VLOOKUP(A55,'DATA (2022)'!A:F,2,FALSE) -> Кан.насос SL1.50.65.09.A.2.50B | C55: =VLOOKUP(A55,'DATA (2022)'!A:F,4,FALSE) -> CW | F55: =VLOOKUP(A55,'DATA (2022)'!A:F,5,FALSE) -> 1948 | G55: =IFERROR(F55*(1-VLOOKUP(C55,ГОЛОВНА!K:L,2,0)), "-") -> 1344.12
A56: 96878450 | B56: =VLOOKUP(A56,'DATA (2022)'!A:F,2,FALSE) -> Кан.насос SL1.50.65.09.E.2.1.502 | C56: =VLOOKUP(A56,'DATA (2022)'!A:F,4,FALSE) -> CW | F56: =VLOOKUP(A56,'DATA (2022)'!A:F,5,FALSE) -> 2361 | G56: =IFERROR(F56*(1-VLOOKUP(C56,ГОЛОВНА!K:L,2,0)), "-") -> 1629.09
A57: 96047509 | B57: =VLOOKUP(A57,'DATA (2022)'!A:F,2,FALSE) -> Кан.насос SE1.50.65.22.2.50D.B | C57: =VLOOKUP(A57,'DATA (2022)'!A:F,4,FALSE) -> WW | F57: =VLOOKUP(A57,'DATA (2022)'!A:F,5,FALSE) -> За запитом | G57: =IFERROR(F57*(1-VLOOKUP(C57,ГОЛОВНА!K:L,2,0)), "-") -> -
A58: 96047517 | B58: =VLOOKUP(A58,'DATA (2022)'!A:F,2,FALSE) -> Кан.насос SE1.50.65.30.2.50D.B | C58: =VLOOKUP(A58,'DATA (2022)'!A:F,4,FALSE) -> WW | F58: =VLOOKUP(A58,'DATA (2022)'!A:F,5,FALSE) -> За запитом | G58: =IFERROR(F58*(1-VLOOKUP(C58,ГОЛОВНА!K:L,2,0)), "-") -> -
A59: 96047981 | B59: =VLOOKUP(A59,'DATA (2022)'!A:F,2,FALSE) -> Кан.насос SE1.50.80.22.2.50D.B | C59: =VLOOKUP(A59,'DATA (2022)'!A:F,4,FALSE) -> WW | F59: =VLOOKUP(A59,'DATA (2022)'!A:F,5,FALSE) -> За запитом | G59: =IFERROR(F59*(1-VLOOKUP(C59,ГОЛОВНА!K:L,2,0)), "-") -> -
A60: 96047989 | B60: =VLOOKUP(A60,'DATA (2022)'!A:F,2,FALSE) -> Кан.насос SE1.50.80.30.2.50D.B | C60: =VLOOKUP(A60,'DATA (2022)'!A:F,4,FALSE) -> WW | F60: =VLOOKUP(A60,'DATA (2022)'!A:F,5,FALSE) -> За запитом | G60: =IFERROR(F60*(1-VLOOKUP(C60,ГОЛОВНА!K:L,2,0)), "-") -> -
A61: 96048005 | B61: =VLOOKUP(A61,'DATA (2022)'!A:F,2,FALSE) -> Кан.насос SE1.80.100.15.4.50D.B | C61: =VLOOKUP(A61,'DATA (2022)'!A:F,4,FALSE) -> WW | F61: =VLOOKUP(A61,'DATA (2022)'!A:F,5,FALSE) -> За запитом | G61: =IFERROR(F61*(1-VLOOKUP(C61,ГОЛОВНА!K:L,2,0)), "-") -> -
A62: 96048021 | B62: =VLOOKUP(A62,'DATA (2022)'!A:F,2,FALSE) -> Кан.насос SE1.80.100.22.4.50D.B | C62: =VLOOKUP(A62,'DATA (2022)'!A:F,4,FALSE) -> WW | F62: =VLOOKUP(A62,'DATA (2022)'!A:F,5,FALSE) -> За запитом | G62: =IFERROR(F62*(1-VLOOKUP(C62,ГОЛОВНА!K:L,2,0)), "-") -> -
A63: 96047533 | B63: =VLOOKUP(A63,'DATA (2022)'!A:F,2,FALSE) -> Кан.насос SE1.80.80.15.4.50D.B | C63: =VLOOKUP(A63,'DATA (2022)'!A:F,4,FALSE) -> WW | F63: =VLOOKUP(A63,'DATA (2022)'!A:F,5,FALSE) -> За запитом | G63: =IFERROR(F63*(1-VLOOKUP(C63,ГОЛОВНА!K:L,2,0)), "-") -> -
A64: 96047697 | B64: =VLOOKUP(A64,'DATA (2022)'!A:F,2,FALSE) -> Кан.насос SEV.65.65.22.2.50D | C64: =VLOOKUP(A64,'DATA (2022)'!A:F,4,FALSE) -> WW | F64: =VLOOKUP(A64,'DATA (2022)'!A:F,5,FALSE) -> За запитом | G64: =IFERROR(F64*(1-VLOOKUP(C64,ГОЛОВНА!K:L,2,0)), "-") -> -
A65: 96047713 | B65: =VLOOKUP(A65,'DATA (2022)'!A:F,2,FALSE) -> Кан.насос SEV.65.65.30.2.50D | C65: =VLOOKUP(A65,'DATA (2022)'!A:F,4,FALSE) -> WW | F65: =VLOOKUP(A65,'DATA (2022)'!A:F,5,FALSE) -> За запитом | G65: =IFERROR(F65*(1-VLOOKUP(C65,ГОЛОВНА!K:L,2,0)), "-") -> -
A66: 96048169 | B66: =VLOOKUP(A66,'DATA (2022)'!A:F,2,FALSE) -> Кан.насос SEV.65.80.22.2.50D | C66: =VLOOKUP(A66,'DATA (2022)'!A:F,4,FALSE) -> WW | F66: =VLOOKUP(A66,'DATA (2022)'!A:F,5,FALSE) -> За запитом | G66: =IFERROR(F66*(1-VLOOKUP(C66,ГОЛОВНА!K:L,2,0)), "-") -> -
A67: 96048185 | B67: =VLOOKUP(A67,'DATA (2022)'!A:F,2,FALSE) -> Кан.насос SEV.65.80.30.2.50D | C67: =VLOOKUP(A67,'DATA (2022)'!A:F,4,FALSE) -> WW | F67: =VLOOKUP(A67,'DATA (2022)'!A:F,5,FALSE) -> За запитом | G67: =IFERROR(F67*(1-VLOOKUP(C67,ГОЛОВНА!K:L,2,0)), "-") -> -
A68: 96047745 | B68: =VLOOKUP(A68,'DATA (2022)'!A:F,2,FALSE) -> Кан.насос SEV.80.80.11.4.50D | C68: =VLOOKUP(A68,'DATA (2022)'!A:F,4,FALSE) -> WW | F68: =VLOOKUP(A68,'DATA (2022)'!A:F,5,FALSE) -> За запитом | G68: =IFERROR(F68*(1-VLOOKUP(C68,ГОЛОВНА!K:L,2,0)), "-") -> -
A69: 96047757 | B69: =VLOOKUP(A69,'DATA (2022)'!A:F,2,FALSE) -> Кан.насос SEV.80.80.13.4.50D | C69: =VLOOKUP(A69,'DATA (2022)'!A:F,4,FALSE) -> WW | F69: =VLOOKUP(A69,'DATA (2022)'!A:F,5,FALSE) -> За запитом | G69: =IFERROR(F69*(1-VLOOKUP(C69,ГОЛОВНА!K:L,2,0)), "-") -> -
A70: 96047769 | B70: =VLOOKUP(A70,'DATA (2022)'!A:F,2,FALSE) -> Кан.насос SEV.80.80.15.4.50D | C70: =VLOOKUP(A70,'DATA (2022)'!A:F,4,FALSE) -> WW | F70: =VLOOKUP(A70,'DATA (2022)'!A:F,5,FALSE) -> За запитом | G70: =IFERROR(F70*(1-VLOOKUP(C70,ГОЛОВНА!K:L,2,0)), "-") -> -
A71: 96047781 | B71: =VLOOKUP(A71,'DATA (2022)'!A:F,2,FALSE) -> Кан.насос SEV.80.80.22.4.50D | C71: =VLOOKUP(A71,'DATA (2022)'!A:F,4,FALSE) -> WW | F71: =VLOOKUP(A71,'DATA (2022)'!A:F,5,FALSE) -> За запитом | G71: =IFERROR(F71*(1-VLOOKUP(C71,ГОЛОВНА!K:L,2,0)), "-") -> -
A72: 98624257 | B72: =VLOOKUP(A72,'DATA (2022)'!A:F,2,FALSE) -> Кан.насос SL1.50.65.22.2.50D.C | C72: =VLOOKUP(A72,'DATA (2022)'!A:F,4,FALSE) -> CW | F72: =VLOOKUP(A72,'DATA (2022)'!A:F,5,FALSE) -> 2703 | G72: =IFERROR(F72*(1-VLOOKUP(C72,ГОЛОВНА!K:L,2,0)), "-") -> 1865.07
A73: 98626085 | B73: =VLOOKUP(A73,'DATA (2022)'!A:F,2,FALSE) -> Кан.насос SL1.50.65.22.2.51D.C | C73: =VLOOKUP(A73,'DATA (2022)'!A:F,4,FALSE) -> CW | F73: =VLOOKUP(A73,'DATA (2022)'!A:F,5,FALSE) -> 2703 | G73: =IFERROR(F73*(1-VLOOKUP(C73,ГОЛОВНА!K:L,2,0)), "-") -> 1865.07
A74: 98626303 | B74: =VLOOKUP(A74,'DATA (2022)'!A:F,2,FALSE) -> Кан.насос SL1.50.65.22.A.2.50D.C | C74: =VLOOKUP(A74,'DATA (2022)'!A:F,4,FALSE) -> CW | F74: =VLOOKUP(A74,'DATA (2022)'!A:F,5,FALSE) -> За запитом | G74: =IFERROR(F74*(1-VLOOKUP(C74,ГОЛОВНА!K:L,2,0)), "-") -> -
A75: 98626314 | B75: =VLOOKUP(A75,'DATA (2022)'!A:F,2,FALSE) -> Кан.насос SL1.50.65.22.A.2.51D.C | C75: =VLOOKUP(A75,'DATA (2022)'!A:F,4,FALSE) -> CW | F75: =VLOOKUP(A75,'DATA (2022)'!A:F,5,FALSE) -> За запитом | G75: =IFERROR(F75*(1-VLOOKUP(C75,ГОЛОВНА!K:L,2,0)), "-") -> -
A76: 98626482 | B76: =VLOOKUP(A76,'DATA (2022)'!A:F,2,FALSE) -> Кан.насос SL1.50.65.22.A.EX.2.50D.C | C76: =VLOOKUP(A76,'DATA (2022)'!A:F,4,FALSE) -> CW | F76: =VLOOKUP(A76,'DATA (2022)'!A:F,5,FALSE) -> За запитом | G76: =IFERROR(F76*(1-VLOOKUP(C76,ГОЛОВНА!K:L,2,0)), "-") -> -
A77: 98626487 | B77: =VLOOKUP(A77,'DATA (2022)'!A:F,2,FALSE) -> Кан.насос SL1.50.65.22.A.EX.2.51D.C | C77: =VLOOKUP(A77,'DATA (2022)'!A:F,4,FALSE) -> CW | F77: =VLOOKUP(A77,'DATA (2022)'!A:F,5,FALSE) -> За запитом | G77: =IFERROR(F77*(1-VLOOKUP(C77,ГОЛОВНА!K:L,2,0)), "-") -> -
A78: 98626698 | B78: =VLOOKUP(A78,'DATA (2022)'!A:F,2,FALSE) -> Кан.насос SL1.50.65.22.EX.2.50D.C | C78: =VLOOKUP(A78,'DATA (2022)'!A:F,4,FALSE) -> CW | F78: =VLOOKUP(A78,'DATA (2022)'!A:F,5,FALSE) -> 2848 | G78: =IFERROR(F78*(1-VLOOKUP(C78,ГОЛОВНА!K:L,2,0)), "-") -> 1965.12
A79: 98626703 | B79: =VLOOKUP(A79,'DATA (2022)'!A:F,2,FALSE) -> Кан.насос SL1.50.65.22.EX.2.51D.C | C79: =VLOOKUP(A79,'DATA (2022)'!A:F,4,FALSE) -> CW | F79: =VLOOKUP(A79,'DATA (2022)'!A:F,5,FALSE) -> 2898 | G79: =IFERROR(F79*(1-VLOOKUP(C79,ГОЛОВНА!K:L,2,0)), "-") -> 1999.62
A80: 98624258 | B80: =VLOOKUP(A80,'DATA (2022)'!A:F,2,FALSE) -> Кан.насос SL1.50.65.30.2.50D.C | C80: =VLOOKUP(A80,'DATA (2022)'!A:F,4,FALSE) -> CW | F80: =VLOOKUP(A80,'DATA (2022)'!A:F,5,FALSE) -> За запитом | G80: =IFERROR(F80*(1-VLOOKUP(C80,ГОЛОВНА!K:L,2,0)), "-") -> -
A81: 98626086 | B81: =VLOOKUP(A81,'DATA (2022)'!A:F,2,FALSE) -> Кан.насос SL1.50.65.30.2.51D.C | C81: =VLOOKUP(A81,'DATA (2022)'!A:F,4,FALSE) -> CW | F81: =VLOOKUP(A81,'DATA (2022)'!A:F,5,FALSE) -> За запитом | G81: =IFERROR(F81*(1-VLOOKUP(C81,ГОЛОВНА!K:L,2,0)), "-") -> -
A82: 98626304 | B82: =VLOOKUP(A82,'DATA (2022)'!A:F,2,FALSE) -> Кан.насос SL1.50.65.30.A.2.50D.C | C82: =VLOOKUP(A82,'DATA (2022)'!A:F,4,FALSE) -> CW | F82: =VLOOKUP(A82,'DATA (2022)'!A:F,5,FALSE) -> За запитом | G82: =IFERROR(F82*(1-VLOOKUP(C82,ГОЛОВНА!K:L,2,0)), "-") -> -
A83: 98626315 | B83: =VLOOKUP(A83,'DATA (2022)'!A:F,2,FALSE) -> Кан.насос SL1.50.65.30.A.2.51D.C | C83: =VLOOKUP(A83,'DATA (2022)'!A:F,4,FALSE) -> CW | F83: =VLOOKUP(A83,'DATA (2022)'!A:F,5,FALSE) -> За запитом | G83: =IFERROR(F83*(1-VLOOKUP(C83,ГОЛОВНА!K:L,2,0)), "-") -> -
A84: 98626483 | B84: =VLOOKUP(A84,'DATA (2022)'!A:F,2,FALSE) -> Кан.насос SL1.50.65.30.A.EX.2.50D.C | C84: =VLOOKUP(A84,'DATA (2022)'!A:F,4,FALSE) -> CW | F84: =VLOOKUP(A84,'DATA (2022)'!A:F,5,FALSE) -> За запитом | G84: =IFERROR(F84*(1-VLOOKUP(C84,ГОЛОВНА!K:L,2,0)), "-") -> -
A85: 98626488 | B85: =VLOOKUP(A85,'DATA (2022)'!A:F,2,FALSE) -> Кан.насос SL1.50.65.30.A.EX.2.51D.C | C85: =VLOOKUP(A85,'DATA (2022)'!A:F,4,FALSE) -> CW | F85: =VLOOKUP(A85,'DATA (2022)'!A:F,5,FALSE) -> За запитом | G85: =IFERROR(F85*(1-VLOOKUP(C85,ГОЛОВНА!K:L,2,0)), "-") -> -
A86: 98626699 | B86: =VLOOKUP(A86,'DATA (2022)'!A:F,2,FALSE) -> Кан.насос SL1.50.65.30.EX.2.50D.C | C86: =VLOOKUP(A86,'DATA (2022)'!A:F,4,FALSE) -> CW | F86: =VLOOKUP(A86,'DATA (2022)'!A:F,5,FALSE) -> За запитом | G86: =IFERROR(F86*(1-VLOOKUP(C86,ГОЛОВНА!K:L,2,0)), "-") -> -
A87: 98626704 | B87: =VLOOKUP(A87,'DATA (2022)'!A:F,2,FALSE) -> Кан.насос SL1.50.65.30.EX.2.51D.C | C87: =VLOOKUP(A87,'DATA (2022)'!A:F,4,FALSE) -> CW | F87: =VLOOKUP(A87,'DATA (2022)'!A:F,5,FALSE) -> За запитом | G87: =IFERROR(F87*(1-VLOOKUP(C87,ГОЛОВНА!K:L,2,0)), "-") -> -
A88: 98626080 | B88: =VLOOKUP(A88,'DATA (2022)'!A:F,2,FALSE) -> Кан.насос SL1.50.65.40.2.50D.C | C88: =VLOOKUP(A88,'DATA (2022)'!A:F,4,FALSE) -> CW | F88: =VLOOKUP(A88,'DATA (2022)'!A:F,5,FALSE) -> За запитом | G88: =IFERROR(F88*(1-VLOOKUP(C88,ГОЛОВНА!K:L,2,0)), "-") -> -
A89: 98624259 | B89: =VLOOKUP(A89,'DATA (2022)'!A:F,2,FALSE) -> Кан.насос SL1.50.65.40.2.51D.C | C89: =VLOOKUP(A89,'DATA (2022)'!A:F,4,FALSE) -> CW | F89: =VLOOKUP(A89,'DATA (2022)'!A:F,5,FALSE) -> За запитом | G89: =IFERROR(F89*(1-VLOOKUP(C89,ГОЛОВНА!K:L,2,0)), "-") -> -
A90: 98626701 | B90: =VLOOKUP(A90,'DATA (2022)'!A:F,2,FALSE) -> Кан.насос SL1.50.65.40.EX.2.50D.C | C90: =VLOOKUP(A90,'DATA (2022)'!A:F,4,FALSE) -> CW | F90: =VLOOKUP(A90,'DATA (2022)'!A:F,5,FALSE) -> За запитом | G90: =IFERROR(F90*(1-VLOOKUP(C90,ГОЛОВНА!K:L,2,0)), "-") -> -
A91: 98626705 | B91: =VLOOKUP(A91,'DATA (2022)'!A:F,2,FALSE) -> Кан.насос SL1.50.65.40.EX.2.51D.C | C91: =VLOOKUP(A91,'DATA (2022)'!A:F,4,FALSE) -> CW | F91: =VLOOKUP(A91,'DATA (2022)'!A:F,5,FALSE) -> За запитом | G91: =IFERROR(F91*(1-VLOOKUP(C91,ГОЛОВНА!K:L,2,0)), "-") -> -
A92: 98617678 | B92: =VLOOKUP(A92,'DATA (2022)'!A:F,2,FALSE) -> Кан.насос SL1.50.80.22.2.50D.C | C92: =VLOOKUP(A92,'DATA (2022)'!A:F,4,FALSE) -> CW | F92: =VLOOKUP(A92,'DATA (2022)'!A:F,5,FALSE) -> 2757 | G92: =IFERROR(F92*(1-VLOOKUP(C92,ГОЛОВНА!K:L,2,0)), "-") -> 1902.33
A93: 98626087 | B93: =VLOOKUP(A93,'DATA (2022)'!A:F,2,FALSE) -> Кан.насос SL1.50.80.22.2.51D.C | C93: =VLOOKUP(A93,'DATA (2022)'!A:F,4,FALSE) -> CW | F93: =VLOOKUP(A93,'DATA (2022)'!A:F,5,FALSE) -> 2757 | G93: =IFERROR(F93*(1-VLOOKUP(C93,ГОЛОВНА!K:L,2,0)), "-") -> 1902.33
A94: 98617680 | B94: =VLOOKUP(A94,'DATA (2022)'!A:F,2,FALSE) -> Кан.насос SL1.50.80.22.A.2.50D.C | C94: =VLOOKUP(A94,'DATA (2022)'!A:F,4,FALSE) -> CW | F94: =VLOOKUP(A94,'DATA (2022)'!A:F,5,FALSE) -> За запитом | G94: =IFERROR(F94*(1-VLOOKUP(C94,ГОЛОВНА!K:L,2,0)), "-") -> -
A95: 98626317 | B95: =VLOOKUP(A95,'DATA (2022)'!A:F,2,FALSE) -> Кан.насос SL1.50.80.22.A.2.51D.C | C95: =VLOOKUP(A95,'DATA (2022)'!A:F,4,FALSE) -> CW | F95: =VLOOKUP(A95,'DATA (2022)'!A:F,5,FALSE) -> За запитом | G95: =IFERROR(F95*(1-VLOOKUP(C95,ГОЛОВНА!K:L,2,0)), "-") -> -
A96: 98617691 | B96: =VLOOKUP(A96,'DATA (2022)'!A:F,2,FALSE) -> Кан.насос SL1.50.80.22.A.EX.2.50D.C | C96: =VLOOKUP(A96,'DATA (2022)'!A:F,4,FALSE) -> CW | F96: =VLOOKUP(A96,'DATA (2022)'!A:F,5,FALSE) -> За запитом | G96: =IFERROR(F96*(1-VLOOKUP(C96,ГОЛОВНА!K:L,2,0)), "-") -> -
A97: 98626490 | B97: =VLOOKUP(A97,'DATA (2022)'!A:F,2,FALSE) -> Кан.насос SL1.50.80.22.A.EX.2.51D.C | C97: =VLOOKUP(A97,'DATA (2022)'!A:F,4,FALSE) -> CW | F97: =VLOOKUP(A97,'DATA (2022)'!A:F,5,FALSE) -> За запитом | G97: =IFERROR(F97*(1-VLOOKUP(C97,ГОЛОВНА!K:L,2,0)), "-") -> -
A98: 98617679 | B98: =VLOOKUP(A98,'DATA (2022)'!A:F,2,FALSE) -> Кан.насос SL1.50.80.22.EX.2.50D.C | C98: =VLOOKUP(A98,'DATA (2022)'!A:F,4,FALSE) -> CW | F98: =VLOOKUP(A98,'DATA (2022)'!A:F,5,FALSE) -> 2903 | G98: =IFERROR(F98*(1-VLOOKUP(C98,ГОЛОВНА!K:L,2,0)), "-") -> 2003.07
A99: 98626706 | B99: =VLOOKUP(A99,'DATA (2022)'!A:F,2,FALSE) -> Кан.насос SL1.50.80.22.EX.2.51D.C | C99: =VLOOKUP(A99,'DATA (2022)'!A:F,4,FALSE) -> CW | F99: =VLOOKUP(A99,'DATA (2022)'!A:F,5,FALSE) -> 2953 | G99: =IFERROR(F99*(1-VLOOKUP(C99,ГОЛОВНА!K:L,2,0)), "-") -> 2037.57
A100: 98626076 | B100: =VLOOKUP(A100,'DATA (2022)'!A:F,2,FALSE) -> Кан.насос SL1.50.80.30.2.50D.C | C100: =VLOOKUP(A100,'DATA (2022)'!A:F,4,FALSE) -> CW | F100: =VLOOKUP(A100,'DATA (2022)'!A:F,5,FALSE) -> За запитом | G100: =IFERROR(F100*(1-VLOOKUP(C100,ГОЛОВНА!K:L,2,0)), "-") -> -
A101: 98626088 | B101: =VLOOKUP(A101,'DATA (2022)'!A:F,2,FALSE) -> Кан.насос SL1.50.80.30.2.51D.C | C101: =VLOOKUP(A101,'DATA (2022)'!A:F,4,FALSE) -> CW | F101: =VLOOKUP(A101,'DATA (2022)'!A:F,5,FALSE) -> За запитом | G101: =IFERROR(F101*(1-VLOOKUP(C101,ГОЛОВНА!K:L,2,0)), "-") -> -
A102: 98626306 | B102: =VLOOKUP(A102,'DATA (2022)'!A:F,2,FALSE) -> Кан.насос SL1.50.80.30.A.2.50D.C | C102: =VLOOKUP(A102,'DATA (2022)'!A:F,4,FALSE) -> CW | F102: =VLOOKUP(A102,'DATA (2022)'!A:F,5,FALSE) -> За запитом | G102: =IFERROR(F102*(1-VLOOKUP(C102,ГОЛОВНА!K:L,2,0)), "-") -> -
A103: 98626318 | B103: =VLOOKUP(A103,'DATA (2022)'!A:F,2,FALSE) -> Кан.насос SL1.50.80.30.A.2.51D.C | C103: =VLOOKUP(A103,'DATA (2022)'!A:F,4,FALSE) -> CW | F103: =VLOOKUP(A103,'DATA (2022)'!A:F,5,FALSE) -> За запитом | G103: =IFERROR(F103*(1-VLOOKUP(C103,ГОЛОВНА!K:L,2,0)), "-") -> -
A104: 98626484 | B104: =VLOOKUP(A104,'DATA (2022)'!A:F,2,FALSE) -> Кан.насос SL1.50.80.30.A.EX.2.50D.C | C104: =VLOOKUP(A104,'DATA (2022)'!A:F,4,FALSE) -> CW | F104: =VLOOKUP(A104,'DATA (2022)'!A:F,5,FALSE) -> За запитом | G104: =IFERROR(F104*(1-VLOOKUP(C104,ГОЛОВНА!K:L,2,0)), "-") -> -
A105: 98626491 | B105: =VLOOKUP(A105,'DATA (2022)'!A:F,2,FALSE) -> Кан.насос SL1.50.80.30.A.EX.2.51D.C | C105: =VLOOKUP(A105,'DATA (2022)'!A:F,4,FALSE) -> CW | F105: =VLOOKUP(A105,'DATA (2022)'!A:F,5,FALSE) -> За запитом | G105: =IFERROR(F105*(1-VLOOKUP(C105,ГОЛОВНА!K:L,2,0)), "-") -> -
A106: 98626700 | B106: =VLOOKUP(A106,'DATA (2022)'!A:F,2,FALSE) -> Кан.насос SL1.50.80.30.EX.2.50D.C | C106: =VLOOKUP(A106,'DATA (2022)'!A:F,4,FALSE) -> CW | F106: =VLOOKUP(A106,'DATA (2022)'!A:F,5,FALSE) -> За запитом | G106: =IFERROR(F106*(1-VLOOKUP(C106,ГОЛОВНА!K:L,2,0)), "-") -> -
A107: 98626707 | B107: =VLOOKUP(A107,'DATA (2022)'!A:F,2,FALSE) -> Кан.насос SL1.50.80.30.EX.2.51D.C | C107: =VLOOKUP(A107,'DATA (2022)'!A:F,4,FALSE) -> CW | F107: =VLOOKUP(A107,'DATA (2022)'!A:F,5,FALSE) -> За запитом | G107: =IFERROR(F107*(1-VLOOKUP(C107,ГОЛОВНА!K:L,2,0)), "-") -> -
A108: 98626084 | B108: =VLOOKUP(A108,'DATA (2022)'!A:F,2,FALSE) -> Кан.насос SL1.50.80.40.2.50D.C | C108: =VLOOKUP(A108,'DATA (2022)'!A:F,4,FALSE) -> CW | F108: =VLOOKUP(A108,'DATA (2022)'!A:F,5,FALSE) -> За запитом | G108: =IFERROR(F108*(1-VLOOKUP(C108,ГОЛОВНА!K:L,2,0)), "-") -> -
A109: 98624260 | B109: =VLOOKUP(A109,'DATA (2022)'!A:F,2,FALSE) -> Кан.насос SL1.50.80.40.2.51D.C | C109: =VLOOKUP(A109,'DATA (2022)'!A:F,4,FALSE) -> CW | F109: =VLOOKUP(A109,'DATA (2022)'!A:F,5,FALSE) -> За запитом | G109: =IFERROR(F109*(1-VLOOKUP(C109,ГОЛОВНА!K:L,2,0)), "-") -> -
A110: 98626702 | B110: =VLOOKUP(A110,'DATA (2022)'!A:F,2,FALSE) -> Кан.насос SL1.50.80.40.EX.2.50D.C | C110: =VLOOKUP(A110,'DATA (2022)'!A:F,4,FALSE) -> CW | F110: =VLOOKUP(A110,'DATA (2022)'!A:F,5,FALSE) -> За запитом | G110: =IFERROR(F110*(1-VLOOKUP(C110,ГОЛОВНА!K:L,2,0)), "-") -> -
A111: 98626708 | B111: =VLOOKUP(A111,'DATA (2022)'!A:F,2,FALSE) -> Кан.насос SL1.50.80.40.EX.2.51D.C | C111: =VLOOKUP(A111,'DATA (2022)'!A:F,4,FALSE) -> CW | F111: =VLOOKUP(A111,'DATA (2022)'!A:F,5,FALSE) -> За запитом | G111: =IFERROR(F111*(1-VLOOKUP(C111,ГОЛОВНА!K:L,2,0)), "-") -> -
A112: 98625977 | B112: =VLOOKUP(A112,'DATA (2022)'!A:F,2,FALSE) -> Кан.насос SL1.80.100.15.4.50D.C | C112: =VLOOKUP(A112,'DATA (2022)'!A:F,4,FALSE) -> CW | F112: =VLOOKUP(A112,'DATA (2022)'!A:F,5,FALSE) -> 3011 | G112: =IFERROR(F112*(1-VLOOKUP(C112,ГОЛОВНА!K:L,2,0)), "-") -> 2077.59
A113: 98626190 | B113: =VLOOKUP(A113,'DATA (2022)'!A:F,2,FALSE) -> Кан.насос SL1.80.100.15.A.4.50D.C | C113: =VLOOKUP(A113,'DATA (2022)'!A:F,4,FALSE) -> CW | F113: =VLOOKUP(A113,'DATA (2022)'!A:F,5,FALSE) -> За запитом | G113: =IFERROR(F113*(1-VLOOKUP(C113,ГОЛОВНА!K:L,2,0)), "-") -> -
A114: 98626400 | B114: =VLOOKUP(A114,'DATA (2022)'!A:F,2,FALSE) -> Кан.насос SL1.80.100.15.A.EX.4.50D.C | C114: =VLOOKUP(A114,'DATA (2022)'!A:F,4,FALSE) -> CW | F114: =VLOOKUP(A114,'DATA (2022)'!A:F,5,FALSE) -> За запитом | G114: =IFERROR(F114*(1-VLOOKUP(C114,ГОЛОВНА!K:L,2,0)), "-") -> -
A115: 98626616 | B115: =VLOOKUP(A115,'DATA (2022)'!A:F,2,FALSE) -> Кан.насос SL1.80.100.15.EX.4.50D.C | C115: =VLOOKUP(A115,'DATA (2022)'!A:F,4,FALSE) -> CW | F115: =VLOOKUP(A115,'DATA (2022)'!A:F,5,FALSE) -> За запитом | G115: =IFERROR(F115*(1-VLOOKUP(C115,ГОЛОВНА!K:L,2,0)), "-") -> -
A116: 98624695 | B116: =VLOOKUP(A116,'DATA (2022)'!A:F,2,FALSE) -> Кан.насос SL1.80.100.22.4.50D.C | C116: =VLOOKUP(A116,'DATA (2022)'!A:F,4,FALSE) -> CW | F116: =VLOOKUP(A116,'DATA (2022)'!A:F,5,FALSE) -> За запитом | G116: =IFERROR(F116*(1-VLOOKUP(C116,ГОЛОВНА!K:L,2,0)), "-") -> -
A117: 98626058 | B117: =VLOOKUP(A117,'DATA (2022)'!A:F,2,FALSE) -> Кан.насос SL1.80.100.22.4.51D.C | C117: =VLOOKUP(A117,'DATA (2022)'!A:F,4,FALSE) -> CW | F117: =VLOOKUP(A117,'DATA (2022)'!A:F,5,FALSE) -> За запитом | G117: =IFERROR(F117*(1-VLOOKUP(C117,ГОЛОВНА!K:L,2,0)), "-") -> -
A118: 98626620 | B118: =VLOOKUP(A118,'DATA (2022)'!A:F,2,FALSE) -> Кан.насос SL1.80.100.22.EX.4.50D.C | C118: =VLOOKUP(A118,'DATA (2022)'!A:F,4,FALSE) -> CW | F118: =VLOOKUP(A118,'DATA (2022)'!A:F,5,FALSE) -> За запитом | G118: =IFERROR(F118*(1-VLOOKUP(C118,ГОЛОВНА!K:L,2,0)), "-") -> -
A119: 98626684 | B119: =VLOOKUP(A119,'DATA (2022)'!A:F,2,FALSE) -> Кан.насос SL1.80.100.22.EX.4.51D.C | C119: =VLOOKUP(A119,'DATA (2022)'!A:F,4,FALSE) -> CW | F119: =VLOOKUP(A119,'DATA (2022)'!A:F,5,FALSE) -> За запитом | G119: =IFERROR(F119*(1-VLOOKUP(C119,ГОЛОВНА!K:L,2,0)), "-") -> -
A120: 98625966 | B120: =VLOOKUP(A120,'DATA (2022)'!A:F,2,FALSE) -> Кан.насос SL1.80.100.30.4.50D.C | C120: =VLOOKUP(A120,'DATA (2022)'!A:F,4,FALSE) -> CW | F120: =VLOOKUP(A120,'DATA (2022)'!A:F,5,FALSE) -> За запитом | G120: =IFERROR(F120*(1-VLOOKUP(C120,ГОЛОВНА!K:L,2,0)), "-") -> -
A121: 98626050 | B121: =VLOOKUP(A121,'DATA (2022)'!A:F,2,FALSE) -> Кан.насос SL1.80.100.30.4.51D.C | C121: =VLOOKUP(A121,'DATA (2022)'!A:F,4,FALSE) -> CW | F121: =VLOOKUP(A121,'DATA (2022)'!A:F,5,FALSE) -> За запитом | G121: =IFERROR(F121*(1-VLOOKUP(C121,ГОЛОВНА!K:L,2,0)), "-") -> -
A122: 98624693 | B122: =VLOOKUP(A122,'DATA (2022)'!A:F,2,FALSE) -> Кан.насос SL1.80.80.15.4.50D.C | C122: =VLOOKUP(A122,'DATA (2022)'!A:F,4,FALSE) -> CW | F122: =VLOOKUP(A122,'DATA (2022)'!A:F,5,FALSE) -> 3001 | G122: =IFERROR(F122*(1-VLOOKUP(C122,ГОЛОВНА!K:L,2,0)), "-") -> 2070.69
A123: 98625875 | B123: =VLOOKUP(A123,'DATA (2022)'!A:F,2,FALSE) -> Кан.насос SL1.80.80.15.4.50E.C | C123: =VLOOKUP(A123,'DATA (2022)'!A:F,4,FALSE) -> CW | F123: =VLOOKUP(A123,'DATA (2022)'!A:F,5,FALSE) -> За запитом | G123: =IFERROR(F123*(1-VLOOKUP(C123,ГОЛОВНА!K:L,2,0)), "-") -> -
A124: 98626189 | B124: =VLOOKUP(A124,'DATA (2022)'!A:F,2,FALSE) -> Кан.насос SL1.80.80.15.A.4.50D.C | C124: =VLOOKUP(A124,'DATA (2022)'!A:F,4,FALSE) -> CW | F124: =VLOOKUP(A124,'DATA (2022)'!A:F,5,FALSE) -> За запитом | G124: =IFERROR(F124*(1-VLOOKUP(C124,ГОЛОВНА!K:L,2,0)), "-") -> -
A125: 98626399 | B125: =VLOOKUP(A125,'DATA (2022)'!A:F,2,FALSE) -> Кан.насос SL1.80.80.15.A.EX.4.50D.C | C125: =VLOOKUP(A125,'DATA (2022)'!A:F,4,FALSE) -> CW | F125: =VLOOKUP(A125,'DATA (2022)'!A:F,5,FALSE) -> За запитом | G125: =IFERROR(F125*(1-VLOOKUP(C125,ГОЛОВНА!K:L,2,0)), "-") -> -
A126: 98626615 | B126: =VLOOKUP(A126,'DATA (2022)'!A:F,2,FALSE) -> Кан.насос SL1.80.80.15.EX.4.50D.C | C126: =VLOOKUP(A126,'DATA (2022)'!A:F,4,FALSE) -> CW | F126: =VLOOKUP(A126,'DATA (2022)'!A:F,5,FALSE) -> За запитом | G126: =IFERROR(F126*(1-VLOOKUP(C126,ГОЛОВНА!K:L,2,0)), "-") -> -
A127: 98624251 | B127: =VLOOKUP(A127,'DATA (2022)'!A:F,2,FALSE) -> Кан.насос SL1.80.80.22.4.50D.C | C127: =VLOOKUP(A127,'DATA (2022)'!A:F,4,FALSE) -> CW | F127: =VLOOKUP(A127,'DATA (2022)'!A:F,5,FALSE) -> За запитом | G127: =IFERROR(F127*(1-VLOOKUP(C127,ГОЛОВНА!K:L,2,0)), "-") -> -
A128: 98626057 | B128: =VLOOKUP(A128,'DATA (2022)'!A:F,2,FALSE) -> Кан.насос SL1.80.80.22.4.51D.C | C128: =VLOOKUP(A128,'DATA (2022)'!A:F,4,FALSE) -> CW | F128: =VLOOKUP(A128,'DATA (2022)'!A:F,5,FALSE) -> За запитом | G128: =IFERROR(F128*(1-VLOOKUP(C128,ГОЛОВНА!K:L,2,0)), "-") -> -
A129: 98626619 | B129: =VLOOKUP(A129,'DATA (2022)'!A:F,2,FALSE) -> Кан.насос SL1.80.80.22.EX.4.50D.C | C129: =VLOOKUP(A129,'DATA (2022)'!A:F,4,FALSE) -> CW | F129: =VLOOKUP(A129,'DATA (2022)'!A:F,5,FALSE) -> За запитом | G129: =IFERROR(F129*(1-VLOOKUP(C129,ГОЛОВНА!K:L,2,0)), "-") -> -
A130: 98626683 | B130: =VLOOKUP(A130,'DATA (2022)'!A:F,2,FALSE) -> Кан.насос SL1.80.80.22.EX.4.51D.C | C130: =VLOOKUP(A130,'DATA (2022)'!A:F,4,FALSE) -> CW | F130: =VLOOKUP(A130,'DATA (2022)'!A:F,5,FALSE) -> За запитом | G130: =IFERROR(F130*(1-VLOOKUP(C130,ГОЛОВНА!K:L,2,0)), "-") -> -
A131: 98624669 | B131: =VLOOKUP(A131,'DATA (2022)'!A:F,2,FALSE) -> Кан.насос SL1.80.80.30.4.50D.C | C131: =VLOOKUP(A131,'DATA (2022)'!A:F,4,FALSE) -> CW | F131: =VLOOKUP(A131,'DATA (2022)'!A:F,5,FALSE) -> За запитом | G131: =IFERROR(F131*(1-VLOOKUP(C131,ГОЛОВНА!K:L,2,0)), "-") -> -
A132: 98626049 | B132: =VLOOKUP(A132,'DATA (2022)'!A:F,2,FALSE) -> Кан.насос SL1.80.80.30.4.51D.C | C132: =VLOOKUP(A132,'DATA (2022)'!A:F,4,FALSE) -> CW | F132: =VLOOKUP(A132,'DATA (2022)'!A:F,5,FALSE) -> За запитом | G132: =IFERROR(F132*(1-VLOOKUP(C132,ГОЛОВНА!K:L,2,0)), "-") -> -
A133: 98625967 | B133: =VLOOKUP(A133,'DATA (2022)'!A:F,2,FALSE) -> Кан.насос SLV.100.100.30.4.50D.C | C133: =VLOOKUP(A133,'DATA (2022)'!A:F,4,FALSE) -> CW | F133: =VLOOKUP(A133,'DATA (2022)'!A:F,5,FALSE) -> За запитом | G133: =IFERROR(F133*(1-VLOOKUP(C133,ГОЛОВНА!K:L,2,0)), "-") -> -
A134: 98626809 | B134: =VLOOKUP(A134,'DATA (2022)'!A:F,2,FALSE) -> Кан.насос SLV.100.100.30.4.50D.C.Q | C134: =VLOOKUP(A134,'DATA (2022)'!A:F,4,FALSE) -> CW | F134: =VLOOKUP(A134,'DATA (2022)'!A:F,5,FALSE) -> За запитом | G134: =IFERROR(F134*(1-VLOOKUP(C134,ГОЛОВНА!K:L,2,0)), "-") -> -
A135: 98626051 | B135: =VLOOKUP(A135,'DATA (2022)'!A:F,2,FALSE) -> Кан.насос SLV.100.100.30.4.51D.C | C135: =VLOOKUP(A135,'DATA (2022)'!A:F,4,FALSE) -> CW | F135: =VLOOKUP(A135,'DATA (2022)'!A:F,5,FALSE) -> За запитом | G135: =IFERROR(F135*(1-VLOOKUP(C135,ГОЛОВНА!K:L,2,0)), "-") -> -
A136: 98626869 | B136: =VLOOKUP(A136,'DATA (2022)'!A:F,2,FALSE) -> Кан.насос SLV.100.100.30.4.51D.C.Q | C136: =VLOOKUP(A136,'DATA (2022)'!A:F,4,FALSE) -> CW | F136: =VLOOKUP(A136,'DATA (2022)'!A:F,5,FALSE) -> За запитом | G136: =IFERROR(F136*(1-VLOOKUP(C136,ГОЛОВНА!K:L,2,0)), "-") -> -
A137: 98626610 | B137: =VLOOKUP(A137,'DATA (2022)'!A:F,2,FALSE) -> Кан.насос SLV.100.100.30.EX.4.50D.C | C137: =VLOOKUP(A137,'DATA (2022)'!A:F,4,FALSE) -> CW | F137: =VLOOKUP(A137,'DATA (2022)'!A:F,5,FALSE) -> За запитом | G137: =IFERROR(F137*(1-VLOOKUP(C137,ГОЛОВНА!K:L,2,0)), "-") -> -
A138: 98627025 | B138: =VLOOKUP(A138,'DATA (2022)'!A:F,2,FALSE) -> Кан.насос SLV.100.100.30.EX.4.50D.C.Q | C138: =VLOOKUP(A138,'DATA (2022)'!A:F,4,FALSE) -> CW | F138: =VLOOKUP(A138,'DATA (2022)'!A:F,5,FALSE) -> За запитом | G138: =IFERROR(F138*(1-VLOOKUP(C138,ГОЛОВНА!K:L,2,0)), "-") -> -
A139: 98627068 | B139: =VLOOKUP(A139,'DATA (2022)'!A:F,2,FALSE) -> Кан.насос SLV.100.100.30.EX.4.51D.C.Q | C139: =VLOOKUP(A139,'DATA (2022)'!A:F,4,FALSE) -> CW | F139: =VLOOKUP(A139,'DATA (2022)'!A:F,5,FALSE) -> За запитом | G139: =IFERROR(F139*(1-VLOOKUP(C139,ГОЛОВНА!K:L,2,0)), "-") -> -
A140: 98626015 | B140: =VLOOKUP(A140,'DATA (2022)'!A:F,2,FALSE) -> Кан.насос SLV.100.100.40.4.50D.C | C140: =VLOOKUP(A140,'DATA (2022)'!A:F,4,FALSE) -> CW | F140: =VLOOKUP(A140,'DATA (2022)'!A:F,5,FALSE) -> За запитом | G140: =IFERROR(F140*(1-VLOOKUP(C140,ГОЛОВНА!K:L,2,0)), "-") -> -
A141: 98626872 | B141: =VLOOKUP(A141,'DATA (2022)'!A:F,2,FALSE) -> Кан.насос SLV.100.100.40.4.51D.C.Q | C141: =VLOOKUP(A141,'DATA (2022)'!A:F,4,FALSE) -> CW | F141: =VLOOKUP(A141,'DATA (2022)'!A:F,5,FALSE) -> За запитом | G141: =IFERROR(F141*(1-VLOOKUP(C141,ГОЛОВНА!K:L,2,0)), "-") -> -
A142: 98624199 | B142: =VLOOKUP(A142,'DATA (2022)'!A:F,2,FALSE) -> Кан.насос SLV.65.65.22.2.50D.C | C142: =VLOOKUP(A142,'DATA (2022)'!A:F,4,FALSE) -> CW | F142: =VLOOKUP(A142,'DATA (2022)'!A:F,5,FALSE) -> 2940 | G142: =IFERROR(F142*(1-VLOOKUP(C142,ГОЛОВНА!K:L,2,0)), "-") -> 2028.6
A143: 98626803 | B143: =VLOOKUP(A143,'DATA (2022)'!A:F,2,FALSE) -> Кан.насос SLV.65.65.22.2.50D.C.Q | C143: =VLOOKUP(A143,'DATA (2022)'!A:F,4,FALSE) -> CW | F143: =VLOOKUP(A143,'DATA (2022)'!A:F,5,FALSE) -> 3081 | G143: =IFERROR(F143*(1-VLOOKUP(C143,ГОЛОВНА!K:L,2,0)), "-") -> 2125.89
A144: 98626044 | B144: =VLOOKUP(A144,'DATA (2022)'!A:F,2,FALSE) -> Кан.насос SLV.65.65.22.2.51D.C | C144: =VLOOKUP(A144,'DATA (2022)'!A:F,4,FALSE) -> CW | F144: =VLOOKUP(A144,'DATA (2022)'!A:F,5,FALSE) -> 2940 | G144: =IFERROR(F144*(1-VLOOKUP(C144,ГОЛОВНА!K:L,2,0)), "-") -> 2028.6
A145: 98626863 | B145: =VLOOKUP(A145,'DATA (2022)'!A:F,2,FALSE) -> Кан.насос SLV.65.65.22.2.51D.C.Q | C145: =VLOOKUP(A145,'DATA (2022)'!A:F,4,FALSE) -> CW | F145: =VLOOKUP(A145,'DATA (2022)'!A:F,5,FALSE) -> За запитом | G145: =IFERROR(F145*(1-VLOOKUP(C145,ГОЛОВНА!K:L,2,0)), "-") -> -
A146: 98626169 | B146: =VLOOKUP(A146,'DATA (2022)'!A:F,2,FALSE) -> Кан.насос SLV.65.65.22.A.2.50D.C | C146: =VLOOKUP(A146,'DATA (2022)'!A:F,4,FALSE) -> CW | F146: =VLOOKUP(A146,'DATA (2022)'!A:F,5,FALSE) -> За запитом | G146: =IFERROR(F146*(1-VLOOKUP(C146,ГОЛОВНА!K:L,2,0)), "-") -> -
A147: 98626917 | B147: =VLOOKUP(A147,'DATA (2022)'!A:F,2,FALSE) -> Кан.насос SLV.65.65.22.A.2.50D.C.Q | C147: =VLOOKUP(A147,'DATA (2022)'!A:F,4,FALSE) -> CW | F147: =VLOOKUP(A147,'DATA (2022)'!A:F,5,FALSE) -> За запитом | G147: =IFERROR(F147*(1-VLOOKUP(C147,ГОЛОВНА!K:L,2,0)), "-") -> -
A148: 98626267 | B148: =VLOOKUP(A148,'DATA (2022)'!A:F,2,FALSE) -> Кан.насос SLV.65.65.22.A.2.51D.C | C148: =VLOOKUP(A148,'DATA (2022)'!A:F,4,FALSE) -> CW | F148: =VLOOKUP(A148,'DATA (2022)'!A:F,5,FALSE) -> За запитом | G148: =IFERROR(F148*(1-VLOOKUP(C148,ГОЛОВНА!K:L,2,0)), "-") -> -
A149: 98626977 | B149: =VLOOKUP(A149,'DATA (2022)'!A:F,2,FALSE) -> Кан.насос SLV.65.65.22.A.2.51D.C.Q | C149: =VLOOKUP(A149,'DATA (2022)'!A:F,4,FALSE) -> CW | F149: =VLOOKUP(A149,'DATA (2022)'!A:F,5,FALSE) -> За запитом | G149: =IFERROR(F149*(1-VLOOKUP(C149,ГОЛОВНА!K:L,2,0)), "-") -> -
A150: 98626390 | B150: =VLOOKUP(A150,'DATA (2022)'!A:F,2,FALSE) -> Кан.насос SLV.65.65.22.A.EX.2.50D.C | C150: =VLOOKUP(A150,'DATA (2022)'!A:F,4,FALSE) -> CW | F150: =VLOOKUP(A150,'DATA (2022)'!A:F,5,FALSE) -> За запитом | G150: =IFERROR(F150*(1-VLOOKUP(C150,ГОЛОВНА!K:L,2,0)), "-") -> -
A151: 98626606 | B151: =VLOOKUP(A151,'DATA (2022)'!A:F,2,FALSE) -> Кан.насос SLV.65.65.22.EX.2.50D.C | C151: =VLOOKUP(A151,'DATA (2022)'!A:F,4,FALSE) -> CW | F151: =VLOOKUP(A151,'DATA (2022)'!A:F,5,FALSE) -> 3080 | G151: =IFERROR(F151*(1-VLOOKUP(C151,ГОЛОВНА!K:L,2,0)), "-") -> 2125.2
A152: 98627023 | B152: =VLOOKUP(A152,'DATA (2022)'!A:F,2,FALSE) -> Кан.насос SLV.65.65.22.EX.2.50D.C.Q | C152: =VLOOKUP(A152,'DATA (2022)'!A:F,4,FALSE) -> CW | F152: =VLOOKUP(A152,'DATA (2022)'!A:F,5,FALSE) -> За запитом | G152: =IFERROR(F152*(1-VLOOKUP(C152,ГОЛОВНА!K:L,2,0)), "-") -> -
A153: 98624165 | B153: =VLOOKUP(A153,'DATA (2022)'!A:F,2,FALSE) -> Кан.насос SLV.65.65.30.2.50D.C | C153: =VLOOKUP(A153,'DATA (2022)'!A:F,4,FALSE) -> CW | F153: =VLOOKUP(A153,'DATA (2022)'!A:F,5,FALSE) -> За запитом | G153: =IFERROR(F153*(1-VLOOKUP(C153,ГОЛОВНА!K:L,2,0)), "-") -> -
A154: 98626793 | B154: =VLOOKUP(A154,'DATA (2022)'!A:F,2,FALSE) -> Кан.насос SLV.65.65.30.2.50D.C.Q | C154: =VLOOKUP(A154,'DATA (2022)'!A:F,4,FALSE) -> CW | F154: =VLOOKUP(A154,'DATA (2022)'!A:F,5,FALSE) -> За запитом | G154: =IFERROR(F154*(1-VLOOKUP(C154,ГОЛОВНА!K:L,2,0)), "-") -> -
A155: 98626037 | B155: =VLOOKUP(A155,'DATA (2022)'!A:F,2,FALSE) -> Кан.насос SLV.65.65.30.2.51D.C | C155: =VLOOKUP(A155,'DATA (2022)'!A:F,4,FALSE) -> CW | F155: =VLOOKUP(A155,'DATA (2022)'!A:F,5,FALSE) -> За запитом | G155: =IFERROR(F155*(1-VLOOKUP(C155,ГОЛОВНА!K:L,2,0)), "-") -> -
A156: 98626853 | B156: =VLOOKUP(A156,'DATA (2022)'!A:F,2,FALSE) -> Кан.насос SLV.65.65.30.2.51D.C.Q | C156: =VLOOKUP(A156,'DATA (2022)'!A:F,4,FALSE) -> CW | F156: =VLOOKUP(A156,'DATA (2022)'!A:F,5,FALSE) -> За запитом | G156: =IFERROR(F156*(1-VLOOKUP(C156,ГОЛОВНА!K:L,2,0)), "-") -> -
A157: 98626159 | B157: =VLOOKUP(A157,'DATA (2022)'!A:F,2,FALSE) -> Кан.насос SLV.65.65.30.A.2.50D.C | C157: =VLOOKUP(A157,'DATA (2022)'!A:F,4,FALSE) -> CW | F157: =VLOOKUP(A157,'DATA (2022)'!A:F,5,FALSE) -> За запитом | G157: =IFERROR(F157*(1-VLOOKUP(C157,ГОЛОВНА!K:L,2,0)), "-") -> -
A158: 98626257 | B158: =VLOOKUP(A158,'DATA (2022)'!A:F,2,FALSE) -> Кан.насос SLV.65.65.30.A.2.51D.C | C158: =VLOOKUP(A158,'DATA (2022)'!A:F,4,FALSE) -> CW | F158: =VLOOKUP(A158,'DATA (2022)'!A:F,5,FALSE) -> За запитом | G158: =IFERROR(F158*(1-VLOOKUP(C158,ГОЛОВНА!K:L,2,0)), "-") -> -
A159: 98626604 | B159: =VLOOKUP(A159,'DATA (2022)'!A:F,2,FALSE) -> Кан.насос SLV.65.65.30.EX.2.50D.C | C159: =VLOOKUP(A159,'DATA (2022)'!A:F,4,FALSE) -> CW | F159: =VLOOKUP(A159,'DATA (2022)'!A:F,5,FALSE) -> За запитом | G159: =IFERROR(F159*(1-VLOOKUP(C159,ГОЛОВНА!K:L,2,0)), "-") -> -
A160: 98627021 | B160: =VLOOKUP(A160,'DATA (2022)'!A:F,2,FALSE) -> Кан.насос SLV.65.65.30.EX.2.50D.C.Q | C160: =VLOOKUP(A160,'DATA (2022)'!A:F,4,FALSE) -> CW | F160: =VLOOKUP(A160,'DATA (2022)'!A:F,5,FALSE) -> За запитом | G160: =IFERROR(F160*(1-VLOOKUP(C160,ГОЛОВНА!K:L,2,0)), "-") -> -
A161: 98626657 | B161: =VLOOKUP(A161,'DATA (2022)'!A:F,2,FALSE) -> Кан.насос SLV.65.65.30.EX.2.51D.C | C161: =VLOOKUP(A161,'DATA (2022)'!A:F,4,FALSE) -> CW | F161: =VLOOKUP(A161,'DATA (2022)'!A:F,5,FALSE) -> За запитом | G161: =IFERROR(F161*(1-VLOOKUP(C161,ГОЛОВНА!K:L,2,0)), "-") -> -
A162: 98627052 | B162: =VLOOKUP(A162,'DATA (2022)'!A:F,2,FALSE) -> Кан.насос SLV.65.65.30.EX.2.51D.C.Q | C162: =VLOOKUP(A162,'DATA (2022)'!A:F,4,FALSE) -> CW | F162: =VLOOKUP(A162,'DATA (2022)'!A:F,5,FALSE) -> За запитом | G162: =IFERROR(F162*(1-VLOOKUP(C162,ГОЛОВНА!K:L,2,0)), "-") -> -
A163: 98625992 | B163: =VLOOKUP(A163,'DATA (2022)'!A:F,2,FALSE) -> Кан.насос SLV.65.65.40.2.50D.C | C163: =VLOOKUP(A163,'DATA (2022)'!A:F,4,FALSE) -> CW | F163: =VLOOKUP(A163,'DATA (2022)'!A:F,5,FALSE) -> За запитом | G163: =IFERROR(F163*(1-VLOOKUP(C163,ГОЛОВНА!K:L,2,0)), "-") -> -
A164: 98626825 | B164: =VLOOKUP(A164,'DATA (2022)'!A:F,2,FALSE) -> Кан.насос SLV.65.65.40.2.50D.C.Q | C164: =VLOOKUP(A164,'DATA (2022)'!A:F,4,FALSE) -> CW | F164: =VLOOKUP(A164,'DATA (2022)'!A:F,5,FALSE) -> За запитом | G164: =IFERROR(F164*(1-VLOOKUP(C164,ГОЛОВНА!K:L,2,0)), "-") -> -
A165: 98624254 | B165: =VLOOKUP(A165,'DATA (2022)'!A:F,2,FALSE) -> Кан.насос SLV.65.65.40.2.51D.C | C165: =VLOOKUP(A165,'DATA (2022)'!A:F,4,FALSE) -> CW | F165: =VLOOKUP(A165,'DATA (2022)'!A:F,5,FALSE) -> За запитом | G165: =IFERROR(F165*(1-VLOOKUP(C165,ГОЛОВНА!K:L,2,0)), "-") -> -
A166: 98626855 | B166: =VLOOKUP(A166,'DATA (2022)'!A:F,2,FALSE) -> Кан.насос SLV.65.65.40.2.51D.C.Q | C166: =VLOOKUP(A166,'DATA (2022)'!A:F,4,FALSE) -> CW | F166: =VLOOKUP(A166,'DATA (2022)'!A:F,5,FALSE) -> За запитом | G166: =IFERROR(F166*(1-VLOOKUP(C166,ГОЛОВНА!K:L,2,0)), "-") -> -
A167: 98626659 | B167: =VLOOKUP(A167,'DATA (2022)'!A:F,2,FALSE) -> Кан.насос SLV.65.65.40.EX.2.51D.C | C167: =VLOOKUP(A167,'DATA (2022)'!A:F,4,FALSE) -> CW | F167: =VLOOKUP(A167,'DATA (2022)'!A:F,5,FALSE) -> За запитом | G167: =IFERROR(F167*(1-VLOOKUP(C167,ГОЛОВНА!K:L,2,0)), "-") -> -
A168: 98625961 | B168: =VLOOKUP(A168,'DATA (2022)'!A:F,2,FALSE) -> Кан.насос SLV.65.80.22.2.50D.C | C168: =VLOOKUP(A168,'DATA (2022)'!A:F,4,FALSE) -> CW | F168: =VLOOKUP(A168,'DATA (2022)'!A:F,5,FALSE) -> 2958 | G168: =IFERROR(F168*(1-VLOOKUP(C168,ГОЛОВНА!K:L,2,0)), "-") -> 2041.02
A169: 98626804 | B169: =VLOOKUP(A169,'DATA (2022)'!A:F,2,FALSE) -> Кан.насос SLV.65.80.22.2.50D.C.Q | C169: =VLOOKUP(A169,'DATA (2022)'!A:F,4,FALSE) -> CW | F169: =VLOOKUP(A169,'DATA (2022)'!A:F,5,FALSE) -> 3099 | G169: =IFERROR(F169*(1-VLOOKUP(C169,ГОЛОВНА!K:L,2,0)), "-") -> 2138.31
A170: 98626045 | B170: =VLOOKUP(A170,'DATA (2022)'!A:F,2,FALSE) -> Кан.насос SLV.65.80.22.2.51D.C | C170: =VLOOKUP(A170,'DATA (2022)'!A:F,4,FALSE) -> CW | F170: =VLOOKUP(A170,'DATA (2022)'!A:F,5,FALSE) -> 2958 | G170: =IFERROR(F170*(1-VLOOKUP(C170,ГОЛОВНА!K:L,2,0)), "-") -> 2041.02
A171: 98626864 | B171: =VLOOKUP(A171,'DATA (2022)'!A:F,2,FALSE) -> Кан.насос SLV.65.80.22.2.51D.C.Q | C171: =VLOOKUP(A171,'DATA (2022)'!A:F,4,FALSE) -> CW | F171: =VLOOKUP(A171,'DATA (2022)'!A:F,5,FALSE) -> За запитом | G171: =IFERROR(F171*(1-VLOOKUP(C171,ГОЛОВНА!K:L,2,0)), "-") -> -
A172: 98626170 | B172: =VLOOKUP(A172,'DATA (2022)'!A:F,2,FALSE) -> Кан.насос SLV.65.80.22.A.2.50D.C | C172: =VLOOKUP(A172,'DATA (2022)'!A:F,4,FALSE) -> CW | F172: =VLOOKUP(A172,'DATA (2022)'!A:F,5,FALSE) -> За запитом | G172: =IFERROR(F172*(1-VLOOKUP(C172,ГОЛОВНА!K:L,2,0)), "-") -> -
A173: 98626918 | B173: =VLOOKUP(A173,'DATA (2022)'!A:F,2,FALSE) -> Кан.насос SLV.65.80.22.A.2.50D.C.Q | C173: =VLOOKUP(A173,'DATA (2022)'!A:F,4,FALSE) -> CW | F173: =VLOOKUP(A173,'DATA (2022)'!A:F,5,FALSE) -> За запитом | G173: =IFERROR(F173*(1-VLOOKUP(C173,ГОЛОВНА!K:L,2,0)), "-") -> -
A174: 98626268 | B174: =VLOOKUP(A174,'DATA (2022)'!A:F,2,FALSE) -> Кан.насос SLV.65.80.22.A.2.51D.C | C174: =VLOOKUP(A174,'DATA (2022)'!A:F,4,FALSE) -> CW | F174: =VLOOKUP(A174,'DATA (2022)'!A:F,5,FALSE) -> За запитом | G174: =IFERROR(F174*(1-VLOOKUP(C174,ГОЛОВНА!K:L,2,0)), "-") -> -
A175: 98626978 | B175: =VLOOKUP(A175,'DATA (2022)'!A:F,2,FALSE) -> Кан.насос SLV.65.80.22.A.2.51D.C.Q | C175: =VLOOKUP(A175,'DATA (2022)'!A:F,4,FALSE) -> CW | F175: =VLOOKUP(A175,'DATA (2022)'!A:F,5,FALSE) -> За запитом | G175: =IFERROR(F175*(1-VLOOKUP(C175,ГОЛОВНА!K:L,2,0)), "-") -> -
A176: 98626607 | B176: =VLOOKUP(A176,'DATA (2022)'!A:F,2,FALSE) -> Кан.насос SLV.65.80.22.EX.2.50D.C | C176: =VLOOKUP(A176,'DATA (2022)'!A:F,4,FALSE) -> CW | F176: =VLOOKUP(A176,'DATA (2022)'!A:F,5,FALSE) -> 3098 | G176: =IFERROR(F176*(1-VLOOKUP(C176,ГОЛОВНА!K:L,2,0)), "-") -> 2137.62
A177: 98627024 | B177: =VLOOKUP(A177,'DATA (2022)'!A:F,2,FALSE) -> Кан.насос SLV.65.80.22.EX.2.50D.C.Q | C177: =VLOOKUP(A177,'DATA (2022)'!A:F,4,FALSE) -> CW | F177: =VLOOKUP(A177,'DATA (2022)'!A:F,5,FALSE) -> За запитом | G177: =IFERROR(F177*(1-VLOOKUP(C177,ГОЛОВНА!K:L,2,0)), "-") -> -
A178: 98625942 | B178: =VLOOKUP(A178,'DATA (2022)'!A:F,2,FALSE) -> Кан.насос SLV.65.80.30.2.50D.C | C178: =VLOOKUP(A178,'DATA (2022)'!A:F,4,FALSE) -> CW | F178: =VLOOKUP(A178,'DATA (2022)'!A:F,5,FALSE) -> За запитом | G178: =IFERROR(F178*(1-VLOOKUP(C178,ГОЛОВНА!K:L,2,0)), "-") -> -
A179: 98626794 | B179: =VLOOKUP(A179,'DATA (2022)'!A:F,2,FALSE) -> Кан.насос SLV.65.80.30.2.50D.C.Q | C179: =VLOOKUP(A179,'DATA (2022)'!A:F,4,FALSE) -> CW | F179: =VLOOKUP(A179,'DATA (2022)'!A:F,5,FALSE) -> За запитом | G179: =IFERROR(F179*(1-VLOOKUP(C179,ГОЛОВНА!K:L,2,0)), "-") -> -
A180: 98626038 | B180: =VLOOKUP(A180,'DATA (2022)'!A:F,2,FALSE) -> Кан.насос SLV.65.80.30.2.51D.C | C180: =VLOOKUP(A180,'DATA (2022)'!A:F,4,FALSE) -> CW | F180: =VLOOKUP(A180,'DATA (2022)'!A:F,5,FALSE) -> 3066 | G180: =IFERROR(F180*(1-VLOOKUP(C180,ГОЛОВНА!K:L,2,0)), "-") -> 2115.54
A181: 98626854 | B181: =VLOOKUP(A181,'DATA (2022)'!A:F,2,FALSE) -> Кан.насос SLV.65.80.30.2.51D.C.Q | C181: =VLOOKUP(A181,'DATA (2022)'!A:F,4,FALSE) -> CW | F181: =VLOOKUP(A181,'DATA (2022)'!A:F,5,FALSE) -> За запитом | G181: =IFERROR(F181*(1-VLOOKUP(C181,ГОЛОВНА!K:L,2,0)), "-") -> -
A182: 98626160 | B182: =VLOOKUP(A182,'DATA (2022)'!A:F,2,FALSE) -> Кан.насос SLV.65.80.30.A.2.50D.C | C182: =VLOOKUP(A182,'DATA (2022)'!A:F,4,FALSE) -> CW | F182: =VLOOKUP(A182,'DATA (2022)'!A:F,5,FALSE) -> За запитом | G182: =IFERROR(F182*(1-VLOOKUP(C182,ГОЛОВНА!K:L,2,0)), "-") -> -
A183: 98626258 | B183: =VLOOKUP(A183,'DATA (2022)'!A:F,2,FALSE) -> Кан.насос SLV.65.80.30.A.2.51D.C | C183: =VLOOKUP(A183,'DATA (2022)'!A:F,4,FALSE) -> CW | F183: =VLOOKUP(A183,'DATA (2022)'!A:F,5,FALSE) -> За запитом | G183: =IFERROR(F183*(1-VLOOKUP(C183,ГОЛОВНА!K:L,2,0)), "-") -> -
A184: 98626605 | B184: =VLOOKUP(A184,'DATA (2022)'!A:F,2,FALSE) -> Кан.насос SLV.65.80.30.EX.2.50D.C | C184: =VLOOKUP(A184,'DATA (2022)'!A:F,4,FALSE) -> CW | F184: =VLOOKUP(A184,'DATA (2022)'!A:F,5,FALSE) -> За запитом | G184: =IFERROR(F184*(1-VLOOKUP(C184,ГОЛОВНА!K:L,2,0)), "-") -> -
A185: 98627022 | B185: =VLOOKUP(A185,'DATA (2022)'!A:F,2,FALSE) -> Кан.насос SLV.65.80.30.EX.2.50D.C.Q | C185: =VLOOKUP(A185,'DATA (2022)'!A:F,4,FALSE) -> CW | F185: =VLOOKUP(A185,'DATA (2022)'!A:F,5,FALSE) -> За запитом | G185: =IFERROR(F185*(1-VLOOKUP(C185,ГОЛОВНА!K:L,2,0)), "-") -> -
A186: 98627053 | B186: =VLOOKUP(A186,'DATA (2022)'!A:F,2,FALSE) -> Кан.насос SLV.65.80.30.EX.2.51D.C.Q | C186: =VLOOKUP(A186,'DATA (2022)'!A:F,4,FALSE) -> CW | F186: =VLOOKUP(A186,'DATA (2022)'!A:F,5,FALSE) -> За запитом | G186: =IFERROR(F186*(1-VLOOKUP(C186,ГОЛОВНА!K:L,2,0)), "-") -> -
A187: 98625993 | B187: =VLOOKUP(A187,'DATA (2022)'!A:F,2,FALSE) -> Кан.насос SLV.65.80.40.2.50D.C | C187: =VLOOKUP(A187,'DATA (2022)'!A:F,4,FALSE) -> CW | F187: =VLOOKUP(A187,'DATA (2022)'!A:F,5,FALSE) -> За запитом | G187: =IFERROR(F187*(1-VLOOKUP(C187,ГОЛОВНА!K:L,2,0)), "-") -> -
A188: 98624699 | B188: =VLOOKUP(A188,'DATA (2022)'!A:F,2,FALSE) -> Кан.насос SLV.65.80.40.2.51D.C | C188: =VLOOKUP(A188,'DATA (2022)'!A:F,4,FALSE) -> CW | F188: =VLOOKUP(A188,'DATA (2022)'!A:F,5,FALSE) -> За запитом | G188: =IFERROR(F188*(1-VLOOKUP(C188,ГОЛОВНА!K:L,2,0)), "-") -> -
A189: 98626856 | B189: =VLOOKUP(A189,'DATA (2022)'!A:F,2,FALSE) -> Кан.насос SLV.65.80.40.2.51D.C.Q | C189: =VLOOKUP(A189,'DATA (2022)'!A:F,4,FALSE) -> CW | F189: =VLOOKUP(A189,'DATA (2022)'!A:F,5,FALSE) -> За запитом | G189: =IFERROR(F189*(1-VLOOKUP(C189,ГОЛОВНА!K:L,2,0)), "-") -> -
A190: 98626629 | B190: =VLOOKUP(A190,'DATA (2022)'!A:F,2,FALSE) -> Кан.насос SLV.65.80.40.EX.2.50D.C | C190: =VLOOKUP(A190,'DATA (2022)'!A:F,4,FALSE) -> CW | F190: =VLOOKUP(A190,'DATA (2022)'!A:F,5,FALSE) -> За запитом | G190: =IFERROR(F190*(1-VLOOKUP(C190,ГОЛОВНА!K:L,2,0)), "-") -> -
A191: 98626660 | B191: =VLOOKUP(A191,'DATA (2022)'!A:F,2,FALSE) -> Кан.насос SLV.65.80.40.EX.2.51D.C | C191: =VLOOKUP(A191,'DATA (2022)'!A:F,4,FALSE) -> CW | F191: =VLOOKUP(A191,'DATA (2022)'!A:F,5,FALSE) -> За запитом | G191: =IFERROR(F191*(1-VLOOKUP(C191,ГОЛОВНА!K:L,2,0)), "-") -> -
A192: 98627055 | B192: =VLOOKUP(A192,'DATA (2022)'!A:F,2,FALSE) -> Кан.насос SLV.65.80.40.EX.2.51D.C.Q | C192: =VLOOKUP(A192,'DATA (2022)'!A:F,4,FALSE) -> CW | F192: =VLOOKUP(A192,'DATA (2022)'!A:F,5,FALSE) -> За запитом | G192: =IFERROR(F192*(1-VLOOKUP(C192,ГОЛОВНА!K:L,2,0)), "-") -> -
A193: 98624691 | B193: =VLOOKUP(A193,'DATA (2022)'!A:F,2,FALSE) -> Кан.насос SLV.80.100.11.4.50D.C | C193: =VLOOKUP(A193,'DATA (2022)'!A:F,4,FALSE) -> CW | F193: =VLOOKUP(A193,'DATA (2022)'!A:F,5,FALSE) -> 2966 | G193: =IFERROR(F193*(1-VLOOKUP(C193,ГОЛОВНА!K:L,2,0)), "-") -> 2046.54
A194: 98626814 | B194: =VLOOKUP(A194,'DATA (2022)'!A:F,2,FALSE) -> Кан.насос SLV.80.100.11.4.50D.C.Q | C194: =VLOOKUP(A194,'DATA (2022)'!A:F,4,FALSE) -> CW | F194: =VLOOKUP(A194,'DATA (2022)'!A:F,5,FALSE) -> 3017 | G194: =IFERROR(F194*(1-VLOOKUP(C194,ГОЛОВНА!K:L,2,0)), "-") -> 2081.73
A195: 98626186 | B195: =VLOOKUP(A195,'DATA (2022)'!A:F,2,FALSE) -> Кан.насос SLV.80.100.11.A.4.50D.C | C195: =VLOOKUP(A195,'DATA (2022)'!A:F,4,FALSE) -> CW | F195: =VLOOKUP(A195,'DATA (2022)'!A:F,5,FALSE) -> За запитом | G195: =IFERROR(F195*(1-VLOOKUP(C195,ГОЛОВНА!K:L,2,0)), "-") -> -
A196: 98626928 | B196: =VLOOKUP(A196,'DATA (2022)'!A:F,2,FALSE) -> Кан.насос SLV.80.100.11.A.4.50D.C.Q | C196: =VLOOKUP(A196,'DATA (2022)'!A:F,4,FALSE) -> CW | F196: =VLOOKUP(A196,'DATA (2022)'!A:F,5,FALSE) -> За запитом | G196: =IFERROR(F196*(1-VLOOKUP(C196,ГОЛОВНА!K:L,2,0)), "-") -> -
A197: 98626396 | B197: =VLOOKUP(A197,'DATA (2022)'!A:F,2,FALSE) -> Кан.насос SLV.80.100.11.A.EX.4.50D.C | C197: =VLOOKUP(A197,'DATA (2022)'!A:F,4,FALSE) -> CW | F197: =VLOOKUP(A197,'DATA (2022)'!A:F,5,FALSE) -> За запитом | G197: =IFERROR(F197*(1-VLOOKUP(C197,ГОЛОВНА!K:L,2,0)), "-") -> -
A198: 98627141 | B198: =VLOOKUP(A198,'DATA (2022)'!A:F,2,FALSE) -> Кан.насос SLV.80.100.11.A.EX.4.50D.C.Q | C198: =VLOOKUP(A198,'DATA (2022)'!A:F,4,FALSE) -> CW | F198: =VLOOKUP(A198,'DATA (2022)'!A:F,5,FALSE) -> За запитом | G198: =IFERROR(F198*(1-VLOOKUP(C198,ГОЛОВНА!K:L,2,0)), "-") -> -
A199: 98626612 | B199: =VLOOKUP(A199,'DATA (2022)'!A:F,2,FALSE) -> Кан.насос SLV.80.100.11.EX.4.50D.C | C199: =VLOOKUP(A199,'DATA (2022)'!A:F,4,FALSE) -> CW | F199: =VLOOKUP(A199,'DATA (2022)'!A:F,5,FALSE) -> За запитом | G199: =IFERROR(F199*(1-VLOOKUP(C199,ГОЛОВНА!K:L,2,0)), "-") -> -
A200: 98627027 | B200: =VLOOKUP(A200,'DATA (2022)'!A:F,2,FALSE) -> Кан.насос SLV.80.100.11.EX.4.50D.C.Q | C200: =VLOOKUP(A200,'DATA (2022)'!A:F,4,FALSE) -> CW | F200: =VLOOKUP(A200,'DATA (2022)'!A:F,5,FALSE) -> За запитом | G200: =IFERROR(F200*(1-VLOOKUP(C200,ГОЛОВНА!K:L,2,0)), "-") -> -
... 137 more rows

Sheet DP, EF
A1: АРТИКУЛ | B1: НАЙМЕНУВАННЯ (УКР) | C1: PRICE GROUP | D1: ДОСТАВКА (ТИЖНІВ) | E1: ДОДАТКОВО | F1: ЦІНА (ЕВРО БЕЗ ПДВ) | G1: ЦІНА ЗІ ЗНИЖКОЮ | H1: НА ГОЛОВНУ
A2: DP | G2: Дренажні насоси
A3: 96104200 | B3: =VLOOKUP(A3,'DATA (2022)'!A:F,2,FALSE) -> Насос стічн.вод DP10.50.09.2.1.502 | C3: =VLOOKUP(A3,'DATA (2022)'!A:F,4,FALSE) -> CW | F3: =VLOOKUP(A3,'DATA (2022)'!A:F,5,FALSE) -> 1751 | G3: =IFERROR(F3*(1-VLOOKUP(C3,ГОЛОВНА!K:L,2,0)), "-") -> 1208.19
A4: 96104204 | B4: =VLOOKUP(A4,'DATA (2022)'!A:F,2,FALSE) -> Насос стічн.вод DP10.50.09.2.50B | C4: =VLOOKUP(A4,'DATA (2022)'!A:F,4,FALSE) -> CW | F4: =VLOOKUP(A4,'DATA (2022)'!A:F,5,FALSE) -> 1751 | G4: =IFERROR(F4*(1-VLOOKUP(C4,ГОЛОВНА!K:L,2,0)), "-") -> 1208.19
A5: 96104202 | B5: =VLOOKUP(A5,'DATA (2022)'!A:F,2,FALSE) -> Насос стічн.вод DP10.50.09.A.2.1.502 | C5: =VLOOKUP(A5,'DATA (2022)'!A:F,4,FALSE) -> CW | F5: =VLOOKUP(A5,'DATA (2022)'!A:F,5,FALSE) -> 2154 | G5: =IFERROR(F5*(1-VLOOKUP(C5,ГОЛОВНА!K:L,2,0)), "-") -> 1486.26
A6: 96104206 | B6: =VLOOKUP(A6,'DATA (2022)'!A:F,2,FALSE) -> Насос стічн.вод DP10.50.09.A.2.50B | C6: =VLOOKUP(A6,'DATA (2022)'!A:F,4,FALSE) -> CW | F6: =VLOOKUP(A6,'DATA (2022)'!A:F,5,FALSE) -> 2154 | G6: =IFERROR(F6*(1-VLOOKUP(C6,ГОЛОВНА!K:L,2,0)), "-") -> 1486.26
A7: 96877476 | B7: =VLOOKUP(A7,'DATA (2022)'!A:F,2,FALSE) -> Насос стічн.вод DP10.50.09.E.2.1.502 | C7: =VLOOKUP(A7,'DATA (2022)'!A:F,4,FALSE) -> CW | F7: =VLOOKUP(A7,'DATA (2022)'!A:F,5,FALSE) -> 2532 | G7: =IFERROR(F7*(1-VLOOKUP(C7,ГОЛОВНА!K:L,2,0)), "-") -> 1747.08
A8: 96877478 | B8: =VLOOKUP(A8,'DATA (2022)'!A:F,2,FALSE) -> Насос стічн.вод DP10.50.09.E.2.50B | C8: =VLOOKUP(A8,'DATA (2022)'!A:F,4,FALSE) -> CW | F8: =VLOOKUP(A8,'DATA (2022)'!A:F,5,FALSE) -> 2532 | G8: =IFERROR(F8*(1-VLOOKUP(C8,ГОЛОВНА!K:L,2,0)), "-") -> 1747.08
A9: 96877479 | B9: =VLOOKUP(A9,'DATA (2022)'!A:F,2,FALSE) -> Насос стічн.вод DP10.50.09.E.Ex.2.1.502 | C9: =VLOOKUP(A9,'DATA (2022)'!A:F,4,FALSE) -> CW | F9: =VLOOKUP(A9,'DATA (2022)'!A:F,5,FALSE) -> 2764 | G9: =IFERROR(F9*(1-VLOOKUP(C9,ГОЛОВНА!K:L,2,0)), "-") -> 1907.16
A10: 96877502 | B10: =VLOOKUP(A10,'DATA (2022)'!A:F,2,FALSE) -> Насос стічн.вод DP10.50.09.E.Ex.2.50B | C10: =VLOOKUP(A10,'DATA (2022)'!A:F,4,FALSE) -> CW | F10: =VLOOKUP(A10,'DATA (2022)'!A:F,5,FALSE) -> 2764 | G10: =IFERROR(F10*(1-VLOOKUP(C10,ГОЛОВНА!K:L,2,0)), "-") -> 1907.16
A11: 96104201 | B11: =VLOOKUP(A11,'DATA (2022)'!A:F,2,FALSE) -> Насос стічн.вод DP10.50.09.Ex.2.1.502 | C11: =VLOOKUP(A11,'DATA (2022)'!A:F,4,FALSE) -> CW | F11: =VLOOKUP(A11,'DATA (2022)'!A:F,5,FALSE) -> 1938 | G11: =IFERROR(F11*(1-VLOOKUP(C11,ГОЛОВНА!K:L,2,0)), "-") -> 1337.22
A12: 96104205 | B12: =VLOOKUP(A12,'DATA (2022)'!A:F,2,FALSE) -> Насос стічн.вод DP10.50.09.Ex.2.50B | C12: =VLOOKUP(A12,'DATA (2022)'!A:F,4,FALSE) -> CW | F12: =VLOOKUP(A12,'DATA (2022)'!A:F,5,FALSE) -> 1938 | G12: =IFERROR(F12*(1-VLOOKUP(C12,ГОЛОВНА!K:L,2,0)), "-") -> 1337.22
A13: 96104208 | B13: =VLOOKUP(A13,'DATA (2022)'!A:F,2,FALSE) -> Насос стічн.вод DP10.50.15.2.50B | C13: =VLOOKUP(A13,'DATA (2022)'!A:F,4,FALSE) -> CW | F13: =VLOOKUP(A13,'DATA (2022)'!A:F,5,FALSE) -> 1994 | G13: =IFERROR(F13*(1-VLOOKUP(C13,ГОЛОВНА!K:L,2,0)), "-") -> 1375.86
A14: 96104210 | B14: =VLOOKUP(A14,'DATA (2022)'!A:F,2,FALSE) -> Насос стічн.вод DP10.50.15.A.2.50B | C14: =VLOOKUP(A14,'DATA (2022)'!A:F,4,FALSE) -> CW | F14: =VLOOKUP(A14,'DATA (2022)'!A:F,5,FALSE) -> 2397 | G14: =IFERROR(F14*(1-VLOOKUP(C14,ГОЛОВНА!K:L,2,0)), "-") -> 1653.93
A15: 96877503 | B15: =VLOOKUP(A15,'DATA (2022)'!A:F,2,FALSE) -> Насос стічн.вод DP10.50.15.E.2.50B | C15: =VLOOKUP(A15,'DATA (2022)'!A:F,4,FALSE) -> CW | F15: =VLOOKUP(A15,'DATA (2022)'!A:F,5,FALSE) -> 2753 | G15: =IFERROR(F15*(1-VLOOKUP(C15,ГОЛОВНА!K:L,2,0)), "-") -> 1899.57
A16: 96877504 | B16: =VLOOKUP(A16,'DATA (2022)'!A:F,2,FALSE) -> Насос стічн.вод DP10.50.15.E.Ex.2.50B | C16: =VLOOKUP(A16,'DATA (2022)'!A:F,4,FALSE) -> CW | F16: =VLOOKUP(A16,'DATA (2022)'!A:F,5,FALSE) -> 2985 | G16: =IFERROR(F16*(1-VLOOKUP(C16,ГОЛОВНА!K:L,2,0)), "-") -> 2059.65
A17: 96104209 | B17: =VLOOKUP(A17,'DATA (2022)'!A:F,2,FALSE) -> Насос стічн.вод DP10.50.15.Ex.2.50B | C17: =VLOOKUP(A17,'DATA (2022)'!A:F,4,FALSE) -> CW | F17: =VLOOKUP(A17,'DATA (2022)'!A:F,5,FALSE) -> 2180 | G17: =IFERROR(F17*(1-VLOOKUP(C17,ГОЛОВНА!K:L,2,0)), "-") -> 1504.2
A18: 96106542 | B18: =VLOOKUP(A18,'DATA (2022)'!A:F,2,FALSE) -> Насос стічн.вод DP10.65.26.2.50B | C18: =VLOOKUP(A18,'DATA (2022)'!A:F,4,FALSE) -> CW | F18: =VLOOKUP(A18,'DATA (2022)'!A:F,5,FALSE) -> 2372 | G18: =IFERROR(F18*(1-VLOOKUP(C18,ГОЛОВНА!K:L,2,0)), "-") -> 1636.68
A19: 96106544 | B19: =VLOOKUP(A19,'DATA (2022)'!A:F,2,FALSE) -> Насос стічн.вод DP10.65.26.A.2.50B | C19: =VLOOKUP(A19,'DATA (2022)'!A:F,4,FALSE) -> CW | F19: =VLOOKUP(A19,'DATA (2022)'!A:F,5,FALSE) -> 2775 | G19: =IFERROR(F19*(1-VLOOKUP(C19,ГОЛОВНА!K:L,2,0)), "-") -> 1914.75
A20: 96877506 | B20: =VLOOKUP(A20,'DATA (2022)'!A:F,2,FALSE) -> Насос стічн.вод DP10.65.26.E.2.50B | C20: =VLOOKUP(A20,'DATA (2022)'!A:F,4,FALSE) -> CW | F20: =VLOOKUP(A20,'DATA (2022)'!A:F,5,FALSE) -> За запитом | G20: =IFERROR(F20*(1-VLOOKUP(C20,ГОЛОВНА!K:L,2,0)), "-") -> -
A21: 96877507 | B21: =VLOOKUP(A21,'DATA (2022)'!A:F,2,FALSE) -> Насос стічн.вод DP10.65.26.E.Ex.2.50B | C21: =VLOOKUP(A21,'DATA (2022)'!A:F,4,FALSE) -> CW | F21: =VLOOKUP(A21,'DATA (2022)'!A:F,5,FALSE) -> За запитом | G21: =IFERROR(F21*(1-VLOOKUP(C21,ГОЛОВНА!K:L,2,0)), "-") -> -
A22: 96106543 | B22: =VLOOKUP(A22,'DATA (2022)'!A:F,2,FALSE) -> Насос стічн.вод DP10.65.26.Ex.2.50B | C22: =VLOOKUP(A22,'DATA (2022)'!A:F,4,FALSE) -> CW | F22: =VLOOKUP(A22,'DATA (2022)'!A:F,5,FALSE) -> 2558 | G22: =IFERROR(F22*(1-VLOOKUP(C22,ГОЛОВНА!K:L,2,0)), "-") -> 1765.02
A23: EF | G23: Дренажні насоси
A24: 96106546 | B24: =VLOOKUP(A24,'DATA (2022)'!A:F,2,FALSE) -> Насос стічн.вод EF30.50.06.2.1.502 | C24: =VLOOKUP(A24,'DATA (2022)'!A:F,4,FALSE) -> CW | F24: =VLOOKUP(A24,'DATA (2022)'!A:F,5,FALSE) -> 1280 | G24: =IFERROR(F24*(1-VLOOKUP(C24,ГОЛОВНА!K:L,2,0)), "-") -> 883.2
A25: 96106550 | B25: =VLOOKUP(A25,'DATA (2022)'!A:F,2,FALSE) -> Насос стічн.вод EF30.50.06.2.50B | C25: =VLOOKUP(A25,'DATA (2022)'!A:F,4,FALSE) -> CW | F25: =VLOOKUP(A25,'DATA (2022)'!A:F,5,FALSE) -> 1280 | G25: =IFERROR(F25*(1-VLOOKUP(C25,ГОЛОВНА!K:L,2,0)), "-") -> 883.2
A26: 96106548 | B26: =VLOOKUP(A26,'DATA (2022)'!A:F,2,FALSE) -> Насос стічн.вод EF30.50.06.A.2.1.502 | C26: =VLOOKUP(A26,'DATA (2022)'!A:F,4,FALSE) -> CW | F26: =VLOOKUP(A26,'DATA (2022)'!A:F,5,FALSE) -> 1683 | G26: =IFERROR(F26*(1-VLOOKUP(C26,ГОЛОВНА!K:L,2,0)), "-") -> 1161.27
A27: 96106552 | B27: =VLOOKUP(A27,'DATA (2022)'!A:F,2,FALSE) -> Насос стічн.вод EF30.50.06.A.2.50B | C27: =VLOOKUP(A27,'DATA (2022)'!A:F,4,FALSE) -> CW | F27: =VLOOKUP(A27,'DATA (2022)'!A:F,5,FALSE) -> 1683 | G27: =IFERROR(F27*(1-VLOOKUP(C27,ГОЛОВНА!K:L,2,0)), "-") -> 1161.27
A28: 96877508 | B28: =VLOOKUP(A28,'DATA (2022)'!A:F,2,FALSE) -> Насос для стічних вод EF30.50.06.E.2.1.5 | C28: =VLOOKUP(A28,'DATA (2022)'!A:F,4,FALSE) -> CW | F28: =VLOOKUP(A28,'DATA (2022)'!A:F,5,FALSE) -> 2061 | G28: =IFERROR(F28*(1-VLOOKUP(C28,ГОЛОВНА!K:L,2,0)), "-") -> 1422.09
A29: 96877510 | B29: =VLOOKUP(A29,'DATA (2022)'!A:F,2,FALSE) -> Насос для стічних вод EF30.50.06.E.2.50B | C29: =VLOOKUP(A29,'DATA (2022)'!A:F,4,FALSE) -> CW | F29: =VLOOKUP(A29,'DATA (2022)'!A:F,5,FALSE) -> 2061 | G29: =IFERROR(F29*(1-VLOOKUP(C29,ГОЛОВНА!K:L,2,0)), "-") -> 1422.09
A30: 96877512 | B30: =VLOOKUP(A30,'DATA (2022)'!A:F,2,FALSE) -> Насос для стічних вод EF30.50.06.E.EX.2. | C30: =VLOOKUP(A30,'DATA (2022)'!A:F,4,FALSE) -> CW | F30: =VLOOKUP(A30,'DATA (2022)'!A:F,5,FALSE) -> 2288 | G30: =IFERROR(F30*(1-VLOOKUP(C30,ГОЛОВНА!K:L,2,0)), "-") -> 1578.72
A31: 96877514 | B31: =VLOOKUP(A31,'DATA (2022)'!A:F,2,FALSE) -> Насос для стічних вод EF30.50.06.E.EX.2. | C31: =VLOOKUP(A31,'DATA (2022)'!A:F,4,FALSE) -> CW | F31: =VLOOKUP(A31,'DATA (2022)'!A:F,5,FALSE) -> 2288 | G31: =IFERROR(F31*(1-VLOOKUP(C31,ГОЛОВНА!K:L,2,0)), "-") -> 1578.72
A32: 96106547 | B32: =VLOOKUP(A32,'DATA (2022)'!A:F,2,FALSE) -> Насос стічн.вод EF30.50.06.Ex.2.1.502 | C32: =VLOOKUP(A32,'DATA (2022)'!A:F,4,FALSE) -> CW | F32: =VLOOKUP(A32,'DATA (2022)'!A:F,5,FALSE) -> 1467 | G32: =IFERROR(F32*(1-VLOOKUP(C32,ГОЛОВНА!K:L,2,0)), "-") -> 1012.23
A33: 96106551 | B33: =VLOOKUP(A33,'DATA (2022)'!A:F,2,FALSE) -> Насос стічн.вод EF30.50.06.Ex.2.50B | C33: =VLOOKUP(A33,'DATA (2022)'!A:F,4,FALSE) -> CW | F33: =VLOOKUP(A33,'DATA (2022)'!A:F,5,FALSE) -> 1467 | G33: =IFERROR(F33*(1-VLOOKUP(C33,ГОЛОВНА!K:L,2,0)), "-") -> 1012.23
A34: 96115111 | B34: =VLOOKUP(A34,'DATA (2022)'!A:F,2,FALSE) -> Насос стічн.вод EF30.50.09.2.1.502 | C34: =VLOOKUP(A34,'DATA (2022)'!A:F,4,FALSE) -> CW | F34: =VLOOKUP(A34,'DATA (2022)'!A:F,5,FALSE) -> 1373 | G34: =IFERROR(F34*(1-VLOOKUP(C34,ГОЛОВНА!K:L,2,0)), "-") -> 947.37
A35: 96115115 | B35: =VLOOKUP(A35,'DATA (2022)'!A:F,2,FALSE) -> Насос стічн.вод EF30.50.09.2.50B | C35: =VLOOKUP(A35,'DATA (2022)'!A:F,4,FALSE) -> CW | F35: =VLOOKUP(A35,'DATA (2022)'!A:F,5,FALSE) -> 1373 | G35: =IFERROR(F35*(1-VLOOKUP(C35,ГОЛОВНА!K:L,2,0)), "-") -> 947.37
A36: 96115113 | B36: =VLOOKUP(A36,'DATA (2022)'!A:F,2,FALSE) -> Насос стічн.вод EF30.50.09.A.2.1.502 | C36: =VLOOKUP(A36,'DATA (2022)'!A:F,4,FALSE) -> CW | F36: =VLOOKUP(A36,'DATA (2022)'!A:F,5,FALSE) -> 1776 | G36: =IFERROR(F36*(1-VLOOKUP(C36,ГОЛОВНА!K:L,2,0)), "-") -> 1225.44
A37: 96115117 | B37: =VLOOKUP(A37,'DATA (2022)'!A:F,2,FALSE) -> Насос стічн.вод EF30.50.09.A.2.50B | C37: =VLOOKUP(A37,'DATA (2022)'!A:F,4,FALSE) -> CW | F37: =VLOOKUP(A37,'DATA (2022)'!A:F,5,FALSE) -> 1776 | G37: =IFERROR(F37*(1-VLOOKUP(C37,ГОЛОВНА!K:L,2,0)), "-") -> 1225.44
A38: 96877515 | B38: =VLOOKUP(A38,'DATA (2022)'!A:F,2,FALSE) -> Насос для стічних вод EF30.50.09.E.2.1.5 | C38: =VLOOKUP(A38,'DATA (2022)'!A:F,4,FALSE) -> CW | F38: =VLOOKUP(A38,'DATA (2022)'!A:F,5,FALSE) -> 2144 | G38: =IFERROR(F38*(1-VLOOKUP(C38,ГОЛОВНА!K:L,2,0)), "-") -> 1479.36
A39: 96877516 | B39: =VLOOKUP(A39,'DATA (2022)'!A:F,2,FALSE) -> Насос для стічних вод EF30.50.09.E.2.50B | C39: =VLOOKUP(A39,'DATA (2022)'!A:F,4,FALSE) -> CW | F39: =VLOOKUP(A39,'DATA (2022)'!A:F,5,FALSE) -> 2144 | G39: =IFERROR(F39*(1-VLOOKUP(C39,ГОЛОВНА!K:L,2,0)), "-") -> 1479.36
A40: 96877518 | B40: =VLOOKUP(A40,'DATA (2022)'!A:F,2,FALSE) -> Насос для стічних вод EF30.50.09.E.EX.2. | C40: =VLOOKUP(A40,'DATA (2022)'!A:F,4,FALSE) -> CW | F40: =VLOOKUP(A40,'DATA (2022)'!A:F,5,FALSE) -> 2372 | G40: =IFERROR(F40*(1-VLOOKUP(C40,ГОЛОВНА!K:L,2,0)), "-") -> 1636.68
A41: 96877532 | B41: =VLOOKUP(A41,'DATA (2022)'!A:F,2,FALSE) -> Насос для стічних вод EF30.50.09.E.EX.2. | C41: =VLOOKUP(A41,'DATA (2022)'!A:F,4,FALSE) -> CW | F41: =VLOOKUP(A41,'DATA (2022)'!A:F,5,FALSE) -> 2372 | G41: =IFERROR(F41*(1-VLOOKUP(C41,ГОЛОВНА!K:L,2,0)), "-") -> 1636.68
A42: 96115112 | B42: =VLOOKUP(A42,'DATA (2022)'!A:F,2,FALSE) -> Насос стічн.вод EF30.50.09.Ex.2.1.502 | C42: =VLOOKUP(A42,'DATA (2022)'!A:F,4,FALSE) -> CW | F42: =VLOOKUP(A42,'DATA (2022)'!A:F,5,FALSE) -> 1559 | G42: =IFERROR(F42*(1-VLOOKUP(C42,ГОЛОВНА!K:L,2,0)), "-") -> 1075.71
A43: 96115116 | B43: =VLOOKUP(A43,'DATA (2022)'!A:F,2,FALSE) -> Насос стічн.вод EF30.50.09.Ex.2.50B | C43: =VLOOKUP(A43,'DATA (2022)'!A:F,4,FALSE) -> CW | F43: =VLOOKUP(A43,'DATA (2022)'!A:F,5,FALSE) -> 1559 | G43: =IFERROR(F43*(1-VLOOKUP(C43,ГОЛОВНА!K:L,2,0)), "-") -> 1075.71
A44: 96106554 | B44: =VLOOKUP(A44,'DATA (2022)'!A:F,2,FALSE) -> Насос стічн.вод EF30.50.11.2.1.502 | C44: =VLOOKUP(A44,'DATA (2022)'!A:F,4,FALSE) -> CW | F44: =VLOOKUP(A44,'DATA (2022)'!A:F,5,FALSE) -> 1470 | G44: =IFERROR(F44*(1-VLOOKUP(C44,ГОЛОВНА!K:L,2,0)), "-") -> 1014.3
A45: 96106558 | B45: =VLOOKUP(A45,'DATA (2022)'!A:F,2,FALSE) -> Насос стічн.вод EF30.50.11.2.50B | C45: =VLOOKUP(A45,'DATA (2022)'!A:F,4,FALSE) -> CW | F45: =VLOOKUP(A45,'DATA (2022)'!A:F,5,FALSE) -> 1470 | G45: =IFERROR(F45*(1-VLOOKUP(C45,ГОЛОВНА!K:L,2,0)), "-") -> 1014.3
A46: 96106556 | B46: =VLOOKUP(A46,'DATA (2022)'!A:F,2,FALSE) -> Насос стічн.вод EF30.50.11.A.2.1.502 | C46: =VLOOKUP(A46,'DATA (2022)'!A:F,4,FALSE) -> CW | F46: =VLOOKUP(A46,'DATA (2022)'!A:F,5,FALSE) -> 1871 | G46: =IFERROR(F46*(1-VLOOKUP(C46,ГОЛОВНА!K:L,2,0)), "-") -> 1290.99
A47: 96106560 | B47: =VLOOKUP(A47,'DATA (2022)'!A:F,2,FALSE) -> Насос стічн.вод EF30.50.11.A.2.50B | C47: =VLOOKUP(A47,'DATA (2022)'!A:F,4,FALSE) -> CW | F47: =VLOOKUP(A47,'DATA (2022)'!A:F,5,FALSE) -> 1871 | G47: =IFERROR(F47*(1-VLOOKUP(C47,ГОЛОВНА!K:L,2,0)), "-") -> 1290.99
A48: 96875101 | B48: =VLOOKUP(A48,'DATA (2022)'!A:F,2,FALSE) -> Насос для стічних вод EF30.50.11.E.2.1.5 | C48: =VLOOKUP(A48,'DATA (2022)'!A:F,4,FALSE) -> CW | F48: =VLOOKUP(A48,'DATA (2022)'!A:F,5,FALSE) -> 2230 | G48: =IFERROR(F48*(1-VLOOKUP(C48,ГОЛОВНА!K:L,2,0)), "-") -> 1538.7
A49: 96878445 | B49: =VLOOKUP(A49,'DATA (2022)'!A:F,2,FALSE) -> Насос для стічних вод EF30.50.11.E.2.50B | C49: =VLOOKUP(A49,'DATA (2022)'!A:F,4,FALSE) -> CW | F49: =VLOOKUP(A49,'DATA (2022)'!A:F,5,FALSE) -> 2230 | G49: =IFERROR(F49*(1-VLOOKUP(C49,ГОЛОВНА!K:L,2,0)), "-") -> 1538.7
A50: 96878446 | B50: =VLOOKUP(A50,'DATA (2022)'!A:F,2,FALSE) -> Насос для стічних вод EF30.50.11.E.EX.2. | C50: =VLOOKUP(A50,'DATA (2022)'!A:F,4,FALSE) -> CW | F50: =VLOOKUP(A50,'DATA (2022)'!A:F,5,FALSE) -> 2458 | G50: =IFERROR(F50*(1-VLOOKUP(C50,ГОЛОВНА!K:L,2,0)), "-") -> 1696.02
A51: 96106555 | B51: =VLOOKUP(A51,'DATA (2022)'!A:F,2,FALSE) -> Насос стічн.вод EF30.50.11.Ex.2.1.502 | C51: =VLOOKUP(A51,'DATA (2022)'!A:F,4,FALSE) -> CW | F51: =VLOOKUP(A51,'DATA (2022)'!A:F,5,FALSE) -> 1655 | G51: =IFERROR(F51*(1-VLOOKUP(C51,ГОЛОВНА!K:L,2,0)), "-") -> 1141.95
A52: 96106559 | B52: =VLOOKUP(A52,'DATA (2022)'!A:F,2,FALSE) -> Насос стічн.вод EF30.50.11.Ex.2.50B | C52: =VLOOKUP(A52,'DATA (2022)'!A:F,4,FALSE) -> CW | F52: =VLOOKUP(A52,'DATA (2022)'!A:F,5,FALSE) -> 1655 | G52: =IFERROR(F52*(1-VLOOKUP(C52,ГОЛОВНА!K:L,2,0)), "-") -> 1141.95
A53: 96104196 | B53: =VLOOKUP(A53,'DATA (2022)'!A:F,2,FALSE) -> Насос стічн.вод EF30.50.15.2.50B | C53: =VLOOKUP(A53,'DATA (2022)'!A:F,4,FALSE) -> CW | F53: =VLOOKUP(A53,'DATA (2022)'!A:F,5,FALSE) -> 1595 | G53: =IFERROR(F53*(1-VLOOKUP(C53,ГОЛОВНА!K:L,2,0)), "-") -> 1100.55
A54: 96104198 | B54: =VLOOKUP(A54,'DATA (2022)'!A:F,2,FALSE) -> Насос стічн.вод EF30.50.15.A.2.50B | C54: =VLOOKUP(A54,'DATA (2022)'!A:F,4,FALSE) -> CW | F54: =VLOOKUP(A54,'DATA (2022)'!A:F,5,FALSE) -> 1997 | G54: =IFERROR(F54*(1-VLOOKUP(C54,ГОЛОВНА!K:L,2,0)), "-") -> 1377.93
A55: 96878448 | B55: =VLOOKUP(A55,'DATA (2022)'!A:F,2,FALSE) -> Насос для стічних вод EF30.50.15.E.2.50B | C55: =VLOOKUP(A55,'DATA (2022)'!A:F,4,FALSE) -> CW | F55: =VLOOKUP(A55,'DATA (2022)'!A:F,5,FALSE) -> 2342 | G55: =IFERROR(F55*(1-VLOOKUP(C55,ГОЛОВНА!K:L,2,0)), "-") -> 1615.98
A56: 96878449 | B56: =VLOOKUP(A56,'DATA (2022)'!A:F,2,FALSE) -> Насос для стічних вод EF30.50.15.E.EX.2. | C56: =VLOOKUP(A56,'DATA (2022)'!A:F,4,FALSE) -> CW | F56: =VLOOKUP(A56,'DATA (2022)'!A:F,5,FALSE) -> 2569 | G56: =IFERROR(F56*(1-VLOOKUP(C56,ГОЛОВНА!K:L,2,0)), "-") -> 1772.61
A57: 96104197 | B57: =VLOOKUP(A57,'DATA (2022)'!A:F,2,FALSE) -> Насос стічн.вод EF30.50.15.Ex.2.50B | C57: =VLOOKUP(A57,'DATA (2022)'!A:F,4,FALSE) -> CW | F57: =VLOOKUP(A57,'DATA (2022)'!A:F,5,FALSE) -> 1780 | G57: =IFERROR(F57*(1-VLOOKUP(C57,ГОЛОВНА!K:L,2,0)), "-") -> 1228.2
B60: Більше інформації в Grundfos Product Center
B61: https://product-selection.grundfos.com/ua

Sheet TP (E), TPD (E)
A1: АРТИКУЛ | B1: НАЙМЕНУВАННЯ (УКР) | C1: PRICE GROUP | D1: ДОСТАВКА (ТИЖНІВ) | E1: ДОДАТКОВО | F1: ЦІНА (ЕВРО БЕЗ ПДВ) | G1: ЦІНА ЗІ ЗНИЖКОЮ | H1: НА ГОЛОВНУ
A2: TP, TPD ( E) | G2: Ін-лайн насоси для систем опалення та кондиціонування
A3: 98281476 | B3: =VLOOKUP(A3,'DATA (2022)'!A:F,2,FALSE) -> Насос з сух.рот. TP 25-50/2-A-O-A-BQQE 4 | C3: =VLOOKUP(A3,'DATA (2022)'!A:F,4,FALSE) -> CB | D3: FT | F3: =VLOOKUP(A3,'DATA (2022)'!A:F,5,FALSE) -> 475 | G3: =IFERROR(F3*(1-VLOOKUP(C3,ГОЛОВНА!K:L,2,0)), "-") -> 327.75
A4: 98346587 | B4: =VLOOKUP(A4,'DATA (2022)'!A:F,2,FALSE) -> Насос з сух.рот. TP 25-50/2-A-O-A-BQQE 1 | C4: =VLOOKUP(A4,'DATA (2022)'!A:F,4,FALSE) -> CB | D4: FT | F4: =VLOOKUP(A4,'DATA (2022)'!A:F,5,FALSE) -> 541 | G4: =IFERROR(F4*(1-VLOOKUP(C4,ГОЛОВНА!K:L,2,0)), "-") -> 373.29
A5: 98346612 | B5: =VLOOKUP(A5,'DATA (2022)'!A:F,2,FALSE) -> Насос з сух.рот. TP 25-50/2-A-O-I-BQQE 4 | C5: =VLOOKUP(A5,'DATA (2022)'!A:F,4,FALSE) -> CB | D5: FT | F5: =VLOOKUP(A5,'DATA (2022)'!A:F,5,FALSE) -> 915 | G5: =IFERROR(F5*(1-VLOOKUP(C5,ГОЛОВНА!K:L,2,0)), "-") -> 631.35
A6: 98346632 | B6: =VLOOKUP(A6,'DATA (2022)'!A:F,2,FALSE) -> Насос з сух.рот. TP 25-50/2-A-O-I-BQQE 1 | C6: =VLOOKUP(A6,'DATA (2022)'!A:F,4,FALSE) -> CB | D6: FT | F6: =VLOOKUP(A6,'DATA (2022)'!A:F,5,FALSE) -> 980 | G6: =IFERROR(F6*(1-VLOOKUP(C6,ГОЛОВНА!K:L,2,0)), "-") -> 676.2
A7: 98282096 | B7: =VLOOKUP(A7,'DATA (2022)'!A:F,2,FALSE) -> Насос з сух.рот. TP 25-80/2-A-O-A-BQQE 4 | C7: =VLOOKUP(A7,'DATA (2022)'!A:F,4,FALSE) -> CB | D7: FT | F7: =VLOOKUP(A7,'DATA (2022)'!A:F,5,FALSE) -> 531 | G7: =IFERROR(F7*(1-VLOOKUP(C7,ГОЛОВНА!K:L,2,0)), "-") -> 366.39
A8: 98282133 | B8: =VLOOKUP(A8,'DATA (2022)'!A:F,2,FALSE) -> Насос з сух.рот. TP 25-90/2-A-O-A-BQQE 4 | C8: =VLOOKUP(A8,'DATA (2022)'!A:F,4,FALSE) -> CB | D8: FT | F8: =VLOOKUP(A8,'DATA (2022)'!A:F,5,FALSE) -> 581 | G8: =IFERROR(F8*(1-VLOOKUP(C8,ГОЛОВНА!K:L,2,0)), "-") -> 400.89
A9: 98346604 | B9: =VLOOKUP(A9,'DATA (2022)'!A:F,2,FALSE) -> Насос з сух.рот. TP 25-90/2-A-O-A-BQQE 1 | C9: =VLOOKUP(A9,'DATA (2022)'!A:F,4,FALSE) -> CB | D9: FT | F9: =VLOOKUP(A9,'DATA (2022)'!A:F,5,FALSE) -> 724 | G9: =IFERROR(F9*(1-VLOOKUP(C9,ГОЛОВНА!K:L,2,0)), "-") -> 499.56
A10: 98957942 | B10: =VLOOKUP(A10,'DATA (2022)'!A:F,2,FALSE) -> Насос з сух.рот. TP 32-30/4-A-F-A-BQQE 1 | C10: =VLOOKUP(A10,'DATA (2022)'!A:F,4,FALSE) -> CB | F10: =VLOOKUP(A10,'DATA (2022)'!A:F,5,FALSE) -> 746 | G10: =IFERROR(F10*(1-VLOOKUP(C10,ГОЛОВНА!K:L,2,0)), "-") -> 514.74
A11: 98957943 | B11: =VLOOKUP(A11,'DATA (2022)'!A:F,2,FALSE) -> Насос з сух.рот. TP 32-30/4-A-F-A-BQQE 4 | C11: =VLOOKUP(A11,'DATA (2022)'!A:F,4,FALSE) -> CB | F11: =VLOOKUP(A11,'DATA (2022)'!A:F,5,FALSE) -> 682 | G11: =IFERROR(F11*(1-VLOOKUP(C11,ГОЛОВНА!K:L,2,0)), "-") -> 470.58
A12: 98346590 | B12: =VLOOKUP(A12,'DATA (2022)'!A:F,2,FALSE) -> Насос з сух.рот. TP 32-50/2-A-O-A-BQQE 1 | C12: =VLOOKUP(A12,'DATA (2022)'!A:F,4,FALSE) -> CB | D12: FT | F12: =VLOOKUP(A12,'DATA (2022)'!A:F,5,FALSE) -> 638 | G12: =IFERROR(F12*(1-VLOOKUP(C12,ГОЛОВНА!K:L,2,0)), "-") -> 440.22
A13: 98282120 | B13: =VLOOKUP(A13,'DATA (2022)'!A:F,2,FALSE) -> Насос з сух.рот. TP 32-50/2-A-O-A-BQQE 4 | C13: =VLOOKUP(A13,'DATA (2022)'!A:F,4,FALSE) -> CB | D13: FT | F13: =VLOOKUP(A13,'DATA (2022)'!A:F,5,FALSE) -> 571 | G13: =IFERROR(F13*(1-VLOOKUP(C13,ГОЛОВНА!K:L,2,0)), "-") -> 393.99
A14: 98958182 | B14: =VLOOKUP(A14,'DATA (2022)'!A:F,2,FALSE) -> Насос з сух.рот. TP 32-60/4-A-F-A-BQQE 4 | C14: =VLOOKUP(A14,'DATA (2022)'!A:F,4,FALSE) -> CB | F14: =VLOOKUP(A14,'DATA (2022)'!A:F,5,FALSE) -> 844 | G14: =IFERROR(F14*(1-VLOOKUP(C14,ГОЛОВНА!K:L,2,0)), "-") -> 582.36
A15: 98946132 | B15: =VLOOKUP(A15,'DATA (2022)'!A:F,2,FALSE) -> Насос з сух.рот. TP 32-60/2-A-F-A-BQQE 4 | C15: =VLOOKUP(A15,'DATA (2022)'!A:F,4,FALSE) -> CB | F15: =VLOOKUP(A15,'DATA (2022)'!A:F,5,FALSE) -> 724 | G15: =IFERROR(F15*(1-VLOOKUP(C15,ГОЛОВНА!K:L,2,0)), "-") -> 499.56
A16: 98957947 | B16: =VLOOKUP(A16,'DATA (2022)'!A:F,2,FALSE) -> Насос з сух.рот. TP 32-60/2-A-F-A-BQQE 1 | C16: =VLOOKUP(A16,'DATA (2022)'!A:F,4,FALSE) -> CB | F16: =VLOOKUP(A16,'DATA (2022)'!A:F,5,FALSE) -> 861 | G16: =IFERROR(F16*(1-VLOOKUP(C16,ГОЛОВНА!K:L,2,0)), "-") -> 594.09
A17: 98282166 | B17: =VLOOKUP(A17,'DATA (2022)'!A:F,2,FALSE) -> Насос з сух.рот. TP 32-80/2-A-O-A-BQQE 4 | C17: =VLOOKUP(A17,'DATA (2022)'!A:F,4,FALSE) -> CB | D17: FT | F17: =VLOOKUP(A17,'DATA (2022)'!A:F,5,FALSE) -> 607 | G17: =IFERROR(F17*(1-VLOOKUP(C17,ГОЛОВНА!K:L,2,0)), "-") -> 418.83
A18: 96086739 | B18: =VLOOKUP(A18,'DATA (2022)'!A:F,2,FALSE) -> Насос з сух.рот. TP 32-80/4-A-F-A-BQQE 4 | C18: =VLOOKUP(A18,'DATA (2022)'!A:F,4,FALSE) -> CB | D18: FT | F18: =VLOOKUP(A18,'DATA (2022)'!A:F,5,FALSE) -> 1190 | G18: =IFERROR(F18*(1-VLOOKUP(C18,ГОЛОВНА!K:L,2,0)), "-") -> 821.1
A19: 98282352 | B19: =VLOOKUP(A19,'DATA (2022)'!A:F,2,FALSE) -> Насос з сух.рот. TP 32-90/2-A-O-I-BQQE 1 | C19: =VLOOKUP(A19,'DATA (2022)'!A:F,4,FALSE) -> CB | D19: FT | F19: =VLOOKUP(A19,'DATA (2022)'!A:F,5,FALSE) -> 1422 | G19: =IFERROR(F19*(1-VLOOKUP(C19,ГОЛОВНА!K:L,2,0)), "-") -> 981.18
A20: 98299122 | B20: =VLOOKUP(A20,'DATA (2022)'!A:F,2,FALSE) -> Насос з сух.рот. TP 32-90/2-A-O-A-BQQE 1 | C20: =VLOOKUP(A20,'DATA (2022)'!A:F,4,FALSE) -> CB | D20: FT | F20: =VLOOKUP(A20,'DATA (2022)'!A:F,5,FALSE) -> 800 | G20: =IFERROR(F20*(1-VLOOKUP(C20,ГОЛОВНА!K:L,2,0)), "-") -> 552
A21: 98346582 | B21: =VLOOKUP(A21,'DATA (2022)'!A:F,2,FALSE) -> Насос з сух.рот. TP 32-90/2-A-O-A-BQQE 4 | C21: =VLOOKUP(A21,'DATA (2022)'!A:F,4,FALSE) -> CB | D21: FT | F21: =VLOOKUP(A21,'DATA (2022)'!A:F,5,FALSE) -> 658 | G21: =IFERROR(F21*(1-VLOOKUP(C21,ГОЛОВНА!K:L,2,0)), "-") -> 454.02
A22: 96086741 | B22: =VLOOKUP(A22,'DATA (2022)'!A:F,2,FALSE) -> Насос з сух.рот. TP 32-120/4-A-F-A-BQQE | C22: =VLOOKUP(A22,'DATA (2022)'!A:F,4,FALSE) -> CB | D22: FT | F22: =VLOOKUP(A22,'DATA (2022)'!A:F,5,FALSE) -> 1254 | G22: =IFERROR(F22*(1-VLOOKUP(C22,ГОЛОВНА!K:L,2,0)), "-") -> 865.26
A23: 98602057 | B23: =VLOOKUP(A23,'DATA (2022)'!A:F,2,FALSE) -> Насос з сух.рот. TP 32-120/2-A-F-A-BQQE | C23: =VLOOKUP(A23,'DATA (2022)'!A:F,4,FALSE) -> CB | F23: =VLOOKUP(A23,'DATA (2022)'!A:F,5,FALSE) -> 1223 | G23: =IFERROR(F23*(1-VLOOKUP(C23,ГОЛОВНА!K:L,2,0)), "-") -> 843.87
A24: 98464186 | B24: =VLOOKUP(A24,'DATA (2022)'!A:F,2,FALSE) -> Насос з сух.рот. TP 32-120/2-A-F-A-BQQE | C24: =VLOOKUP(A24,'DATA (2022)'!A:F,4,FALSE) -> CB | F24: =VLOOKUP(A24,'DATA (2022)'!A:F,5,FALSE) -> 905 | G24: =IFERROR(F24*(1-VLOOKUP(C24,ГОЛОВНА!K:L,2,0)), "-") -> 624.45
A25: 97897469 | B25: =VLOOKUP(A25,'DATA (2022)'!A:F,2,FALSE) -> Насос з сух.рот. TP 32-150/2-A-F-A-BQQE | C25: =VLOOKUP(A25,'DATA (2022)'!A:F,4,FALSE) -> CB | D25: FT | F25: =VLOOKUP(A25,'DATA (2022)'!A:F,5,FALSE) -> 906 | G25: =IFERROR(F25*(1-VLOOKUP(C25,ГОЛОВНА!K:L,2,0)), "-") -> 625.14
A26: 98958114 | B26: =VLOOKUP(A26,'DATA (2022)'!A:F,2,FALSE) -> Насос з сух.рот. TP 32-150/2-A-F-A-BQQE | C26: =VLOOKUP(A26,'DATA (2022)'!A:F,4,FALSE) -> CB | F26: =VLOOKUP(A26,'DATA (2022)'!A:F,5,FALSE) -> 1026 | G26: =IFERROR(F26*(1-VLOOKUP(C26,ГОЛОВНА!K:L,2,0)), "-") -> 707.94
A27: 98958116 | B27: =VLOOKUP(A27,'DATA (2022)'!A:F,2,FALSE) -> Насос з сух.рот. TP 32-180/2-A-F-A-BQQE | C27: =VLOOKUP(A27,'DATA (2022)'!A:F,4,FALSE) -> CB | F27: =VLOOKUP(A27,'DATA (2022)'!A:F,5,FALSE) -> 1151 | G27: =IFERROR(F27*(1-VLOOKUP(C27,ГОЛОВНА!K:L,2,0)), "-") -> 794.19
A28: 98592079 | B28: =VLOOKUP(A28,'DATA (2022)'!A:F,2,FALSE) -> Насос з сух.рот. TP 32-180/2-A-F-A-BQQE | C28: =VLOOKUP(A28,'DATA (2022)'!A:F,4,FALSE) -> CB | F28: =VLOOKUP(A28,'DATA (2022)'!A:F,5,FALSE) -> 1017 | G28: =IFERROR(F28*(1-VLOOKUP(C28,ГОЛОВНА!K:L,2,0)), "-") -> 701.73
A29: 96086673 | B29: =VLOOKUP(A29,'DATA (2022)'!A:F,2,FALSE) -> Насос з сух.рот. TP 32-200/2-A-F-A-BQQE | C29: =VLOOKUP(A29,'DATA (2022)'!A:F,4,FALSE) -> CB | D29: FT | F29: =VLOOKUP(A29,'DATA (2022)'!A:F,5,FALSE) -> 1239 | G29: =IFERROR(F29*(1-VLOOKUP(C29,ГОЛОВНА!K:L,2,0)), "-") -> 854.91
A30: 98278909 | B30: =VLOOKUP(A30,'DATA (2022)'!A:F,2,FALSE) -> Насос з сух.рот. TP 32-230/2-A-F-A-BQQE | C30: =VLOOKUP(A30,'DATA (2022)'!A:F,4,FALSE) -> CB | D30: FT | F30: =VLOOKUP(A30,'DATA (2022)'!A:F,5,FALSE) -> 1127 | G30: =IFERROR(F30*(1-VLOOKUP(C30,ГОЛОВНА!K:L,2,0)), "-") -> 777.63
A31: 96086674 | B31: =VLOOKUP(A31,'DATA (2022)'!A:F,2,FALSE) -> Насос з сух.рот. TP 32-250/2-A-F-A-BQQE | C31: =VLOOKUP(A31,'DATA (2022)'!A:F,4,FALSE) -> CB | D31: FT | F31: =VLOOKUP(A31,'DATA (2022)'!A:F,5,FALSE) -> 1381 | G31: =IFERROR(F31*(1-VLOOKUP(C31,ГОЛОВНА!K:L,2,0)), "-") -> 952.89
A32: 96086675 | B32: =VLOOKUP(A32,'DATA (2022)'!A:F,2,FALSE) -> Насос з сух.рот. TP 32-320/2-A-F-A-BQQE | C32: =VLOOKUP(A32,'DATA (2022)'!A:F,4,FALSE) -> CB | D32: FT | F32: =VLOOKUP(A32,'DATA (2022)'!A:F,5,FALSE) -> 1493 | G32: =IFERROR(F32*(1-VLOOKUP(C32,ГОЛОВНА!K:L,2,0)), "-") -> 1030.17
A33: 96086777 | B33: =VLOOKUP(A33,'DATA (2022)'!A:F,2,FALSE) -> Насос з сух.рот. TP 32-320/2-A-F-A-BQQE | C33: =VLOOKUP(A33,'DATA (2022)'!A:F,4,FALSE) -> CB | D33: FT | F33: =VLOOKUP(A33,'DATA (2022)'!A:F,5,FALSE) -> 1493 | G33: =IFERROR(F33*(1-VLOOKUP(C33,ГОЛОВНА!K:L,2,0)), "-") -> 1030.17
A34: 96086778 | B34: =VLOOKUP(A34,'DATA (2022)'!A:F,2,FALSE) -> Насос з сух.рот. TP 32-380/2-A-F-A-BQQE | C34: =VLOOKUP(A34,'DATA (2022)'!A:F,4,FALSE) -> CB | D34: FT | F34: =VLOOKUP(A34,'DATA (2022)'!A:F,5,FALSE) -> 1620 | G34: =IFERROR(F34*(1-VLOOKUP(C34,ГОЛОВНА!K:L,2,0)), "-") -> 1117.8
A35: 96086779 | B35: =VLOOKUP(A35,'DATA (2022)'!A:F,2,FALSE) -> Насос з сух.рот. TP 32-460/2-A-F-A-BQQE | C35: =VLOOKUP(A35,'DATA (2022)'!A:F,4,FALSE) -> CB | D35: FT | F35: =VLOOKUP(A35,'DATA (2022)'!A:F,5,FALSE) -> 1667 | G35: =IFERROR(F35*(1-VLOOKUP(C35,ГОЛОВНА!K:L,2,0)), "-") -> 1150.23
A36: 98957948 | B36: =VLOOKUP(A36,'DATA (2022)'!A:F,2,FALSE) -> Насос з сух.рот. TPD 32-60/2-A-F-A-BQQE | C36: =VLOOKUP(A36,'DATA (2022)'!A:F,4,FALSE) -> CB | F36: =VLOOKUP(A36,'DATA (2022)'!A:F,5,FALSE) -> 1762 | G36: =IFERROR(F36*(1-VLOOKUP(C36,ГОЛОВНА!K:L,2,0)), "-") -> 1215.78
A37: 98957949 | B37: =VLOOKUP(A37,'DATA (2022)'!A:F,2,FALSE) -> Насос з сух.рот. TPD 32-60/2-A-F-A-BQQE | C37: =VLOOKUP(A37,'DATA (2022)'!A:F,4,FALSE) -> CB | F37: =VLOOKUP(A37,'DATA (2022)'!A:F,5,FALSE) -> 1476 | G37: =IFERROR(F37*(1-VLOOKUP(C37,ГОЛОВНА!K:L,2,0)), "-") -> 1018.44
A38: 96086757 | B38: =VLOOKUP(A38,'DATA (2022)'!A:F,2,FALSE) -> Насос з сух.рот. TPD 32-80/4-A-F-A-BQQE | C38: =VLOOKUP(A38,'DATA (2022)'!A:F,4,FALSE) -> CB | D38: FT | F38: =VLOOKUP(A38,'DATA (2022)'!A:F,5,FALSE) -> 2468 | G38: =IFERROR(F38*(1-VLOOKUP(C38,ГОЛОВНА!K:L,2,0)), "-") -> 1702.92
A39: 96086758 | B39: =VLOOKUP(A39,'DATA (2022)'!A:F,2,FALSE) -> Насос з сух.рот. TPD 32-100/4-A-F-A-BQQE | C39: =VLOOKUP(A39,'DATA (2022)'!A:F,4,FALSE) -> CB | D39: FT | F39: =VLOOKUP(A39,'DATA (2022)'!A:F,5,FALSE) -> 2516 | G39: =IFERROR(F39*(1-VLOOKUP(C39,ГОЛОВНА!K:L,2,0)), "-") -> 1736.04
A40: 98957951 | B40: =VLOOKUP(A40,'DATA (2022)'!A:F,2,FALSE) -> Насос з сух.рот. TPD 32-120/2-A-F-A-BQQE | C40: =VLOOKUP(A40,'DATA (2022)'!A:F,4,FALSE) -> CB | F40: =VLOOKUP(A40,'DATA (2022)'!A:F,5,FALSE) -> 1843 | G40: =IFERROR(F40*(1-VLOOKUP(C40,ГОЛОВНА!K:L,2,0)), "-") -> 1271.67
A41: 98906995 | B41: =VLOOKUP(A41,'DATA (2022)'!A:F,2,FALSE) -> Насос з сух.рот. TPD 32-120/2-A-F-A-BQQE | C41: =VLOOKUP(A41,'DATA (2022)'!A:F,4,FALSE) -> CB | F41: =VLOOKUP(A41,'DATA (2022)'!A:F,5,FALSE) -> 2130 | G41: =IFERROR(F41*(1-VLOOKUP(C41,ГОЛОВНА!K:L,2,0)), "-") -> 1469.7
A42: 98958122 | B42: =VLOOKUP(A42,'DATA (2022)'!A:F,2,FALSE) -> Насос з сух.рот. TPD 32-180/2-A-F-A-BQQE | C42: =VLOOKUP(A42,'DATA (2022)'!A:F,4,FALSE) -> CB | F42: =VLOOKUP(A42,'DATA (2022)'!A:F,5,FALSE) -> 2068 | G42: =IFERROR(F42*(1-VLOOKUP(C42,ГОЛОВНА!K:L,2,0)), "-") -> 1426.92
A43: 98896273 | B43: =VLOOKUP(A43,'DATA (2022)'!A:F,2,FALSE) -> Насос з сух.рот. TP 40-30/4-A-F-A-BQQE 4 | C43: =VLOOKUP(A43,'DATA (2022)'!A:F,4,FALSE) -> CB | F43: =VLOOKUP(A43,'DATA (2022)'!A:F,5,FALSE) -> 804 | G43: =IFERROR(F43*(1-VLOOKUP(C43,ГОЛОВНА!K:L,2,0)), "-") -> 554.76
A44: 98957953 | B44: =VLOOKUP(A44,'DATA (2022)'!A:F,2,FALSE) -> Насос з сух.рот. TP 40-30/4-A-F-A-BQQE 1 | C44: =VLOOKUP(A44,'DATA (2022)'!A:F,4,FALSE) -> CB | F44: =VLOOKUP(A44,'DATA (2022)'!A:F,5,FALSE) -> 867 | G44: =IFERROR(F44*(1-VLOOKUP(C44,ГОЛОВНА!K:L,2,0)), "-") -> 598.23
A45: 98119685 | B45: =VLOOKUP(A45,'DATA (2022)'!A:F,2,FALSE) -> Насос з сух.рот. TP 40-60/4-A-F-A-BQQE 4 | C45: =VLOOKUP(A45,'DATA (2022)'!A:F,4,FALSE) -> CB | D45: FT | F45: =VLOOKUP(A45,'DATA (2022)'!A:F,5,FALSE) -> 987 | G45: =IFERROR(F45*(1-VLOOKUP(C45,ГОЛОВНА!K:L,2,0)), "-") -> 681.03
A46: 98957960 | B46: =VLOOKUP(A46,'DATA (2022)'!A:F,2,FALSE) -> Насос з сух.рот. TP 40-60/2-A-F-A-BQQE 1 | C46: =VLOOKUP(A46,'DATA (2022)'!A:F,4,FALSE) -> CB | F46: =VLOOKUP(A46,'DATA (2022)'!A:F,5,FALSE) -> 962 | G46: =IFERROR(F46*(1-VLOOKUP(C46,ГОЛОВНА!K:L,2,0)), "-") -> 663.78
A47: 98122409 | B47: =VLOOKUP(A47,'DATA (2022)'!A:F,2,FALSE) -> Насос з сух.рот. TP 40-60/2-A-F-A-BQQE 4 | C47: =VLOOKUP(A47,'DATA (2022)'!A:F,4,FALSE) -> CB | D47: FT | F47: =VLOOKUP(A47,'DATA (2022)'!A:F,5,FALSE) -> 828 | G47: =IFERROR(F47*(1-VLOOKUP(C47,ГОЛОВНА!K:L,2,0)), "-") -> 571.32
A48: 98462889 | B48: =VLOOKUP(A48,'DATA (2022)'!A:F,2,FALSE) -> Насос з сух.рот. TP 40-90/4-A-F-A-BQQE 4 | C48: =VLOOKUP(A48,'DATA (2022)'!A:F,4,FALSE) -> CB | F48: =VLOOKUP(A48,'DATA (2022)'!A:F,5,FALSE) -> 988 | G48: =IFERROR(F48*(1-VLOOKUP(C48,ГОЛОВНА!K:L,2,0)), "-") -> 681.72
A49: 96086883 | B49: =VLOOKUP(A49,'DATA (2022)'!A:F,2,FALSE) -> Насос з сух.рот. TP 40-100/4-A-F-A-BQQE | C49: =VLOOKUP(A49,'DATA (2022)'!A:F,4,FALSE) -> CB | D49: FT | F49: =VLOOKUP(A49,'DATA (2022)'!A:F,5,FALSE) -> 1362 | G49: =IFERROR(F49*(1-VLOOKUP(C49,ГОЛОВНА!K:L,2,0)), "-") -> 939.78
A50: 98743357 | B50: =VLOOKUP(A50,'DATA (2022)'!A:F,2,FALSE) -> Насос з сух.рот. TP 40-110/4-A-F-A-BQQE | C50: =VLOOKUP(A50,'DATA (2022)'!A:F,4,FALSE) -> CB | F50: =VLOOKUP(A50,'DATA (2022)'!A:F,5,FALSE) -> 1393 | G50: =IFERROR(F50*(1-VLOOKUP(C50,ГОЛОВНА!K:L,2,0)), "-") -> 961.17
A51: 98957962 | B51: =VLOOKUP(A51,'DATA (2022)'!A:F,2,FALSE) -> Насос з сух.рот. TP 40-120/2-A-F-A-BQQE | C51: =VLOOKUP(A51,'DATA (2022)'!A:F,4,FALSE) -> CB | F51: =VLOOKUP(A51,'DATA (2022)'!A:F,5,FALSE) -> 1156 | G51: =IFERROR(F51*(1-VLOOKUP(C51,ГОЛОВНА!K:L,2,0)), "-") -> 797.64
A52: 97851334 | B52: =VLOOKUP(A52,'DATA (2022)'!A:F,2,FALSE) -> Насос з сух.рот. TP 40-120/2-A-F-A-BQQE | C52: =VLOOKUP(A52,'DATA (2022)'!A:F,4,FALSE) -> CB | D52: FT | F52: =VLOOKUP(A52,'DATA (2022)'!A:F,5,FALSE) -> 1022 | G52: =IFERROR(F52*(1-VLOOKUP(C52,ГОЛОВНА!K:L,2,0)), "-") -> 705.18
A53: 98743317 | B53: =VLOOKUP(A53,'DATA (2022)'!A:F,2,FALSE) -> Насос з сух.рот. TP 40-140/4-A-F-A-BQQE | C53: =VLOOKUP(A53,'DATA (2022)'!A:F,4,FALSE) -> CB | F53: =VLOOKUP(A53,'DATA (2022)'!A:F,5,FALSE) -> 1615 | G53: =IFERROR(F53*(1-VLOOKUP(C53,ГОЛОВНА!K:L,2,0)), "-") -> 1114.35
A54: 98957965 | B54: =VLOOKUP(A54,'DATA (2022)'!A:F,2,FALSE) -> Насос з сух.рот. TP 40-180/2-A-F-A-BQQE | C54: =VLOOKUP(A54,'DATA (2022)'!A:F,4,FALSE) -> CB | F54: =VLOOKUP(A54,'DATA (2022)'!A:F,5,FALSE) -> 1332 | G54: =IFERROR(F54*(1-VLOOKUP(C54,ГОЛОВНА!K:L,2,0)), "-") -> 919.08
A55: 98133671 | B55: =VLOOKUP(A55,'DATA (2022)'!A:F,2,FALSE) -> Насос з сух.рот. TP 40-180/2-A-F-A-BQQE | C55: =VLOOKUP(A55,'DATA (2022)'!A:F,4,FALSE) -> CB | D55: FT | F55: =VLOOKUP(A55,'DATA (2022)'!A:F,5,FALSE) -> 1197 | G55: =IFERROR(F55*(1-VLOOKUP(C55,ГОЛОВНА!K:L,2,0)), "-") -> 825.93
A56: 98294231 | B56: =VLOOKUP(A56,'DATA (2022)'!A:F,2,FALSE) -> Насос з сух.рот. TP 40-190/2-A-F-A-BQQE | C56: =VLOOKUP(A56,'DATA (2022)'!A:F,4,FALSE) -> CB | D56: FT | F56: =VLOOKUP(A56,'DATA (2022)'!A:F,5,FALSE) -> 1234 | G56: =IFERROR(F56*(1-VLOOKUP(C56,ГОЛОВНА!K:L,2,0)), "-") -> 851.46
A57: 98066916 | B57: =VLOOKUP(A57,'DATA (2022)'!A:F,2,FALSE) -> Насос з сух.рот. TP 40-230/2-A-F-A-BQQE | C57: =VLOOKUP(A57,'DATA (2022)'!A:F,4,FALSE) -> CB | D57: FT | F57: =VLOOKUP(A57,'DATA (2022)'!A:F,5,FALSE) -> 1271 | G57: =IFERROR(F57*(1-VLOOKUP(C57,ГОЛОВНА!K:L,2,0)), "-") -> 876.99
A58: 98066916 | B58: =VLOOKUP(A58,'DATA (2022)'!A:F,2,FALSE) -> Насос з сух.рот. TP 40-230/2-A-F-A-BQQE | C58: =VLOOKUP(A58,'DATA (2022)'!A:F,4,FALSE) -> CB | D58: FT | F58: =VLOOKUP(A58,'DATA (2022)'!A:F,5,FALSE) -> 1271 | G58: =IFERROR(F58*(1-VLOOKUP(C58,ГОЛОВНА!K:L,2,0)), "-") -> 876.99
A59: 98133646 | B59: =VLOOKUP(A59,'DATA (2022)'!A:F,2,FALSE) -> Насос з сух.рот. TP 40-270/2-A-F-A-BQQE | C59: =VLOOKUP(A59,'DATA (2022)'!A:F,4,FALSE) -> CB | D59: FT | F59: =VLOOKUP(A59,'DATA (2022)'!A:F,5,FALSE) -> 1381 | G59: =IFERROR(F59*(1-VLOOKUP(C59,ГОЛОВНА!K:L,2,0)), "-") -> 952.89
A60: 96086924 | B60: =VLOOKUP(A60,'DATA (2022)'!A:F,2,FALSE) -> Насос з сух.рот. TP 40-300/2-A-F-A-BQQE | C60: =VLOOKUP(A60,'DATA (2022)'!A:F,4,FALSE) -> CB | D60: FT | F60: =VLOOKUP(A60,'DATA (2022)'!A:F,5,FALSE) -> 1678 | G60: =IFERROR(F60*(1-VLOOKUP(C60,ГОЛОВНА!K:L,2,0)), "-") -> 1157.82
A61: 96086925 | B61: =VLOOKUP(A61,'DATA (2022)'!A:F,2,FALSE) -> Насос з сух.рот. TP 40-360/2-A-F-A-BQQE | C61: =VLOOKUP(A61,'DATA (2022)'!A:F,4,FALSE) -> CB | D61: FT | F61: =VLOOKUP(A61,'DATA (2022)'!A:F,5,FALSE) -> 1900 | G61: =IFERROR(F61*(1-VLOOKUP(C61,ГОЛОВНА!K:L,2,0)), "-") -> 1311
A62: 98455942 | B62: =VLOOKUP(A62,'DATA (2022)'!A:F,2,FALSE) -> Насос з сух.рот. TPD 40-60/2-A-F-A-BQQE | C62: =VLOOKUP(A62,'DATA (2022)'!A:F,4,FALSE) -> CB | F62: =VLOOKUP(A62,'DATA (2022)'!A:F,5,FALSE) -> 1686 | G62: =IFERROR(F62*(1-VLOOKUP(C62,ГОЛОВНА!K:L,2,0)), "-") -> 1163.34
A63: 98470784 | B63: =VLOOKUP(A63,'DATA (2022)'!A:F,2,FALSE) -> Насос з сух.рот. TPD 40-60/2-A-F-A-BQQE | C63: =VLOOKUP(A63,'DATA (2022)'!A:F,4,FALSE) -> CB | F63: =VLOOKUP(A63,'DATA (2022)'!A:F,5,FALSE) -> 1973 | G63: =IFERROR(F63*(1-VLOOKUP(C63,ГОЛОВНА!K:L,2,0)), "-") -> 1361.37
A64: 98743363 | B64: =VLOOKUP(A64,'DATA (2022)'!A:F,2,FALSE) -> Насос з сух.рот. TPD 40-110/4-A-F-A-BQQE | C64: =VLOOKUP(A64,'DATA (2022)'!A:F,4,FALSE) -> CB | F64: =VLOOKUP(A64,'DATA (2022)'!A:F,5,FALSE) -> 2782 | G64: =IFERROR(F64*(1-VLOOKUP(C64,ГОЛОВНА!K:L,2,0)), "-") -> 1919.58
A65: 98760141 | B65: =VLOOKUP(A65,'DATA (2022)'!A:F,2,FALSE) -> Насос з сух.рот. TPD 40-110/4-A-F-A-BQQE | C65: =VLOOKUP(A65,'DATA (2022)'!A:F,4,FALSE) -> CB | F65: =VLOOKUP(A65,'DATA (2022)'!A:F,5,FALSE) -> 3086 | G65: =IFERROR(F65*(1-VLOOKUP(C65,ГОЛОВНА!K:L,2,0)), "-") -> 2129.34
A66: 98083077 | B66: =VLOOKUP(A66,'DATA (2022)'!A:F,2,FALSE) -> Насос з сух.рот. TPD 40-120/2-A-F-A-BQQE | C66: =VLOOKUP(A66,'DATA (2022)'!A:F,4,FALSE) -> CB | D66: FT | F66: =VLOOKUP(A66,'DATA (2022)'!A:F,5,FALSE) -> 2079 | G66: =IFERROR(F66*(1-VLOOKUP(C66,ГОЛОВНА!K:L,2,0)), "-") -> 1434.51
A67: 98760138 | B67: =VLOOKUP(A67,'DATA (2022)'!A:F,2,FALSE) -> Насос з сух.рот. TPD 40-140/4-A-F-A-BQQE | C67: =VLOOKUP(A67,'DATA (2022)'!A:F,4,FALSE) -> CB | F67: =VLOOKUP(A67,'DATA (2022)'!A:F,5,FALSE) -> За запитом | G67: =IFERROR(F67*(1-VLOOKUP(C67,ГОЛОВНА!K:L,2,0)), "-") -> -
A68: 98743333 | B68: =VLOOKUP(A68,'DATA (2022)'!A:F,2,FALSE) -> Насос з сух.рот. TPD 40-140/4-A-F-A-BQQE | C68: =VLOOKUP(A68,'DATA (2022)'!A:F,4,FALSE) -> CB | F68: =VLOOKUP(A68,'DATA (2022)'!A:F,5,FALSE) -> За запитом | G68: =IFERROR(F68*(1-VLOOKUP(C68,ГОЛОВНА!K:L,2,0)), "-") -> -
A69: 98173086 | B69: =VLOOKUP(A69,'DATA (2022)'!A:F,2,FALSE) -> Насос з сух.рот. TPD 40-190/2-A-F-A-BQQE | C69: =VLOOKUP(A69,'DATA (2022)'!A:F,4,FALSE) -> CB | D69: FT | F69: =VLOOKUP(A69,'DATA (2022)'!A:F,5,FALSE) -> 2510 | G69: =IFERROR(F69*(1-VLOOKUP(C69,ГОЛОВНА!K:L,2,0)), "-") -> 1731.9
A70: 98958133 | B70: =VLOOKUP(A70,'DATA (2022)'!A:F,2,FALSE) -> Насос з сух.рот. TPD 40-230/2-A-F-A-BQQE | C70: =VLOOKUP(A70,'DATA (2022)'!A:F,4,FALSE) -> CB | F70: =VLOOKUP(A70,'DATA (2022)'!A:F,5,FALSE) -> 2584 | G70: =IFERROR(F70*(1-VLOOKUP(C70,ГОЛОВНА!K:L,2,0)), "-") -> 1782.96
A71: 96086858 | B71: =VLOOKUP(A71,'DATA (2022)'!A:F,2,FALSE) -> Насос з сух.рот. TPD 40-300/2-A-F-A-BQQE | C71: =VLOOKUP(A71,'DATA (2022)'!A:F,4,FALSE) -> CB | D71: FT | F71: =VLOOKUP(A71,'DATA (2022)'!A:F,5,FALSE) -> За запитом | G71: =IFERROR(F71*(1-VLOOKUP(C71,ГОЛОВНА!K:L,2,0)), "-") -> -
A72: 98794577 | B72: =VLOOKUP(A72,'DATA (2022)'!A:F,2,FALSE) -> Насос з сух.рот. TP 50-30/4-A-F-A-BQQE 4 | C72: =VLOOKUP(A72,'DATA (2022)'!A:F,4,FALSE) -> CB | F72: =VLOOKUP(A72,'DATA (2022)'!A:F,5,FALSE) -> 998 | G72: =IFERROR(F72*(1-VLOOKUP(C72,ГОЛОВНА!K:L,2,0)), "-") -> 688.62
A73: 98957974 | B73: =VLOOKUP(A73,'DATA (2022)'!A:F,2,FALSE) -> Насос з сух.рот. TP 50-60/4-A-F-A-BQQE 4 | C73: =VLOOKUP(A73,'DATA (2022)'!A:F,4,FALSE) -> CB | F73: =VLOOKUP(A73,'DATA (2022)'!A:F,5,FALSE) -> 1216 | G73: =IFERROR(F73*(1-VLOOKUP(C73,ГОЛОВНА!K:L,2,0)), "-") -> 839.04
A74: 98182027 | B74: =VLOOKUP(A74,'DATA (2022)'!A:F,2,FALSE) -> Насос з сух.рот. TP 50-60/2-A-F-A-BQQE 4 | C74: =VLOOKUP(A74,'DATA (2022)'!A:F,4,FALSE) -> CB | D74: FT | F74: =VLOOKUP(A74,'DATA (2022)'!A:F,5,FALSE) -> 1020 | G74: =IFERROR(F74*(1-VLOOKUP(C74,ГОЛОВНА!K:L,2,0)), "-") -> 703.8
A75: 98957977 | B75: =VLOOKUP(A75,'DATA (2022)'!A:F,2,FALSE) -> Насос з сух.рот. TP 50-60/2-A-F-A-BQQE 1 | C75: =VLOOKUP(A75,'DATA (2022)'!A:F,4,FALSE) -> CB | F75: =VLOOKUP(A75,'DATA (2022)'!A:F,5,FALSE) -> 1154 | G75: =IFERROR(F75*(1-VLOOKUP(C75,ГОЛОВНА!K:L,2,0)), "-") -> 796.26
A76: 96087117 | B76: =VLOOKUP(A76,'DATA (2022)'!A:F,2,FALSE) -> Насос з сух.рот. TP 50-90/4-A-F-A-BQQE 4 | C76: =VLOOKUP(A76,'DATA (2022)'!A:F,4,FALSE) -> CB | D76: FT | F76: =VLOOKUP(A76,'DATA (2022)'!A:F,5,FALSE) -> 1463 | G76: =IFERROR(F76*(1-VLOOKUP(C76,ГОЛОВНА!K:L,2,0)), "-") -> 1009.47
A77: 98279255 | B77: =VLOOKUP(A77,'DATA (2022)'!A:F,2,FALSE) -> Насос з сух.рот. TP 50-120/2-A-F-A-BQQE | C77: =VLOOKUP(A77,'DATA (2022)'!A:F,4,FALSE) -> CB | D77: FT | F77: =VLOOKUP(A77,'DATA (2022)'!A:F,5,FALSE) -> 1235 | G77: =IFERROR(F77*(1-VLOOKUP(C77,ГОЛОВНА!K:L,2,0)), "-") -> 852.15
A78: 98810439 | B78: =VLOOKUP(A78,'DATA (2022)'!A:F,2,FALSE) -> Насос з сух.рот. TP 50-120/2-A-F-A-BQQE | C78: =VLOOKUP(A78,'DATA (2022)'!A:F,4,FALSE) -> CB | F78: =VLOOKUP(A78,'DATA (2022)'!A:F,5,FALSE) -> 1381 | G78: =IFERROR(F78*(1-VLOOKUP(C78,ГОЛОВНА!K:L,2,0)), "-") -> 952.89
A79: 98742942 | B79: =VLOOKUP(A79,'DATA (2022)'!A:F,2,FALSE) -> Насос з сух.рот. TP 50-120/4-A-F-A-BQQE | C79: =VLOOKUP(A79,'DATA (2022)'!A:F,4,FALSE) -> CB | F79: =VLOOKUP(A79,'DATA (2022)'!A:F,5,FALSE) -> 1650 | G79: =IFERROR(F79*(1-VLOOKUP(C79,ГОЛОВНА!K:L,2,0)), "-") -> 1138.5
A80: 98742912 | B80: =VLOOKUP(A80,'DATA (2022)'!A:F,2,FALSE) -> Насос з сух.рот. TP 50-140/4-A-F-A-BQQE | C80: =VLOOKUP(A80,'DATA (2022)'!A:F,4,FALSE) -> CB | F80: =VLOOKUP(A80,'DATA (2022)'!A:F,5,FALSE) -> 1678 | G80: =IFERROR(F80*(1-VLOOKUP(C80,ГОЛОВНА!K:L,2,0)), "-") -> 1157.82
A81: 96086995 | B81: =VLOOKUP(A81,'DATA (2022)'!A:F,2,FALSE) -> Насос з сух.рот. TP 50-160/2-A-F-A-BQQE | C81: =VLOOKUP(A81,'DATA (2022)'!A:F,4,FALSE) -> CB | D81: FT | F81: =VLOOKUP(A81,'DATA (2022)'!A:F,5,FALSE) -> 1404 | G81: =IFERROR(F81*(1-VLOOKUP(C81,ГОЛОВНА!K:L,2,0)), "-") -> 968.76
A82: 98133648 | B82: =VLOOKUP(A82,'DATA (2022)'!A:F,2,FALSE) -> Насос з сух.рот. TP 50-180/2-A-F-A-BQQE | C82: =VLOOKUP(A82,'DATA (2022)'!A:F,4,FALSE) -> CB | D82: FT | F82: =VLOOKUP(A82,'DATA (2022)'!A:F,5,FALSE) -> 1385 | G82: =IFERROR(F82*(1-VLOOKUP(C82,ГОЛОВНА!K:L,2,0)), "-") -> 955.65
A83: 98179119 | B83: =VLOOKUP(A83,'DATA (2022)'!A:F,2,FALSE) -> Насос з сух.рот. TP 50-180/2-A-F-A-BQQE | C83: =VLOOKUP(A83,'DATA (2022)'!A:F,4,FALSE) -> CB | D83: FT | F83: =VLOOKUP(A83,'DATA (2022)'!A:F,5,FALSE) -> 1531 | G83: =IFERROR(F83*(1-VLOOKUP(C83,ГОЛОВНА!K:L,2,0)), "-") -> 1056.39
A84: 96086996 | B84: =VLOOKUP(A84,'DATA (2022)'!A:F,2,FALSE) -> Насос з сух.рот. TP 50-190/2-A-F-A-BQQE | C84: =VLOOKUP(A84,'DATA (2022)'!A:F,4,FALSE) -> CB | D84: FT | F84: =VLOOKUP(A84,'DATA (2022)'!A:F,5,FALSE) -> 1520 | G84: =IFERROR(F84*(1-VLOOKUP(C84,ГОЛОВНА!K:L,2,0)), "-") -> 1048.8
A85: 96087121 | B85: =VLOOKUP(A85,'DATA (2022)'!A:F,2,FALSE) -> Насос з сух.рот. TP 50-190/4-A-F-A-BQQE | C85: =VLOOKUP(A85,'DATA (2022)'!A:F,4,FALSE) -> CB | D85: FT | F85: =VLOOKUP(A85,'DATA (2022)'!A:F,5,FALSE) -> 1741 | G85: =IFERROR(F85*(1-VLOOKUP(C85,ГОЛОВНА!K:L,2,0)), "-") -> 1201.29
A86: 96086997 | B86: =VLOOKUP(A86,'DATA (2022)'!A:F,2,FALSE) -> Насос з сух.рот. TP 50-240/2-A-F-A-BQQE | C86: =VLOOKUP(A86,'DATA (2022)'!A:F,4,FALSE) -> CB | D86: FT | F86: =VLOOKUP(A86,'DATA (2022)'!A:F,5,FALSE) -> 1589 | G86: =IFERROR(F86*(1-VLOOKUP(C86,ГОЛОВНА!K:L,2,0)), "-") -> 1096.41
A87: 96087196 | B87: =VLOOKUP(A87,'DATA (2022)'!A:F,2,FALSE) -> Насос з сух.рот. TP 50-290/2-A-F-A-BQQE | C87: =VLOOKUP(A87,'DATA (2022)'!A:F,4,FALSE) -> CB | D87: FT | F87: =VLOOKUP(A87,'DATA (2022)'!A:F,5,FALSE) -> 1694 | G87: =IFERROR(F87*(1-VLOOKUP(C87,ГОЛОВНА!K:L,2,0)), "-") -> 1168.86
A88: 96087197 | B88: =VLOOKUP(A88,'DATA (2022)'!A:F,2,FALSE) -> Насос з сух.рот. TP 50-360/2-A-F-A-BQQE | C88: =VLOOKUP(A88,'DATA (2022)'!A:F,4,FALSE) -> CB | D88: FT | F88: =VLOOKUP(A88,'DATA (2022)'!A:F,5,FALSE) -> 1947 | G88: =IFERROR(F88*(1-VLOOKUP(C88,ГОЛОВНА!K:L,2,0)), "-") -> 1343.43
A89: 96087198 | B89: =VLOOKUP(A89,'DATA (2022)'!A:F,2,FALSE) -> Насос з сух.рот. TP 50-430/2-A-F-A-BQQE | C89: =VLOOKUP(A89,'DATA (2022)'!A:F,4,FALSE) -> CB | D89: FT | F89: =VLOOKUP(A89,'DATA (2022)'!A:F,5,FALSE) -> 2577 | G89: =IFERROR(F89*(1-VLOOKUP(C89,ГОЛОВНА!K:L,2,0)), "-") -> 1778.13
A90: 98958089 | B90: =VLOOKUP(A90,'DATA (2022)'!A:F,2,FALSE) -> Насос з сух.рот. TPD 50-60/4-A-F-A-BQQE | C90: =VLOOKUP(A90,'DATA (2022)'!A:F,4,FALSE) -> CB | F90: =VLOOKUP(A90,'DATA (2022)'!A:F,5,FALSE) -> 2473 | G90: =IFERROR(F90*(1-VLOOKUP(C90,ГОЛОВНА!K:L,2,0)), "-") -> 1706.37
A91: 98957979 | B91: =VLOOKUP(A91,'DATA (2022)'!A:F,2,FALSE) -> Насос з сух.рот. TPD 50-60/2-A-F-A-BQQE | C91: =VLOOKUP(A91,'DATA (2022)'!A:F,4,FALSE) -> CB | F91: =VLOOKUP(A91,'DATA (2022)'!A:F,5,FALSE) -> 2075 | G91: =IFERROR(F91*(1-VLOOKUP(C91,ГОЛОВНА!K:L,2,0)), "-") -> 1431.75
A92: 98760132 | B92: =VLOOKUP(A92,'DATA (2022)'!A:F,2,FALSE) -> Насос з сух.рот. TPD 50-80/4-A-F-A-BQQE | C92: =VLOOKUP(A92,'DATA (2022)'!A:F,4,FALSE) -> CB | F92: =VLOOKUP(A92,'DATA (2022)'!A:F,5,FALSE) -> За запитом | G92: =IFERROR(F92*(1-VLOOKUP(C92,ГОЛОВНА!K:L,2,0)), "-") -> -
A93: 98760129 | B93: =VLOOKUP(A93,'DATA (2022)'!A:F,2,FALSE) -> Насос з сух.рот. TPD 50-120/4-A-F-A-BQQE | C93: =VLOOKUP(A93,'DATA (2022)'!A:F,4,FALSE) -> CB | F93: =VLOOKUP(A93,'DATA (2022)'!A:F,5,FALSE) -> За запитом | G93: =IFERROR(F93*(1-VLOOKUP(C93,ГОЛОВНА!K:L,2,0)), "-") -> -
A94: 98957982 | B94: =VLOOKUP(A94,'DATA (2022)'!A:F,2,FALSE) -> Насос з сух.рот. TPD 50-120/2-A-F-A-BQQE | C94: =VLOOKUP(A94,'DATA (2022)'!A:F,4,FALSE) -> CB | F94: =VLOOKUP(A94,'DATA (2022)'!A:F,5,FALSE) -> 2513 | G94: =IFERROR(F94*(1-VLOOKUP(C94,ГОЛОВНА!K:L,2,0)), "-") -> 1733.97
A95: 98760126 | B95: =VLOOKUP(A95,'DATA (2022)'!A:F,2,FALSE) -> Насос з сух.рот. TPD 50-140/4-A-F-A-BQQE | C95: =VLOOKUP(A95,'DATA (2022)'!A:F,4,FALSE) -> CB | F95: =VLOOKUP(A95,'DATA (2022)'!A:F,5,FALSE) -> За запитом | G95: =IFERROR(F95*(1-VLOOKUP(C95,ГОЛОВНА!K:L,2,0)), "-") -> -
A96: 98742918 | B96: =VLOOKUP(A96,'DATA (2022)'!A:F,2,FALSE) -> Насос з сух.рот. TPD 50-140/4-A-F-A-BQQE | C96: =VLOOKUP(A96,'DATA (2022)'!A:F,4,FALSE) -> CB | F96: =VLOOKUP(A96,'DATA (2022)'!A:F,5,FALSE) -> За запитом | G96: =IFERROR(F96*(1-VLOOKUP(C96,ГОЛОВНА!K:L,2,0)), "-") -> -
A97: 96087157 | B97: =VLOOKUP(A97,'DATA (2022)'!A:F,2,FALSE) -> Насос з сух.рот. TPD 50-190/4-A-F-A-BQQE | C97: =VLOOKUP(A97,'DATA (2022)'!A:F,4,FALSE) -> CB | D97: FT | F97: =VLOOKUP(A97,'DATA (2022)'!A:F,5,FALSE) -> За запитом | G97: =IFERROR(F97*(1-VLOOKUP(C97,ГОЛОВНА!K:L,2,0)), "-") -> -
A98: 96087062 | B98: =VLOOKUP(A98,'DATA (2022)'!A:F,2,FALSE) -> Насос з сух.рот. TPD 50-190/2-A-F-A-BQQE | C98: =VLOOKUP(A98,'DATA (2022)'!A:F,4,FALSE) -> CB | D98: FT | F98: =VLOOKUP(A98,'DATA (2022)'!A:F,5,FALSE) -> За запитом | G98: =IFERROR(F98*(1-VLOOKUP(C98,ГОЛОВНА!K:L,2,0)), "-") -> -
A99: 96384280 | B99: =VLOOKUP(A99,'DATA (2022)'!A:F,2,FALSE) -> Насос з сух.рот. TPD 50-190/2-A-F-A-BQQE | C99: =VLOOKUP(A99,'DATA (2022)'!A:F,4,FALSE) -> CB | F99: =VLOOKUP(A99,'DATA (2022)'!A:F,5,FALSE) -> За запитом | G99: =IFERROR(F99*(1-VLOOKUP(C99,ГОЛОВНА!K:L,2,0)), "-") -> -
A100: 96087063 | B100: =VLOOKUP(A100,'DATA (2022)'!A:F,2,FALSE) -> Насос з сух.рот. TPD 50-240/2-A-F-A-BQQE | C100: =VLOOKUP(A100,'DATA (2022)'!A:F,4,FALSE) -> CB | D100: FT | F100: =VLOOKUP(A100,'DATA (2022)'!A:F,5,FALSE) -> За запитом | G100: =IFERROR(F100*(1-VLOOKUP(C100,ГОЛОВНА!K:L,2,0)), "-") -> -
